Workbook

Sheet Информация
B1: ПЕРЕЧЕНЬ ДОКУМЕНТОВ ДЛЯ УТВЕРЖДЕНИЯ ТАРИФОВ НА УСЛУГИ ПО ПЕРЕДАЧЕ ЭЛЕКТРИЧЕСКОЙ ЭНЕРГИИ Для рассмотрения предложения об утверждении тарифов на услуги по передаче электрической энергии сетевая организация предоставляет в регулирующий орган в срок до 1 мая текущего года следующие материалы: 1. Письмо на имя Министра с предложением по установлению или корректировке тарифов с краткой пояснительной запиской; | C1: При корректировке тарифов не предоставляется:
B2: 2. Выписка из Единого государственного реестра юридических лиц. Документы, удостоверяющие право собственности или аренды сетевого оборудования; | C2: не предоставляется, если нет изменений
B3: 3. Расчетные таблицы, подписанные руководителем или уполномоченным лицом (прикладывается доверенность);
B4: 4. Положение по учетной политике на предприятии (с указанием субсчетов, относимых к регулируемому виду деятельности) | C4: не предоставляется, если нет изменений
B5: 5. Копия договора на услуги по передаче электрической энергии с филиалом "Удмуртэнерго" ОАО "МРСК Центра и Приволжья" с приложением № 3 к договору на 2016 год (в случае отсутствия документов может быть представлена позднее); | C5: приложение может быть представлено позже
B6: 6. Динамика величины и уровня фактических потерь за последние 3 года;
B7: 7. Объем воздушных линий электропередач (ВЛЭП) и кабельных линий электропередач (КЛЭП) в условных единицах в зависимости от протяженности, напряжения, конструктивного использования и материала опор (приложение 2.1.) по состоянию на 1 января 2014 года, 1 января 2015 года и на текущую дату (если есть изменения); объем подстанций 35-1150кВ, трансформаторных подстанций (ТП), комплексных трансформаторных подстанций (КТП) и распределительных пунктов (РП) 0,4 -20 кВ в условных единицах (приложение 2.2.) по состоянию на 1 января 2014 года, 1 января 2015 года и на текущую дату, если есть изменения;
B8: 8. Пояснение о причинах изменения активов организации в условных единицах по каждому пункту с приложением актов ввода оборудования или списания (при большом количестве -реестр);
B9: 9. Программа энергосбережения на период действия тарифов; | C9: не предоставляется, если нет изменений
B10: 10. Штатное расписание по участкам обслуживания и ремонта электрических сетей, расчет нормативной численности, фактическая среднесписочная численность за предыдущий год в соответствии с данными статотчетности. | C10: не предоставляется, если нет изменений
B11: 11. Программа капитальных ремонтов на плановый период;
B12: 12. Отчет о выполнении капитальных ремонтов за прошедший год.
B13: 13. Перечень услуг производственного характера сторонних организаций по факту 2014 года, ожидаемое на 2015 год и план на 2016 год с приложением соответствующих договоров на текущий период.
B14: 14. Расшифровка статьи "материалы"по факту 2014 года, ожидаемое на 2015 год и план на 2016 год.
B15: 15. Положение о закупках, протокола по результатам торгов за 2014 и 2015 годы (в части, относящейся на регулируемый вид деятельности);
B16: 16. Копии счетов–фактур на покупку потерь за 2014 год и 1 квартал 2015 года;
B17: 17. Отчетность по форме 46-ээ (передача) за прошедший год;
B18: 18. Схема электрических сетей организации, акты разграничения балансовой принадлежности; | C18: не предоставляется, если нет изменений
B19: 19. Анализ субсчетов, на которых учитываются затраты по услугам на передачу электрической энергии, за прошедший год и первый квартал текущего года, за подписью бухгалтера;
B20: 20. Расчет экономически обоснованного уровня арендной платы с приложением подтверждающих документов (в случае владения имуществом на правах аренды) по факту и на плановый период;
B21: 21. Иные документы, подтверждающие фактические расходы, декларации по налогам;
B22: 21. Бухгалтерская и статистическая отчетность за прошедший год и 1 квартал текущего года;
B23: 22. Расчет выпадающих доходов от технологического присоединения льготных категорий заявителей за прошедший год и на плановый период;
B24: 23. Решение об утверждении инвестиционной программы (инвестиционная программа и отчет об её исполнении за предыдущий год должны быть представлены в отдел энергосбережения и инвестиций); | C24: решение о корректировке инвестпрограммы
B25: 24. Расчет показателей надежности и качества, оказываемых услуг на долгосрочный период. | C25: предоставляется по факту 2014 года
B26: 25. Справка о наличии официального сайта в сети Интернет и выделенного абонентского номера для обращений потребителей услуг по передаче электрической энергии и (или) технологическому присоединению, подписанная руководителем или иным уполномоченным лицом заявителя и заверенная печатью заявителя.
B27: Информация (расчетные таблицы и обосновывающие материалы) представляется на рассмотрение
B28: в регулирующий орган в сброшюрованном виде за подписью руководителя организации или уполномоченного лица (при наличии доверенности), а также все расчетные таблицы (приложения)
B29: представляются дополнительно в электронном виде в шаблонах (формат Excel).
B30: Если организация обращается за утверждением тарифа впервые, данные на долгосрочный период не заполняются, и не предоставляется расчет показателей надёжности и качества оказываемых услуг (п.23)
B31: Если организация обращается за корректировкой НВВ, рассчитанной методом долгосрочной индексации, в расчетных таблицах заполняются данные по факту 2014 года, ожидаемые данные за 2015 год и план на 2016 год.

Sheet Анкета
C1: версия 1
A2: АНКЕТА | E2: общая (организация является плательщиком НДС) | G2: да
A3: Наименование организации: | B3: АО "Чепецкий механический завод" | E3: упрощенная система налогообложения | G3: нет (расходы учитываются в составе 20 счета по другому виду деятельности)
A4: Организационно правовая форма | B4: Акционерное общество | E4: система налогообложения для сельхозтоваропроизводителей (единый сельскохозяйственный налог) | G4: нет (расходы учитываются в составе 23 счета -вспомогательное производство)
A5: Система налогообложения организации: | B5: общая (организация является плательщиком НДС) | E5: иная (организация не является плательщиком НДС) | G5: нет (расходы учитываются в составе общепроизводственных расходов - 25 счет)
A6: Муниципальное образование по месту регистрации организации или филиала | B6: г.Глазов
A7: ИНН | B7: 1829008035
A8: КПП | B8: 183650001
A9: Юридический/Почтовый адрес: | B9: ул. Белова, д.7, г.Глазов, Удмуртская Республика, Россия, 427620
A10: Основной вид деятельности организации | B10: Производство ядерных материалов
A11: Право владения электросетевым имуществом (собственность/аренда/хоз. ведение/оперативное управление) | B11: Собственность
A12: Срок действия действующего договора аренды сетей (или иного договора, подтверждающего право владения)
A13: техническая характеристика сетей на 1.04.2015 года
A14: Протяженность сетей ВН (км) | B14: 0,8
A15: Протяженность сетей СН-1 (км) | B15: 12,3
A16: Протяженность сетей СН-2 (км) | B16: 210.256
A17: Протяженность сетей НН (км) | B17: 2
A18: Установленная (присоединенная) мощность сети (кВА) | B18: 322500000
A19: в т.ч. присоединенная мощность сторонних потребителей (кВА) | B19: 1000000
A20: Заявленная мощность (МВт) | B20: 50,29
A21: в т.ч. заявленная мощность сторонних потребителей (МВт) | B21: 1,02
A22: Наименование смежных сетевых организаций: | B22: ОАО "МРСК Центра и Приволжья"
A23: Указать на каких субсчетах организован раздельный учет доходов и расходов по передаче электрической энергии | B23: U420031641- передача электрической энергии
A24: Выручка от деятельности по передаче электрической энергии за 2014 год, тыс.руб. | B24: 2332
A25: Прибыль от продаж по итогам 2014 года в целом по организации, тыс.руб. | B25: 1951922
A26: в том числе от услуг по передаче электрической энергии, тыс.руб. | B26: 541
A27: Количество сторонних потребителей, присоединенных к сетям организации | B27: 39
A28: Действующий тариф на услуги по передаче электрической энергии на 2015 год (1 и 2 полугодия): ставка на содержание сетей (руб./квт); ставка на компенсацию потерь (руб./кВт.ч) | B28: 126.2999 | C28: 126.2999
B29: 0.0709 | C29: 0.1149
A30: Постановление (приказ) регулирующего органа о тарифах на 2015 год (реквизиты) | B30: Постановление РЭК УР от 26.12.2014г. № 30/16
A31: Дата подключения к ЕИАС | B31: 2010-11-15
A32: Где раскрыта информация о предлагаемом размере тарифов и долгосрочных параметров регулирования (пункт 9(1) Правил регулирования -постановление Правительства РФ от 29.12.2011г. № 1178) (указать ссылку на страницу сайта, где размещена информация) | B32: На официальном сайте ОАО "ЧМЗ" (WWW.CHMZ.NET)
A33: Где раскрыта информация в соответствии с требованиями постановления Правительства РФ от 21.01.2004 № 24 об установленных тарифах на 2015 год и по факту 2014 года (указать ссылки на страницы сайта, где размещена информация) | B33: На официальном сайте ОАО "ЧМЗ" (WWW.CHMZ.NET) 05 февраля 2015 года
A35: Руководитель организации | B35: Ф.И.О.: (с расшифровкой) | C35: Вергазов Константин Юрьевич
B36: Должность: | C36: Генеральный директор
A37: Номер контактного телефона/факса (приемная): | C37: 8 (34141) 9-64-15
A38: Email организации (для официальной рассылки): | C38: chmz@rosatom.ru
A39: Должностное лицо, ответственное за составление формы | B39: Ф.И.О.: (с расшифровкой) | C39: Костюкова Ольга Владимировна
B40: Должность: | C40: Зам. Директора филиала АО "ОТЭК" в г. Глазове
A41: Номер контактного телефона: | C41: 8(34141) 9-63-16
A42: Факс: | C42: 8 (34141) 3-45-07
A43: Email исполнителя: | C43: MIvPodaruev@oao-otek.ru
A45: Руководитель организации (или уполномоченное лицо) | C45: К.Ю. Вергазов
C46: (подпись) (Ф.И.О.)

Sheet Критерии
A1: Анализ соответствия организации критериям отнесения владельцев объектов электросетевого хозяйства к территориальным сетевым организациям в соответствии с постановлением Правительства Российской Федерации от 28 февраля 2015 г. N 184
A3: № п/п | B3: Наименование показателя | C3: Допустимое значение | D3: Фактическое значение | E3: Соответствие критериям
A4: 1 | B4: Владение на праве собственности или на ином законном основании на срок не менее очередного расчетного периода регулирования силовыми трансформаторами, используемыми для осуществления регулируемой деятельности в административных границах субъекта Российской Федерации | C4: 2020-12-31 | D4: 2021-01-01 | E4: =IF((D4-C4)>=0," соответствует","не соответствует") -> соответствует
A5: 2 | B5: Суммарная установленная мощность силовых трансформаторов, МВА | C5: 10 | D5: =Анкета!B19/1000 -> 1000 | E5: =IF((D5-C5)>=0," соответствует","не соответствует") -> соответствует
A6: 3 | B6: Владение на праве собственности или на ином законном основании на срок не менее очередного расчетного периода регулирования линиями электропередачи (воздушными и (или) кабельными), используемыми для осуществления регулируемой деятельности в административных границах субъекта Российской Федерации | C6: 2020-12-31 | D6: 2021-01-01 | E6: =IF((D6-C6)>0," соответствует","не соответствует") -> соответствует
A7: 4 | B7: Наличие сетей различного уровня напряжения | C7: 2 | D7: 4 | E7: =IF((D7-C7)>=0," соответствует","не соответствует") -> соответствует
A8: 5 | B8: Отсутствие за 3 предшествующих расчетных периода регулирования 3 фактов применения органами регулирования понижающих коэффициентов в связи с недостижением организацией плановых показателей надежности и качества | C8: 2 | D8: 0 | E8: =IF((D8-C8)<0," соответствует","не соответствует") -> соответствует
A9: 6 | B9: Наличие выделенного абонентского номера для обращений потребителей услуг по передаче электрической энергии и (или) технологическому присоединению (1-имеется/0 -не имеется) | C9: 1 | D9: 1 | E9: =IF(D9=1," соответствует","не соответствует") -> соответствует
A10: 7 | B10: Наличие официального сайта в информационно-телекоммуникационной сети "Интернет" (1-имеется/0 -не имеется) | C10: 1 | D10: 1 | E10: =IF(D10=1," соответствует","не соответствует") -> соответствует

Sheet Долгосрочные параметры
A2: ПРЕДЛОЖЕНИЕ ПО ТАРИФАМ НА 2016 г.
A3: =Анкета!B3 -> АО "Чепецкий механический завод"
A5: ДОЛГОСРОЧНЫЕ ПАРАМЕТРЫ РЕГУЛИРОВАНИЯ
A6: Наименование параметра | C6: 2015 утверждено | D6: 2016 | E6: 2017 | F6: 2018 | G6: 2019 | H6: 2020
A7: Базовый уровень подконтрольных расходов, тыс.руб. | B7: % | C7: =C32 -> 23004.12144 | D7: =D32 -> 34991.753
A8: Индекс эффективности подконтрольных расходов, % | B8: %
A9: Коэффициент эластичности подконтрольных расходов по количеству активов | B9: % | C9: 0.75 | D9: 0.75 | E9: 0.75 | F9: 0.75 | G9: 0.75 | H9: 0.75
A10: Уровень надежности реализуемых товаров (услуг)
A11: Уровень качества реализуемых товаров (услуг)
A12: Уровень потерь электрической энергии при ее передаче по электрическим сетям, % | C12: ='4'!H19 -> 3.623530399 | D12: ='4'!AB19 -> 3.812417654 | E12: ='4'!AB19 -> 3.812417654 | F12: ='4'!AG19 -> 0 | G12: ='4'!AL19 -> 0 | H12: ='4'!AQ19 -> 0
A14: 1. Расчет подконтрольных расходов
A15: № п.п. | B15: Показатели | C15: 2015 утверждено | D15: 2016 год план | E15: 2017 | F15: 2018 | G15: 2019 | H15: 2020
B16: Индекс потребительских цен (прогноз СЭР) | C16: 0.067 | D16: 0.15 | E16: 0.043 | F16: 0.043 | G16: 0.043 | H16: 0.043
B17: Размер активов (количество у.е.) | D17: ='2.3'!F28 -> 4432.356 | E17: ='2.3'!F29 -> 4434.356 | F17: ='2.3'!F30 -> 0 | G17: ='2.3'!F31 -> 0 | H17: ='2.3'!F32 -> 0
B18: Коэффициент индексации подконтрольных расходов | C18: 1 | D18: =IF(C32=0,1,D32/C32) -> 1.521107993 | E18: =IF(D17=0,0,(1+E16)*(1-E8)*(1+E9*(E17-D17)/D17)) -> 1.043352973 | F18: =IF(E17=0,0,(1+F16)*(1-F8)*(1+F9*(F17-E17)/E17)) -> 0.26075 | G18: =IF(F17=0,0,(1+G16)*(1-G8)*(1+G9*(G17-F17)/F17)) -> 0 | H18: =IF(G17=0,0,(1+H16)*(1-H8)*(1+H9*(H17-G17)/G17)) -> 0
A19: 1.1. | B19: Сырье, основные материалы | C19: ='15'!G7 -> 0 | D19: ='15'!J7 -> 0 | E19: ='15'!K7 -> 0 | F19: ='15'!L7 -> 0 | G19: ='15'!M7 -> 0 | H19: ='15'!N7 -> 0
A20: 1.2. | B20: Вспомогательные материалы | C20: ='15'!G8 -> 1031.295 | D20: ='15'!J8 -> 450 | E20: ='15'!K8 -> 0 | F20: ='15'!L8 -> 0 | G20: ='15'!M8 -> 0 | H20: ='15'!N8 -> 0
B21: из них на ремонт | C21: ='15'!G9 -> 0 | D21: ='15'!J9 -> 0 | E21: ='15'!K9 -> 0 | F21: ='15'!L9 -> 0 | G21: ='15'!M9 -> 0 | H21: ='15'!N9 -> 0
A22: 1.3. | B22: Работы и услуги производ. характера | C22: ='15'!G10 -> 19632.18644 | D22: ='15'!J10 -> 32251.75 | E22: ='15'!K10 -> 0 | F22: ='15'!L10 -> 0 | G22: ='15'!M10 -> 0 | H22: ='15'!N10 -> 0
B23: из них на ремонт | C23: ='15'!G11 -> 4552.18644 | D23: ='15'!J11 -> 8051 | E23: ='15'!K11 -> 0 | F23: ='15'!L11 -> 0 | G23: ='15'!M11 -> 0 | H23: ='15'!N11 -> 0
A24: 1.4. | B24: Затраты на оплату труда | C24: ='15'!G16 -> 0 | D24: ='15'!J16 -> 0 | E24: ='15'!K16 -> 0 | F24: ='15'!L16 -> 0 | G24: ='15'!M16 -> 0 | H24: ='15'!N16 -> 0
B25: в том числе оплата труда производственного персонала | C25: ='18'!E6 -> 0 | D25: ='18'!H6 -> 0 | E25: ='18'!I6 -> 0 | F25: ='18'!J6 -> 0 | G25: ='18'!K6 -> 0 | H25: ='18'!L6 -> 0
B26: из них на ремонт | C26: ='15'!G17 -> 0 | D26: ='15'!J17 -> 0 | E26: ='15'!K17 -> 0 | F26: ='15'!L17 -> 0 | G26: ='15'!M17 -> 0 | H26: ='15'!N17 -> 0
A27: 1.5. | B27: Прочие затраты | C27: 2340.64 | D27: ='18'!H52+'21'!H48-'Долгосрочные параметры'!D68-'Долгосрочные параметры'!D75-'Долгосрочные параметры'!D24-'Долгосрочные параметры'!D22-'Долгосрочные параметры'!D20-'Долгосрочные параметры'!D19-'Долгосрочные параметры'!D31-'Долгосрочные параметры'!D30-'Долгосрочные параметры'!D29-'Долгосрочные параметры'!D28 -> 2290.003 | E27: ='18'!I52+'21'!I48-'Долгосрочные параметры'!E68-'Долгосрочные параметры'!E75-'Долгосрочные параметры'!E24-'Долгосрочные параметры'!E22-'Долгосрочные параметры'!E20-'Долгосрочные параметры'!E19-'Долгосрочные параметры'!E31-'Долгосрочные параметры'!E30-'Долгосрочные параметры'!E29-'Долгосрочные параметры'!E28 -> 0 | F27: ='18'!J52+'21'!J48-'Долгосрочные параметры'!F68-'Долгосрочные параметры'!F75-'Долгосрочные параметры'!F24-'Долгосрочные параметры'!F22-'Долгосрочные параметры'!F20-'Долгосрочные параметры'!F19-'Долгосрочные параметры'!F31-'Долгосрочные параметры'!F30-'Долгосрочные параметры'!F29-'Долгосрочные параметры'!F28 -> 0 | G27: ='18'!K52+'21'!K48-'Долгосрочные параметры'!G68-'Долгосрочные параметры'!G75-'Долгосрочные параметры'!G24-'Долгосрочные параметры'!G22-'Долгосрочные параметры'!G20-'Долгосрочные параметры'!G19-'Долгосрочные параметры'!G31-'Долгосрочные параметры'!G30-'Долгосрочные параметры'!G29-'Долгосрочные параметры'!G28 -> 0 | H27: ='18'!L52+'21'!L48-'Долгосрочные параметры'!H68-'Долгосрочные параметры'!H75-'Долгосрочные параметры'!H24-'Долгосрочные параметры'!H22-'Долгосрочные параметры'!H20-'Долгосрочные параметры'!H19-'Долгосрочные параметры'!H31-'Долгосрочные параметры'!H30-'Долгосрочные параметры'!H29-'Долгосрочные параметры'!H28 -> 0
A28: 1.6. | B28: Прибыль на социальное развитие | C28: ='21'!E13 -> 0 | D28: ='21'!H13 -> 0 | E28: ='21'!I13 -> 0 | F28: ='21'!J13 -> 0 | G28: ='21'!K13 -> 0 | H28: ='21'!L13 -> 0
A29: 1.7. | B29: Льготы, компенсации и проч.выплаты по Колдоговору | C29: ='21'!E16 -> 0 | D29: ='21'!H16 -> 0 | E29: ='21'!I16 -> 0 | F29: ='21'!J16 -> 0 | G29: ='21'!K16 -> 0 | H29: ='21'!L16 -> 0
A30: 1.8. | B30: Дивиденды по акциям | C30: ='21'!E17 -> 0 | D30: ='21'!H17 -> 0 | E30: ='21'!I17 -> 0 | F30: ='21'!J17 -> 0 | G30: ='21'!K17 -> 0 | H30: ='21'!L17 -> 0
A31: 1.9. | B31: Прибыль на прочие цели | C31: ='21'!E18 -> 0 | D31: ='21'!H18 -> 0 | E31: ='21'!I18 -> 0 | F31: ='21'!J18 -> 0 | G31: ='21'!K18 -> 0 | H31: ='21'!L18 -> 0
A32: 1.10. | B32: ИТОГО подконтрольные расходы | C32: =C19+C20+C22+C24+C27+C28+C29+C30+C31 -> 23004.12144 | D32: 34991.753 | E32: 0 | F32: 0 | G32: 0 | H32: 0
A33: 1.11. | B33: Рост подконтрольных расходов, % | D33: =IF(C32=0,1,D32/C32) -> 1.521107993 | E33: =IF(D32=0,1,E32/D32) -> 0 | F33: =IF(E32=0,1,F32/E32) -> 1 | G33: =IF(F32=0,1,G32/F32) -> 1 | H33: =IF(G32=0,1,H32/G32) -> 1
A35: 2. Расчет неподконтрольных расходов | E35: Плановые показатели
A36: № п.п. | B36: Показатели | C36: 2015 утверждено | D36: 2016 год план | E36: 2017 | F36: 2018 | G36: 2019 | H36: 2020
A37: 2.1. | B37: Финансирование капитальных вложений из прибыли | C37: ='21'!E6 -> 0 | D37: ='21'!H6 -> 0 | E37: ='21'!I6 -> 0 | F37: ='21'!J6 -> 0 | G37: ='21'!K6 -> 0 | H37: ='21'!L6 -> 0
B38: ВН | C38: ='21'!E9 -> 0 | D38: ='21'!H9 -> 0 | E38: ='21'!I9 -> 0 | F38: ='21'!J9 -> 0 | G38: ='21'!K9 -> 0 | H38: ='21'!L9 -> 0
B39: СН1 | C39: ='21'!E10 -> 0 | D39: ='21'!H10 -> 0 | E39: ='21'!I10 -> 0 | F39: ='21'!J10 -> 0 | G39: ='21'!K10 -> 0 | H39: ='21'!L10 -> 0
B40: СН2 | C40: ='21'!E11 -> 0 | D40: ='21'!H11 -> 0 | E40: ='21'!I11 -> 0 | F40: ='21'!J11 -> 0 | G40: ='21'!K11 -> 0 | H40: ='21'!L11 -> 0
B41: НН | C41: ='21'!E12 -> 0 | D41: ='21'!H12 -> 0 | E41: ='21'!I12 -> 0 | F41: ='21'!J12 -> 0 | G41: ='21'!K12 -> 0 | H41: ='21'!L12 -> 0
A42: 2.2. | B42: Амортизация | C42: ='15'!G20 -> 38855.2 | D42: ='15'!J20 -> 39221.44 | E42: ='15'!K20 -> 0 | F42: ='15'!L20 -> 0 | G42: ='15'!M20 -> 0 | H42: ='15'!N20 -> 0
B43: ВН | C43: ='18'!E11 -> 1252.294321 | D43: ='18'!H11 -> 1244.51 | E43: ='18'!I11 -> 0 | F43: ='18'!J11 -> 0 | G43: ='18'!K11 -> 0 | H43: ='18'!L11 -> 0
B44: СН1 | C44: ='18'!E12 -> 2668.757045 | D44: ='18'!H12 -> 2652.17 | E44: ='18'!I12 -> 0 | F44: ='18'!J12 -> 0 | G44: ='18'!K12 -> 0 | H44: ='18'!L12 -> 0
B45: СН2 | C45: ='18'!E13 -> 34886.22921 | D45: ='18'!H13 -> 35277.143 | E45: ='18'!I13 -> 0 | F45: ='18'!J13 -> 0 | G45: ='18'!K13 -> 0 | H45: ='18'!L13 -> 0
B46: НН | C46: ='18'!E14 -> 47.919426 | D46: ='18'!H14 -> 47.62 | E46: ='18'!I14 -> 0 | F46: ='18'!J14 -> 0 | G46: ='18'!K14 -> 0 | H46: ='18'!L14 -> 0
A47: 2.3. | B47: Коммунальные услуги (ресурсы) по регулируемым ценам, в том числе | C47: =SUM(C48:C53) -> 0 | D47: 0 | E47: 0 | F47: 0 | G47: 0 | H47: 0
B48: электрическая энергия
B49: отопление
B50: газ
B51: ГВС
B52: водоснабжение
B53: водоотведение
A54: 2.4. | B54: Страховые взносы социального характера | C54: ='15'!G18 -> 0 | D54: ='15'!J18 -> 0 | E54: ='15'!K18 -> 0 | F54: ='15'!L18 -> 0 | G54: ='15'!M18 -> 0 | H54: ='15'!N18 -> 0
A55: 2.5. | B55: Плата за аренду имущества и лизинг | C55: ='15'!G34 -> 6148.168604 | D55: ='15'!J34 -> 0 | E55: ='15'!K34 -> 0 | F55: ='15'!L34 -> 0 | G55: ='15'!M34 -> 0 | H55: ='15'!N34 -> 0
A56: 2.6. | B56: Налог на имущество | C56: ='21'!E36 -> 0 | D56: ='21'!H36 -> 0 | E56: ='21'!I36 -> 0 | F56: ='21'!J36 -> 0 | G56: ='21'!K36 -> 0 | H56: ='21'!L36 -> 0
B57: ВН | C57: ='21'!E37 -> 0 | D57: ='21'!H37 -> 0 | E57: ='21'!I37 -> 0 | F57: ='21'!J37 -> 0 | G57: ='21'!K37 -> 0 | H57: ='21'!L37 -> 0
B58: СН1 | C58: ='21'!E38 -> 0 | D58: ='21'!H38 -> 0 | E58: ='21'!I38 -> 0 | F58: ='21'!J38 -> 0 | G58: ='21'!K38 -> 0 | H58: ='21'!L38 -> 0
B59: СН2 | C59: ='21'!E39 -> 0 | D59: ='21'!H39 -> 0 | E59: ='21'!I39 -> 0 | F59: ='21'!J39 -> 0 | G59: ='21'!K39 -> 0 | H59: ='21'!L39 -> 0
B60: НН | C60: ='21'!E40 -> 0 | D60: ='21'!H40 -> 0 | E60: ='21'!I40 -> 0 | F60: ='21'!J40 -> 0 | G60: ='21'!K40 -> 0 | H60: ='21'!L40 -> 0
A61: 2.7. | B61: Налог на прибыль | C61: ='21'!E31 -> 0 | D61: ='21'!H31 -> 0 | E61: ='21'!I31 -> 0 | F61: ='21'!J31 -> 0 | G61: ='21'!K31 -> 0 | H61: ='21'!L31 -> 0
A62: 2.8. | B62: Прочие налоги и сборы, в том числе | C62: ='21'!E29-'21'!E31-'21'!E36+'15'!G29 -> 6624.28 | D62: ='21'!H29-'21'!H31-'21'!H36+'15'!J29 -> 7098 | E62: ='21'!I29-'21'!I31-'21'!I36+'15'!K29 -> 0 | F62: ='21'!J29-'21'!J31-'21'!J36+'15'!L29 -> 0 | G62: ='21'!K29-'21'!K31-'21'!K36+'15'!M29 -> 0 | H62: ='21'!L29-'21'!L31-'21'!L36+'15'!N29 -> 0
B63: плата за землю | C63: ='15'!G30 -> 0 | D63: ='15'!J30 -> 0 | E63: ='15'!K30 -> 0 | F63: ='15'!L30 -> 0 | G63: ='15'!M30 -> 0 | H63: ='15'!N30 -> 0
B64: налог при упрощенной системе налогообложения
A65: 2.9. | B65: Расходы на возврат и обслуживание заемных средств
B66: в том числе на обслуживание заемных средств
A67: 2.10. | B67: Компенсация выпадающих доходов по технологическому присоединению (пункт 87 Основ ценообразования) | C67: 6773.29
A68: 2.11. | B68: ИТОГО неподконтрольных расходов | C68: =C37+C42+C47+C54+C55+C56+C61+C62+C65+C67 -> 58400.9386 | D68: 46319.44 | E68: 0 | F68: 0 | G68: 0 | H68: 0
A69: 2.12 | B69: Рост неподконтрольных расходов, % | D69: =IF(C68=0,1,D68/C68) -> 0.7931283487 | E69: =IF(D68=0,1,E68/D68) -> 0 | F69: =IF(E68=0,1,F68/E68) -> 1 | G69: =IF(F68=0,1,G68/F68) -> 1 | H69: =IF(G68=0,1,H68/G68) -> 1
A71: 3. Расчет необходимой валовой выручки на содержание сетей
A72: № п.п. | B72: Показатели | C72: 2015 утверждено | D72: 2016 год план | E72: 2017 | F72: 2018 | G72: 2019 | H72: 2020
A73: 3.1. | B73: Плановые подконтрольные расходы | C73: =C32 -> 23004.12144 | D73: 34991.753 | E73: 0 | F73: 0 | G73: 0 | H73: 0
A74: 3.2. | B74: Плановые неподконтрольные расходы | C74: =C68 -> 58400.9386 | D74: 46319.44 | E74: 0 | F74: 0 | G74: 0 | H74: 0
A75: 3.3. | B75: Корректировка по факту, в том числе | C75: =C76+C77 -> 0 | D75: 0 | E75: 0 | F75: 0 | G75: 0 | H75: 0
A76: 3.3.1. | B76: результаты деятельности до перехода к регулированию тарифов на основе долгосрочных параметров регулирования (пункт 11 Методических указаний )
A77: 3.3.2. | B77: корректировка по итогам истекшего года долгосрочного периода (пункт 9 Методических указаний ), в т.ч.
A78: 3.3.2.1. | B78: корректировка подконтрольных расходов
A79: 3.3.2.2. | B79: корректировка неподконтрольных расходов
A80: 3.3.2.3. | B80: корректировка НВВ с учетом изменения полезного отпуска и цен на электрическую энергию (покупка потерь)
A81: 3.3.2.4. | B81: изменение (неисполнение) инвестиционной программы
A82: 3.4. | B82: Корректировка НВВ с учетом достижения установленного уровня надежности и качества услуг
A83: 3.5. | B83: ИТОГО НВВ | C83: =C73+C74+C75 -> 81405.06004 | D83: =D73+D74+D75 -> 81311.193 | E83: 0 | F83: 0 | G83: 0 | H83: 0
B84: % роста | D84: =IF(C83=0,1,D83/C83) -> 0.9988469139 | E84: =IF(D83=0,1,E83/D83) -> 0 | F84: =IF(E83=0,1,F83/E83) -> 1 | G84: =IF(F83=0,1,G83/F83) -> 1 | H84: =IF(G83=0,1,H83/G83) -> 1
A85: 3.6. | B85: Доля капитальных вложений за счет прибыли не более 12 % от НВВ (п. 11 Методических указаний) | C85: =IF(C83=0,0,C37/(C83-C37/0.8-C55)) -> 0 | D85: 0 | E85: 0 | F85: 0 | G85: 0 | H85: 0
A86: 3.7. | B86: Распределение НВВ по уровням напряжения | C86: 100094.4286 | D86: =D87+D88+D89+D90 -> 81311.193 | E86: =E87+E88+E89+E90 -> 0 | F86: =F87+F88+F89+F90 -> 0 | G86: =G87+G88+G89+G90 -> 0 | H86: =H87+H88+H89+H90 -> 0
B87: ВН | C87: 14953.18966 | D87: ='18'!H54+'21'!H50 -> 2584.588622 | E87: ='18'!I54+'21'!I50 -> 0 | F87: ='18'!J54+'21'!J50 -> 0 | G87: ='18'!K54+'21'!K50 -> 0 | H87: ='18'!L54+'21'!L50 -> 0
B88: СН1 | C88: 12319.89729 | D88: ='18'!H55+'21'!H51 -> 5508.00365 | E88: ='18'!I55+'21'!I51 -> 0 | F88: ='18'!J55+'21'!J51 -> 0 | G88: ='18'!K55+'21'!K51 -> 0 | H88: ='18'!L55+'21'!L51 -> 0
B89: СН2 | C89: 61027.51449 | D89: ='18'!H56+'21'!H52 -> 73119.70221 | E89: ='18'!I56+'21'!I52 -> 0 | F89: ='18'!J56+'21'!J52 -> 0 | G89: ='18'!K56+'21'!K52 -> 0 | H89: ='18'!L56+'21'!L52 -> 0
B90: НН | C90: 11793.82719 | D90: ='18'!H57+'21'!H53 -> 98.89851869 | E90: ='18'!I57+'21'!I53 -> 0 | F90: ='18'!J57+'21'!J53 -> 0 | G90: ='18'!K57+'21'!K53 -> 0 | H90: ='18'!L57+'21'!L53 -> 0
B92: в том числе доля, относимая на сторонних потребителей | C92: =IF(C86=0,0,C97/C86) -> 0 | D92: =IF(D86=0,0,D97/D86) -> 0.02712462793 | E92: 0 | F92: 0 | G92: 0 | H92: 0
B93: ВН | D93: =D87*'4'!X27 -> 895.4131998 | E93: =E87*'4'!AC27 -> 0 | F93: =F87*'4'!AH27 -> 0 | G93: =G87*'4'!AM27 -> 0 | H93: =H87*'4'!AR27 -> 0
B94: СН1 | D94: =D88*'4'!Y27 -> 74.76156463 | E94: =E88*'4'!AD27 -> 0 | F94: =F88*'4'!AI27 -> 0 | G94: =G88*'4'!AN27 -> 0 | H94: =H88*'4'!AS27 -> 0
B95: СН2 | D95: =D89*'4'!Z27 -> 1136.458321 | E95: =E89*'4'!AE27 -> 0 | F95: =F89*'4'!AJ27 -> 0 | G95: =G89*'4'!AO27 -> 0 | H95: =H89*'4'!AT27 -> 0
B96: НН | D96: =D90*'4'!AA27 -> 98.9027715 | E96: =E90*'4'!AF27 -> 0 | F96: =F90*'4'!AK27 -> 0 | G96: =G90*'4'!AP27 -> 0 | H96: =H90*'4'!AU27 -> 0
B97: всего | C97: =SUM(C93:C96) -> 0 | D97: =SUM(D93:D96) -> 2205.535857 | E97: 0 | F97: 0 | G97: 0 | H97: 0
B98: % роста | D98: =IF(C97=0,1,D97/C97) -> 1 | E98: =IF(D97=0,1,E97/D97) -> 0 | F98: =IF(E97=0,1,F97/E97) -> 1 | G98: =IF(F97=0,1,G97/F97) -> 1 | H98: =IF(G97=0,1,H97/G97) -> 1
A99: ПРЕДЛОЖЕНИЕ ПО ТАРИФАМ
A100: Наименование | C100: 2015 утверждено | D100: 2016 | E100: 2017 | F100: 2018 | G100: 2019 | H100: 2020
A101: Одноставочный тариф на услуги по передаче электрической энергии, руб./кВт.ч | B101: % | C101: 0.3257 | D101: =D103/1000+IF('4'!AB23=0,0,D102*12*'5'!AB23/'4'!AB23)/1000 -> 0.4040845251 | E101: =E103/1000+IF('4'!AG23=0,0,E102*12*'5'!AG23/'4'!AG23)/1000 -> 0 | F101: =F103/1000+IF('4'!AL23=0,0,F102*12*'5'!AL23/'4'!AL23)/1000 -> 0 | G101: =G103/1000+IF('4'!AQ23=0,0,G102*12*'5'!AQ23/'4'!AQ23)/1000 -> 0 | H101: =H103/1000+IF('4'!AV23=0,0,H102*12*'5'!AV23/'4'!AV23)/1000 -> 0
A102: Двухставочный тариф на услуги по передаче электрической энергии: - ставка за содержание электрических сетей, руб./МВт | B102: % | C102: 126299 | D102: =IF('5'!AB23=0,0,D97/12/'5'!AB23)*1000 -> 207278.4138 | E102: =IF('5'!AG23=0,0,E97/12/'5'!AG23)*1000 -> 0 | F102: =IF('5'!AL23=0,0,F97/12/'5'!AL23)*1000 -> 0 | G102: =IF('5'!AQ23=0,0,G97/12/'5'!AQ23)*1000 -> 0 | H102: =IF('5'!AV23=0,0,H97/12/'5'!AV23)*1000 -> 0
A103: - ставка по оплате технологического расхода электрической энегии на ее передачу, руб./МВт.ч. | C103: 0.0929 | D103: =IF('4'!AB23=0,0,('25'!I28*'4'!AC27+'25'!I31*'4'!AD27+'25'!I32*'4'!AE27+'25'!I33*'4'!AF27)/'4'!AB23)*1000 -> 3.223773148 | E103: =IF('4'!AG23=0,0,('25'!K28*'4'!AH27+'25'!K31*'4'!AI27+'25'!K32*'4'!AJ27+'25'!K33*'4'!AK27)/'4'!AG23)*1000 -> 0 | F103: =IF('4'!AL23=0,0,('25'!L28*'4'!AM27+'25'!L31*'4'!AN27+'25'!L32*'4'!AO27+'25'!L33*'4'!AP27)/'4'!AL23)*1000 -> 0 | G103: =IF('4'!AQ23=0,0,('25'!M28*'4'!AR27+'25'!M31*'4'!AS27+'25'!M32*'4'!AT27+'25'!M33*'4'!AU27)/'4'!AQ23)*1000 -> 0 | H103: =IF('4'!AV23=0,0,('25'!S28*'4'!AW27+'25'!S31*'4'!AX27+'25'!S32*'4'!AY27+'25'!S33*'4'!AZ27)/'4'!AV23)*1000 -> 0
A104: Рост одноставочного тарифа, % | D104: =IF(C101=0,0,D101/C101) -> 1.240664799 | E104: =IF(D101=0,0,E101/D101) -> 0 | F104: =IF(E101=0,0,F101/E101) -> 0 | G104: =IF(F101=0,0,G101/F101) -> 0 | H104: =IF(G101=0,0,H101/G101) -> 0
A105: Руководитель организации (или уполномоченное лицо) | D105: К. Ю. Вергазов
C106: (подпись) (Ф.И.О.)

Sheet 3 (hidden)
G1: Таблица № П1.3
A2: Расчёт технологического расхода электрической энергии (потерь) в электрических сетях (в соответствии с экспертным заключением)
A4: № | B4: Показатели | C4: ед. измерения | D4: 2016 предложение организации | H4: 2016 принято уполномоченным органом
D5: ВН | E5: СН1 | F5: СН2 | G5: НН | H5: ВН | I5: СН1 | J5: СН2 | K5: НН
A6: 1 | B6: 2 | C6: 3 | D6: 20 | E6: 21 | F6: 22 | G6: 23 | H6: 20 | I6: 21 | J6: 22 | K6: 23
A7: 1. | B7: Условно-постоянные потери | C7: тыс. кВтч | D7: =SUM(D8:D17) -> 0 | E7: 0 | F7: 0 | G7: 0 | H7: 0 | I7: 0 | J7: 0 | K7: 0
A8: 1.1 | B8: Потери электроэнергии холостого хода в силовом трансформаторе (автотрансформаторе) | C8: тыс. кВтч
A9: 1.2 | B9: Потери электроэнергии в шунтирующих реакторах (ШР)и соединительных проводах и сборных шинах распределительных устройств подстанций (СППС) | C9: тыс. кВтч
A10: 1.3 | B10: Потери электроэнергии в синхронных компенсаторах | C10: тыс. кВтч
A11: 1.4 | B11: Потери электроэнергии в статических компенсирующих устройствах - батареях статических конденсаторов (БК) и статических тиристорных компенсаторах (СТК) | C11: тыс. кВтч
A12: 1.5 | B12: Потери электроэнергии в вентильных разрядниках (РВ), ограничителях перенапряжений (ОПН), измерительных трансформаторах тока (ТТ)и напряжения (ТН) и устройствах присоединения ВЧ связи (УПВЧ) | C12: тыс. кВтч
A13: 1.6 | B13: Потери электроэнергии на корону | C13: тыс. кВтч
A14: 1.7 | B14: Потери электроэнергии от токов утечки по изоляторам воздушных линий | C14: тыс. кВтч
A15: 1.8 | B15: Расход электроэнергии на плавку гололеда | C15: тыс. кВтч
A16: 1.9 | B16: Потери электроэнергии в изоляции силовых кабелей | C16: тыс. кВтч
A17: 1.10 | B17: Расход электроэнергии на собственные нужды (СН) подстанций | C17: тыс. кВтч
A18: 2. | B18: Условно переменные потери | C18: тыс. кВтч | D18: =D19 -> 0 | E18: 0 | F18: 0 | G18: 0 | H18: 0 | I18: 0 | J18: 0 | K18: 0
A19: 2.1 | B19: Нагрузочные потери электроэнергии | C19: тыс. кВтч
A20: 3. | B20: Потери электроэнергии обусловленные допустимой погрешностью системы учета электроэнергии | C20: тыс. кВтч
A21: 4. | B21: Итого: | C21: тыс. кВтч | D21: =D7+D18+D20 -> 0 | E21: 0 | F21: 0 | G21: 0 | H21: 0 | I21: 0 | J21: 0 | K21: 0
B23: Руководитель организации | I23: (подпись) (Ф.И.О.)
B25: Должностное лицо, ответственное за составление формы | I25: (подпись) (Ф.И.О.)

Sheet анализ потерь (РЭК) (hidden)
I1: Приложение к заключению
A2: Анализ объема услуг по передаче электрической энергии и технологического расхода (потерь) электрической энергии в сетях
A3: =Анкета!B3 -> АО "Чепецкий механический завод"
A4: № п.п. | B4: Показатели | C4: Единица измерения | D4: 2011 год факт | E4: 2012 год факт | F4: 2013 год факт | G4: 2014 год ожидаемое | H4: 2015 год план организации | I4: 2015 год признано обоснованным РЭК
D5: =D4 -> 2011 год факт | E5: 2012 год факт | F5: 2013 год факт | G5: 2014 год ожидаемое | H5: 2015 год план организации | I5: 2015 год признано обоснованным РЭК
D6: Всего | E6: Всего | F6: Всего | G6: Всего | H6: Всего | I6: Всего
A7: 1 | B7: 2 | C7: 3 | D7: 4 | E7: 5 | F7: 6 | G7: 7 | H7: 8 | I7: 9
A8: 1. | B8: Поступление эл.энергии в сеть , ВСЕГО | C8: тыс. кВтч | D8: ='динамика потерь'!D8 -> 0 | E8: ='динамика потерь'!#REF! ->  | F8: ='динамика потерь'!E8 -> 321252.471 | G8: ='динамика потерь'!F8 -> 328595.18 | H8: ='динамика потерь'!G8 -> 324540
A9: 1.1. | B9: для собственного потребления | C9: тыс. кВтч | D9: =D8-D10 -> 0 | F9: 314187.8186 | G9: 322702.8872 | H9: 318689.8681 | I9: 0
A10: 1.2. | B10: для сторонних потребителей | C10: тыс. кВтч | D10: =D19+D13 -> 0 | F10: 7064.652392 | G10: 5892.292801 | H10: 5850.131867 | I10: 0
A11: 2. | B11: Потери электроэнергии в сети ВСЕГО | C11: тыс. кВтч | D11: ='динамика потерь'!D11 -> 0 | E11: ='динамика потерь'!#REF! ->  | F11: ='динамика потерь'!E11 -> 15213.955 | G11: ='динамика потерь'!F11 -> 11942.488 | H11: ='динамика потерь'!G11 -> 13649.655
A12: 2.1. | B12: потери, относимые на собственное потреление | C12: тыс. кВтч | D12: =D11-D13 -> 0 | F12: 14894.51361 | G12: 11735.8482 | H12: 13413.53813 | I12: 0
A13: 2.2. | B13: потери, относимые на сторонних потребителей | C13: тыс. кВтч | D13: ='динамика потерь'!D13 -> 0 | E13: ='динамика потерь'!#REF! ->  | F13: ='динамика потерь'!E13 -> 319.4413923 | G13: ='динамика потерь'!F13 -> 206.6398014 | H13: ='динамика потерь'!G13 -> 236.1168667
A14: 3. | B14: Относительные потери (п.2./п.1.) | C14: % | D14: =IF(D8=0,0,D11/D8) -> 0 | F14: 0.04735825051 | G14: 0.03634407541 | H14: 0.04205846737 | I14: 0
A15: 3.1. | B15: на собственное потреление | C15: % | D15: =IF(D9=0,0,D12/D9) -> 0 | F15: 0.04740640065 | G15: 0.036367348 | H15: =IF(H9=0,0,H12/H9) -> 0.04208962843 | I15: 0
A16: 3.2. | B16: на сторонних потребителей | C16: % | D16: 0 | F16: 0.04521685917 | G16: 0.03506950661 | H16: =IF(H10=0,0,H13/H10) -> 0.04036094776 | I16: 0
A17: 4. | B17: Полезный отпуск из сети | C17: тыс. кВтч | D17: =D8-D11 -> 0 | F17: 306038.516 | G17: 316652.692 | H17: =H8-H11 -> 310890.345 | I17: 0
A18: 4.1. | B18: собственное потребление | C18: тыс. кВтч | D18: =D9-D12 -> 0 | F18: 299293.305 | G18: 310967.039 | H18: =H9-H12 -> 305276.33 | I18: 0
A19: 4.2. | B19: сторонним потребителям (сетевым организациям) | C19: тыс. кВтч | D19: ='динамика потерь'!D19 -> 0 | E19: ='динамика потерь'!#REF! ->  | F19: ='динамика потерь'!E19 -> 6745.211 | G19: ='динамика потерь'!F19 -> 5685.653 | H19: ='динамика потерь'!G19 -> 5614.015 | I19: ='динамика потерь'!I19 -> 0
A20: 5. | B20: Потери на сторонних потребителей в соответствии с балансом ФСТ (при отсутствии информации не заполняется) | C20: тыс. кВтч | D20: ='динамика потерь'!D20 -> 0 | E20: ='динамика потерь'!#REF! ->  | F20: ='динамика потерь'!E20 -> 0 | G20: ='динамика потерь'!F20 -> 0 | H20: ='динамика потерь'!G20 -> 0 | I20: ='динамика потерь'!I20 -> 0
A21: 6. | B21: Норматив потерь в соответствии с приказом Минэнерго | C21: % | D21: ='динамика потерь'!D27 -> 0 | E21: ='динамика потерь'!#REF! ->  | F21: ='динамика потерь'!E27 -> 0.0373 | G21: ='динамика потерь'!F27 -> 0.0362 | H21: ='динамика потерь'!H27 -> 0 | I21: ='динамика потерь'!I27 -> 0 | J21: (п.38 Основ) Уровень потерь электрической энергии при ее передаче по электрическим сетям территориальной сетевой организации определяется органами исполнительной власти субъектов РФ в области государственного регулирования тарифов перед началом долгосрочного периода регулирования и устанавливается на долгосрочный период регулирования как минимальное значение из норматива потерь электрической энергии при ее передаче по электрическим сетям, утвержденного Министерством энергетики Российской Федерации, и уровня фактических потерь электрической энергии при ее передаче по электрическим сетям соответствующей территориальной сетевой организации за последний истекший год.
A22: 7. | B22: Плановое снижение потерь в сетях в соответствии с программой энергосбережения | C22: % | D22: ='динамика потерь'!D32 -> 0 | E22: ='динамика потерь'!#REF! ->  | F22: ='динамика потерь'!E32 -> 0 | G22: ='динамика потерь'!F32 -> 0 | H22: ='динамика потерь'!H32 -> 0 | I22: ='динамика потерь'!I32 -> 0
A23: 8. | B23: Уровень потерь электрической энергии при ее передаче по электрическим сетям, определенный РЭК Удмуртской Республики. | C23: % | D23: ='динамика потерь'!D22 -> 0 | E23: ='динамика потерь'!#REF! ->  | F23: ='динамика потерь'!E22 -> 0 | G23: ='динамика потерь'!F22 -> 0 | H23: ='динамика потерь'!H22 -> 0 | I23: ='динамика потерь'!I22 -> 0
A24: 9. | B24: Величина потерь, относимая на сторонних потребителей, в соответствии с установленным уровнем потерь | C24: тыс. кВтч | D24: ='динамика потерь'!D21 -> 0 | E24: ='динамика потерь'!#REF! ->  | F24: ='динамика потерь'!E21 -> 0 | G24: ='динамика потерь'!F21 -> 0 | H24: ='динамика потерь'!H21 -> 0 | I24: ='динамика потерь'!I21 -> 0
B25: Специалист-эксперт отдела регулирования тарифов в ТЭК
B26: РЭК Удмуртской Республики: _______________________

Sheet 4
B1: =Анкета!B3 -> АО "Чепецкий механический завод"
A2: Баланс электрической энергии по сетям ВН, СН1, СН2, и НН
BJ3: тыс. кВтч
A4: № п.п. | B4: Показатели | C4: 2013 год факт | H4: 2014 год утверждено | M4: 2014 год факт | R4: 2015 год утверждено | W4: 2015 год ожидаемое | AB4: 2016 год предложение организации | AG4: 2017 год предложение организации | AL4: 2018 год предложение организации | AQ4: 2019 год предложение организации | AV4: 2020 год предложение организации | BA4: 2016 год принято уполномоченным органом до корректировки | BF4: 2017 год принято уполномоченным органом | BK4: 2018 год принято уполномоченным органом | BP4: 2019 год принято уполномоченным органом | BU4: 2020 год принято уполномоченным органом
C5: =C4 -> 2013 год факт | D5: =C4 -> 2013 год факт | E5: =C4 -> 2013 год факт | F5: =C4 -> 2013 год факт | G5: =C4 -> 2013 год факт | H5: =H4 -> 2014 год утверждено | I5: =H4 -> 2014 год утверждено | J5: =H4 -> 2014 год утверждено | K5: =H4 -> 2014 год утверждено | L5: =H4 -> 2014 год утверждено | M5: =M4 -> 2014 год факт | N5: =M4 -> 2014 год факт | O5: =M4 -> 2014 год факт | P5: =M4 -> 2014 год факт | Q5: =M4 -> 2014 год факт | R5: =R4 -> 2015 год утверждено | S5: =R4 -> 2015 год утверждено | T5: =R4 -> 2015 год утверждено | U5: =R4 -> 2015 год утверждено | V5: =R4 -> 2015 год утверждено | W5: =W4 -> 2015 год ожидаемое | X5: =W4 -> 2015 год ожидаемое | Y5: =W4 -> 2015 год ожидаемое | Z5: =W4 -> 2015 год ожидаемое | AA5: =W4 -> 2015 год ожидаемое | AB5: =AB4 -> 2016 год предложение организации | AC5: =AB4 -> 2016 год предложение организации | AD5: =AB4 -> 2016 год предложение организации | AE5: =AB4 -> 2016 год предложение организации | AF5: =AB4 -> 2016 год предложение организации | AG5: =AG4 -> 2017 год предложение организации | AH5: =AG4 -> 2017 год предложение организации | AI5: =AG4 -> 2017 год предложение организации | AJ5: =AG4 -> 2017 год предложение организации | AK5: =AG4 -> 2017 год предложение организации | AL5: =AL4 -> 2018 год предложение организации | AM5: =AL4 -> 2018 год предложение организации | AN5: =AL4 -> 2018 год предложение организации | AO5: =AL4 -> 2018 год предложение организации | AP5: =AL4 -> 2018 год предложение организации | AQ5: =AQ4 -> 2019 год предложение организации | AR5: =AQ4 -> 2019 год предложение организации | AS5: =AQ4 -> 2019 год предложение организации | AT5: =AQ4 -> 2019 год предложение организации | AU5: =AQ4 -> 2019 год предложение организации | AV5: =AV4 -> 2020 год предложение организации | AW5: =AV4 -> 2020 год предложение организации | AX5: =AV4 -> 2020 год предложение организации | AY5: =AV4 -> 2020 год предложение организации | AZ5: =AV4 -> 2020 год предложение организации | BA5: =BA4 -> 2016 год принято уполномоченным органом до корректировки | BB5: =BA4 -> 2016 год принято уполномоченным органом до корректировки | BC5: =BA4 -> 2016 год принято уполномоченным органом до корректировки | BD5: =BA4 -> 2016 год принято уполномоченным органом до корректировки | BE5: =BA4 -> 2016 год принято уполномоченным органом до корректировки | BF5: =BF4 -> 2017 год принято уполномоченным органом | BG5: =BF4 -> 2017 год принято уполномоченным органом | BH5: =BF4 -> 2017 год принято уполномоченным органом | BI5: =BF4 -> 2017 год принято уполномоченным органом | BJ5: =BF4 -> 2017 год принято уполномоченным органом | BK5: =BK4 -> 2018 год принято уполномоченным органом | BL5: =BK4 -> 2018 год принято уполномоченным органом | BM5: =BK4 -> 2018 год принято уполномоченным органом | BN5: =BK4 -> 2018 год принято уполномоченным органом | BO5: =BK4 -> 2018 год принято уполномоченным органом | BP5: =BP4 -> 2019 год принято уполномоченным органом | BQ5: =BP4 -> 2019 год принято уполномоченным органом | BR5: =BP4 -> 2019 год принято уполномоченным органом | BS5: =BP4 -> 2019 год принято уполномоченным органом | BT5: =BP4 -> 2019 год принято уполномоченным органом | BU5: =BU4 -> 2020 год принято уполномоченным органом | BV5: =BU4 -> 2020 год принято уполномоченным органом | BW5: =BU4 -> 2020 год принято уполномоченным органом | BX5: =BU4 -> 2020 год принято уполномоченным органом | BY5: =BU4 -> 2020 год принято уполномоченным органом
C6: Всего | D6: ВН | E6: СН1 | F6: СН2 | G6: НН | H6: Всего | I6: ВН | J6: СН1 | K6: СН2 | L6: НН | M6: Всего | N6: ВН | O6: СН1 | P6: СН2 | Q6: НН | R6: Всего | S6: ВН | T6: СН1 | U6: СН2 | V6: НН | W6: Всего | X6: ВН | Y6: СН1 | Z6: СН2 | AA6: НН | AB6: Всего | AC6: ВН | AD6: СН1 | AE6: СН2 | AF6: НН | AG6: Всего | AH6: ВН | AI6: СН1 | AJ6: СН2 | AK6: НН | AL6: Всего | AM6: ВН | AN6: СН1 | AO6: СН2 | AP6: НН | AQ6: Всего | AR6: ВН | AS6: СН1 | AT6: СН2 | AU6: НН | AV6: Всего | AW6: ВН | AX6: СН1 | AY6: СН2 | AZ6: НН | BA6: Всего | BB6: ВН | BC6: СН1 | BD6: СН2 | BE6: НН | BF6: Всего | BG6: ВН | BH6: СН1 | BI6: СН2 | BJ6: НН | BK6: Всего | BL6: ВН | BM6: СН1 | BN6: СН2 | BO6: НН | BP6: Всего | BQ6: ВН | BR6: СН1 | BS6: СН2 | BT6: НН | BU6: Всего | BV6: ВН | BW6: СН1 | BX6: СН2 | BY6: НН
A7: 1 | B7: 2 | C7: 3 | D7: =C7+1 -> 4 | E7: =D7+1 -> 5 | F7: 6 | G7: 7 | H7: 8 | I7: 9 | J7: 10 | K7: 11 | L7: 12 | M7: 13 | N7: 14 | O7: 15 | P7: 16 | Q7: 17 | R7: =Q7+1 -> 18 | S7: =R7+1 -> 19 | T7: =S7+1 -> 20 | U7: =T7+1 -> 21 | V7: =U7+1 -> 22 | W7: =Q7+1 -> 18 | X7: 19 | Y7: 20 | Z7: 21 | AA7: 22 | AB7: 23 | AC7: 24 | AD7: 25 | AE7: 26 | AF7: 27 | AG7: 28 | AH7: 29 | AI7: 30 | AJ7: 31 | AK7: 32 | AL7: 33 | AM7: 34 | AN7: 35 | AO7: 36 | AP7: 37 | AQ7: 38 | AR7: 39 | AS7: 40 | AT7: 41 | AU7: 42 | AV7: 43 | AW7: 44 | AX7: 45 | AY7: 46 | AZ7: 47 | BA7: =AU7+1 -> 43 | BB7: =BA7+1 -> 44 | BC7: =BB7+1 -> 45 | BD7: =BC7+1 -> 46 | BE7: =BD7+1 -> 47 | BF7: =#REF!+1 ->  | BG7: =BF7+1 -> 
A8: 1. | B8: Поступление эл.энергии в сеть , ВСЕГО | C8: =C9+C15+C16+C17 -> 321252.471 | D8: 21510.379 | E8: 40219.788 | F8: 317606.6409 | G8: 828.457 | H8: 329581.564 | I8: 36132.805 | J8: 39987.983 | K8: 327613.5968 | L8: 1151.082477 | M8: 328595.18 | N8: 29854.374 | O8: 86531.637 | P8: 324930.1907 | Q8: 752.302 | R8: =R9+R15+R16+R17 -> 343243.355 | S8: =S9+S15+S16+S17 -> 4867.152 | T8: =T9+T15+T16+T17 -> 46995.08095 | U8: =U9+U15+U16+U17 -> 341629.3633 | V8: =V9+V15+V16+V17 -> 1001.002912 | W8: 324540 | X8: 29854.374 | Y8: 70650.457 | Z8: 320756.985 | AA8: 868.5 | AB8: 336996.043 | AC8: 8717.63 | AD8: 50241.07 | AE8: 334398.4658 | AF8: =AF9+AF15+AF16+AF17 -> 757 | AG8: 0 | AH8: 0 | AI8: 0 | AJ8: 0 | AK8: 0 | AL8: 0 | AM8: 0 | AN8: 0 | AO8: 0 | AP8: 0 | AQ8: 0 | AR8: 0 | AS8: 0 | AT8: 0 | AU8: 0 | AV8: =AV9+AV15+AV16+AV17 -> 0 | AW8: 0 | AX8: 0 | AY8: 0 | AZ8: 0 | BA8: 343243.355 | BB8: 4867.152 | BC8: 6142.089 | BD8: 340254.709 | BE8: 2339.341563 | BK8: =BK9+BK15+BK16+BK17 -> 
A9: 1.1. | B9: из собственной сети, всего | C9: =D11+E11+F11+G11 -> 0 | D9: =D11+D12+D13+D14 -> 0 | E9: =E11+E12+E13+E14 -> 0 | F9: =F11+F12+F13+F14 -> 58084.3369 | G9: =G11+G12+G13+G14 -> 828.457 | H9: =I11+J11+K11+L11 -> 0 | I9: =I11+I12+I13+I14 -> 0 | J9: =J11+J12+J13+J14 -> 0 | K9: =K11+K12+K13+K14 -> 74152.82079 | L9: =L11+L12+L13+L14 -> 1151.082477 | M9: =N11+O11+P11+Q11 -> 0 | N9: =N11+N12+N13+N14 -> 0 | O9: =O11+O12+O13+O14 -> 0 | P9: =P11+P12+P13+P14 -> 112721.0217 | Q9: =Q11+Q12+Q13+Q14 -> 752.302 | R9: =S11+T11+U11+V11 -> 0 | S9: =S11+S12+S13+S14 -> 0 | T9: =T11+T12+T13+T14 -> 4766.401954 | U9: =U11+U12+U13+U14 -> 45481.83935 | V9: =V11+V12+V13+V14 -> 1001.002912 | W9: =X11+Y11+Z11+AA11 -> 0 | X9: =X11+X12+X13+X14 -> 0 | Y9: =Y11+Y12+Y13+Y14 -> 0 | Z9: =Z11+Z12+Z13+Z14 -> 96721.816 | AA9: =AA11+AA12+AA13+AA14 -> 868.5 | AB9: =AC11+AD11+AE11+AF11 -> 0 | AC9: =AC11+AC12+AC13+AC14 -> 0 | AD9: =AD11+AD12+AD13+AD14 -> 0 | AE9: =AE11+AE12+AE13+AE14 -> 56361.12277 | AF9: =AF11+AF12+AF13+AF14 -> 757 | AG9: =AH11+AI11+AJ11+AK11 -> 0 | AH9: =AH11+AH12+AH13+AH14 -> 0 | AI9: =AI11+AI12+AI13+AI14 -> 0 | AJ9: =AJ11+AJ12+AJ13+AJ14 -> 0 | AK9: =AK11+AK12+AK13+AK14 -> 0 | AL9: =AM11+AN11+AO11+AP11 -> 0 | AM9: =AM11+AM12+AM13+AM14 -> 0 | AN9: =AN11+AN12+AN13+AN14 -> 0 | AO9: =AO11+AO12+AO13+AO14 -> 0 | AP9: =AP11+AP12+AP13+AP14 -> 0 | AQ9: =AR11+AS11+AT11+AU11 -> 0 | AR9: =AR11+AR12+AR13+AR14 -> 0 | AS9: =AS11+AS12+AS13+AS14 -> 0 | AT9: =AT11+AT12+AT13+AT14 -> 0 | AU9: =AU11+AU12+AU13+AU14 -> 0 | AV9: =AW11+AX11+AY11+AZ11 -> 0 | AW9: =AW11+AW12+AW13+AW14 -> 0 | AX9: =AX11+AX12+AX13+AX14 -> 0 | AY9: =AY11+AY12+AY13+AY14 -> 0 | AZ9: =AZ11+AZ12+AZ13+AZ14 -> 0 | BA9: =BB11+BC11+BD11+BE11 -> 0 | BB9: =BB11+BB12+BB13+BB14 -> 0 | BC9: =BC11+BC12+BC13+BC14 -> 3343.472 | BD9: =BD11+BD12+BD13+BD14 -> 4677.123 | BE9: =BE11+BE12+BE13+BE14 -> 2339.341563 | BF9: =BG11+BH11+BI11+BJ11 -> 0 | BG9: =BG11+BG12+BG13+BG14 ->  | BH9: =BH11+BH12+BH13+BH14 ->  | BI9: =BI11+BI12+BI13+BI14 ->  | BJ9: =BJ11+BJ12+BJ13+BJ14 ->  | BK9: =BL11+BM11+BN11+BO11 -> 0 | BL9: =BL11+BL12+BL13+BL14 ->  | BM9: =BM11+BM12+BM13+BM14 ->  | BN9: =BN11+BN12+BN13+BN14 ->  | BO9: =BO11+BO12+BO13+BO14 ->  | BP9: =BQ11+BR11+BS11+BT11 -> 0 | BQ9: =BQ11+BQ12+BQ13+BQ14 ->  | BR9: =BR11+BR12+BR13+BR14 ->  | BS9: =BS11+BS12+BS13+BS14 ->  | BT9: =BT11+BT12+BT13+BT14 ->  | BU9: =BV11+BW11+BX11+BY11 -> 0 | BV9: =BV11+BV12+BV13+BV14 ->  | BW9: =BW11+BW12+BW13+BW14 ->  | BX9: =BX11+BX12+BX13+BX14 ->  | BY9: =BY11+BY12+BY13+BY14 -> 
B10: в том числе из сети
B11: МСК
B12: ВН | F12: =D17-D18-D23 -> 20616.4725 | K12: 35056.58143 | P12: =N17-N18-N23 -> 28841.5952 | T12: 4766.401954 | Z12: =X17-X18-X23 -> 28330.694 | AE12: =AC17-AC18-AC23 -> 8537.175059 | BB12: 0 | BC12: 3343.472 | BD12: 0 | BE12: 0 | BG12: =#REF! ->  | BH12: =#REF! ->  | BI12: =#REF! ->  | BJ12: =#REF! ->  | BL12: =BG12 ->  | BM12: =BH12 ->  | BQ12: =BL12 ->  | BR12: =BM12 ->  | BV12: =BQ12 ->  | BW12: =BR12 -> 
B13: СН1 | F13: =E15+E17-E18-E22-E23-E25 -> 37467.8644 | K13: 39096.23936 | P13: =O15+O17-O18-O22-O23-O25 -> 83879.4265 | U13: 45481.83935 | Z13: =Y15+Y17-Y18-Y22-Y23-Y25 -> 68391.122 | AE13: =AD15+AD17-AD18-AD22-AD23-AD25 -> 47823.94771 | BB13: 0 | BC13: 0 | BD13: 4677.123 | BE13: 0 | BG13: =#REF! ->  | BH13: =#REF! ->  | BI13: =#REF! ->  | BJ13: =#REF! ->  | BL13: =BG13 ->  | BQ13: =BL13 ->  | BV13: =BQ13 -> 
B14: СН2 | G14: 828.457 | L14: 1151.082477 | Q14: 752.302 | V14: 1001.002912 | AA14: 868.5 | AF14: 757 | BB14: 0 | BC14: 0 | BD14: 0 | BE14: 2339.341563 | BG14: =#REF! ->  | BH14: =#REF! ->  | BI14: =#REF! ->  | BJ14: =#REF! -> 
A15: 1.2. | B15: от электростанций ПЭ | C15: =SUM(D15:G15) -> 290536 | E15: 32422.278 | F15: 258113.722 | H15: =SUM(I15:L15) -> 292890.838 | J15: 39430.062 | K15: 253460.776 | M15: =SUM(N15:Q15) -> 253524 | O15: =62439.925-19868.171 -> 42571.754 | P15: 210952.246 | R15: =SUM(S15:V15) -> 334169.004 | T15: 39430.062 | U15: 294738.942 | W15: =SUM(X15:AA15) -> 265350 | Y15: =62439.925-19868.171 -> 42571.754 | Z15: 222778.246 | AB15: =SUM(AC15:AF15) -> 316663 | AD15: =62439.925-19868.171 -> 42571.754 | AE15: 274091.246 | AG15: =SUM(AH15:AK15) -> 0 | AL15: =SUM(AM15:AP15) -> 0 | AQ15: =SUM(AR15:AU15) -> 0 | AV15: =SUM(AW15:AZ15) -> 0 | BA15: =SUM(BB15:BE15) -> 334169.004 | BB15: 0 | BC15: 0 | BD15: 334169.004 | BE15: 0 | BF15: =SUM(BG15:BJ15) ->  | BG15: =#REF! ->  | BH15: =#REF! ->  | BI15: =#REF! ->  | BJ15: =#REF! ->  | BK15: =SUM(BL15:BO15) ->  | BP15: =SUM(BQ15:BT15) ->  | BU15: =SUM(BV15:BY15) -> 
A16: 1.3. | B16: от других поставщиков (в т.ч. с оптового рынка)* | C16: =SUM(D16:G16) -> 0 | H16: =SUM(I16:L16) -> 0 | M16: =SUM(N16:Q16) -> 0 | R16: =SUM(S16:V16) -> 0 | W16: =SUM(X16:AA16) -> 0 | AB16: =SUM(AC16:AF16) -> 0 | AG16: =SUM(AH16:AK16) -> 0 | AL16: =SUM(AM16:AP16) -> 0 | AQ16: =SUM(AR16:AU16) -> 0 | AV16: =SUM(AW16:AZ16) -> 0 | BA16: =SUM(BB16:BE16) -> 0 | BB16: 0 | BC16: 0 | BD16: 0 | BE16: 0 | BF16: =SUM(BG16:BJ16) ->  | BG16: =#REF! ->  | BH16: =#REF! ->  | BI16: =#REF! ->  | BJ16: =#REF! ->  | BK16: =SUM(BL16:BO16) ->  | BP16: =SUM(BQ16:BT16) ->  | BU16: =SUM(BV16:BY16) -> 
A17: 1.4. | B17: поступление эл. энергии от других электросетевых организаций ** | C17: =SUM(D17:G17) -> 30716.471 | D17: 21510.379 | E17: 7797.51 | F17: 1408.582 | H17: =SUM(I17:L17) -> 36690.726 | I17: 36132.805 | J17: 557.921 | M17: =SUM(N17:Q17) -> 75071.18 | N17: 29854.374 | O17: =65823.59+20707.867-42571.574 -> 43959.883 | P17: =437.508+819.415 -> 1256.923 | R17: =SUM(S17:V17) -> 9074.351 | S17: 4867.152 | T17: 2798.617 | U17: 1408.582 | W17: =SUM(X17:AA17) -> 59190 | X17: 29854.374 | Y17: =52452.549+18197.908-42571.754 -> 28078.703 | Z17: =437.508+819.415 -> 1256.923 | AB17: =SUM(AC17:AF17) -> 20333.043 | AC17: 8717.63 | AD17: 7669.316 | AE17: 3946.097 | AG17: =SUM(AH17:AK17) -> 0 | AL17: =SUM(AM17:AP17) -> 0 | AQ17: =SUM(AR17:AU17) -> 0 | AV17: =SUM(AW17:AZ17) -> 0 | BA17: =SUM(BB17:BE17) -> 9074.351 | BB17: 4867.152 | BC17: 2798.617 | BD17: 1408.582 | BE17: 0 | BF17: =SUM(BG17:BJ17) ->  | BG17: =#REF! ->  | BH17: =#REF! ->  | BI17: =#REF! ->  | BJ17: =#REF! ->  | BK17: =SUM(BL17:BO17) ->  | BP17: =SUM(BQ17:BT17) ->  | BU17: =SUM(BV17:BY17) -> 
A18: 2. | B18: Потери электроэнергии в сети | C18: =SUM(D18:G18) -> 15213.955 | D18: 893.9065 | E18: 2349.8036 | F18: 11970.2449 | H18: =SUM(I18:L18) -> 11942.48816 | I18: 1076.223569 | J18: 595.8716442 | K18: 10224.2346 | L18: 46.1583481 | M18: =SUM(N18:Q18) -> 11942.488 | N18: 1012.7788 | O18: 2115.2585 | P18: 8814.4507 | R18: =SUM(S18:V18) -> 14566.19156 | S18: 100.7500464 | T18: 1513.241607 | U18: 12879.427 | V18: 72.77291168 | W18: =SUM(X18:AA18) -> 13649.655 | X18: 1523.68 | Y18: 1464.967 | Z18: 10606.428 | AA18: 54.58 | AB18: =SUM(AC18:AF18) -> 12847.69664 | AC18: 180.454941 | AD18: 1622.754293 | AE18: 10989.3874 | AF18: 55.1 | AG18: =SUM(AH18:AK18) -> 0 | AL18: =SUM(AM18:AP18) -> 0 | AQ18: =SUM(AR18:AU18) -> 0 | AV18: =SUM(AW18:AZ18) -> 0 | BA18: =SUM(BB18:BE18) -> 13209.66 | BB18: 1523.68 | BC18: 1464.966 | BD18: 10166.434 | BE18: 54.58 | BF18: =SUM(BG18:BJ18) ->  | BG18: =#REF! ->  | BH18: =#REF! ->  | BI18: =#REF! ->  | BJ18: =#REF! ->  | BK18: =SUM(BL18:BO18) ->  | BP18: =SUM(BQ18:BT18) ->  | BU18: =SUM(BV18:BY18) -> 
B19: то же в % (п.1.1/п.1.3) | C19: =IF(C8=0,0,C18/C8*100) -> 4.735825051 | D19: 4.155698512 | E19: 5.842406728 | F19: 3.768889991 | G19: 0 | H19: 3.623530399 | I19: 2.978522064 | J19: 1.490126782 | K19: 3.120821205 | L19: 4.009994854 | M19: 3.634407541 | N19: 3.392396705 | O19: 2.444491487 | P19: 2.712721364 | Q19: 0 | R19: =IF(R8=0,0,R18/R8*100) -> 4.243692223 | S19: =IF(S8=0,0,S18/S8*100) -> 2.07 | T19: =IF(T8=0,0,T18/T8*100) -> 3.22 | U19: =IF(U8=0,0,U18/U8*100) -> 3.77 | V19: =IF(V8=0,0,V18/V8*100) -> 7.27 | W19: 4.205846737 | X19: 5.103707752 | Y19: 2.073542143 | Z19: 3.306686525 | AA19: 6.284398388 | AB19: 3.812417654 | AC19: 2.07 | AD19: 3.229935774 | AE19: 3.286315138 | AF19: =IF(AF8=0,0,AF18/AF8*100) -> 7.278731836 | AG19: 0 | AH19: 0 | AI19: 0 | AJ19: 0 | AK19: 0 | AL19: 0 | AM19: 0 | AN19: 0 | AO19: 0 | AP19: 0 | AQ19: 0 | AR19: 0 | AS19: 0 | AT19: 0 | AU19: 0 | AV19: =IF(AV8=0,0,AV18/AV8*100) -> 0 | AW19: 0 | AX19: 0 | AY19: 0 | AZ19: 0 | BA19: 3.848482369 | BB19: =AW19 -> 0 | BC19: =AX19 -> 0 | BD19: 0 | BE19: 0 | BJ19: =IF(BJ8=0,0,BJ18/BJ8*100) -> 
A20: 3. | B20: Расход электроэнергии на произв и хознужды электросетевого хозяйства | C20: =SUM(D20:G20) -> 0 | H20: =SUM(I20:L20) -> 0 | M20: =SUM(N20:Q20) -> 0 | R20: =SUM(S20:V20) -> 0 | W20: =SUM(X20:AA20) -> 0 | AB20: =SUM(AC20:AF20) -> 0 | AG20: =SUM(AH20:AK20) -> 0 | AL20: =SUM(AM20:AP20) -> 0 | AQ20: =SUM(AR20:AU20) -> 0 | AV20: =SUM(AW20:AZ20) -> 0 | BA20: =SUM(BB20:BE20) -> 0 | BF20: =SUM(BG20:BJ20) ->  | BG20: =#REF! ->  | BH20: =#REF! ->  | BI20: =#REF! ->  | BJ20: =#REF! ->  | BK20: =SUM(BL20:BO20) ->  | BL20: =BG20 ->  | BM20: =BH20 ->  | BN20: =BI20 ->  | BO20: =BJ20 ->  | BP20: =SUM(BQ20:BT20) ->  | BQ20: =BL20 ->  | BR20: =BM20 ->  | BS20: =BN20 ->  | BT20: =BO20 ->  | BU20: =SUM(BV20:BY20) ->  | BV20: =BQ20 ->  | BW20: =BR20 ->  | BX20: =BS20 ->  | BY20: =BT20 -> 
A21: 4. | B21: Полезный отпуск из сети | C21: =C22+C23 -> 306038.516 | D21: =D8-D18-D20 -> 20616.4725 | E21: =E8-E18-E20 -> 37869.9844 | F21: =F8-F18-F20 -> 305636.396 | G21: =G8-G18-G20 -> 828.457 | H21: =H22+H23 -> 317639.0757 | I21: =I8-I18-I20 -> 35056.58143 | J21: =J8-J18-J20 -> 39392.11136 | K21: =K8-K18-K20 -> 317389.3622 | L21: =L8-L18-L20 -> 1104.924129 | M21: =M22+M23 -> 316652.692 | N21: =N8-N18-N20 -> 28841.5952 | O21: =O8-O18-O20 -> 84416.3785 | P21: =P8-P18-P20 -> 316115.74 | Q21: =Q8-Q18-Q20 -> 752.302 | R21: =R22+R23 -> 328677.1634 | S21: =S8-S18-S20 -> 4766.401954 | T21: =T8-T18-T20 -> 45481.83935 | U21: =U8-U18-U20 -> 328749.9363 | V21: =V8-V18-V20 -> 928.23 | W21: =W22+W23 -> 310890.345 | X21: =X8-X18-X20 -> 28330.694 | Y21: =Y8-Y18-Y20 -> 69185.49 | Z21: =Z8-Z18-Z20 -> 310150.557 | AA21: =AA8-AA18-AA20 -> 813.92 | AB21: =AB22+AB23 -> 324148.3464 | AC21: =AC8-AC18-AC20 -> 8537.175059 | AD21: =AD8-AD18-AD20 -> 48618.31571 | AE21: =AE8-AE18-AE20 -> 323409.0784 | AF21: =AF8-AF18-AF20 -> 701.9 | AG21: =AG22+AG23 -> 0 | AH21: =AH8-AH18-AH20 -> 0 | AI21: =AI8-AI18-AI20 -> 0 | AJ21: =AJ8-AJ18-AJ20 -> 0 | AK21: =AK8-AK18-AK20 -> 0 | AL21: =AL22+AL23 -> 0 | AM21: =AM8-AM18-AM20 -> 0 | AN21: =AN8-AN18-AN20 -> 0 | AO21: =AO8-AO18-AO20 -> 0 | AP21: =AP8-AP18-AP20 -> 0 | AQ21: =AQ22+AQ23 -> 0 | AR21: =AR8-AR18-AR20 -> 0 | AS21: =AS8-AS18-AS20 -> 0 | AT21: =AT8-AT18-AT20 -> 0 | AU21: =AU8-AU18-AU20 -> 0 | AV21: =AV22+AV23 -> 0 | AW21: =AW8-AW18-AW20 -> 0 | AX21: =AX8-AX18-AX20 -> 0 | AY21: =AY8-AY18-AY20 -> 0 | AZ21: =AZ8-AZ18-AZ20 -> 0 | BA21: =BA22+BA23 -> 328677.1634 | BB21: =BB8-BB18-BB20 -> 3343.472 | BC21: =BC8-BC18-BC20 -> 4677.123 | BD21: =BD8-BD18-BD20 -> 330088.275 | BE21: =BE8-BE18-BE20 -> 2284.761563 | BF21: =BF22+BF23 ->  | BG21: =BG8-BG18-BG20 ->  | BH21: =BH8-BH18-BH20 ->  | BI21: =BI8-BI18-BI20 ->  | BJ21: =BJ8-BJ18-BJ20 ->  | BK21: =BK22+BK23 ->  | BL21: =BL8-BL18-BL20 ->  | BM21: =BM8-BM18-BM20 ->  | BN21: =BN8-BN18-BN20 ->  | BO21: =BO8-BO18-BO20 ->  | BP21: =BP22+BP23 ->  | BQ21: =BQ8-BQ18-BQ20 ->  | BR21: =BR8-BR18-BR20 ->  | BS21: =BS8-BS18-BS20 ->  | BT21: =BT8-BT18-BT20 ->  | BU21: =BU22+BU23 ->  | BV21: =BV8-BV18-BV20 ->  | BW21: =BW8-BW18-BW20 ->  | BX21: =BX8-BX18-BX20 ->  | BY21: =BY8-BY18-BY20 -> 
A22: 4.1. | B22: собственное потребление | C22: =SUM(D22:G22) -> 299293.305 | F22: 299293.305 | H22: =SUM(I22:L22) -> 310956.1797 | K22: 310743.1797 | L22: 213 | M22: =SUM(N22:Q22) -> 310967.039 | O22: 0 | P22: =P15+O15+M17-M18-M23 -> 310967.039 | R22: =SUM(S22:V22) -> 321570.1634 | U22: 321570.1634 | W22: =SUM(X22:AA22) -> 305276.33 | Z22: =Z15+Y15+W17-W18-W23 -> 305276.33 | AB22: =SUM(AC22:AF22) -> 318646.3464 | AE22: =AE15+AD15+AB17-AB18-AB23 -> 318646.3464 | AG22: =SUM(AH22:AK22) -> 0 | AL22: =SUM(AM22:AP22) -> 0 | AQ22: =SUM(AR22:AU22) -> 0 | AV22: =SUM(AW22:AZ22) -> 0 | BA22: =SUM(BB22:BE22) -> 321570.1634 | BB22: 0 | BC22: 0 | BD22: 321570.1634 | BE22: 0 | BF22: =SUM(BG22:BJ22) ->  | BG22: =#REF! ->  | BH22: =#REF! ->  | BI22: =#REF! ->  | BJ22: =#REF! ->  | BK22: =SUM(BL22:BO22) ->  | BL22: =BG22 ->  | BP22: =SUM(BQ22:BT22) ->  | BQ22: =BL22 ->  | BU22: =SUM(BV22:BY22) ->  | BV22: =BQ22 -> 
A23: 4.2. | B23: сторонним потребителям | C23: =SUM(D23:G23) -> 6745.211 | D23: 0 | E23: 402.12 | F23: 5514.634 | G23: 828.457 | H23: =SUM(I23:L23) -> 6682.896 | J23: 295.872 | K23: 5495.1 | L23: 891.924 | M23: =SUM(N23:Q23) -> 5685.653 | N23: 0 | O23: 536.952 | P23: 4396.399 | Q23: 752.302 | R23: =SUM(S23:V23) -> 7107 | U23: 6178.77 | V23: 928.23 | W23: =SUM(X23:AA23) -> 5614.015 | X23: 0 | Y23: 794.368 | Z23: 4005.692 | AA23: 813.955 | AB23: =SUM(AC23:AF23) -> 5502 | AC23: 0 | AD23: 794.368 | AE23: 4005.692 | AF23: 701.94 | AG23: =SUM(AH23:AK23) -> 0 | AL23: =SUM(AM23:AP23) -> 0 | AQ23: =SUM(AR23:AU23) -> 0 | AV23: =SUM(AW23:AZ23) -> 0 | BA23: =SUM(BB23:BE23) -> 7107 | BB23: 0 | BC23: 0 | BD23: 6178.77 | BE23: 928.23 | BF23: =SUM(BG23:BJ23) ->  | BG23: =#REF! ->  | BH23: =#REF! ->  | BI23: =#REF! ->  | BJ23: =#REF! ->  | BK23: =SUM(BL23:BO23) ->  | BP23: =SUM(BQ23:BT23) ->  | BU23: =SUM(BV23:BY23) -> 
B24: в том числе: сальдо переток (транзит) в другие электросетевые организации*** | C24: =SUM(D24:G24) -> 298891.185 | F24: =F21-C23 -> 298891.185 | H24: =SUM(I24:L24) -> 0 | M24: =SUM(N24:Q24) -> 0 | R24: =SUM(S24:V24) -> 0 | W24: =SUM(X24:AA24) -> 0 | AB24: =SUM(AC24:AF24) -> 0 | AG24: =SUM(AH24:AK24) -> 0 | AL24: =SUM(AM24:AP24) -> 0 | AQ24: =SUM(AR24:AU24) -> 0 | AV24: =SUM(AW24:AZ24) -> 0 | BA24: =SUM(BB24:BE24) -> 0 | BB24: 0 | BC24: 0 | BD24: 0 | BE24: 0 | BF24: =SUM(BG24:BJ24) ->  | BG24: =#REF! ->  | BH24: =#REF! ->  | BI24: =#REF! ->  | BJ24: =#REF! ->  | BK24: =SUM(BL24:BO24) ->  | BP24: =SUM(BQ24:BT24) ->  | BU24: =SUM(BV24:BY24) -> 
A25: 4.3. | B25: сальдо переток в сопредельные регионы | C25: =SUM(D25:G25) -> 0 | H25: =SUM(I25:L25) -> 0 | M25: =SUM(N25:Q25) -> 0 | R25: =SUM(S25:V25) -> 0 | W25: =SUM(X25:AA25) -> 0 | AB25: =SUM(AC25:AF25) -> 0 | AG25: =SUM(AH25:AK25) -> 0 | AL25: =SUM(AM25:AP25) -> 0 | AQ25: =SUM(AR25:AU25) -> 0 | AV25: =SUM(AW25:AZ25) -> 0 | BA25: =SUM(BB25:BE25) -> 0 | BB25: 0 | BC25: 0 | BD25: 0 | BE25: 0 | BF25: =SUM(BG25:BJ25) ->  | BG25: =#REF! ->  | BH25: =#REF! ->  | BI25: =#REF! ->  | BJ25: =#REF! ->  | BK25: =SUM(BL25:BO25) ->  | BP25: =SUM(BQ25:BT25) ->  | BU25: =SUM(BV25:BY25) -> 
A26: 5. | B26: проверка | D26: =D21-D22-D23-D25-E12-F12-G12 -> 0 | E26: =E21-E22-E23-E25-F13-G13 -> 0 | F26: =F21-F22-F23-F25-G14 -> 1.489297574e-11 | G26: =G21-G22-G23-G25 -> 0 | I26: =I21-I22-I23-I25-J12-K12-L12 -> 0 | J26: =J21-J22-J23-J25-K13-L13 -> 0 | K26: =K21-K22-K23-K25-L14 -> 0 | L26: =L21-L22-L23-L25 -> 0.0001291100077 | N26: =N21-N22-N23-N25-O12-P12-Q12 -> 0 | O26: =O21-O22-O23-O25-P13-Q13 -> 0 | P26: =P21-P22-P23-P25-Q14 -> 0 | Q26: =Q21-Q22-Q23-Q25 -> 0 | S26: =S21-S22-S23-S25-T12-U12-V12 -> 0 | T26: =T21-T22-T23-T25-U13-V13 -> 0 | U26: =U21-U22-U23-U25-V14 -> 0 | V26: =V21-V22-V23-V25 -> -1.000444172e-11 | X26: =X21-X22-X23-X25-Y12-Z12-AA12 -> 0 | Y26: =Y21-Y22-Y23-Y25-Z13-AA13 -> 0 | Z26: =Z21-Z22-Z23-Z25-AA14 -> 0.03500000007 | AA26: =AA21-AA22-AA23-AA25 -> -0.035 | AC26: =AC21-AC22-AC23-AC25-AD12-AE12-AF12 -> 0 | AD26: =AD21-AD22-AD23-AD25-AE13-AF13 -> 0 | AE26: =AE21-AE22-AE23-AE25-AF14 -> 0.03999999996 | AF26: =AF21-AF22-AF23-AF25 -> -0.04 | AH26: =AH21-AH22-AH23-AH25-AI12-AJ12-AK12 -> 0 | AI26: =AI21-AI22-AI23-AI25-AJ13-AK13 -> 0 | AJ26: =AJ21-AJ22-AJ23-AJ25-AK14 -> 0 | AK26: =AK21-AK22-AK23-AK25 -> 0 | AM26: =AM21-AM22-AM23-AM25-AN12-AO12-AP12 -> 0 | AN26: =AN21-AN22-AN23-AN25-AO13-AP13 -> 0 | AO26: =AO21-AO22-AO23-AO25-AP14 -> 0 | AP26: =AP21-AP22-AP23-AP25 -> 0 | AR26: =AR21-AR22-AR23-AR25-AS12-AT12-AU12 -> 0 | AS26: =AS21-AS22-AS23-AS25-AT13-AU13 -> 0 | AT26: =AT21-AT22-AT23-AT25-AU14 -> 0 | AU26: =AU21-AU22-AU23-AU25 -> 0 | AW26: =AW21-AW22-AW23-AW25-AX12-AY12-AZ12 -> 0 | AX26: =AX21-AX22-AX23-AX25-AY13-AZ13 -> 0 | AY26: =AY21-AY22-AY23-AY25-AZ14 -> 0 | AZ26: =AZ21-AZ22-AZ23-AZ25 -> 0 | BB26: =BB21-BB22-BB23-BB25-BC12-BD12-BE12 -> 0 | BC26: =BC21-BC22-BC23-BC25-BD13-BE13 -> 0 | BD26: =BD21-BD22-BD23-BD25-BE14 -> 0 | BE26: =BE21-BE22-BE23-BE25 -> 1356.531563 | BG26: =BG21-BG22-BG23-BG25-BH12-BI12-BJ12 ->  | BH26: =BH21-BH22-BH23-BH25-BI13-BJ13 ->  | BI26: =BI21-BI22-BI23-BI25-BJ14 ->  | BJ26: =BJ21-BJ22-BJ23-BJ25 ->  | BL26: =BL21-BL22-BL23-BL25-BM12-BN12-BO12 ->  | BM26: =BM21-BM22-BM23-BM25-BN13-BO13 ->  | BN26: =BN21-BN22-BN23-BN25-BO14 ->  | BO26: =BO21-BO22-BO23-BO25 ->  | BQ26: =BQ21-BQ22-BQ23-BQ25-BR12-BS12-BT12 ->  | BR26: =BR21-BR22-BR23-BR25-BS13-BT13 ->  | BS26: =BS21-BS22-BS23-BS25-BT14 ->  | BT26: =BT21-BT22-BT23-BT25 ->  | BV26: =BV21-BV22-BV23-BV25-BW12-BX12-BY12 ->  | BW26: =BW21-BW22-BW23-BW25-BX13-BY13 ->  | BX26: =BX21-BX22-BX23-BX25-BY14 ->  | BY26: =BY21-BY22-BY23-BY25 -> 
A27: 6 | B27: Доля сторонних потребителей для распределения НВВ (формулы можно корректировать) | D27: =IF(D8=0,0,C23/(D8-C18)) -> 1.07127649 | E27: =IF(E8=0,0,(E23)/(E8-E18-F18-G18)) -> 0.01552602489 | F27: =IF(F8=0,0,(F23+G23)/(F8-F18-G18)) -> 0.02075371612 | G27: =IF(G8=0,0,G23/(G8-G18)) -> 1 | I27: =IF(I8=0,0,H23/(I8-H18)) -> 0.2762632687 | J27: =IF(J8=0,0,(J23)/(J8-J18-K18-L18)) -> 0.01015984002 | K27: =IF(K8=0,0,(K23+L23)/(K8-K18-L18)) -> 0.02012655044 | L27: =IF(L8=0,0,L23/(L8-L18)) -> 0.8072264661 | N27: =IF(N8=0,0,M23/(N8-M18)) -> 0.3174234695 | O27: =IF(O8=0,0,(O23)/(O8-O18-P18-Q18)) -> 0.007102358572 | P27: =IF(P8=0,0,(P23+Q23)/(P8-P18-Q18)) -> 0.01628739208 | Q27: =IF(Q8=0,0,Q23/(Q8-Q18)) -> 1 | S27: =IF(S8=0,0,R23/(S8-R18)) -> -0.7327529653 | T27: =IF(T8=0,0,(T23)/(T8-T18-U18-V18)) -> 0 | U27: =IF(U8=0,0,(U23+V23)/(U8-U18-V18)) -> 0.02162304167 | V27: =IF(V8=0,0,V23/(V8-V18)) -> 1 | X27: =IF(X8=0,0,W23/(X8-W18)) -> 0.3464432182 | Y27: =IF(Y8=0,0,(Y23)/(Y8-Y18-Z18-AA18)) -> 0.01357325982 | Z27: =IF(Z8=0,0,(Z23+AA23)/(Z8-Z18-AA18)) -> 0.0155424364 | AA27: =IF(AA8=0,0,AA23/(AA8-AA18)) -> 1.000043002 | AC27: =IF(AC8=0,0,AB23/(AC8-AB18)) -> -1.332181895 | AD27: =IF(AD8=0,0,(AD23)/(AD8-AD18-AE18-AF18)) -> 0.02114152419 | AE27: =IF(AE8=0,0,(AE23+AF23)/(AE8-AE18-AF18)) -> 0.01455875701 | AF27: =IF(AF8=0,0,AF23/(AF8-AF18)) -> 1.000056988 | AH27: =IF(AH8=0,0,AG23/(AH8-AG18)) -> 0 | AI27: =IF(AI8=0,0,(AI23)/(AI8-AI18-AJ18-AK18)) -> 0 | AJ27: =IF(AJ8=0,0,(AJ23+AK23)/(AJ8-AJ18-AK18)) -> 0 | AK27: =IF(AK8=0,0,AK23/(AK8-AK18)) -> 0 | AM27: =IF(AM8=0,0,AL23/(AM8-AL18)) -> 0 | AN27: =IF(AN8=0,0,(AN23)/(AN8-AN18-AO18-AP18)) -> 0 | AO27: =IF(AO8=0,0,(AO23+AP23)/(AO8-AO18-AP18)) -> 0 | AP27: =IF(AP8=0,0,AP23/(AP8-AP18)) -> 0 | AR27: =IF(AR8=0,0,AQ23/(AR8-AQ18)) -> 0 | AS27: =IF(AS8=0,0,(AS23)/(AS8-AS18-AT18-AU18)) -> 0 | AT27: =IF(AT8=0,0,(AT23+AU23)/(AT8-AT18-AU18)) -> 0 | AU27: =IF(AU8=0,0,AU23/(AU8-AU18)) -> 0 | AW27: =IF(AW8=0,0,AV23/(AW8-AV18)) -> 0 | AX27: =IF(AX8=0,0,(AX23)/(AX8-AX18-AY18-AZ18)) -> 0 | AY27: =IF(AY8=0,0,(AY23+AZ23)/(AY8-AY18-AZ18)) -> 0 | AZ27: =IF(AZ8=0,0,AZ23/(AZ8-AZ18)) -> 0 | BB27: =IF(BB8=0,0,BA23/(BB8-BA18)) -> -0.8519020899 | BC27: =IF(BC8=0,0,(BC23)/(BC8-BC18-BD18-BE18)) -> 0 | BD27: =IF(BD8=0,0,(BD23+BE23)/(BD8-BD18-BE18)) -> 0.02153416487 | BE27: =IF(BE8=0,0,BE23/(BE8-BE18)) -> 0.4062699649 | BG27: =IF(BG8=0,0,BF23/(BG8-BF18)) ->  | BH27: =IF(BH8=0,0,(BH23)/(BH8-BH18-BI18-BJ18)) ->  | BI27: =IF(BI8=0,0,(BI23+BJ23)/(BI8-BI18-BJ18)) ->  | BJ27: =IF(BJ8=0,0,BJ23/(BJ8-BJ18)) ->  | BL27: =IF(BL8=0,0,BK23/(BL8-BK18)) ->  | BM27: =IF(BM8=0,0,(BM23)/(BM8-BM18-BN18-BO18)) ->  | BN27: =IF(BN8=0,0,(BN23+BO23)/(BN8-BN18-BO18)) ->  | BO27: =IF(BO8=0,0,BO23/(BO8-BO18)) ->  | BQ27: =IF(BQ8=0,0,BP23/(BQ8-BP18)) ->  | BR27: =IF(BR8=0,0,(BR23)/(BR8-BR18-BS18-BT18)) ->  | BS27: =IF(BS8=0,0,(BS23+BT23)/(BS8-BS18-BT18)) ->  | BT27: =IF(BT8=0,0,BT23/(BT8-BT18)) ->  | BV27: =IF(BV8=0,0,BU23/(BV8-BU18)) ->  | BW27: =IF(BW8=0,0,(BW23)/(BW8-BW18-BX18-BY18)) ->  | BX27: =IF(BX8=0,0,(BX23+BY23)/(BX8-BX18-BY18)) ->  | BY27: =IF(BY8=0,0,BY23/(BY8-BY18)) -> 
B28: Справочно: | BA28: =BB28+BC28+BD28+BE28 -> -1056.926296 | BB28: =BB18*BB27 -> -1298.026176 | BC28: =BC18*BC27 -> 0 | BD28: =BD18*BD27 -> 218.9256659 | BE28: =BE18*BE27 -> 22.17421468 | BZ28: потери на сторонних потребителей
B29: * название организации поставщика (производителя электрической энергии):
B30: ** название электросетевой организации (организаций) в соответствии с актами балансового разграничения сетей:
B31: *** название электросетевой организации (организаций) в соответствии с актами балансового разграничения сетей:
B33: Руководитель организации | G33: К.Ю. Вергазов
B35: Должностное лицо, ответственное за составление формы | G35: О.В. Костюкова

Sheet 5
B1: =Анкета!B3 -> АО "Чепецкий механический завод" | AZ1: Продолжение таблицы№ П1.5. | BJ1: Таблица № П1.5.
A2: Электрическая мощность по диапазонам напряжения
AZ3: МВт | BJ3: МВт | BO3: МВт | BT3: МВт | BY3: МВт | CD3: МВт
A4: № п.п. | B4: Показатели | C4: 2013 год факт | H4: 2014 год утверждено | M4: 2014 год факт | R4: 2015 год утверждено | W4: 2015 год ожидаемое | AB4: 2016 год предложение организации | AG4: 2017 год предложение организации | AL4: 2018 год предложение организации | AQ4: 2019 год предложение организации | AV4: 2020 год предложение организации | BA4: 2016 год принято уполномоченным органом до корректировки | BF4: 2016 год принято уполномоченным органом после корректировки | BK4: 2017 год принято уполномоченным органом | BP4: 2018 год принято уполномоченным органом | BU4: 2019 год принято уполномоченным органом | BZ4: 2020 год принято уполномоченным органом
C5: =C4 -> 2013 год факт | D5: =C4 -> 2013 год факт | E5: =C4 -> 2013 год факт | F5: =C4 -> 2013 год факт | G5: =C4 -> 2013 год факт | H5: =H4 -> 2014 год утверждено | I5: =H4 -> 2014 год утверждено | J5: =H4 -> 2014 год утверждено | K5: =H4 -> 2014 год утверждено | L5: =H4 -> 2014 год утверждено | M5: =M4 -> 2014 год факт | N5: =M4 -> 2014 год факт | O5: =M4 -> 2014 год факт | P5: =M4 -> 2014 год факт | Q5: =M4 -> 2014 год факт | R5: =R4 -> 2015 год утверждено | S5: =R4 -> 2015 год утверждено | T5: =R4 -> 2015 год утверждено | U5: =R4 -> 2015 год утверждено | V5: =R4 -> 2015 год утверждено | W5: =W4 -> 2015 год ожидаемое | X5: =W4 -> 2015 год ожидаемое | Y5: =W4 -> 2015 год ожидаемое | Z5: =W4 -> 2015 год ожидаемое | AA5: =W4 -> 2015 год ожидаемое | AB5: Всего | AC5: ВН | AD5: СН1 | AE5: СН2 | AF5: НН
C6: Всего | D6: ВН | E6: СН1 | F6: СН2 | G6: НН | H6: Всего | I6: ВН | J6: СН1 | K6: СН2 | L6: НН | M6: Всего | N6: ВН | O6: СН1 | P6: СН2 | Q6: НН | R6: Всего | S6: ВН | T6: СН1 | U6: СН2 | V6: НН | W6: Всего | X6: ВН | Y6: СН1 | Z6: СН2 | AA6: НН | AB6: =AB5 -> Всего | AC6: =AC5 -> ВН | AD6: =AD5 -> СН1 | AE6: =AE5 -> СН2 | AF6: =AF5 -> НН | AG6: Всего | AH6: ВН | AI6: СН1 | AJ6: СН2 | AK6: НН | AL6: Всего | AM6: ВН | AN6: СН1 | AO6: СН2 | AP6: НН | AQ6: Всего | AR6: ВН | AS6: СН1 | AT6: СН2 | AU6: НН | AV6: Всего | AW6: ВН | AX6: СН1 | AY6: СН2 | AZ6: НН | BA6: Всего | BB6: ВН | BC6: СН1 | BD6: СН2 | BE6: НН | BF6: Всего | BG6: ВН | BH6: СН1 | BI6: СН2 | BJ6: НН | BK6: Всего | BL6: ВН | BM6: СН1 | BN6: СН2 | BO6: НН | BP6: Всего | BQ6: ВН | BR6: СН1 | BS6: СН2 | BT6: НН | BU6: Всего | BV6: ВН | BW6: СН1 | BX6: СН2 | BY6: НН | BZ6: Всего | CA6: ВН | CB6: СН1 | CC6: СН2 | CD6: НН
A7: 1 | B7: 2 | C7: 3 | D7: 4 | E7: =D7+1 -> 5 | F7: =E7+1 -> 6 | G7: 7 | H7: 8 | I7: 9 | J7: 10 | K7: 11 | L7: 12 | M7: 13 | N7: 14 | O7: 15 | P7: 16 | Q7: 17 | R7: =Q7+1 -> 18 | S7: =R7+1 -> 19 | T7: =S7+1 -> 20 | U7: =T7+1 -> 21 | V7: =U7+1 -> 22 | W7: =Q7+1 -> 18 | X7: 19 | Y7: 20 | Z7: 21 | AA7: 22 | AB7: 23 | AC7: 24 | AD7: 25 | AE7: 26 | AF7: 27 | AG7: 28 | AH7: 29 | AI7: 30 | AJ7: 31 | AK7: 32 | AL7: 33 | AM7: 34 | AN7: 35 | AO7: 36 | AP7: 37 | AQ7: 38 | AR7: 39 | AS7: 40 | AT7: 41 | AU7: 42 | AV7: 43 | AW7: 44 | AX7: 45 | AY7: 46 | AZ7: 47 | BA7: =AU7+1 -> 43 | BB7: =BA7+1 -> 44 | BC7: =BB7+1 -> 45 | BD7: =BC7+1 -> 46 | BE7: =BD7+1 -> 47 | BF7: =AZ7+1 -> 48 | BG7: 49 | BH7: 50 | BI7: 51 | BJ7: 52 | BK7: =BJ7+1 -> 53 | BL7: 54 | BM7: 55 | BN7: 56 | BO7: 57 | BP7: 58 | BQ7: 59 | BR7: 60 | BS7: 61 | BT7: 62 | BU7: 63 | BV7: 64 | BW7: 65 | BX7: 66 | BY7: 67 | BZ7: 68 | CA7: 69 | CB7: 70 | CC7: 71 | CD7: 72
A8: 1. | B8: Поступление мощности в сеть , ВСЕГО | C8: =C9+C15+C16+C17 -> 51.77316213 | D8: 3.466620306 | E8: 6.481835294 | F8: 51.18559886 | G8: 0.1335144239 | H8: 53.11548171 | I8: 5.823175665 | J8: 6.444477518 | K8: 52.79832341 | L8: 0.1855088601 | M8: 52.95651571 | N8: 4.811341499 | O8: 13.9454693 | P8: 52.36586474 | Q8: 0.1212412571 | R8: =R9+R15+R16+R17 -> 55.31722079 | S8: =S9+S15+S16+S17 -> 0.784391942 | T8: =T9+T15+T16+T17 -> 7.573743909 | U8: =U9+U15+U16+U17 -> 55.05710932 | V8: =V9+V15+V16+V17 -> 0.1613219842 | W8: 52.30298147 | X8: 4.811341499 | Y8: 11.3860527 | Z8: 51.69330943 | AA8: 0.1399677679 | AB8: 54.31040177 | AC8: 1.404936342 | AD8: 8.096868654 | AE8: 53.8917753 | AF8: 0.1219983884 | AG8: 0 | AH8: 0 | AI8: 0 | AJ8: 0 | AK8: 0 | AL8: 0 | AM8: 0 | AN8: 0 | AO8: 0 | AP8: 0 | AQ8: 0 | AR8: 0 | AS8: 0 | AT8: 0 | AU8: 0 | AV8: =AV9+AV15+AV16+AV17 -> 0 | AW8: 0 | AX8: 0 | AY8: 0 | AZ8: 0 | BA8: 55.31722079 | BB8: 0.784391942 | BC8: 0.9898612409 | BD8: 54.83556954 | BE8: 0.3770091157 | BF8: 0 | BG8: 0 | BH8: 0 | BI8: 0 | BJ8: 0 | BK8: 0 | BL8: 0 | BM8: 0 | BN8: 0 | BO8: =BO9+BO15+BO16+BO17 -> 0 | BP8: 0 | BQ8: 0 | BR8: 0 | BS8: 0 | BT8: 0 | BU8: 0 | BV8: 0 | BW8: 0 | BX8: 0 | BY8: 0 | BZ8: 0 | CA8: 0 | CB8: 0 | CC8: 0 | CD8: 0
A9: 1.1. | B9: из собственной сети, всего | C9: =D11+E11+F11+G11 -> 0 | D9: =D11+D12+D13+D14 -> 0 | E9: =E11+E12+E13+E14 -> 0 | F9: =F11+F12+F13+F14 -> 9.360892329 | G9: =G11+G12+G13+G14 -> 0.1335144239 | H9: =I11+J11+K11+L11 -> 0 | I9: =I11+I12+I13+I14 -> 0 | J9: =J11+J12+J13+J14 -> 0 | K9: =K11+K12+K13+K14 -> 11.95049489 | L9: =L11+L12+L13+L14 -> 0.1855088601 | M9: =N11+O11+P11+Q11 -> 0 | N9: =N11+N12+N13+N14 -> 0 | O9: =O11+O12+O13+O14 -> 0 | P9: =P11+P12+P13+P14 -> 18.16615982 | Q9: =Q11+Q12+Q13+Q14 -> 0.1212412571 | R9: =S11+T11+U11+V11 -> 0 | S9: =S11+S12+S13+S14 -> 0 | T9: =T11+T12+T13+T14 -> 0.7681550288 | U9: =U11+U12+U13+U14 -> 7.329869355 | V9: =V11+V12+V13+V14 -> 0.1613219842 | W9: =X11+Y11+Z11+AA11 -> 0 | X9: =X11+X12+X13+X14 -> 0 | Y9: =Y11+Y12+Y13+Y14 -> 0 | Z9: =Z11+Z12+Z13+Z14 -> 15.58772216 | AA9: =AA11+AA12+AA13+AA14 -> 0.1399677679 | AB9: =AC11+AD11+AE11+AF11 -> 0 | AC9: =AC11+AC12+AC13+AC14 -> 0 | AD9: =AD11+AD12+AD13+AD14 -> 0 | AE9: =AE11+AE12+AE13+AE14 -> 9.083178528 | AF9: =AF11+AF12+AF13+AF14 -> 0.1219983884 | AG9: =AH11+AI11+AJ11+AK11 -> 0 | AH9: =AH11+AH12+AH13+AH14 -> 0 | AI9: =AI11+AI12+AI13+AI14 -> 0 | AJ9: =AJ11+AJ12+AJ13+AJ14 -> 0 | AK9: =AK11+AK12+AK13+AK14 -> 0 | AL9: =AM11+AN11+AO11+AP11 -> 0 | AM9: =AM11+AM12+AM13+AM14 -> 0 | AN9: =AN11+AN12+AN13+AN14 -> 0 | AO9: =AO11+AO12+AO13+AO14 -> 0 | AP9: =AP11+AP12+AP13+AP14 -> 0 | AQ9: =AR11+AS11+AT11+AU11 -> 0 | AR9: =AR11+AR12+AR13+AR14 -> 0 | AS9: =AS11+AS12+AS13+AS14 -> 0 | AT9: =AT11+AT12+AT13+AT14 -> 0 | AU9: =AU11+AU12+AU13+AU14 -> 0 | AV9: =AW11+AX11+AY11+AZ11 -> 0 | AW9: =AW11+AW12+AW13+AW14 -> 0 | AX9: =AX11+AX12+AX13+AX14 -> 0 | AY9: =AY11+AY12+AY13+AY14 -> 0 | AZ9: =AZ11+AZ12+AZ13+AZ14 -> 0 | BA9: =BB11+BC11+BD11+BE11 -> 0 | BB9: =BB11+BB12+BB13+BB14 -> 0 | BC9: =BC11+BC12+BC13+BC14 -> 0.538835133 | BD9: =BD11+BD12+BD13+BD14 -> 0.753766801 | BE9: =BE11+BE12+BE13+BE14 -> 0.3770091157 | BF9: =BG11+BH11+BI11+BJ11 -> 0 | BG9: =BG11+BG12+BG13+BG14 -> 0 | BH9: =BH11+BH12+BH13+BH14 -> 0 | BI9: =BI11+BI12+BI13+BI14 -> 0 | BJ9: =BJ11+BJ12+BJ13+BJ14 -> 0 | BK9: =BL11+BM11+BN11+BO11 -> 0 | BL9: =BL11+BL12+BL13+BL14 -> 0 | BM9: =BM11+BM12+BM13+BM14 -> 0 | BN9: =BN11+BN12+BN13+BN14 -> 0 | BO9: =BO11+BO12+BO13+BO14 -> 0 | BP9: =BQ11+BR11+BS11+BT11 -> 0 | BQ9: =BQ11+BQ12+BQ13+BQ14 -> 0 | BR9: =BR11+BR12+BR13+BR14 -> 0 | BS9: =BS11+BS12+BS13+BS14 -> 0 | BT9: =BT11+BT12+BT13+BT14 -> 0 | BU9: =BV11+BW11+BX11+BY11 -> 0 | BV9: =BV11+BV12+BV13+BV14 -> 0 | BW9: =BW11+BW12+BW13+BW14 -> 0 | BX9: =BX11+BX12+BX13+BX14 -> 0 | BY9: =BY11+BY12+BY13+BY14 -> 0 | BZ9: =CA11+CB11+CC11+CD11 -> 0 | CA9: =CA11+CA12+CA13+CA14 -> 0 | CB9: =CB11+CB12+CB13+CB14 -> 0 | CC9: =CC11+CC12+CC13+CC14 -> 0 | CD9: =CD11+CD12+CD13+CD14 -> 0
B10: в том числе из сети
B11: МСК | D11: ='4'!D11/6205 -> 0 | E11: ='4'!E11/6205 -> 0 | F11: ='4'!F11/6205 -> 0 | G11: ='4'!G11/6205 -> 0 | I11: ='4'!I11/6205 -> 0 | J11: ='4'!J11/6205 -> 0 | K11: ='4'!K11/6205 -> 0 | L11: ='4'!L11/6205 -> 0 | N11: ='4'!N11/6205 -> 0 | O11: ='4'!O11/6205 -> 0 | P11: ='4'!P11/6205 -> 0 | Q11: ='4'!Q11/6205 -> 0 | S11: ='4'!S11/6205 -> 0 | T11: ='4'!T11/6205 -> 0 | U11: ='4'!U11/6205 -> 0 | V11: ='4'!V11/6205 -> 0 | X11: ='4'!X11/6205 -> 0 | Y11: ='4'!Y11/6205 -> 0 | Z11: ='4'!Z11/6205 -> 0 | AA11: ='4'!AA11/6205 -> 0 | AC11: ='4'!AC11/6205 -> 0 | AD11: ='4'!AD11/6205 -> 0 | AE11: ='4'!AE11/6205 -> 0 | AF11: ='4'!AF11/6205 -> 0 | BB11: ='4'!BB11/6205 -> 0 | BC11: ='4'!BC11/6205 -> 0 | BD11: ='4'!BD11/6205 -> 0 | BE11: ='4'!BE11/6205 -> 0
B12: ВН | D12: ='4'!D12/6205 -> 0 | E12: ='4'!E12/6205 -> 0 | F12: ='4'!F12/6205 -> 3.322558018 | G12: ='4'!G12/6205 -> 0 | I12: ='4'!I12/6205 -> 0 | J12: ='4'!J12/6205 -> 0 | K12: ='4'!K12/6205 -> 5.649731093 | L12: ='4'!L12/6205 -> 0 | N12: ='4'!N12/6205 -> 0 | O12: ='4'!O12/6205 -> 0 | P12: ='4'!P12/6205 -> 4.648121708 | Q12: ='4'!Q12/6205 -> 0 | S12: ='4'!S12/6205 -> 0 | T12: ='4'!T12/6205 -> 0.7681550288 | U12: ='4'!U12/6205 -> 0 | V12: ='4'!V12/6205 -> 0 | X12: ='4'!X12/6205 -> 0 | Y12: ='4'!Y12/6205 -> 0 | Z12: ='4'!Z12/6205 -> 4.56578469 | AA12: ='4'!AA12/6205 -> 0 | AC12: ='4'!AC12/6205 -> 0 | AD12: ='4'!AD12/6205 -> 0 | AE12: ='4'!AE12/6205 -> 1.375854159 | AF12: ='4'!AF12/6205 -> 0 | BB12: ='4'!BB12/6205 -> 0 | BC12: ='4'!BC12/6205 -> 0.538835133 | BD12: ='4'!BD12/6205 -> 0 | BE12: ='4'!BE12/6205 -> 0 | BL12: =BG12 -> 0 | BM12: =BH12 -> 0 | BN12: 0 | BO12: 0 | BQ12: =BL12 -> 0 | BR12: =BM12 -> 0 | BS12: 0 | BT12: 0 | BV12: =BQ12 -> 0 | BW12: =BR12 -> 0 | BX12: 0 | BY12: 0 | CA12: =BV12 -> 0 | CB12: =BW12 -> 0 | CC12: 0 | CD12: 0
B13: СН1 | D13: ='4'!D13/6205 -> 0 | E13: ='4'!E13/6205 -> 0 | F13: ='4'!F13/6205 -> 6.038334311 | G13: ='4'!G13/6205 -> 0 | I13: ='4'!I13/6205 -> 0 | J13: ='4'!J13/6205 -> 0 | K13: ='4'!K13/6205 -> 6.300763796 | L13: ='4'!L13/6205 -> 0 | N13: ='4'!N13/6205 -> 0 | O13: ='4'!O13/6205 -> 0 | P13: ='4'!P13/6205 -> 13.51803811 | Q13: ='4'!Q13/6205 -> 0 | S13: ='4'!S13/6205 -> 0 | T13: ='4'!T13/6205 -> 0 | U13: ='4'!U13/6205 -> 7.329869355 | V13: ='4'!V13/6205 -> 0 | X13: ='4'!X13/6205 -> 0 | Y13: ='4'!Y13/6205 -> 0 | Z13: ='4'!Z13/6205 -> 11.02193747 | AA13: ='4'!AA13/6205 -> 0 | AC13: ='4'!AC13/6205 -> 0 | AD13: ='4'!AD13/6205 -> 0 | AE13: ='4'!AE13/6205 -> 7.707324369 | AF13: ='4'!AF13/6205 -> 0 | BB13: ='4'!BB13/6205 -> 0 | BC13: ='4'!BC13/6205 -> 0 | BD13: ='4'!BD13/6205 -> 0.753766801 | BE13: ='4'!BE13/6205 -> 0 | BL13: =BG13 -> 0 | BM13: 0 | BN13: 0 | BO13: 0 | BQ13: =BL13 -> 0 | BR13: 0 | BS13: 0 | BT13: 0 | BV13: =BQ13 -> 0 | BW13: 0 | BX13: 0 | BY13: 0 | CA13: =BV13 -> 0 | CB13: 0 | CC13: 0 | CD13: 0
B14: СН2 | D14: ='4'!D14/6205 -> 0 | E14: ='4'!E14/6205 -> 0 | F14: ='4'!F14/6205 -> 0 | G14: ='4'!G14/6205 -> 0.1335144239 | I14: ='4'!I14/6205 -> 0 | J14: ='4'!J14/6205 -> 0 | K14: ='4'!K14/6205 -> 0 | L14: ='4'!L14/6205 -> 0.1855088601 | N14: ='4'!N14/6205 -> 0 | O14: ='4'!O14/6205 -> 0 | P14: ='4'!P14/6205 -> 0 | Q14: ='4'!Q14/6205 -> 0.1212412571 | S14: ='4'!S14/6205 -> 0 | T14: ='4'!T14/6205 -> 0 | U14: ='4'!U14/6205 -> 0 | V14: ='4'!V14/6205 -> 0.1613219842 | X14: ='4'!X14/6205 -> 0 | Y14: ='4'!Y14/6205 -> 0 | Z14: ='4'!Z14/6205 -> 0 | AA14: ='4'!AA14/6205 -> 0.1399677679 | AC14: ='4'!AC14/6205 -> 0 | AD14: ='4'!AD14/6205 -> 0 | AE14: ='4'!AE14/6205 -> 0 | AF14: ='4'!AF14/6205 -> 0.1219983884 | BB14: ='4'!BB14/6205 -> 0 | BC14: ='4'!BC14/6205 -> 0 | BD14: ='4'!BD14/6205 -> 0 | BE14: ='4'!BE14/6205 -> 0.3770091157 | BL14: 0 | BM14: 0 | BN14: 0 | BO14: 0 | BQ14: 0 | BR14: 0 | BS14: 0 | BT14: 0 | BV14: 0 | BW14: 0 | BX14: 0 | BY14: 0 | CA14: 0 | CB14: 0 | CC14: 0 | CD14: 0
A15: 1.2. | B15: от электростанций ПЭ | C15: =SUM(D15:G15) -> 46.82288477 | D15: ='4'!D15/6205 -> 0 | E15: ='4'!E15/6205 -> 5.225185818 | F15: ='4'!F15/6205 -> 41.59769895 | G15: ='4'!G15/6205 -> 0 | H15: =SUM(I15:L15) -> 47.2023913 | I15: ='4'!I15/6205 -> 0 | J15: ='4'!J15/6205 -> 6.354562772 | K15: ='4'!K15/6205 -> 40.84782853 | L15: ='4'!L15/6205 -> 0 | M15: =SUM(N15:Q15) -> 40.85801773 | N15: ='4'!N15/6205 -> 0 | O15: ='4'!O15/6205 -> 6.860878969 | P15: ='4'!P15/6205 -> 33.99713876 | Q15: ='4'!Q15/6205 -> 0 | R15: =SUM(S15:V15) -> 53.85479517 | S15: ='4'!S15/6205 -> 0 | T15: ='4'!T15/6205 -> 6.354562772 | U15: ='4'!U15/6205 -> 47.50023239 | V15: ='4'!V15/6205 -> 0 | W15: =SUM(X15:AA15) -> 42.76390008 | X15: ='4'!X15/6205 -> 0 | Y15: ='4'!Y15/6205 -> 6.860878969 | Z15: ='4'!Z15/6205 -> 35.90302111 | AA15: ='4'!AA15/6205 -> 0 | AB15: =SUM(AC15:AF15) -> 51.03352135 | AC15: ='4'!AC15/6205 -> 0 | AD15: ='4'!AD15/6205 -> 6.860878969 | AE15: ='4'!AE15/6205 -> 44.17264239 | AF15: ='4'!AF15/6205 -> 0 | AG15: =SUM(AH15:AK15) -> 0 | AL15: =SUM(AM15:AP15) -> 0 | AQ15: =SUM(AR15:AU15) -> 0 | AV15: =SUM(AW15:AZ15) -> 0 | BA15: =SUM(BB15:BE15) -> 53.85479517 | BB15: ='4'!BB15/6205 -> 0 | BC15: ='4'!BC15/6205 -> 0 | BD15: ='4'!BD15/6205 -> 53.85479517 | BE15: ='4'!BE15/6205 -> 0 | BF15: =SUM(BG15:BJ15) -> 0 | BK15: =SUM(BL15:BO15) -> 0 | BL15: 0 | BM15: 0 | BN15: 0 | BO15: 0 | BP15: =SUM(BQ15:BT15) -> 0 | BQ15: 0 | BR15: 0 | BS15: 0 | BT15: 0 | BU15: =SUM(BV15:BY15) -> 0 | BV15: 0 | BW15: 0 | BX15: 0 | BY15: 0 | BZ15: =SUM(CA15:CD15) -> 0 | CA15: 0 | CB15: 0 | CC15: 0 | CD15: 0
A16: 1.3. | B16: от других поставщиков (в т.ч. с оптового рынка) | C16: =SUM(D16:G16) -> 0 | D16: ='4'!D16/6205 -> 0 | E16: ='4'!E16/6205 -> 0 | F16: ='4'!F16/6205 -> 0 | G16: ='4'!G16/6205 -> 0 | H16: =SUM(I16:L16) -> 0 | I16: ='4'!I16/6205 -> 0 | J16: ='4'!J16/6205 -> 0 | K16: ='4'!K16/6205 -> 0 | L16: ='4'!L16/6205 -> 0 | M16: =SUM(N16:Q16) -> 0 | N16: ='4'!N16/6205 -> 0 | O16: ='4'!O16/6205 -> 0 | P16: ='4'!P16/6205 -> 0 | Q16: ='4'!Q16/6205 -> 0 | R16: =SUM(S16:V16) -> 0 | S16: ='4'!S16/6205 -> 0 | T16: ='4'!T16/6205 -> 0 | U16: ='4'!U16/6205 -> 0 | V16: ='4'!V16/6205 -> 0 | W16: =SUM(X16:AA16) -> 0 | X16: ='4'!X16/6205 -> 0 | Y16: ='4'!Y16/6205 -> 0 | Z16: ='4'!Z16/6205 -> 0 | AA16: ='4'!AA16/6205 -> 0 | AB16: =SUM(AC16:AF16) -> 0 | AC16: ='4'!AC16/6205 -> 0 | AD16: ='4'!AD16/6205 -> 0 | AE16: ='4'!AE16/6205 -> 0 | AF16: ='4'!AF16/6205 -> 0 | AG16: =SUM(AH16:AK16) -> 0 | AL16: =SUM(AM16:AP16) -> 0 | AQ16: =SUM(AR16:AU16) -> 0 | AV16: =SUM(AW16:AZ16) -> 0 | BA16: =SUM(BB16:BE16) -> 0 | BB16: ='4'!BB16/6205 -> 0 | BC16: ='4'!BC16/6205 -> 0 | BD16: ='4'!BD16/6205 -> 0 | BE16: ='4'!BE16/6205 -> 0 | BF16: =SUM(BG16:BJ16) -> 0 | BK16: =SUM(BL16:BO16) -> 0 | BL16: 0 | BM16: 0 | BN16: 0 | BO16: 0 | BP16: =SUM(BQ16:BT16) -> 0 | BQ16: 0 | BR16: 0 | BS16: 0 | BT16: 0 | BU16: =SUM(BV16:BY16) -> 0 | BV16: 0 | BW16: 0 | BX16: 0 | BY16: 0 | BZ16: =SUM(CA16:CD16) -> 0 | CA16: 0 | CB16: 0 | CC16: 0 | CD16: 0
A17: 1.4. | B17: от других организаций | C17: =SUM(D17:G17) -> 4.950277357 | D17: ='4'!D17/6205 -> 3.466620306 | E17: ='4'!E17/6205 -> 1.256649476 | F17: ='4'!F17/6205 -> 0.2270075745 | G17: ='4'!G17/6205 -> 0 | H17: =SUM(I17:L17) -> 5.913090411 | I17: ='4'!I17/6205 -> 5.823175665 | J17: ='4'!J17/6205 -> 0.08991474617 | K17: ='4'!K17/6205 -> 0 | L17: ='4'!L17/6205 -> 0 | M17: =SUM(N17:Q17) -> 12.09849799 | N17: ='4'!N17/6205 -> 4.811341499 | O17: ='4'!O17/6205 -> 7.08459033 | P17: ='4'!P17/6205 -> 0.2025661563 | Q17: ='4'!Q17/6205 -> 0 | R17: =SUM(S17:V17) -> 1.462425624 | S17: ='4'!S17/6205 -> 0.784391942 | T17: ='4'!T17/6205 -> 0.451026108 | U17: ='4'!U17/6205 -> 0.2270075745 | V17: ='4'!V17/6205 -> 0 | W17: =SUM(X17:AA17) -> 9.539081386 | X17: ='4'!X17/6205 -> 4.811341499 | Y17: ='4'!Y17/6205 -> 4.525173731 | Z17: ='4'!Z17/6205 -> 0.2025661563 | AA17: ='4'!AA17/6205 -> 0 | AB17: =SUM(AC17:AF17) -> 3.276880419 | AC17: ='4'!AC17/6205 -> 1.404936342 | AD17: ='4'!AD17/6205 -> 1.235989686 | AE17: ='4'!AE17/6205 -> 0.6359543916 | AF17: ='4'!AF17/6205 -> 0 | AG17: =SUM(AH17:AK17) -> 0 | AL17: =SUM(AM17:AP17) -> 0 | AQ17: =SUM(AR17:AU17) -> 0 | AV17: =SUM(AW17:AZ17) -> 0 | BA17: =SUM(BB17:BE17) -> 1.462425624 | BB17: ='4'!BB17/6205 -> 0.784391942 | BC17: ='4'!BC17/6205 -> 0.451026108 | BD17: ='4'!BD17/6205 -> 0.2270075745 | BE17: ='4'!BE17/6205 -> 0 | BF17: =SUM(BG17:BJ17) -> 0 | BK17: =SUM(BL17:BO17) -> 0 | BL17: 0 | BM17: 0 | BN17: 0 | BO17: 0 | BP17: =SUM(BQ17:BT17) -> 0 | BQ17: 0 | BR17: 0 | BS17: 0 | BT17: 0 | BU17: =SUM(BV17:BY17) -> 0 | BV17: 0 | BW17: 0 | BX17: 0 | BY17: 0 | BZ17: =SUM(CA17:CD17) -> 0 | CA17: 0 | CB17: 0 | CC17: 0 | CD17: 0
A18: 2. | B18: Потери в сети | C18: =SUM(D18:G18) -> 2.451886382 | D18: ='4'!D18/6205 -> 0.1440622885 | E18: ='4'!E18/6205 -> 0.3786951813 | F18: ='4'!F18/6205 -> 1.929128912 | G18: ='4'!G18/6205 -> 0 | H18: =SUM(I18:L18) -> 1.924655626 | I18: ='4'!I18/6205 -> 0.173444572 | J18: ='4'!J18/6205 -> 0.09603088545 | K18: ='4'!K18/6205 -> 1.647741273 | L18: ='4'!L18/6205 -> 0.007438895745 | M18: =SUM(N18:Q18) -> 1.9246556 | N18: ='4'!N18/6205 -> 0.1632197905 | O18: ='4'!O18/6205 -> 0.3408958098 | P18: ='4'!P18/6205 -> 1.42054 | Q18: ='4'!Q18/6205 -> 0 | R18: =SUM(S18:V18) -> 2.347492597 | S18: ='4'!S18/6205 -> 0.0162369132 | T18: ='4'!T18/6205 -> 0.2438745539 | U18: ='4'!U18/6205 -> 2.075653021 | V18: ='4'!V18/6205 -> 0.01172810825 | W18: =SUM(X18:AA18) -> 2.199783239 | X18: ='4'!X18/6205 -> 0.245556809 | Y18: ='4'!Y18/6205 -> 0.2360946011 | Z18: ='4'!Z18/6205 -> 1.709335697 | AA18: ='4'!AA18/6205 -> 0.008796132151 | AB18: =SUM(AC18:AF18) -> 2.070539345 | AC18: ='4'!AC18/6205 -> 0.02908218227 | AD18: ='4'!AD18/6205 -> 0.2615236573 | AE18: ='4'!AE18/6205 -> 1.77105357 | AF18: ='4'!AF18/6205 -> 0.008879935536 | AG18: =SUM(AH18:AK18) -> 0 | AL18: =SUM(AM18:AP18) -> 0 | AQ18: =SUM(AR18:AU18) -> 0 | AV18: =SUM(AW18:AZ18) -> 0 | BA18: =SUM(BB18:BE18) -> 2.128873489 | BB18: ='4'!BB18/6205 -> 0.245556809 | BC18: ='4'!BC18/6205 -> 0.23609444 | BD18: ='4'!BD18/6205 -> 1.638426108 | BE18: ='4'!BE18/6205 -> 0.008796132151 | BF18: =SUM(BG18:BJ18) -> 0 | BK18: =SUM(BL18:BO18) -> 0 | BL18: 0 | BM18: 0 | BN18: 0 | BO18: 0 | BP18: =SUM(BQ18:BT18) -> 0 | BQ18: 0 | BR18: 0 | BS18: 0 | BT18: 0 | BU18: =SUM(BV18:BY18) -> 0 | BV18: 0 | BW18: 0 | BX18: 0 | BY18: 0 | BZ18: =SUM(CA18:CD18) -> 0 | CA18: 0 | CB18: 0 | CC18: 0 | CD18: 0
B19: то же в % | C19: =IF(C8=0,0,C18/C8*100) -> 4.735825051 | D19: 4.155698512 | E19: 5.842406728 | F19: 3.768889991 | G19: 0 | H19: 3.623530399 | I19: 2.978522064 | J19: 1.490126782 | K19: 3.120821205 | L19: 4.009994854 | M19: =IF(M8=0,0,M18/M8*100) -> 3.634407541 | N19: 3.392396705 | O19: 2.444491487 | P19: 2.712721364 | Q19: 0 | R19: 4.243692223 | S19: 2.07 | T19: 3.22 | U19: 3.77 | V19: 7.27 | W19: 4.205846737 | X19: 5.103707752 | Y19: 2.073542143 | Z19: 3.306686525 | AA19: 6.284398388 | AB19: 3.812417654 | AC19: 2.07 | AD19: 3.229935774 | AE19: 3.286315138 | AF19: 7.278731836 | AG19: 0 | AH19: 0 | AI19: 0 | AJ19: 0 | AK19: 0 | AL19: 0 | AM19: 0 | AN19: 0 | AO19: 0 | AP19: 0 | AQ19: 0 | AR19: 0 | AS19: 0 | AT19: 0 | AU19: 0 | AV19: =IF(AV8=0,0,AV18/AV8*100) -> 0 | AW19: 0 | AX19: 0 | AY19: 0 | AZ19: 0 | BA19: 3.848482369 | BB19: 31.30537119 | BC19: 23.85126624 | BD19: 2.987889287 | BE19: 2.333135138 | BF19: 0 | BG19: 0 | BH19: 0 | BI19: 0 | BJ19: 0 | BK19: 0 | BL19: 0 | BM19: 0 | BN19: 0 | BO19: =IF(BO8=0,0,BO18/BO8*100) -> 0 | BP19: 0 | BQ19: 0 | BR19: 0 | BS19: 0 | BT19: 0 | BU19: 0 | BV19: 0 | BW19: 0 | BX19: 0 | BY19: 0 | BZ19: 0 | CA19: 0 | CB19: 0 | CC19: 0 | CD19: 0
A20: 3. | B20: Мощность на производ. и хоз. нужды | C20: =SUM(D20:G20) -> 0 | H20: =SUM(I20:L20) -> 0 | M20: =SUM(N20:Q20) -> 0 | R20: =SUM(S20:V20) -> 0 | W20: =SUM(X20:AA20) -> 0 | AB20: =SUM(AC20:AF20) -> 0 | AG20: =SUM(AH20:AK20) -> 0 | AL20: =SUM(AM20:AP20) -> 0 | AQ20: =SUM(AR20:AU20) -> 0 | AV20: =SUM(AW20:AZ20) -> 0 | BA20: =SUM(BB20:BE20) -> 0 | BF20: =SUM(BG20:BJ20) -> 0 | BK20: =SUM(BL20:BO20) -> 0 | BL20: =BG20 -> 0 | BM20: =BH20 -> 0 | BN20: =BI20 -> 0 | BO20: =BJ20 -> 0 | BP20: =SUM(BQ20:BT20) -> 0 | BQ20: =BL20 -> 0 | BR20: =BM20 -> 0 | BS20: =BN20 -> 0 | BT20: =BO20 -> 0 | BU20: =SUM(BV20:BY20) -> 0 | BV20: =BQ20 -> 0 | BW20: =BR20 -> 0 | BX20: =BS20 -> 0 | BY20: =BT20 -> 0 | BZ20: =SUM(CA20:CD20) -> 0 | CA20: =BV20 -> 0 | CB20: =BW20 -> 0 | CC20: =BX20 -> 0 | CD20: =BY20 -> 0
A21: 4. | B21: Полезный отпуск мощности | C21: =C22+C23 -> 49.32127575 | D21: =D8-D18-D20 -> 3.322558018 | E21: =E8-E18-E20 -> 6.103140113 | F21: =F8-F18-F20 -> 49.25646994 | G21: =G8-G18-G20 -> 0.1335144239 | H21: =H22+H23 -> 51.19082606 | I21: =I8-I18-I20 -> 5.649731093 | J21: =J8-J18-J20 -> 6.348446633 | K21: =K8-K18-K20 -> 51.15058214 | L21: =L8-L18-L20 -> 0.1780699644 | M21: =M22+M23 -> 51.03186011 | N21: =N8-N18-N20 -> 4.648121708 | O21: =O8-O18-O20 -> 13.60457349 | P21: =P8-P18-P20 -> 50.94532474 | Q21: =Q8-Q18-Q20 -> 0.1212412571 | R21: =R22+R23 -> 52.96972819 | S21: =S8-S18-S20 -> 0.7681550288 | T21: =T8-T18-T20 -> 7.329869355 | U21: =U8-U18-U20 -> 52.9814563 | V21: =V8-V18-V20 -> 0.1495938759 | W21: =W22+W23 -> 50.10319823 | X21: =X8-X18-X20 -> 4.56578469 | Y21: =Y8-Y18-Y20 -> 11.1499581 | Z21: =Z8-Z18-Z20 -> 49.98397373 | AA21: =AA8-AA18-AA20 -> 0.1311716358 | AB21: =AB22+AB23 -> 52.23986243 | AC21: =AC8-AC18-AC20 -> 1.375854159 | AD21: =AD8-AD18-AD20 -> 7.835344997 | AE21: =AE8-AE18-AE20 -> 52.12072173 | AF21: =AF8-AF18-AF20 -> 0.1131184529 | AG21: =AG22+AG23 -> 0 | AH21: =AH8-AH18-AH20 -> 0 | AI21: =AI8-AI18-AI20 -> 0 | AJ21: =AJ8-AJ18-AJ20 -> 0 | AK21: =AK8-AK18-AK20 -> 0 | AL21: =AL22+AL23 -> 0 | AM21: =AM8-AM18-AM20 -> 0 | AN21: =AN8-AN18-AN20 -> 0 | AO21: =AO8-AO18-AO20 -> 0 | AP21: =AP8-AP18-AP20 -> 0 | AQ21: =AQ22+AQ23 -> 0 | AR21: =AR8-AR18-AR20 -> 0 | AS21: =AS8-AS18-AS20 -> 0 | AT21: =AT8-AT18-AT20 -> 0 | AU21: =AU8-AU18-AU20 -> 0 | AV21: =AV22+AV23 -> 0 | AW21: =AW8-AW18-AW20 -> 0 | AX21: =AX8-AX18-AX20 -> 0 | AY21: =AY8-AY18-AY20 -> 0 | AZ21: =AZ8-AZ18-AZ20 -> 0 | BA21: =BA22+BA23 -> 52.96972819 | BB21: =BB8-BB18-BB20 -> 0.538835133 | BC21: =BC8-BC18-BC20 -> 0.753766801 | BD21: =BD8-BD18-BD20 -> 53.19714343 | BE21: =BE8-BE18-BE20 -> 0.3682129836 | BF21: =BF22+BF23 -> 0 | BG21: =BG8-BG18-BG20 -> 0 | BH21: =BH8-BH18-BH20 -> 0 | BI21: =BI8-BI18-BI20 -> 0 | BJ21: =BJ8-BJ18-BJ20 -> 0 | BK21: =BK22+BK23 -> 0 | BL21: =BL8-BL18-BL20 -> 0 | BM21: =BM8-BM18-BM20 -> 0 | BN21: =BN8-BN18-BN20 -> 0 | BO21: =BO8-BO18-BO20 -> 0 | BP21: =BP22+BP23 -> 0 | BQ21: =BQ8-BQ18-BQ20 -> 0 | BR21: =BR8-BR18-BR20 -> 0 | BS21: =BS8-BS18-BS20 -> 0 | BT21: =BT8-BT18-BT20 -> 0 | BU21: =BU22+BU23 -> 0 | BV21: =BV8-BV18-BV20 -> 0 | BW21: =BW8-BW18-BW20 -> 0 | BX21: =BX8-BX18-BX20 -> 0 | BY21: =BY8-BY18-BY20 -> 0 | BZ21: =BZ22+BZ23 -> 0 | CA21: =CA8-CA18-CA20 -> 0 | CB21: =CB8-CB18-CB20 -> 0 | CC21: =CC8-CC18-CC20 -> 0 | CD21: =CD8-CD18-CD20 -> 0
A22: 4.1. | B22: в т.ч. Заявленная (расчетная) мощность собств. потр. | C22: 48.23421515 | D22: ='4'!D22/6205 -> 0 | E22: ='4'!E22/6205 -> 0 | F22: ='4'!F22/6205 -> 48.23421515 | G22: ='4'!G22/6205 -> 0 | H22: 50.11380817 | I22: ='4'!I22/6205 -> 0 | J22: ='4'!J22/6205 -> 0 | K22: ='4'!K22/6205 -> 50.07948102 | L22: ='4'!L22/6205 -> 0.03432715552 | M22: =SUM(N22:Q22) -> 50.11555826 | N22: ='4'!N22/6205 -> 0 | O22: ='4'!O22/6205 -> 0 | P22: ='4'!P22/6205 -> 50.11555826 | Q22: ='4'!Q22/6205 -> 0 | R22: =SUM(S22:V22) -> 51.82436155 | S22: ='4'!S22/6205 -> 0 | T22: ='4'!T22/6205 -> 0 | U22: ='4'!U22/6205 -> 51.82436155 | V22: ='4'!V22/6205 -> 0 | W22: 49.19844158 | X22: ='4'!X22/6205 -> 0 | Y22: ='4'!Y22/6205 -> 0 | Z22: ='4'!Z22/6205 -> 49.19844158 | AA22: ='4'!AA22/6205 -> 0 | AB22: 51.35315816 | AC22: ='4'!AC22/6205 -> 0 | AD22: ='4'!AD22/6205 -> 0 | AE22: ='4'!AE22/6205 -> 51.35315816 | AF22: ='4'!AF22/6205 -> 0 | AG22: 0 | AL22: 0 | AQ22: 0 | AV22: =SUM(AW22:AZ22) -> 0 | BA22: =SUM(BB22:BE22) -> 51.82436155 | BB22: ='4'!BB22/6205 -> 0 | BC22: ='4'!BC22/6205 -> 0 | BD22: ='4'!BD22/6205 -> 51.82436155 | BE22: ='4'!BE22/6205 -> 0 | BF22: =SUM(BG22:BJ22) -> 0 | BK22: =SUM(BL22:BO22) -> 0 | BL22: =BG22 -> 0 | BM22: 0 | BN22: 0 | BO22: 0 | BP22: =SUM(BQ22:BT22) -> 0 | BQ22: =BL22 -> 0 | BR22: 0 | BS22: 0 | BT22: 0 | BU22: =SUM(BV22:BY22) -> 0 | BV22: =BQ22 -> 0 | BW22: 0 | BX22: 0 | BY22: 0 | BZ22: =SUM(CA22:CD22) -> 0 | CA22: =BV22 -> 0 | CB22: 0 | CC22: 0 | CD22: 0
A23: 4.2. | B23: Заявленная (расчетная) мощность сторонних потребителей | C23: 1.087060596 | D23: ='4'!D23/6205 -> 0 | E23: ='4'!E23/6205 -> 0.06480580177 | F23: ='4'!F23/6205 -> 0.8887403707 | G23: ='4'!G23/6205 -> 0.1335144239 | H23: 1.077017889 | I23: ='4'!I23/6205 -> 0 | J23: ='4'!J23/6205 -> 0.04768283642 | K23: ='4'!K23/6205 -> 0.8855922643 | L23: ='4'!L23/6205 -> 0.1437427881 | M23: =SUM(N23:Q23) -> 0.9163018533 | N23: ='4'!N23/6205 -> 0 | O23: ='4'!O23/6205 -> 0.0865353747 | P23: ='4'!P23/6205 -> 0.7085252216 | Q23: ='4'!Q23/6205 -> 0.1212412571 | R23: =SUM(S23:V23) -> 1.14536664 | S23: ='4'!S23/6205 -> 0 | T23: ='4'!T23/6205 -> 0 | U23: ='4'!U23/6205 -> 0.9957727639 | V23: ='4'!V23/6205 -> 0.1495938759 | W23: 0.9047566479 | X23: ='4'!X23/6205 -> 0 | Y23: ='4'!Y23/6205 -> 0.1280206285 | Z23: ='4'!Z23/6205 -> 0.6455587429 | AA23: ='4'!AA23/6205 -> 0.1311772764 | AB23: 0.8867042707 | AC23: ='4'!AC23/6205 -> 0 | AD23: ='4'!AD23/6205 -> 0.1280206285 | AE23: ='4'!AE23/6205 -> 0.6455587429 | AF23: ='4'!AF23/6205 -> 0.1131248993 | AG23: 0 | AL23: 0 | AQ23: 0 | AV23: =SUM(AW23:AZ23) -> 0 | BA23: =SUM(BB23:BE23) -> 1.14536664 | BB23: ='4'!BB23/6205 -> 0 | BC23: ='4'!BC23/6205 -> 0 | BD23: ='4'!BD23/6205 -> 0.9957727639 | BE23: ='4'!BE23/6205 -> 0.1495938759 | BF23: =SUM(BG23:BJ23) -> 0 | BK23: =SUM(BL23:BO23) -> 0 | BL23: 0 | BM23: 0 | BN23: 0 | BO23: 0 | BP23: =SUM(BQ23:BT23) -> 0 | BQ23: 0 | BR23: 0 | BS23: 0 | BT23: 0 | BU23: =SUM(BV23:BY23) -> 0 | BV23: 0 | BW23: 0 | BX23: 0 | BY23: 0 | BZ23: =SUM(CA23:CD23) -> 0 | CA23: 0 | CB23: 0 | CC23: 0 | CD23: 0
B24: в том числе: сальдо переток (транзит) в другие организации | C24: 48.16940935 | D24: ='4'!D24/6205 -> 0 | E24: ='4'!E24/6205 -> 0 | F24: ='4'!F24/6205 -> 48.16940935 | G24: ='4'!G24/6205 -> 0 | H24: 0 | I24: ='4'!I24/6205 -> 0 | J24: ='4'!J24/6205 -> 0 | K24: ='4'!K24/6205 -> 0 | L24: ='4'!L24/6205 -> 0 | M24: =SUM(N24:Q24) -> 0 | N24: ='4'!N24/6205 -> 0 | O24: ='4'!O24/6205 -> 0 | P24: ='4'!P24/6205 -> 0 | Q24: ='4'!Q24/6205 -> 0 | R24: =SUM(S24:V24) -> 0 | S24: ='4'!S24/6205 -> 0 | T24: ='4'!T24/6205 -> 0 | U24: ='4'!U24/6205 -> 0 | V24: ='4'!V24/6205 -> 0 | W24: 0 | X24: ='4'!X24/6205 -> 0 | Y24: ='4'!Y24/6205 -> 0 | Z24: ='4'!Z24/6205 -> 0 | AA24: ='4'!AA24/6205 -> 0 | AB24: 0 | AC24: ='4'!AC24/6205 -> 0 | AD24: ='4'!AD24/6205 -> 0 | AE24: ='4'!AE24/6205 -> 0 | AF24: ='4'!AF24/6205 -> 0 | AG24: 0 | AL24: 0 | AQ24: 0 | AV24: =SUM(AW24:AZ24) -> 0 | BA24: =SUM(BB24:BE24) -> 0 | BB24: ='4'!BB24/6205 -> 0 | BC24: ='4'!BC24/6205 -> 0 | BD24: ='4'!BD24/6205 -> 0 | BE24: ='4'!BE24/6205 -> 0 | BF24: =SUM(BG24:BJ24) -> 0 | BK24: =SUM(BL24:BO24) -> 0 | BL24: 0 | BM24: 0 | BN24: 0 | BO24: 0 | BP24: =SUM(BQ24:BT24) -> 0 | BQ24: 0 | BR24: 0 | BS24: 0 | BT24: 0 | BU24: =SUM(BV24:BY24) -> 0 | BV24: 0 | BW24: 0 | BX24: 0 | BY24: 0 | BZ24: =SUM(CA24:CD24) -> 0 | CA24: 0 | CB24: 0 | CC24: 0 | CD24: 0
A25: 4.3. | B25: сальдо переток в сопредельные регионы | C25: 0 | D25: ='4'!D25/6205 -> 0 | E25: ='4'!E25/6205 -> 0 | F25: ='4'!F25/6205 -> 0 | G25: ='4'!G25/6205 -> 0 | H25: 0 | I25: ='4'!I25/6205 -> 0 | J25: ='4'!J25/6205 -> 0 | K25: ='4'!K25/6205 -> 0 | L25: ='4'!L25/6205 -> 0 | M25: =SUM(N25:Q25) -> 0 | N25: ='4'!N25/6205 -> 0 | O25: ='4'!O25/6205 -> 0 | P25: ='4'!P25/6205 -> 0 | Q25: ='4'!Q25/6205 -> 0 | R25: =SUM(S25:V25) -> 0 | S25: ='4'!S25/6205 -> 0 | T25: ='4'!T25/6205 -> 0 | U25: ='4'!U25/6205 -> 0 | V25: ='4'!V25/6205 -> 0 | W25: 0 | X25: ='4'!X25/6205 -> 0 | Y25: ='4'!Y25/6205 -> 0 | Z25: ='4'!Z25/6205 -> 0 | AA25: ='4'!AA25/6205 -> 0 | AB25: 0 | AC25: ='4'!AC25/6205 -> 0 | AD25: ='4'!AD25/6205 -> 0 | AE25: ='4'!AE25/6205 -> 0 | AF25: ='4'!AF25/6205 -> 0 | AG25: 0 | AL25: 0 | AQ25: 0 | AV25: =SUM(AW25:AZ25) -> 0 | BA25: =SUM(BB25:BE25) -> 0 | BB25: ='4'!BB25/6205 -> 0 | BC25: ='4'!BC25/6205 -> 0 | BD25: ='4'!BD25/6205 -> 0 | BE25: ='4'!BE25/6205 -> 0 | BF25: =SUM(BG25:BJ25) -> 0 | BK25: =SUM(BL25:BO25) -> 0 | BL25: 0 | BM25: 0 | BN25: 0 | BO25: 0 | BP25: =SUM(BQ25:BT25) -> 0 | BQ25: 0 | BR25: 0 | BS25: 0 | BT25: 0 | BU25: =SUM(BV25:BY25) -> 0 | BV25: 0 | BW25: 0 | BX25: 0 | BY25: 0 | BZ25: =SUM(CA25:CD25) -> 0 | CA25: 0 | CB25: 0 | CC25: 0 | CD25: 0
A26: 5. | B26: проверка | D26: =D21-D22-D23-D25-E12-F12-G12 -> 4.440892099e-16 | E26: =E21-E22-E23-E25-F13-G13 -> 8.881784197e-16 | F26: =F21-F22-F23-F25-G14 -> 1.1379786e-15 | G26: =G21-G22-G23-G25 -> 0 | I26: =I21-I22-I23-I25-J12-K12-L12 -> -8.881784197e-16 | J26: =J21-J22-J23-J25-K13-L13 -> 0 | K26: =K21-K22-K23-K25-L14 -> -5.356826094e-15 | L26: =L21-L22-L23-L25 -> 2.080741462e-08 | N26: =N21-N22-N23-N25-O12-P12-Q12 -> 8.881784197e-16 | O26: =O21-O22-O23-O25-P13-Q13 -> 1.776356839e-15 | P26: =P21-P22-P23-P25-Q14 -> 3.080868893e-15 | Q26: =Q21-Q22-Q23-Q25 -> 0 | S26: =S21-S22-S23-S25-T12-U12-V12 -> 0 | T26: =T21-T22-T23-T25-U13-V13 -> -8.881784197e-16 | U26: =U21-U22-U23-U25-V14 -> 3.858025011e-15 | V26: =V21-V22-V23-V25 -> -1.637578961e-15 | X26: =X21-X22-X23-X25-Y12-Z12-AA12 -> 0 | Y26: =Y21-Y22-Y23-Y25-Z13-AA13 -> 1.776356839e-15 | Z26: =Z21-Z22-Z23-Z25-AA14 -> 5.640612418e-06 | AA26: =AA21-AA22-AA23-AA25 -> -5.640612409e-06 | AC26: =AC21-AC22-AC23-AC25-AD12-AE12-AF12 -> 0 | AD26: =AD21-AD22-AD23-AD25-AE13-AF13 -> 0 | AE26: =AE21-AE22-AE23-AE25-AF14 -> 6.446414191e-06 | AF26: =AF21-AF22-AF23-AF25 -> -6.446414182e-06 | AH26: =AH21-AH22-AH23-AH25-AI12-AJ12-AK12 -> 0 | AI26: =AI21-AI22-AI23-AI25-AJ13-AK13 -> 0 | AJ26: =AJ21-AJ22-AJ23-AJ25-AK14 -> 0 | AK26: =AK21-AK22-AK23-AK25 -> 0 | AM26: =AM21-AM22-AM23-AM25-AN12-AO12-AP12 -> 0 | AN26: =AN21-AN22-AN23-AN25-AO13-AP13 -> 0 | AO26: =AO21-AO22-AO23-AO25-AP14 -> 0 | AP26: =AP21-AP22-AP23-AP25 -> 0 | AR26: =AR21-AR22-AR23-AR25-AS12-AT12-AU12 -> 0 | AS26: =AS21-AS22-AS23-AS25-AT13-AU13 -> 0 | AT26: =AT21-AT22-AT23-AT25-AU14 -> 0 | AU26: =AU21-AU22-AU23-AU25 -> 0 | AW26: =AW21-AW22-AW23-AW25-AX12-AY12-AZ12 -> 0 | AX26: =AX21-AX22-AX23-AX25-AY13-AZ13 -> 0 | AY26: =AY21-AY22-AY23-AY25-AZ14 -> 0 | AZ26: =AZ21-AZ22-AZ23-AZ25 -> 0 | BB26: =BB21-BB22-BB23-BB25-BC12-BD12-BE12 -> 0 | BC26: =BC21-BC22-BC23-BC25-BD13-BE13 -> 1.110223025e-16 | BD26: =BD21-BD22-BD23-BD25-BE14 -> -9.992007222e-16 | BE26: =BE21-BE22-BE23-BE25 -> 0.2186191076 | BG26: =BG21-BG22-BG23-BG25-BH12-BI12-BJ12 -> 0 | BH26: =BH21-BH22-BH23-BH25-BI13-BJ13 -> 0 | BI26: =BI21-BI22-BI23-BI25-BJ14 -> 0 | BJ26: =BJ21-BJ22-BJ23-BJ25 -> 0 | BL26: =BL21-BL22-BL23-BL25-BM12-BN12-BO12 -> 0 | BM26: =BM21-BM22-BM23-BM25-BN13-BO13 -> 0 | BN26: =BN21-BN22-BN23-BN25-BO14 -> 0 | BO26: =BO21-BO22-BO23-BO25 -> 0 | BQ26: =BQ21-BQ22-BQ23-BQ25-BR12-BS12-BT12 -> 0 | BR26: =BR21-BR22-BR23-BR25-BS13-BT13 -> 0 | BS26: =BS21-BS22-BS23-BS25-BT14 -> 0 | BT26: =BT21-BT22-BT23-BT25 -> 0 | BV26: =BV21-BV22-BV23-BV25-BW12-BX12-BY12 -> 0 | BW26: =BW21-BW22-BW23-BW25-BX13-BY13 -> 0 | BX26: =BX21-BX22-BX23-BX25-BY14 -> 0 | BY26: =BY21-BY22-BY23-BY25 -> 0 | CA26: =CA21-CA22-CA23-CA25-CB12-CC12-CD12 -> 0 | CB26: =CB21-CB22-CB23-CB25-CC13-CD13 -> 0 | CC26: =CC21-CC22-CC23-CC25-CD14 -> 0 | CD26: =CD21-CD22-CD23-CD25 -> 0
B28: Руководитель организации | I28: К.Ю. Вергазов
B30: Должностное лицо, ответственное за составление формы | I30: О.В. Костюкова

Sheet динамика потерь
A2: Анализ основных технико-экономических показателей и определение уровня потерь
A3: =Анкета!B3 -> АО "Чепецкий механический завод"
A4: № п.п. | B4: Показатели | C4: Единица измерения | D4: 2011 год факт | E4: 2013 год факт | F4: 2014 год факт | G4: 2015 год ожидаемое | H4: 2016 год план организации
D5: =D4 -> 2011 год факт | E5: =E4 -> 2013 год факт | F5: =F4 -> 2014 год факт | G5: =G4 -> 2015 год ожидаемое | H5: =H4 -> 2016 год план организации
D6: Всего | E6: Всего | F6: Всего | G6: Всего | H6: Всего
A7: 1 | B7: 2 | C7: 3 | D7: 4 | E7: 6 | F7: 7 | G7: 8 | H7: 7
A8: 1. | B8: Поступление эл.энергии в сеть , ВСЕГО | C8: тыс. кВтч | E8: ='4'!C8 -> 321252.471 | F8: ='4'!M8 -> 328595.18 | G8: ='4'!W8 -> 324540 | H8: ='4'!AB8 -> 336996.043
A9: 1.1. | B9: для собственного потребления | C9: тыс. кВтч | D9: =D8-D10 -> 0 | E9: =E8-E10 -> 314187.8186 | F9: =F8-F10 -> 322702.8872 | G9: =G8-G10 -> 318689.8681 | H9: =H8-H10 -> 331284.2838
A10: 1.2. | B10: для сторонних потребителей | C10: тыс. кВтч | D10: =D19+D13 -> 0 | E10: =E19+E13 -> 7064.652392 | F10: =F19+F13 -> 5892.292801 | G10: =G19+G13 -> 5850.131867 | H10: =H19+H13 -> 5711.759219
A11: 2. | B11: Потери электроэнергии в сети ВСЕГО | C11: тыс. кВтч | E11: ='4'!C18 -> 15213.955 | F11: ='4'!M18 -> 11942.488 | G11: ='4'!W18 -> 13649.655 | H11: ='4'!AB18 -> 12847.69664
A12: 2.1. | B12: потери, относимые на собственное потреление | C12: тыс. кВтч | D12: =D11-D13 -> 0 | E12: =E11-E13 -> 14894.51361 | F12: =F11-F13 -> 11735.8482 | G12: =G11-G13 -> 13413.53813 | H12: =H11-H13 -> 12637.93742
A13: 2.2. | B13: потери, относимые на сторонних потребителей | C13: тыс. кВтч | E13: =(E19/E8)*E11 -> 319.4413923 | F13: =(F19/F8)*F11 -> 206.6398014 | G13: 236.1168667 | H13: 209.7592193
A14: 3. | B14: Относительные потери (п.2./п.1.) | C14: % | D14: =IF(D8=0,0,D11/D8) -> 0 | E14: 0.04735825051 | F14: 0.03634407541 | G14: 0.04205846737 | H14: =IF(H8=0,0,H11/H8) -> 0.03812417654
A15: 3.1. | B15: на собственное потреление | C15: % | D15: 0 | E15: 0.04740640065 | F15: 0.036367348 | G15: 0.04208962843 | H15: =IF(H9=0,0,H12/H9) -> 0.03814831562
A16: 3.2. | B16: на сторонних потребителей | C16: % | D16: 0 | E16: 0.04521685917 | F16: 0.03506950661 | G16: =IF(G10=0,0,G13/G10) -> 0.04036094776 | H16: =IF(H10=0,0,H13/H10) -> 0.03672410045
A17: 4. | B17: Полезный отпуск из сети | C17: тыс. кВтч | D17: =D8-D11 -> 0 | E17: 306038.516 | F17: 316652.692 | G17: 310890.345 | H17: =H8-H11 -> 324148.3464
A18: 4.1. | B18: собственное потребление | C18: тыс. кВтч | D18: 0 | E18: 299293.305 | F18: 310967.039 | G18: 305276.33 | H18: =H9-H12 -> 318646.3464
A19: 4.2. | B19: сторонним потребителям (сетевым организациям) | C19: тыс. кВтч | E19: ='4'!C23 -> 6745.211 | F19: ='4'!M23 -> 5685.653 | G19: ='4'!W23 -> 5614.015 | H19: ='4'!AB23 -> 5502
A20: 5. | B20: Потери на сторонних потребителей в соответствии с балансом ФСТ (при отсутствии информации не заполняется) | C20: тыс. кВтч
A21: 6. | B21: Потери на сторонних потребителей в соответствии с тарифным решением (величина потерь/уровень потерь) | C21: тыс. кВтч | E21: =E19/100*E22 -> 0 | F21: =F19/100*F22 -> 0 | G21: =G19/100*G22 -> 0 | H21: =H19/100*H22 -> 0
C22: %
B23: ВН | C23: % | F23: ='4'!I19/100 -> 0.02978522064 | G23: ='4'!S19/100 -> 0.0207 | H23: =+'4'!AC19/100 -> 0.0207
B24: СН1 | C24: % | F24: ='4'!J19/100 -> 0.01490126782 | G24: ='4'!T19/100 -> 0.0322 | H24: =+'4'!AD19/100 -> 0.03229935774
B25: СН2 | C25: % | F25: ='4'!K19/100 -> 0.03120821205 | G25: ='4'!U19/100 -> 0.0377 | H25: =+'4'!AE19/100 -> 0.03286315138
B26: НН | C26: % | F26: ='4'!L19/100 -> 0.04009994854 | G26: ='4'!V19/100 -> 0.0727 | H26: =+'4'!AF19/100 -> 0.07278731836
A27: 7. | B27: Норматив потерь в соответствии с приказом Минэнерго | C27: % | E27: 0.0373 | F27: 0.0362 | G27: 0.0399
B28: ВН | C28: % | I28: =IF(P2.1!K27=0,0,'4'!#REF!/P2.1!K27) -> 
B29: СН1 | C29: % | I29: =IF(P2.1!K38=0,0,'4'!#REF!/P2.1!K38) -> 
B30: СН2 | C30: % | I30: =IF(P2.1!K39=0,0,'4'!#REF!/P2.1!K39) ->  | J30: =IF(P2.1!K39=0,0,(P2.1!K39-P2.1!K37)/P2.1!K39) -> 0
B31: НН | C31: % | I31: =IF(P2.1!K44=0,0,'4'!#REF!/P2.1!K44) ->  | J31: =IF(P2.1!K44=0,0,(P2.1!K44-P2.1!K43)/P2.1!K44) -> 0
A32: 8. | B32: Плановое снижение потерь в сетях в соответствии с программой энергосбережения | C32: %
B33: Руководитель организации | G33: К.Ю.Вергазов
F34: (подпись) (Ф.И.О.)
B35: Должностное лицо, ответственное за составление формы | G35: О.В. Костюкова
F36: (подпись) (Ф.И.О.)

Sheet 15
B1: =Анкета!B3 -> АО "Чепецкий механический завод" | P1: Таблица № П1.15.
A2: Смета расходов
P3: тыс. руб.
A4: № п.п. | B4: Наименование показателя | C4: Передача электрической энергии | Q4: Прирост 2016 г.к 2015 г.(по предложению организации, %
C5: 2013 год утверждено | D5: 2013 год факт | E5: 2014 год утверждено | F5: 2014 год факт | G5: 2015 год утверждено | H5: 2015 год факт 1 квартал | I5: 2015 год ожидаемое | J5: 2016 год предложение организации | K5: 2017 год предложение организации | L5: 2018 год предложение организации | M5: 2019 год предложение организации | N5: 2020 год предложение организации | O5: 2016 год утверждено до корректировки | P5: 2016 год признано обоснованным регулирующим органом с учетом корректировки
A6: 1 | B6: =A6+1 -> 2 | C6: 3 | D6: 4 | E6: 5 | F6: 6 | G6: 7 | H6: 8 | I6: 9 | J6: 10 | K6: =J6+1 -> 11 | L6: =K6+1 -> 12 | M6: =L6+1 -> 13 | N6: =M6+1 -> 14 | O6: 11 | P6: 12 | Q6: 13
A7: 1. | B7: Сырье, основные материалы | C7: 0 | D7: 0 | Q7: =IF(ISERROR(#REF!/G7),0,#REF!/G7) -> 0
A8: 2. | B8: Вспомогательные материалы | C8: 837.295189 | D8: 937.8 | E8: 876.760833 | F8: 348.81 | G8: 1031.295 | H8: 2.05 | I8: 390 | J8: 450 | O8: 1079.77 | Q8: =IF(ISERROR(#REF!/G8),0,#REF!/G8) -> 0
A9: 2.1. | B9: из них на ремонт | C9: 0 | D9: 0 | E9: 0 | G9: 0 | Q9: =IF(ISERROR(#REF!/G9),0,#REF!/G9) -> 0
A10: 3. | B10: Работы и услуги производ. характера | C10: 5439.926715 | D10: 26812.293 | E10: 5696.33594 | F10: 26184.36 | G10: 19632.18644 | H10: 1815.39 | I10: 28045 | J10: 32251.75 | O10: 37215.62 | Q10: =IF(ISERROR(#REF!/G10),0,#REF!/G10) -> 0
A11: 3.1. | B11: из них на ремонт | C11: 5439.926715 | D11: 4029.293 | E11: 5696.33594 | F11: 6270.872 | G11: 4552.18644 | H11: 459.445 | I11: 7001 | J11: 8051 | O11: 10906.6 | Q11: =IF(ISERROR(#REF!/G11),0,#REF!/G11) -> 0
A12: 4. | B12: Топливо на технологические цели | C12: 0 | D12: 0 | E12: 0 | Q12: =IF(ISERROR(#REF!/G12),0,#REF!/G12) -> 0
A13: 5. | B13: Энергия | C13: 489.841071 | D13: 621.814 | E13: 619.923411 | F13: =F15 -> 1011.47 | G13: =G15 -> 721.873822 | H13: 261.6 | I13: 799.64 | J13: 919.5 | K13: 0 | L13: 0 | M13: 0 | N13: 0 | O13: 830.93 | Q13: =IF(ISERROR(#REF!/G13),0,#REF!/G13) -> 0
A14: 5.1. | B14: Энергия на технологические цели (покупная энергия) | Q14: =IF(ISERROR(#REF!/G14),0,#REF!/G14) -> 0
A15: 5.2. | B15: Энергия на хозяйственные нужды | C15: 489.841071 | D15: 621.814 | E15: 619.923411 | F15: 1011.47 | G15: 721.873822 | H15: 261.6 | I15: 799.64 | J15: 919.5 | O15: 830.93 | Q15: =IF(ISERROR(#REF!/G15),0,#REF!/G15) -> 0
A16: 6. | B16: Затраты на оплату труда | C16: 12342.61019 | D16: 0 | E16: 12924.37522 | F16: 241.51 | Q16: =IF(ISERROR(#REF!/G16),0,#REF!/G16) -> 0
A17: 6.1. | B17: из них на ремонт | C17: 0 | D17: 0 | E17: 0 | Q17: =IF(ISERROR(#REF!/G17),0,#REF!/G17) -> 0
A18: 7. | B18: Страховые взносы социального характера | C18: 4258.200517 | D18: 0 | E18: 3940.642005 | F18: 77.21 | Q18: =IF(ISERROR(#REF!/G18),0,#REF!/G18) -> 0
A19: 7.1. | B19: из них на ремонт | C19: 0 | D19: 0 | E19: 0 | Q19: =IF(ISERROR(#REF!/G19),0,#REF!/G19) -> 0
A20: 8. | B20: Амортизация основных фондов | C20: 16818.77829 | D20: 34018.08206 | E20: 27168.91109 | F20: 36069.19 | G20: 38855.2 | H20: 8606.22 | I20: 39088.11 | J20: 39221.44 | O20: 42395.56 | Q20: =IF(ISERROR(#REF!/G20),0,#REF!/G20) -> 0
A21: 9. | B21: Прочие затраты всего | C21: =C23+C24+C25+C26+C27+C28+C29+C32 -> 22289.26333 | D21: 7784.161 | E21: 26999.3177 | F21: 14105.13 | G21: 21164.51419 | H21: 2178.28 | I21: 8516.41 | J21: 8468.5 | K21: 0 | L21: 0 | M21: 0 | N21: 0 | O21: 15391.34 | P21: 0 | Q21: =IF(ISERROR(#REF!/G21),0,#REF!/G21) -> 0
B22: в том числе:
A23: 9.1. | B23: Целевые средства на НИОКР | Q23: =IF(ISERROR(#REF!/G23),0,#REF!/G23) -> 0
A24: 9.2. | B24: Средства на страхование | D24: 0 | F24: 1098.85 | G24: 1618.77296 | H24: 290.1 | I24: 1191.69 | J24: 1370.5 | O24: 1774.51 | Q24: =IF(ISERROR(#REF!/G24),0,#REF!/G24) -> 0
A25: 9.3. | B25: Плата за предельно допустимые выбросы (сбросы) | Q25: =IF(ISERROR(#REF!/G25),0,#REF!/G25) -> 0
A26: 9.4. | B26: Услуги ФСК | Q26: =IF(ISERROR(#REF!/G26),0,#REF!/G26) -> 0
A27: 9.5. | B27: Отчисления в ремонтный фонд (в случае его формирования) | Q27: =IF(ISERROR(#REF!/G27),0,#REF!/G27) -> 0
A28: 9.6. | B28: Водный налог (ГЭС) | H28: 0 | I28: 0 | J28: 0 | K28: 0 | L28: 0 | M28: 0 | N28: 0
A29: 9.7. | B29: Непроизводственные расходы (налоги и другие обязательные платежи и сборы) | C29: 5986.290101 | D29: 0 | E29: 3165.76176 | F29: =F31 -> 6739.37 | G29: =G31 -> 6624.28 | H29: 1888.18 | I29: 7324.72 | J29: 7098 | K29: 0 | L29: 0 | M29: 0 | N29: 0 | O29: 6624.28 | Q29: =IF(ISERROR(#REF!/G29),0,#REF!/G29) -> 0
A30: 9.7.1. | B30: Налог на землю | C30: 7.1128 | E30: 0 | Q30: =IF(ISERROR(#REF!/G30),0,#REF!/G30) -> 0
A31: 9.7.2. | B31: Налог на имущество | F31: 6739.37 | G31: 6624.28 | H31: 1888.18 | I31: 7324.72 | J31: 7098 | O31: 6624.28 | Q31: =IF(ISERROR(#REF!/G31),0,#REF!/G31) -> 0
A32: 9.8. | B32: Другие затраты, относимые на себестоимость продукции, всего | C32: =SUM(C34:C37) -> 16302.97323 | D32: 7784.161 | E32: 23833.55594 | F32: 6266.91 | G32: 12921.46124 | H32: 0 | I32: 0 | J32: 0 | K32: 0 | L32: 0 | M32: 0 | N32: 0 | O32: 6992.55 | P32: 0 | Q32: =IF(ISERROR(#REF!/G32),0,#REF!/G32) -> 0
B33: в том числе:
B34: Арендная плата | C34: 8048.031 | D34: 7784.161 | E34: 6264.271 | F34: 6266.91 | G34: 6148.168604 | O34: 6992.55 | Q34: =IF(ISERROR(#REF!/G34),0,#REF!/G34) -> 0
B35: Прочие другие затраты | C35: 8254.942234 | E35: 17569.28494 | G35: 6773.292631 | Q35: =IF(ISERROR(#REF!/G35),0,#REF!/G35) -> 0
B36: Расходы на содержание бесхозяйных сетей
Q37: =IF(ISERROR(#REF!/G37),0,#REF!/G37) -> 0
A38: 10. | B38: Итого затрат | C38: =C8+C10+C12+C13+C14+C16+C18+C20+C21 -> 62475.91531 | D38: =D8+D10+D12+D13+D14+D16+D18+D20+D21 -> 70174.15006 | E38: 78226.26619 | F38: 78037.68 | G38: 81405.06946 | H38: 12863.54 | I38: 76839.16 | J38: 81311.19 | K38: 0 | L38: 0 | M38: 0 | N38: 0 | O38: 96913.22 | P38: 0 | Q38: =IF(ISERROR(#REF!/G38),0,#REF!/G38) -> 0
A39: 10.1. | B39: из них на ремонт | C39: =C9+C11+C17+C19 -> 5439.926715 | D39: =D9+D11+D17+D19 -> 4029.293 | E39: 5696.33594 | F39: 6270.872 | G39: 4552.18644 | H39: 459.445 | I39: 7001 | J39: 8051 | K39: 0 | L39: 0 | M39: 0 | N39: 0 | O39: 10906.6 | P39: 0 | Q39: =IF(ISERROR(#REF!/G39),0,#REF!/G39) -> 0
A40: 11. | B40: Недополученный по независящим причинам доход | Q40: =IF(ISERROR(#REF!/G40),0,#REF!/G40) -> 0
A41: 12. | B41: Избыток средств, полученный в предыдущем периоде регулирования | Q41: =IF(ISERROR(#REF!/G41),0,#REF!/G41) -> 0
A42: 13. | B42: Всего себестоимость товарной продукции | C42: =C38+C40-C41 -> 62475.91531 | D42: =D38+D40-D41 -> 70174.15006 | E42: 78226.26619 | F42: 78037.68 | G42: 81405.06946 | H42: 12863.54 | I42: 76839.16 | J42: 81311.19 | K42: 0 | L42: 0 | M42: 0 | N42: 0 | O42: 96913.22 | P42: 0 | Q42: =IF(ISERROR(#REF!/G42),0,#REF!/G42) -> 0
B45: Руководитель организации | J45: (подпись) (Ф.И.О.) | O45: К. Ю.Вергазов
B47: Должностное лицо, ответственное за составление формы | J47: (подпись) (Ф.И.О.) | O47: О. В. Костюкова

Sheet 16
B1: =Анкета!B3 -> АО "Чепецкий механический завод" | E1: Таблица № П1.16.
A2: Затраты на оплату труда
A3: № п.п. | B3: Показатели | C3: Единица измере-ния | D3: 2013 | F3: 2014 | H3: 2015 | J3: 2016 (предложение организации) | K3: 2016 (признано обоснованным регулирующим органом) | L3: ="Темп роста к " & 2015 & ", %" -> Темп роста к 2015, % | N3: ="Темп роста к " & 2014 & ", %" -> Темп роста к 2014, %
D5: План (утв. органами регулиро-вания) | E5: Факт | F5: План (утв. органами регулиро-вания) | G5: Факт | H5: План (утв. органами регулиро-вания) | I5: Ожида-емое | L5: План | M5: Факт | N5: План | O5: Факт
A6: 1. | B6: ЧИСЛЕННОСТЬ
A7: 1.1. | B7: Нормативная численность | C7: чел. | D7: 0 | E7: 0 | F7: 0 | G7: 0 | L7: =IF(H7=0,0,(K7/H7*100)) -> 0 | M7: =IF(I7=0,0,(K7/I7*100)) -> 0 | N7: =IF(D7=0,0,(K7/D7*100)) -> 0 | O7: =IF(E7=0,0,(K7/E7*100)) -> 0
L8: =IF(H8=0,0,(K8/H8*100)) -> 0 | M8: =IF(I8=0,0,(K8/I8*100)) -> 0
L9: =IF(H9=0,0,(K9/H9*100)) -> 0 | M9: 0
L10: =IF(H10=0,0,(K10/H10*100)) -> 0 | M10: 0
A11: 1.2. | B11: Фактическая численность | C11: чел. | L11: =IF(H11=0,0,(K11/H11*100)) -> 0 | M11: 0 | N11: =IF(D11=0,0,(K11/D11*100)) -> 0 | O11: =IF(E11=0,0,(K11/E11*100)) -> 0
M12: 0
M13: 0
A14: 1.3. | B14: Численность, принятая для расчета | C14: чел. | L14: =IF(H14=0,0,(K14/H14*100)) -> 0 | M14: 0 | N14: =IF(D14=0,0,(K14/D14*100)) -> 0 | O14: =IF(E14=0,0,(K14/E14*100)) -> 0
A15: 2. | B15: СРЕДНЯЯ ЗАРПЛАТА
A16: 2.1. | B16: Тарифная ставка рабочего 1-го разряда | C16: руб. | L16: =IF(H16=0,0,(K16/H16*100)) -> 0 | M16: 0 | N16: =IF(D16=0,0,(K16/D16*100)) -> 0 | O16: =IF(E16=0,0,(K16/E16*100)) -> 0
A17: 2.2. | B17: Средняя ступень оплаты труда | L17: 0 | M17: 0 | N17: =IF(D17=0,0,(K17/D17*100)) -> 0 | O17: =IF(E17=0,0,(K17/E17*100)) -> 0
A18: 2.3. | B18: Тарифный коэффициент, соответствующий ступени по оплате труда | L18: 0 | M18: 0 | N18: =IF(D18=0,0,(K18/D18*100)) -> 0 | O18: =IF(E18=0,0,(K18/E18*100)) -> 0
A19: 2.4. | B19: Среднемесячная тарифная ставка ППП | C19: руб. | D19: =D16*D18 -> 0 | E19: 0 | F19: 0 | G19: 0 | J19: 0 | K19: 0 | L19: 0 | M19: 0 | N19: =IF(D19=0,0,(K19/D19*100)) -> 0 | O19: =IF(E19=0,0,(K19/E19*100)) -> 0
A20: 2.5. | B20: Выплаты, связанные с режимом работы, с условиями труда 1 работника:
B21: - процент выплаты | C21: % | L21: 0 | M21: 0 | N21: =IF(D21=0,0,(K21/D21*100)) -> 0 | O21: =IF(E21=0,0,(K21/E21*100)) -> 0
B22: - сумма выплат | C22: руб. | D22: =D19*D21 / 100 -> 0 | E22: 0 | F22: 0 | G22: 0 | J22: 0 | K22: 0 | L22: 0 | M22: 0 | N22: =IF(D22=0,0,(K22/D22*100)) -> 0 | O22: =IF(E22=0,0,(K22/E22*100)) -> 0
A23: 2.6. | B23: Текущее премирование:
B24: - процент выплаты | C24: % | L24: 0 | M24: 0 | N24: =IF(D24=0,0,(K24/D24*100)) -> 0 | O24: =IF(E24=0,0,(K24/E24*100)) -> 0
B25: - сумма выплат | C25: руб. | D25: =(D19+D22)*D24 / 100 -> 0 | E25: 0 | F25: 0 | G25: 0 | J25: 0 | K25: 0 | L25: 0 | M25: 0 | N25: =IF(D25=0,0,(K25/D25*100)) -> 0 | O25: =IF(E25=0,0,(K25/E25*100)) -> 0
A26: 2.7. | B26: Вознаграждение за выслугу лет:
B27: - процент выплаты | C27: % | L27: 0 | M27: 0 | N27: =IF(D27=0,0,(K27/D27*100)) -> 0 | O27: =IF(E27=0,0,(K27/E27*100)) -> 0
B28: - сумма выплат | C28: руб. | D28: =D19*D27 / 100 -> 0 | E28: 0 | F28: 0 | G28: 0 | J28: 0 | K28: 0 | L28: 0 | M28: 0 | N28: =IF(D28=0,0,(K28/D28*100)) -> 0 | O28: =IF(E28=0,0,(K28/E28*100)) -> 0
A29: 2.8. | B29: Выплаты по итогам года:
B30: - процент выплаты | C30: % | L30: 0 | M30: 0 | N30: =IF(D30=0,0,(K30/D30*100)) -> 0 | O30: =IF(E30=0,0,(K30/E30*100)) -> 0
B31: - сумма выплат | C31: руб. | D31: =(D19*D30 / 100) -> 0 | E31: 0 | F31: 0 | G31: 0 | J31: 0 | K31: 0 | L31: 0 | M31: 0 | N31: =IF(D31=0,0,(K31/D31*100)) -> 0 | O31: =IF(E31=0,0,(K31/E31*100)) -> 0
A32: 2.9. | B32: Выплаты <______________>:
B33: - процент выплаты | C33: % | L33: 0 | M33: 0 | N33: =IF(D33=0,0,(K33/D33*100)) -> 0 | O33: =IF(E33=0,0,(K33/E33*100)) -> 0
B34: - сумма выплат | C34: руб. | D34: =(D19*D33 / 100) -> 0 | E34: 0 | F34: 0 | G34: 0 | J34: 0 | K34: 0 | L34: 0 | M34: 0 | N34: =IF(D34=0,0,(K34/D34*100)) -> 0 | O34: =IF(E34=0,0,(K34/E34*100)) -> 0
A35: 2.10. | B35: Выплаты <______________>:
B36: - процент выплаты | C36: % | L36: 0 | M36: 0 | N36: =IF(D36=0,0,(K36/D36*100)) -> 0 | O36: =IF(E36=0,0,(K36/E36*100)) -> 0
B37: - сумма выплат | C37: руб. | D37: =(D19*D36 / 100) -> 0 | E37: 0 | F37: 0 | G37: 0 | J37: 0 | K37: 0 | L37: 0 | M37: 0 | N37: =IF(D37=0,0,(K37/D37*100)) -> 0 | O37: =IF(E37=0,0,(K37/E37*100)) -> 0
A38: 2.11. | B38: Выплаты по районному коэффициенту и северные надбавки:
B39: - процент выплаты | C39: % | L39: 0 | M39: 0 | N39: =IF(D39=0,0,(K39/D39*100)) -> 0 | O39: =IF(E39=0,0,(K39/E39*100)) -> 0
B40: - сумма выплат | C40: руб. | D40: =(D19+D22+D25+D28+D31)*D39 / 100 -> 0 | E40: 0 | F40: 0 | G40: 0 | J40: 0 | K40: 0 | L40: =IF(H40=0,0,(K40/H40*100)) -> 0 | M40: 0 | N40: =IF(D40=0,0,(K40/D40*100)) -> 0 | O40: =IF(E40=0,0,(K40/E40*100)) -> 0
A41: 3. | B41: ИТОГО среднемесячная оплата труда на 1 работника | C41: руб. | D41: =D19+D22+D25+D28+D31+D34+D37+D40 -> 0 | E41: =E19+E22+E25+E28+E31+E34+E37+E40 -> 0 | F41: =F19+F22+F25+F28+F31+F34+F37+F40 -> 0 | G41: =G19+G22+G25+G28+G31+G34+G37+G40 -> 0 | J41: =J19+J22+J25+J28+J31+J34+J37+J40 -> 0 | K41: =F41*1.067 -> 0 | L41: =IF(H41=0,0,(K41/H41*100)) -> 0 | M41: 0 | N41: =IF(D41=0,0,(K41/D41*100)) -> 0 | O41: =IF(E41=0,0,(K41/E41*100)) -> 0
A42: 4. | B42: РАСЧЕТ ФОТ (вкл. в расходы на производство продукции (услуг))
A43: 4.1. | B43: Льготный проезд к месту отдыха | C43: тыс.руб. | L43: =IF(F43=0,0,(K43/F43*100)) -> 0 | M43: =IF(G43=0,0,(K43/G43*100)) -> 0 | N43: =IF(D43=0,0,(K43/D43*100)) -> 0 | O43: =IF(E43=0,0,(K43/E43*100)) -> 0
A44: 4.2. | B44: По постановлению N1206 от 3.11.94 | C44: тыс.руб. | L44: =IF(F44=0,0,(K44/F44*100)) -> 0 | M44: =IF(G44=0,0,(K44/G44*100)) -> 0 | N44: =IF(D44=0,0,(K44/D44*100)) -> 0 | O44: =IF(E44=0,0,(K44/E44*100)) -> 0
A45: 4.3. | B45: Прочие | C45: тыс.руб. | L45: =IF(F45=0,0,(K45/F45*100)) -> 0 | M45: =IF(G45=0,0,(K45/G45*100)) -> 0 | N45: =IF(D45=0,0,(K45/D45*100)) -> 0 | O45: =IF(E45=0,0,(K45/E45*100)) -> 0
B47: Количество месяцев в периоде регулирования
A49: 4. | B49: ИТОГО средства на оплату труда ППП | C49: тыс.руб. | D49: =D41*D14*D47/1000+D43+D44+D45 -> 0 | E49: 0 | F49: 0 | G49: 0 | J49: 0 | K49: 0 | L49: =IF(H49=0,0,(K49/H49*100)) -> 0 | M49: =IF(I49=0,0,(K49/I49*100)) -> 0 | N49: =IF(D49=0,0,(K49/D49*100)) -> 0 | O49: =IF(E49=0,0,(K49/E49*100)) -> 0
B52: Руководитель организации | I52: (подпись) (Ф.И.О.) | J52: К. Ю.Вергазов
B54: Должностное лицо, ответственное за составление формы | I54: (подпись) (Ф.И.О.) | J54: О. В. Костюкова

Sheet 17
B1: Расчет амортизационных отчислений на восстановление основных производственных фондов
A2: № п.п. | B2: Показатели | C2: Единица измерения | D2: 2014 | F2: 2015 | H2: =SUM(K6:K9,K15:K18) -> 818056.787 | M2: ="Темп роста к 2015" -> Темп роста к 2015 | O2: ="Темп роста к 2014" -> Темп роста к 2014 | Q2: 2016
H3: Всего | I3: в том числе по кварталам | Q3: План (утв. органами регулирования)
D4: План (утв. органами регулирования) | E4: Факт | F4: План (утв. органами регулирования) | G4: Ожидаемое с учетом фактического ввода и выбытия объектов по состоянию на текущую дату | I4: 1 кв. | J4: 2 кв. | K4: 3 кв. | L4: 4 кв. | M4: План | N4: Факт | O4: План | P4: Факт
A5: 1. | B5: ПЕРВОНАЧАЛЬНАЯ СТОИМОСТЬ ОСН. ФОНДОВ на начало периода | C5: тыс.руб | D5: =SUM(D6:D9,D15:D18) -> 469764.9362 | E5: 700851.42 | F5: 0 | G5: 814056.787 | H5: 816056.787 | I5: 816056.787 | J5: 818056.787 | K5: 818056.787 | L5: 818056.787 | M5: =IF(F5=0,IF(H5=0,0,100),H5/F5*100) -> 100 | N5: =IF(G5=0,IF(H5=0,0,100),H5/G5*100) -> 100.2456831 | O5: =IF(D5=0,IF(H5=0,0,100),H5/D5*100) -> 173.7159852 | P5: =IF(E5=0,IF(H5=0,0,100),H5/E5*100) -> 116.4379159
B6: Здания | C6: тыс.руб | D6: 19035.93534 | E6: 32288.26 | G6: =E6 -> 32288.26 | H6: =I6 -> 32288.26 | I6: =G6 -> 32288.26 | J6: =I6+I35-I50 -> 32288.26 | K6: 32288.26 | L6: 32288.26 | M6: 100 | N6: 100 | O6: =IF(D6=0,IF(H6=0,0,100),H6/D6*100) -> 169.6174074 | P6: 100
B7: Сооружения | C7: тыс.руб | D7: 198057.203 | E7: 233014.76 | G7: =E7+E36 -> 264163.823 | H7: =I7 -> 264163.823 | I7: =G7 -> 264163.823 | J7: 264163.823 | K7: 264163.823 | L7: 264163.823 | M7: =IF(F7=0,IF(H7=0,0,100),H7/F7*100) -> 100 | N7: 100 | O7: 133.3775389 | P7: 113.3678497
B8: Передаточные устройства | C8: тыс.руб | D8: 0 | H8: 0 | I8: 0 | J8: 0 | K8: 0 | L8: 0 | M8: 0 | N8: 0 | O8: 0 | P8: 0
B9: Машины и оборудование | C9: тыс.руб | D9: =SUM(D10:D14) -> 189278.3996 | E9: 372153.27 | F9: 0 | G9: 454209.574 | H9: 456209.574 | I9: 456209.574 | J9: 458209.574 | K9: 458209.574 | L9: 458209.574 | M9: 100 | N9: 100.4403254 | O9: 241.0256928 | P9: 122.5864747
B10: в т.ч. - силовые машины | C10: тыс.руб | D10: 148659.546 | E10: 277278.69 | G10: =E10+E39 -> 359128.614 | H10: 361128.614 | I10: =G10+G39 -> 361128.614 | J10: =I10+I39-I54 -> 363128.614 | K10: 363128.614 | L10: 363128.614 | M10: 100 | N10: 100.5569035 | O10: 242.923259 | P10: 130.2403059
B11: - рабочие машины | C11: тыс.руб | D11: 10672.7419 | E11: 10644.67 | G11: =E11 -> 10644.67 | H11: 10644.67 | I11: =G11 -> 10644.67 | J11: 10644.67 | K11: 10644.67 | L11: 10644.67 | M11: 100 | N11: 100 | O11: 99.73697574 | P11: 100
B12: - приборы и лаборат. оборудование | C12: тыс.руб | D12: 26176.22621 | E12: 64072.19 | G12: =E12+E41 -> 64278.57 | H12: 64278.57 | I12: =G12 -> 64278.57 | J12: 64278.57 | K12: 64278.57 | L12: 64278.57 | M12: 100 | N12: 100 | O12: 245.5608745 | P12: 100.3221054
B13: - вычислительная техника | C13: тыс.руб | D13: 3480.78853 | E13: 19868.62 | G13: =E13 -> 19868.62 | H13: 19868.62 | I13: 19868.62 | J13: 19868.62 | K13: 19868.62 | L13: 19868.62 | M13: 100 | N13: 100 | O13: 570.8080175 | P13: 100
B14: - прочие машины | C14: тыс.руб | D14: 289.09697 | E14: 289.1 | G14: =E14 -> 289.1 | H14: 289.1 | I14: 289.1 | J14: 289.1 | K14: 289.1 | L14: 289.1 | M14: 100 | N14: 100 | O14: 100.0010481 | P14: 100
B15: Транспортные средства | C15: тыс.руб | D15: 16.069 | E15: 16.07 | G15: =E15 -> 16.07 | H15: 16.07 | I15: 16.07 | J15: 16.07 | K15: 16.07 | L15: 16.07 | M15: 100 | N15: 100 | O15: 100.0062232 | P15: 100
B16: Инструмент | C16: тыс.руб | D16: 0 | H16: 0 | I16: 0 | J16: 0 | K16: 0 | L16: 0 | M16: 0 | N16: 0 | O16: 0 | P16: 0
B17: Производственный инвентарь | C17: тыс.руб | D17: 31.22821 | E17: 31.23 | G17: 31.23 | H17: 31.23 | I17: 31.23 | J17: 31.23 | K17: 31.23 | L17: 31.23 | M17: 100 | N17: 100 | O17: 100.005732 | P17: 100
B18: Прочие основные производственные фонды | C18: тыс.руб | D18: 63346.101 | E18: 63347.83 | G18: 63347.83 | H18: 63347.83 | I18: 63347.83 | J18: 63347.83 | K18: 63347.83 | L18: 63347.83 | M18: 100 | N18: 100 | O18: 100.0027294 | P18: 100
A19: 1.1 | B19: в том числе результаты переоценки | C19: тыс.руб | E19: =SUM(E20:E23,E29:E32) -> 0 | G19: =SUM(G20:G23,G29:G32) -> 0 | H19: =SUM(H20:H23,H29:H32) -> 0
B20: Здания | C20: тыс.руб
B21: Сооружения | C21: тыс.руб
B22: Передаточные устройства | C22: тыс.руб
B23: Машины и оборудование | C23: тыс.руб | E23: =SUM(E24:E28) -> 0 | G23: =SUM(G24:G28) -> 0 | H23: =SUM(H24:H28) -> 0
B24: в т.ч. - силовые машины | C24: тыс.руб
B25: - рабочие машины | C25: тыс.руб
B26: - приборы и лаборат. оборудование | C26: тыс.руб
B27: - вычислительная техника | C27: тыс.руб
B28: - прочие машины | C28: тыс.руб
B29: Транспортные средства | C29: тыс.руб
B30: Инструмент | C30: тыс.руб
B31: Производственный инвентарь | C31: тыс.руб
B32: Прочие основные производственные фонды | C32: тыс.руб
A34: 2. | B34: ВВОД ОСНОВНЫХ ПРОИЗВОДСТВЕННЫХ ФОНДОВ | C34: тыс.руб | D34: =SUM(D35:D38,D44:D47) -> 55269.75726 | E34: 113205.367 | F34: 0 | G34: 2000 | H34: 2000 | I34: 2000 | J34: 0 | K34: 0 | L34: 0 | M34: =IF(F34=0,IF(H34=0,0,100),H34/F34*100) -> 100 | N34: =IF(G34=0,IF(H34=0,0,100),H34/G34*100) -> 100 | O34: =IF(D34=0,IF(H34=0,0,100),H34/D34*100) -> 3.618615495 | P34: =IF(E34=0,IF(H34=0,0,100),H34/E34*100) -> 1.76670069
B35: Здания | C35: тыс.руб | D35: 60.225 | H35: =SUM(I35:L35) -> 0 | M35: 0 | N35: 0 | O35: 0 | P35: 0
B36: Сооружения | C36: тыс.руб | E36: 31149.063 | H36: =SUM(I36:L36) -> 0 | M36: 0 | N36: 0 | O36: 0 | P36: 0
B37: Передаточные устройства | C37: тыс.руб | H37: =SUM(I37:L37) -> 0 | M37: 0 | N37: 0 | O37: 0 | P37: 0
B38: Машины и оборудование | C38: тыс.руб | D38: =SUM(D39:D43) -> 55207.8043 | E38: 82056.304 | F38: 0 | G38: 2000 | H38: 2000 | I38: 2000 | J38: 0 | K38: 0 | L38: 0 | M38: 100 | N38: 100 | O38: 3.622676224 | P38: 2.437350822
B39: в т.ч. - силовые машины | C39: тыс.руб | D39: 818.42526 | E39: 81849.924 | G39: 2000 | H39: =SUM(I39:L39) -> 2000 | I39: 2000 | M39: 100 | N39: 100 | O39: 244.3717341 | P39: 2.443496466
B40: - рабочие машины | C40: тыс.руб | D40: 0 | H40: 0 | M40: 0 | N40: 0 | O40: 0 | P40: 0
B41: - приборы и лаборат. оборудование | C41: тыс.руб | D41: 37849.222 | E41: 206.38 | H41: 0 | M41: 0 | N41: 0 | O41: 0 | P41: 0
B42: - вычислительная техника | C42: тыс.руб | D42: 16540.15704 | H42: 0 | M42: 0 | N42: 0 | O42: 0 | P42: 0
B43: - прочие машины | C43: тыс.руб | H43: 0 | M43: 0 | N43: 0 | O43: 0 | P43: 0
B44: Транспортные средства | C44: тыс.руб | H44: 0 | M44: 0 | N44: 0 | O44: 0 | P44: 0
B45: Инструмент | C45: тыс.руб | H45: 0 | M45: 0 | N45: 0 | O45: 0 | P45: 0
B46: Производственный инвентарь | C46: тыс.руб | H46: 0 | M46: 0 | N46: 0 | O46: 0 | P46: 0
B47: Прочие основные производственные фонды | C47: тыс.руб | D47: 1.72796 | H47: 0 | M47: 0 | N47: 0 | O47: 0 | P47: 0
A49: 3. | B49: ВЫБЫТИЕ ОСНОВНЫХ ПРОИЗВОДСТВЕННЫХ ФОНДОВ | C49: тыс.руб | D49: =SUM(D50:D53,D59:D62) -> 80.4442 | E49: 0 | F49: 0 | G49: 0 | H49: 0 | I49: 0 | J49: 0 | K49: 0 | L49: 0 | M49: =IF(F49=0,IF(H49=0,0,100),H49/F49*100) -> 0 | N49: =IF(G49=0,IF(H49=0,0,100),H49/G49*100) -> 0 | O49: =IF(D49=0,IF(H49=0,0,100),H49/D49*100) -> 0 | P49: =IF(E49=0,IF(H49=0,0,100),H49/E49*100) -> 0
B50: Здания | C50: тыс.руб | H50: =SUM(I50:L50) -> 0 | M50: 0 | N50: 0 | O50: 0 | P50: 0
B51: Сооружения | C51: тыс.руб | H51: =SUM(I51:L51) -> 0 | M51: 0 | N51: 0 | O51: 0 | P51: 0
B52: Передаточные устройства | C52: тыс.руб | H52: =SUM(I52:L52) -> 0 | M52: 0 | N52: 0 | O52: 0 | P52: 0
B53: Машины и оборудование | C53: тыс.руб | D53: =SUM(D54:D58) -> 80.4442 | E53: 0 | F53: 0 | G53: 0 | H53: 0 | I53: 0 | J53: 0 | K53: 0 | L53: 0 | M53: 0 | N53: 0 | O53: 0 | P53: 0
B54: в т.ч. - силовые машины | C54: тыс.руб | H54: =SUM(I54:L54) -> 0 | M54: 0 | N54: 0 | O54: 0 | P54: 0
B55: - рабочие машины | C55: тыс.руб | D55: 2.748 | H55: 0 | M55: 0 | N55: 0 | O55: 0 | P55: 0
B56: - приборы и лаборат. оборудование | C56: тыс.руб | D56: 4.821 | H56: 0 | M56: 0 | N56: 0 | O56: 0 | P56: 0
B57: - вычислительная техника | C57: тыс.руб | D57: 72.8752 | H57: 0 | M57: 0 | N57: 0 | O57: 0 | P57: 0
B58: - прочие машины | C58: тыс.руб | H58: 0 | M58: 0 | N58: 0 | O58: 0 | P58: 0
B59: Транспортные средства | C59: тыс.руб | H59: 0 | M59: 0 | N59: 0 | O59: 0 | P59: 0
B60: Инструмент | C60: тыс.руб | H60: 0 | M60: 0 | N60: 0 | O60: 0 | P60: 0
B61: Производственный инвентарь | C61: тыс.руб | H61: 0 | M61: 0 | N61: 0 | O61: 0 | P61: 0
B62: Прочие основные производственные фонды | C62: тыс.руб | H62: 0 | M62: 0 | N62: 0 | O62: 0 | P62: 0
A64: 4. | B64: СРЕДНЕГОДОВАЯ СТОИМОСТЬ ОСНОВНЫХ ПРОИЗВОДСТВЕННЫХ ФОНДОВ | C64: тыс.руб | D64: =SUM(D65:D68,D74:D77) -> 497359.5927 | E64: 757454.1035 | F64: 0 | G64: 815056.787 | H64: 817806.783 | I64: 817056.787 | J64: 818056.787 | K64: 818056.787 | L64: 818056.787 | M64: =IF(F64=0,IF(H64=0,0,100),H64/F64*100) -> 100 | N64: =IF(G64=0,IF(H64=0,0,100),H64/G64*100) -> 100.3373993 | O64: =IF(D64=0,IF(H64=0,0,100),H64/D64*100) -> 164.4296793 | P64: =IF(E64=0,IF(H64=0,0,100),H64/E64*100) -> 107.9678332
B65: Здания | C65: тыс.руб | D65: 19066.04784 | E65: 32288.26 | G65: =(G6+(G6+G35-G50))/2 -> 32288.26 | H65: =(H6/2+J6+K6+L6+(L6+L35-L50)/2)/4 -> 32288.26 | I65: =(I6+J6)/2 -> 32288.26 | J65: 32288.26 | K65: 32288.26 | L65: =(L6+L6+L35-L50)/2 -> 32288.26 | M65: 100 | N65: 100 | O65: 169.3495174 | P65: 100
B66: Сооружения | C66: тыс.руб | D66: 198057.203 | E66: =(E7+(E7+E36-E51))/2 -> 248589.2915 | G66: =(G7+(G7+G36-G51))/2 -> 264163.823 | H66: =(H7/2+J7+K7+L7+(L7+L36-L51)/2)/4 -> 264163.823 | I66: 264163.823 | J66: 264163.823 | K66: 264163.823 | L66: 264163.823 | M66: 100 | N66: 100 | O66: 133.3775389 | P66: 106.2651659
B67: Передаточные устройства | C67: тыс.руб | E67: =(E8+(E8+E37-E52))/2 -> 0 | G67: 0 | H67: =(H8/2+J8+K8+L8+(L8+L37-L52)/2)/4 -> 0 | I67: 0 | J67: 0 | K67: 0 | L67: 0 | M67: 0 | N67: 0 | O67: 0 | P67: 0
B68: Машины и оборудование | C68: тыс.руб | D68: =SUM(D69:D73) -> 216842.0797 | E68: =SUM(E69:E73) -> 413181.422 | F68: =SUM(F69:F73) -> 0 | G68: =SUM(G69:G73) -> 455209.574 | H68: =SUM(H69:H73) -> 457959.57 | I68: 457209.574 | J68: 458209.574 | K68: 458209.574 | L68: 458209.574 | M68: 100 | N68: 100.6041165 | O68: 211.1949723 | P68: 110.8374059
B69: в т.ч. - силовые машины | C69: тыс.руб | D69: 149068.7586 | E69: =(E10+(E10+E39-E54))/2 -> 318203.652 | G69: =(G10+(G10+G39-G54))/2 -> 360128.614 | H69: 362878.61 | I69: 362128.614 | J69: 363128.614 | K69: 363128.614 | L69: 363128.614 | M69: 100 | N69: 100.763615 | O69: 243.4303561 | P69: 114.0397377
B70: - рабочие машины | C70: тыс.руб | D70: 10671.3679 | E70: =(E11+(E11+E40-E55))/2 -> 10644.67 | G70: =(G11+(G11+G40-G55))/2 -> 10644.67 | H70: =(H11/2+J11+K11+L11+(L11+L40-L55)/2)/4 -> 10644.67 | I70: 10644.67 | J70: 10644.67 | K70: 10644.67 | L70: 10644.67 | M70: 100 | N70: 100 | O70: 99.74981745 | P70: 100
B71: - приборы и лаборат. оборудование | C71: тыс.руб | D71: 45098.42671 | E71: 64175.38 | G71: 64278.57 | H71: 64278.57 | I71: 64278.57 | J71: 64278.57 | K71: 64278.57 | L71: 64278.57 | M71: 100 | N71: 100 | O71: 142.5295175 | P71: 100.1607937
B72: - вычислительная техника | C72: тыс.руб | D72: 11714.42945 | E72: 19868.62 | G72: 19868.62 | H72: 19868.62 | I72: 19868.62 | J72: 19868.62 | K72: 19868.62 | L72: 19868.62 | M72: 100 | N72: 100 | O72: 169.6080896 | P72: 100
B73: - прочие машины | C73: тыс.руб | D73: 289.09697 | E73: 289.1 | G73: 289.1 | H73: 289.1 | I73: 289.1 | J73: 289.1 | K73: 289.1 | L73: 289.1 | M73: 100 | N73: 100 | O73: 100.0010481 | P73: 100
B74: Транспортные средства | C74: тыс.руб | D74: 16.069 | E74: 16.07 | G74: 16.07 | H74: 16.07 | I74: 16.07 | J74: 16.07 | K74: 16.07 | L74: 16.07 | M74: 100 | N74: 100 | O74: 100.0062232 | P74: 100
B75: Инструмент | C75: тыс.руб | D75: 0 | E75: 0 | G75: 0 | H75: 0 | I75: 0 | J75: 0 | K75: 0 | L75: 0 | M75: 0 | N75: 0 | O75: 0 | P75: 0
B76: Производственный инвентарь | C76: тыс.руб | D76: 31.22821 | E76: 31.23 | G76: 31.23 | H76: 31.23 | I76: 31.23 | J76: 31.23 | K76: 31.23 | L76: 31.23 | M76: 100 | N76: 100 | O76: 100.005732 | P76: 100
B77: Прочие основные производственные фонды | C77: тыс.руб | D77: 63346.96498 | E77: 63347.83 | G77: 63347.83 | H77: 63347.83 | I77: 63347.83 | J77: 63347.83 | K77: 63347.83 | L77: 63347.83 | M77: 100 | N77: 100 | O77: 100.0013655 | P77: 100
A79: 5.1 | B79: МАКСИМАЛЬНЫЙ СРОК ИСПОЛЬЗОВАНИЯ (установленными Классификацией основных средств, включаемых в амортизационные группы, утвержденной постановлением Правительства Российской Федерации от 1 января 2002 г. N 1)
B80: Здания | C80: год
B81: Сооружения | C81: год
B82: Передаточные устройства | C82: год
B83: Машины и оборудование | C83: год
B84: в т.ч. - силовые машины | C84: год
B85: - рабочие машины | C85: год
B86: - приборы и лаборат. оборудование | C86: год
B87: - вычислительная техника | C87: год
B88: - прочие машины | C88: год
B89: Транспортные средства | C89: год
B90: Инструмент | C90: год
B91: Производственный инвентарь | C91: год
B92: Прочие основные производственные фонды | C92: год
A93: 5.2 | B93: НОРМА АМОРТИЗАЦИОННЫХ ОТЧИСЛЕНИЙ
B94: Здания | C94: % | D94: 1.937362 | E94: 2.372379 | G94: =E94 -> 2.372379 | H94: =G94 -> 2.372379 | I94: =G94/4 -> 0.59309475 | J94: =H94/4 -> 0.59309475 | K94: =J94 -> 0.59309475 | L94: =K94 -> 0.59309475 | M94: =IF(F94=0,IF(H94=0,0,100),H94/F94*100) -> 100 | N94: =IF(G94=0,IF(H94=0,0,100),H94/G94*100) -> 100 | O94: =IF(D94=0,IF(H94=0,0,100),H94/D94*100) -> 122.4540896 | P94: =IF(E94=0,IF(H94=0,0,100),H94/E94*100) -> 100
B95: Сооружения | C95: % | D95: 2.940994 | E95: 2.764213 | G95: 2.89603 | H95: =G95 -> 2.89603 | I95: =H95/4 -> 0.7240075 | J95: =I95 -> 0.7240075 | K95: =J95 -> 0.7240075 | L95: 0.7240075 | M95: 100 | N95: 100 | O95: 98.47112915 | P95: 104.7686991
B96: Передаточные устройства | C96: % | D96: 0 | E96: =D96 -> 0 | M96: 0 | N96: 0 | O96: 0 | P96: 0
B97: Машины и оборудование | C97: % | D97: 8.716102 | E97: 8.716102 | M97: 0 | N97: 0 | O97: 0 | P97: 0
B98: в т.ч. - силовые машины | C98: % | D98: 5.212713 | E98: 3.57678 | G98: 3.778615 | H98: 3.78672168 | I98: =H98/4 -> 0.94668042 | J98: =I98 -> 0.94668042 | K98: =J98 -> 0.94668042 | L98: 0.94668042 | M98: 100 | N98: 100.214541 | O98: 72.64397023 | P98: 105.8695721
B99: - рабочие машины | C99: % | D99: 6.49605 | E99: 6.512367 | G99: =E99 -> 6.512367 | H99: =G99 -> 6.512367 | I99: =H99/4 -> 1.62809175 | J99: =I99 -> 1.62809175 | K99: =J99 -> 1.62809175 | L99: 1.62809175 | M99: 100 | N99: 100 | O99: 100.2511834 | P99: 100
B100: - приборы и лаборат. оборудование | C100: % | D100: 15.248722 | E100: 16.35515 | G100: 16.3503 | H100: =G100 -> 16.3503 | I100: =H100/4 -> 4.087575 | J100: =I100 -> 4.087575 | K100: =J100 -> 4.087575 | L100: 4.087575 | M100: 100 | N100: 100 | O100: 107.2240677 | P100: 99.97034573
B101: - вычислительная техника | C101: % | D101: 30.145308 | E101: 29.498828 | G101: =E101 -> 29.498828 | H101: 29.498828 | I101: 7.374707 | J101: =I101 -> 7.374707 | K101: =J101 -> 7.374707 | L101: 7.374707 | M101: 100 | N101: 100 | O101: 97.85545399 | P101: 100
B102: - прочие машины | C102: % | D102: 9.736602 | E102: 0 | M102: 0 | N102: 0 | O102: 0 | P102: 0
B103: Транспортные средства | C103: % | D103: 0 | E103: 0 | M103: 0 | N103: 0 | O103: 0 | P103: 0
B104: Инструмент | C104: % | D104: 0 | E104: 0 | M104: 0 | N104: 0 | O104: 0 | P104: 0
B105: Производственный инвентарь | C105: % | D105: 0 | E105: 0 | M105: 0 | N105: 0 | O105: 0 | P105: 0
B106: Прочие основные производственные фонды | C106: % | D106: 0.000442 | E106: 0.000442 | M106: 0 | N106: 0 | O106: 0 | P106: 0
A108: 6. | B108: СУММА АМОРТИЗАЦИОННЫХ ОТЧИСЛЕНИЙ | C108: тыс.руб | D108: =SUM(D109:D112,D118:D121) -> 25094.68566 | E108: 36069.19167 | F108: 0 | G108: 39088.10634 | H108: 39221.43551 | I108: 9805.358877 | J108: 9805.358877 | K108: 9805.358877 | L108: 9805.358877 | M108: =IF(F108=0,IF(H108=0,0,100),H108/F108*100) -> 100 | N108: =IF(G108=0,IF(H108=0,0,100),H108/G108*100) -> 100.3410991 | O108: =IF(D108=0,IF(H108=0,0,100),H108/D108*100) -> 156.2937908 | P108: =IF(E108=0,IF(H108=0,0,100),H108/E108*100) -> 108.7394358 | Q108: =SUM(Q109:Q112,Q118:Q121) -> 0
B109: Здания | C109: тыс.руб | D109: =D65*D94 / 100 -> 369.3783658 | E109: =E94*E65/100 -> 765.9998997 | F109: 0 | G109: 765.9998997 | H109: 765.9998997 | I109: 191.4999749 | J109: 191.4999749 | K109: 191.4999749 | L109: 191.4999749 | M109: 100 | N109: 100 | O109: 207.3754098 | P109: 100 | Q109: =IF(H80=0,0,((G6+G35-G50)/H80)) -> 0
B110: Сооружения | C110: тыс.руб | D110: =D66*D95 / 100 -> 5824.850457 | E110: 6871.537512 | F110: 0 | G110: 7650.263563 | H110: 7650.263563 | I110: 1912.565891 | J110: 1912.565891 | K110: 1912.565891 | L110: 1912.565891 | M110: 100 | N110: 100 | O110: 131.3383686 | P110: 111.3326319 | Q110: =IF(H81=0,0,((G7+G36-G51)/H81)) -> 0
B111: Передаточные устройства | C111: тыс.руб | D111: =D67*D96 / 100 -> 0 | E111: 0 | F111: 0 | G111: 0 | H111: 0 | I111: 0 | J111: 0 | K111: 0 | L111: 0 | M111: 0 | N111: 0 | O111: 0 | P111: 0 | Q111: 0
B112: Машины и оборудование | C112: тыс.руб | D112: =D68*D97 / 100 -> 18900.17684 | E112: =E113+E114+E115+E116+E117 -> 28431.65426 | F112: 0 | G112: =G113+G114+G115+G116 -> 30671.84287 | H112: =H113+H114+H115+H116 -> 30805.17204 | I112: =I113+I114+I115+I116 -> 7701.293012 | J112: 7701.293012 | K112: 7701.293012 | L112: 7701.293012 | M112: 100 | N112: 100.4346957 | O112: 162.9888032 | P112: 108.3481522 | Q112: =Q113+Q114+Q115+Q116+Q117 -> 0
B113: в т.ч. - силовые машины | C113: тыс.руб | D113: =D69*D98 / 100 -> 7770.52656 | E113: 11381.44458 | F113: 0 | G113: 13607.87383 | H113: 13741.203 | I113: 3435.30075 | J113: =I113 -> 3435.30075 | K113: =J113 -> 3435.30075 | L113: 3435.30075 | M113: 100 | N113: 100.9797943 | O113: 176.8374754 | P113: 120.7333823 | Q113: 0
B114: - рабочие машины | C114: тыс.руб | D114: =D70*D99 / 100 -> 693.2173945 | E114: 693.2199763 | F114: 0 | G114: 693.2199763 | H114: 693.2199763 | I114: 173.3049941 | J114: 173.3049941 | K114: 173.3049941 | L114: 173.3049941 | M114: 100 | N114: 100 | O114: 100.0003724 | P114: 100 | Q114: 0
B115: - приборы и лаборат. оборудование | C115: тыс.руб | D115: =D71*D100 / 100 -> 6876.933715 | E115: 10495.97966 | F115: 0 | G115: 10509.73903 | H115: 10509.73903 | I115: 2627.434758 | J115: 2627.434758 | K115: 2627.434758 | L115: 2627.434758 | M115: 100 | N115: 100 | O115: 152.8259464 | P115: 100.1310918 | Q115: 0
B116: - вычислительная техника | C116: тыс.руб | D116: =D72*D101 / 100 -> 3531.350838 | E116: 5861.01004 | F116: 0 | G116: 5861.01004 | H116: 5861.01004 | I116: 1465.25251 | J116: 1465.25251 | K116: 1465.25251 | L116: 1465.25251 | M116: 100 | N116: 100 | O116: 165.9707661 | P116: 100 | Q116: 0
B117: - прочие машины | C117: тыс.руб | D117: =D73*D102 / 100 -> 28.14822136 | E117: 0 | F117: 0 | G117: 0 | H117: 0 | I117: 0 | J117: 0 | K117: 0 | L117: 0 | M117: 0 | N117: 0 | O117: 0 | P117: 0 | Q117: 0
B118: Транспортные средства | C118: тыс.руб | D118: =D74*D103 / 100 -> 0 | E118: 0 | F118: 0 | G118: 0 | H118: 0 | I118: 0 | J118: 0 | K118: 0 | L118: 0 | M118: 0 | N118: 0 | O118: 0 | P118: 0 | Q118: 0
B119: Инструмент | C119: тыс.руб | D119: =D75*D104 / 100 -> 0 | E119: 0 | F119: 0 | G119: 0 | H119: 0 | I119: 0 | J119: 0 | K119: 0 | L119: 0 | M119: 0 | N119: 0 | O119: 0 | P119: 0 | Q119: 0
B120: Производственный инвентарь | C120: тыс.руб | D120: =D76*D105 / 100 -> 0 | E120: 0 | F120: 0 | G120: 0 | H120: 0 | I120: 0 | J120: 0 | K120: 0 | L120: 0 | M120: 0 | N120: 0 | O120: 0 | P120: 0 | Q120: 0
B121: Прочие основные производственные фонды | C121: тыс.руб | D121: =D77*D106 / 100 -> 0.2799935852 | E121: 0 | F121: 0 | G121: 0 | H121: 0 | I121: 0 | J121: 0 | K121: 0 | L121: 0 | M121: 0 | N121: 0 | O121: 0 | P121: 0 | Q121: 0
B123: Руководитель организации | I123: (подпись) (Ф.И.О.) | K123: К. Ю.Вергазов
B124: Должностное лицо, ответственное за составление формы | I124: (подпись) (Ф.И.О.) | K124: О. В. Костюкова

Sheet 17.1
H1: Таблица П1.17.1
A2: Расчет среднегодовой стоимости основных производственных фондов по линиям электропередач и подстанциям на 2015 год (по фактически введенным в эксплуатацию объектам в 2015 году)
H3: тыс. руб.
A4: № п.п. | B4: Виды производственных фондов | C4: стоимость на начало регулируемого периода | D4: Ввод основных производственных фондов | E4: Выбытие основных производственных фондов | F4: стоимость на конец регулируемого периода | G4: среднегодовая стоимость | H4: Амортизация
A5: 1 | B5: 2 | C5: 3 | D5: 4 | E5: 5 | F5: 6 | G5: 7 | H5: 8
A6: 1 | B6: Линии электропередач | C6: =C7+C12 -> 154127.663 | D6: =D7+D12 -> 0 | E6: =E7+E12 -> 0 | F6: 154127.663 | G6: =G7+G12 -> 154127.663 | H6: 7435.462345
B7: ВЛЭП | C7: =C8+C9+C10+C11 -> 901.7 | D7: =SUM(D8:D11) -> 0 | E7: 0 | F7: =SUM(F8:F11) -> 901.7 | G7: 901.7 | H7: =H8+H9+H10+H11 -> 49.91
B8: ВН | C8: 242.15 | E8: 0 | F8: =C8+D8-E8 -> 242.15 | G8: =(C8+F8)/2 -> 242.15 | H8: 13.4
B9: СН1 | C9: 659.55 | E9: 0 | F9: =C9+D9-E9 -> 659.55 | G9: =(C9+F9)/2 -> 659.55 | H9: 36.51
B10: СН2 | C10: 0 | D10: 0 | E10: 0 | F10: =C10+D10-E10 -> 0 | G10: =(C10+F10)/2 -> 0 | H10: 0
B11: НН | C11: 0 | D11: 0 | E11: 0 | F11: =C11+D11-E11 -> 0 | G11: =(C11+F11)/2 -> 0 | H11: 0
B12: КЛЭП | C12: =C13+C14+C15+C16 -> 153225.963 | D12: =D13+D14+D15+D16 -> 0 | E12: =SUM(E13:E16) -> 0 | F12: =SUM(F13:F16) -> 153225.963 | G12: 153225.963 | H12: =H13+H14+H15+H16 -> 6951.83
B13: ВН | C13: 0 | D13: 0 | E13: 0 | F13: =C13+D13-E13 -> 0 | G13: =(C13+F13)/2 -> 0 | H13: 0
B14: СН1 | C14: 7487.65 | E14: 0 | F14: =C14+D14-E14 -> 7487.65 | G14: =(C14+F14)/2 -> 7487.65 | H14: 414.48
B15: СН2 | C15: 144878.033 | E15: 0 | F15: =C15+D15-E15 -> 144878.033 | G15: =(C15+F15)/2 -> 144878.033 | H15: 6489.73
B16: НН | C16: 860.28 | E16: 0 | F16: =C16+D16-E16 -> 860.28 | G16: =(C16+F16)/2 -> 860.28 | H16: 47.62
A17: 2 | B17: Подстанции | C17: =C18+C19+C20+C21 -> 659929.124 | D17: =D18+D19+D20+D21 -> 2000 | E17: =SUM(E18:E21) -> 0 | F17: =SUM(F18:F21) -> 661929.124 | G17: 660929.124 | H17: =H18+H19+H20+H21 -> 32086.37
B18: ВН | C18: 22239.9 | E18: 0 | F18: =C18+D18-E18 -> 22239.9 | G18: =(C18+F18)/2 -> 22239.9 | H18: 1231.11
B19: СН1 | C19: 39764.17 | E19: 0 | F19: =C19+D19-E19 -> 39764.17 | G19: =(C19+F19)/2 -> 39764.17 | H19: 2201.18
B20: СН2 | C20: 597925.054 | D20: 2000 | E20: 0 | F20: =C20+D20-E20 -> 599925.054 | G20: =(C20+F20)/2 -> 598925.054 | H20: 28654.08
B21: НН | C21: 0 | E21: 0 | F21: =C21+D21-E21 -> 0 | G21: =(C21+F21)/2 -> 0 | H21: 0
B22: Всего (стр. 1+стр.2) | C22: =C17+C6 -> 814056.787 | D22: =D6+D17 -> 2000 | E22: 0 | F22: 816056.787 | G22: =G17+G6 -> 815056.787 | H22: =H23+H24+H25+H26 -> 39088.11
B23: ВН | C23: =C8+C13+C18 -> 22482.05 | D23: =D8+D18+D13 -> 0 | E23: 0 | F23: 22482.05 | G23: 22482.05 | H23: =H8+H13+H18 -> 1244.51
B24: СН1 | C24: =C9+C14+C19 -> 47911.37 | D24: 0 | E24: 0 | F24: 47911.37 | G24: 47911.37 | H24: =H9+H14+H19 -> 2652.17
B25: СН2 | C25: =C10+C15+C20 -> 742803.087 | D25: 2000 | E25: 0 | F25: 744803.087 | G25: 743803.087 | H25: =H10+H15+H20 -> 35143.81
B26: НН | C26: =C11+C16+C21 -> 860.28 | D26: 0 | E26: 0 | F26: 860.28 | G26: 860.28 | H26: =H11+H16+H21 -> 47.62
B27: Руководитель организации | G27: (подпись) (Ф.И.О.) | H27: К. Ю. Вергазов
B28: Должностное лицо, ответственное за составление формы | G28: (подпись) (Ф.И.О.) | H28: О. В. Костюкова
A29: Расчет среднегодовой стоимости основных производственных фондов по линиям электропередач и подстанциям на 2016 год
H30: тыс. руб.
A31: № п.п. | B31: Виды производственных фондов | C31: стоимость на начало регулируемого периода | D31: Ввод основных производственных фондов | E31: Выбытие основных производственных фондов | F31: стоимость на конец регулируемого периода | G31: среднегодовая стоимость | H31: Амортизация
A32: 1 | B32: 2 | C32: 3 | D32: 4 | E32: 5 | F32: 6 | G32: 7 | H32: 8
A33: 1 | B33: Линии электропередач | C33: =C34+C39 -> 154127.66 | D33: 0 | E33: 0 | F33: =C33+D33 -> 154127.66 | G33: 141771.61 | H33: 7435.462345
B34: ВЛЭП | C34: =C35+C36+C37+C38 -> 901.7 | D34: =SUM(D35:D38) -> 0 | E34: 0 | F34: =C34+D34 -> 901.7 | G34: 901.7 | H34: =H35+H36+H37+H38 -> 49.91
B35: ВН | C35: 242.15 | D35: 0 | E35: 0 | F35: 242.15 | G35: 242.15 | H35: 13.4
B36: СН1 | C36: 659.55 | D36: 0 | E36: 0 | F36: 659.55 | G36: 659.55 | H36: 36.51
B37: СН2 | C37: 0 | D37: 0 | E37: 0 | F37: =C37+D37-E37 -> 0 | G37: =(C37+F37)/2 -> 0 | H37: 0
B38: НН | C38: 0 | D38: 0 | E38: 0 | F38: =C38+D38-E38 -> 0 | G38: =(C38+F38)/2 -> 0 | H38: 0
B39: КЛЭП | C39: =C40+C41+C42+C43 -> 153225.96 | D39: =SUM(D40:D43) -> 0 | E39: 0 | F39: 153225.96 | G39: 153225.96 | H39: =H40+H41+H42+H43 -> 6951.83
B40: ВН | C40: 0 | D40: 0 | E40: 0 | F40: =C40+D40-E40 -> 0 | G40: =(C40+F40)/2 -> 0 | H40: 0
B41: СН1 | C41: 7487.65 | D41: 0 | E41: 0 | F41: 7487.65 | G41: 7487.65 | H41: 414.48
B42: СН2 | C42: 144878.03 | D42: 0 | E42: 0 | F42: 144878.03 | G42: 144878.03 | H42: 6489.73
B43: НН | C43: 860.28 | D43: 0 | E43: 0 | F43: 860.28 | G43: 860.28 | H43: 47.62
A44: 2 | B44: Подстанции | C44: =C45+C46+C47+C48 -> 661929.12 | D44: =SUM(D45:D48) -> 2000 | E44: 0 | F44: 663929.12 | G44: 662929.12 | H44: =H45+H46+H47+H48 -> 32219.703
B45: ВН | C45: 22239.9 | D45: 0 | E45: 0 | F45: 22239.9 | G45: 22239.9 | H45: 1231.11
B46: СН1 | C46: 39764.17 | D46: 0 | E46: 0 | F46: 39764.17 | G46: 39764.17 | H46: 2201.18
B47: СН2 | C47: 599925.05 | D47: 2000 | E47: 0 | F47: =C47+D47 -> 601925.05 | G47: 600925.05 | H47: 28787.413
B48: НН | C48: 0 | D48: 0 | E48: 0 | F48: =C48+D48-E48 -> 0 | G48: =(C48+F48)/2 -> 0 | H48: 0
B49: Всего (стр. 1+стр.2) | C49: =C33+C44+0.01 -> 816056.79 | D49: =D33+D44 -> 2000 | E49: 0 | F49: =C49+D49+0.01 -> 818056.8 | G49: 817056.79 | H49: =H50+H51+H52+H53 -> 39221.443
B50: ВН | C50: =C35+C40+C45 -> 22482.05 | D50: =D35+D45+D40 -> 0 | E50: 0 | F50: 22482.05 | G50: 22482.05 | H50: =H35+H40+H45 -> 1244.51
B51: СН1 | C51: =C36+C41+C46 -> 47911.37 | D51: =D36+D46+D41 -> 0 | E51: 0 | F51: 47911.37 | G51: 47911.37 | H51: =H36+H41+H46 -> 2652.17
B52: СН2 | C52: =C37+C42+C47 -> 744803.08 | D52: =D37+D47+D42 -> 2000 | E52: 0 | F52: 746803.08 | G52: 745803.08 | H52: =H37+H42+H47 -> 35277.143
B53: НН | C53: =C38+C43+C48 -> 860.28 | D53: =D38+D48+D43 -> 0 | E53: 0 | F53: 860.28 | G53: 860.28 | H53: =H38+H43+H48 -> 47.62
B55: Руководитель организации | G55: (подпись) (Ф.И.О.) | H55: К. Ю. Вергазов
B56: Должностное лицо, ответственное за составление формы | G56: (подпись) (Ф.И.О.) | H56: О. В. Костюкова
A57: Расчет среднегодовой стоимости основных производственных фондов по линиям электропередач и подстанциям на 2017 год
H58: тыс. руб.
A59: № п.п. | B59: Виды производственных фондов | C59: стоимость на начало регулируемого периода | D59: Ввод основных производственных фондов | E59: Выбытие основных производственных фондов | F59: стоимость на конец регулируемого периода | G59: среднегодовая стоимость | H59: Амортизация
A60: 1 | B60: 2 | C60: 3 | D60: 4 | E60: 5 | F60: 6 | G60: 7 | H60: 8
A61: 1 | B61: Линии электропередач | C61: =C62+C67 -> 0 | D61: 0 | E61: 0 | F61: 0 | G61: 0 | H61: 0
B62: ВЛЭП | C62: =SUM(C63:C66) -> 0 | D62: 0 | E62: 0 | F62: 0 | G62: 0 | H62: 0
B63: ВН | F63: =C63+D63-E63 -> 0 | G63: =(C63+F63)/2 -> 0
B64: СН1 | F64: =C64+D64-E64 -> 0 | G64: =(C64+F64)/2 -> 0
B65: СН2 | F65: =C65+D65-E65 -> 0 | G65: =(C65+F65)/2 -> 0
B66: НН | F66: =C66+D66-E66 -> 0 | G66: =(C66+F66)/2 -> 0
B67: КЛЭП | C67: =SUM(C68:C71) -> 0 | D67: 0 | E67: 0 | F67: 0 | G67: 0 | H67: 0
B68: ВН | F68: =C68+D68-E68 -> 0 | G68: =(C68+F68)/2 -> 0
B69: СН1 | F69: =C69+D69-E69 -> 0 | G69: =(C69+F69)/2 -> 0
B70: СН2 | F70: =C70+D70-E70 -> 0 | G70: =(C70+F70)/2 -> 0
B71: НН | F71: =C71+D71-E71 -> 0 | G71: =(C71+F71)/2 -> 0
A72: 2 | B72: Подстанции | C72: =SUM(C73:C76) -> 0 | D72: 0 | E72: 0 | F72: 0 | G72: 0 | H72: 0
B73: ВН | F73: =C73+D73-E73 -> 0 | G73: =(C73+F73)/2 -> 0
B74: СН1 | F74: =C74+D74-E74 -> 0 | G74: =(C74+F74)/2 -> 0
B75: СН2 | F75: =C75+D75-E75 -> 0 | G75: =(C75+F75)/2 -> 0
B76: НН | F76: =C76+D76-E76 -> 0 | G76: =(C76+F76)/2 -> 0
B77: Всего (стр. 1+стр.2) | C77: =C61+C72 -> 0 | D77: 0 | E77: 0 | F77: 0 | G77: 0 | H77: 0
B78: ВН | C78: =C63+C73+C68 -> 0 | D78: 0 | E78: 0 | F78: 0 | G78: 0 | H78: 0
B79: СН1 | C79: 0 | D79: 0 | E79: 0 | F79: 0 | G79: 0 | H79: 0
B80: СН2 | C80: 0 | D80: 0 | E80: 0 | F80: 0 | G80: 0 | H80: 0
B81: НН | C81: 0 | D81: 0 | E81: 0 | F81: 0 | G81: 0 | H81: 0
B83: Руководитель организации | G83: (подпись) (Ф.И.О.) | H83: К. Ю. Вергазов
B84: Должностное лицо, ответственное за составление формы | G84: (подпись) (Ф.И.О.) | H84: О. В. Костюкова
A85: Расчет среднегодовой стоимости основных производственных фондов по линиям электропередач и подстанциям на 2018 год
H86: тыс. руб.
A87: № п.п. | B87: Виды производственных фондов | C87: стоимость на начало регулируемого периода | D87: Ввод основных производственных фондов | E87: Выбытие основных производственных фондов | F87: стоимость на конец регулируемого периода | G87: среднегодовая стоимость | H87: Амортизация
A88: 1 | B88: 2 | C88: 3 | D88: 4 | E88: 5 | F88: 6 | G88: 7 | H88: 8
A89: 1 | B89: Линии электропередач | C89: =C90+C95 -> 0 | D89: 0 | E89: 0 | F89: 0 | G89: 0 | H89: 0
B90: ВЛЭП | C90: =SUM(C91:C94) -> 0 | D90: 0 | E90: 0 | F90: 0 | G90: 0 | H90: 0
B91: ВН | F91: =C91+D91-E91 -> 0 | G91: =(C91+F91)/2 -> 0
B92: СН1 | F92: =C92+D92-E92 -> 0 | G92: =(C92+F92)/2 -> 0
B93: СН2 | F93: =C93+D93-E93 -> 0 | G93: =(C93+F93)/2 -> 0
B94: НН | F94: =C94+D94-E94 -> 0 | G94: =(C94+F94)/2 -> 0
B95: КЛЭП | C95: =SUM(C96:C99) -> 0 | D95: 0 | E95: 0 | F95: 0 | G95: 0 | H95: 0
B96: ВН | F96: =C96+D96-E96 -> 0 | G96: =(C96+F96)/2 -> 0
B97: СН1 | F97: =C97+D97-E97 -> 0 | G97: =(C97+F97)/2 -> 0
B98: СН2 | F98: =C98+D98-E98 -> 0 | G98: =(C98+F98)/2 -> 0
B99: НН | F99: =C99+D99-E99 -> 0 | G99: =(C99+F99)/2 -> 0
A100: 2 | B100: Подстанции | C100: =SUM(C101:C104) -> 0 | D100: 0 | E100: 0 | F100: 0 | G100: 0 | H100: 0
B101: ВН | F101: =C101+D101-E101 -> 0 | G101: =(C101+F101)/2 -> 0
B102: СН1 | F102: =C102+D102-E102 -> 0 | G102: =(C102+F102)/2 -> 0
B103: СН2 | F103: =C103+D103-E103 -> 0 | G103: =(C103+F103)/2 -> 0
B104: НН | F104: =C104+D104-E104 -> 0 | G104: =(C104+F104)/2 -> 0
B105: Всего (стр. 1+стр.2) | C105: =C89+C100 -> 0 | D105: 0 | E105: 0 | F105: 0 | G105: 0 | H105: 0
B106: ВН | C106: =C91+C101+C96 -> 0 | D106: 0 | E106: 0 | F106: 0 | G106: 0 | H106: 0
B107: СН1 | C107: =C92+C102+C97 -> 0 | D107: 0 | E107: 0 | F107: 0 | G107: 0 | H107: 0
B108: СН2 | C108: =C93+C103+C98 -> 0 | D108: 0 | E108: 0 | F108: 0 | G108: 0 | H108: 0
B109: НН | C109: =C94+C104+C99 -> 0 | D109: 0 | E109: 0 | F109: 0 | G109: 0 | H109: 0
B111: Руководитель организации | G111: (подпись) (Ф.И.О.) | H111: К. Ю. Вергазов
B112: Должностное лицо, ответственное за составление формы | G112: (подпись) (Ф.И.О.) | H112: О. В. Костюкова
A113: Расчет среднегодовой стоимости основных производственных фондов по линиям электропередач и подстанциям на 2019 год
H114: тыс. руб.
A115: № п.п. | B115: Виды производственных фондов | C115: стоимость на начало регулируемого периода | D115: Ввод основных производственных фондов | E115: Выбытие основных производственных фондов | F115: стоимость на конец регулируемого периода | G115: среднегодовая стоимость | H115: Амортизация
A116: 1 | B116: 2 | C116: 3 | D116: 4 | E116: 5 | F116: 6 | G116: 7 | H116: 8
A117: 1 | B117: Линии электропередач | C117: =C118+C123 -> 0 | D117: 0 | E117: 0 | F117: 0 | G117: 0 | H117: 0
B118: ВЛЭП | C118: =SUM(C119:C122) -> 0 | D118: 0 | E118: 0 | F118: 0 | G118: 0 | H118: 0
B119: ВН | F119: =C119+D119-E119 -> 0 | G119: =(C119+F119)/2 -> 0
B120: СН1 | F120: =C120+D120-E120 -> 0 | G120: =(C120+F120)/2 -> 0
B121: СН2 | F121: =C121+D121-E121 -> 0 | G121: =(C121+F121)/2 -> 0
B122: НН | F122: =C122+D122-E122 -> 0 | G122: =(C122+F122)/2 -> 0
B123: КЛЭП | C123: =SUM(C124:C127) -> 0 | D123: 0 | E123: 0 | F123: 0 | G123: 0 | H123: 0
B124: ВН | F124: =C124+D124-E124 -> 0 | G124: =(C124+F124)/2 -> 0
B125: СН1 | F125: =C125+D125-E125 -> 0 | G125: =(C125+F125)/2 -> 0
B126: СН2 | F126: =C126+D126-E126 -> 0 | G126: =(C126+F126)/2 -> 0
B127: НН | F127: =C127+D127-E127 -> 0 | G127: =(C127+F127)/2 -> 0
A128: 2 | B128: Подстанции | C128: =SUM(C129:C132) -> 0 | D128: 0 | E128: 0 | F128: 0 | G128: 0 | H128: 0
B129: ВН | F129: =C129+D129-E129 -> 0 | G129: =(C129+F129)/2 -> 0
B130: СН1 | F130: =C130+D130-E130 -> 0 | G130: =(C130+F130)/2 -> 0
B131: СН2 | F131: =C131+D131-E131 -> 0 | G131: =(C131+F131)/2 -> 0
B132: НН | F132: =C132+D132-E132 -> 0 | G132: =(C132+F132)/2 -> 0
B133: Всего (стр. 1+стр.2) | C133: =C117+C128 -> 0 | D133: 0 | E133: 0 | F133: 0 | G133: 0 | H133: 0
B134: ВН | C134: =C119+C129+C124 -> 0 | D134: 0 | E134: 0 | F134: 0 | G134: 0 | H134: 0
B135: СН1 | C135: =C120+C130+C125 -> 0 | D135: 0 | E135: 0 | F135: 0 | G135: 0 | H135: 0
B136: СН2 | C136: =C121+C131+C126 -> 0 | D136: 0 | E136: 0 | F136: 0 | G136: 0 | H136: 0
B137: НН | C137: =C122+C132+C127 -> 0 | D137: 0 | E137: 0 | F137: 0 | G137: 0 | H137: 0
B139: Руководитель организации | G139: (подпись) (Ф.И.О.) | H139: К. Ю. Вергазов
B140: Должностное лицо, ответственное за составление формы | G140: (подпись) (Ф.И.О.) | H140: О. В. Костюкова
A141: Расчет среднегодовой стоимости основных производственных фондов по линиям электропередач и подстанциям на 2020 год
H142: тыс. руб.
A143: № п.п. | B143: Виды производственных фондов | C143: стоимость на начало регулируемого периода | D143: Ввод основных производственных фондов | E143: Выбытие основных производственных фондов | F143: стоимость на конец регулируемого периода | G143: среднегодовая стоимость | H143: Амортизация
A144: 1 | B144: 2 | C144: 3 | D144: 4 | E144: 5 | F144: 6 | G144: 7 | H144: 8
A145: 1 | B145: Линии электропередач | C145: =C146+C151 -> 0 | D145: 0 | E145: 0 | F145: 0 | G145: 0 | H145: 0
B146: ВЛЭП | C146: =SUM(C147:C150) -> 0 | D146: 0 | E146: 0 | F146: 0 | G146: 0 | H146: 0
B147: ВН | F147: =C147+D147-E147 -> 0 | G147: =(C147+F147)/2 -> 0
B148: СН1 | F148: =C148+D148-E148 -> 0 | G148: =(C148+F148)/2 -> 0
B149: СН2 | F149: =C149+D149-E149 -> 0 | G149: =(C149+F149)/2 -> 0
B150: НН | F150: =C150+D150-E150 -> 0 | G150: =(C150+F150)/2 -> 0
B151: КЛЭП | C151: =SUM(C152:C155) -> 0 | D151: 0 | E151: 0 | F151: 0 | G151: 0 | H151: 0
B152: ВН | F152: =C152+D152-E152 -> 0 | G152: =(C152+F152)/2 -> 0
B153: СН1 | F153: =C153+D153-E153 -> 0 | G153: =(C153+F153)/2 -> 0
B154: СН2 | F154: =C154+D154-E154 -> 0 | G154: =(C154+F154)/2 -> 0
B155: НН | F155: =C155+D155-E155 -> 0 | G155: =(C155+F155)/2 -> 0
A156: 2 | B156: Подстанции | C156: =SUM(C157:C160) -> 0 | D156: 0 | E156: 0 | F156: 0 | G156: 0 | H156: 0
B157: ВН | F157: =C157+D157-E157 -> 0 | G157: =(C157+F157)/2 -> 0
B158: СН1 | F158: =C158+D158-E158 -> 0 | G158: =(C158+F158)/2 -> 0
B159: СН2 | F159: =C159+D159-E159 -> 0 | G159: =(C159+F159)/2 -> 0
B160: НН | F160: =C160+D160-E160 -> 0 | G160: =(C160+F160)/2 -> 0
B161: Всего (стр. 1+стр.2) | C161: =C145+C156 -> 0 | D161: 0 | E161: 0 | F161: 0 | G161: 0 | H161: 0
B162: ВН | C162: =C147+C157+C152 -> 0 | D162: 0 | E162: 0 | F162: 0 | G162: 0 | H162: 0
B163: СН1 | C163: =C148+C158+C153 -> 0 | D163: 0 | E163: 0 | F163: 0 | G163: 0 | H163: 0
B164: СН2 | C164: =C149+C159+C154 -> 0 | D164: 0 | E164: 0 | F164: 0 | G164: 0 | H164: 0
B165: НН | C165: =C150+C160+C155 -> 0 | D165: 0 | E165: 0 | F165: 0 | G165: 0 | H165: 0
B168: Руководитель организации | G168: (подпись) (Ф.И.О.) | H168: К. Ю. Вергазов
B169: Должностное лицо, ответственное за составление формы | G169: (подпись) (Ф.И.О.) | H169: О. В. Костюкова

Sheet 18
B1: =Анкета!B3 -> АО "Чепецкий механический завод" | E1: 1.04841 | F1: 1.04148 | J1: Таблица № П1.18.
A2: Калькуляция себестоимости передачи электрической энергии
J3: тыс. руб.
A4: № п.п. | B4: Калькуляционные статьи затрат | C4: 2014 год утверждено | D4: 2014 год факт | E4: 2015 год утверждено | F4: 2015 год факт 1 квартал | G4: 2015 год ожидаемое | H4: 2016 год предложение организации | I4: 2017 год предложение организации | J4: 2018 год предложение организации | K4: 2019 год предложение организации | L4: 2020 год предложение организации | M4: 2016 год утверждено (до корректировки) | N4: 2016 год признано обоснованным регулирующим органом с учетом корректировки | O4: Рост, % | P4: в том числе сумма расходов, относимая на сторонних потребителей услуг
A5: 1 | B5: =A5+1 -> 2 | C5: 5 | D5: 6 | E5: 7 | F5: 8 | G5: 9 | H5: 10 | I5: 11 | J5: 12 | K5: 13 | L5: 14 | M5: 11 | N5: =M5+1 -> 12 | O5: =N5+1 -> 13 | P5: 14
A6: 1. | B6: Фонд оплаты труда производственных рабочих | C6: 7888.094759 | D6: 241.51 | E6: 0 | O6: =IF(ISERROR(N6/E6),0,N6/E6) -> 0 | P6: =N6*'2.3'!$F$39 -> 
A7: 2. | B7: Страховые взносы социального характера | C7: 2721.392692 | D7: 77.21 | E7: 0 | O7: =IF(ISERROR(N7/E7),0,N7/E7) -> 0 | P7: =N7*'2.3'!$F$39 -> 
A8: 3. | B8: Расходы по содержанию и эксплуатации оборудования | C8: =C10+C15+C18+C19+C22 -> 31667.78194 | D8: 62602.361 | E8: 59518.68144 | F8: 10423.659 | G8: 67523.11 | H8: 71923.193 | I8: 0 | J8: 0 | K8: 0 | L8: 0 | M8: 11986.37 | N8: 0 | O8: =IF(ISERROR(N8/E8),0,N8/E8) -> 0 | P8: =(N8-N11-N12-N13-N14)*'2.3'!F39+'18'!P11+'18'!P12+'18'!P13+'18'!P14 -> 
B9: в том числе:
A10: 3.1. | B10: амортизация производственного оборудования | C10: =C11+C12+C13+C14 -> 25094.68517 | D10: 36069.19 | E10: 38855.2 | F10: 8606.22 | G10: 39088.11 | H10: ='17.1'!H49 -> 39221.443 | M10: ='17.1'!M49 -> 0 | O10: =IF(ISERROR(N10/E10),0,N10/E10) -> 0 | P10: =P11+P12+P13+P14 -> 
B11: ВН | C11: 823.905946 | D11: 36069.19 | E11: 1252.294321 | F11: =G11/G10*F10 -> 274.0098422 | G11: 1244.51 | H11: ='17.1'!H50 -> 1244.51 | I11: ='17.1'!H78 -> 0 | J11: ='17.1'!H106 -> 0 | K11: ='17.1'!H134 -> 0 | L11: ='17.1'!H162 -> 0 | O11: 0 | P11: =IF('4'!#REF!=0,0,N11*'4'!#REF!) -> 
B12: СН1 | C12: 1755.821104 | E12: 2668.757045 | F12: =G12/G10*F10 -> 583.9412163 | G12: 2652.17 | H12: ='17.1'!H51 -> 2652.17 | I12: ='17.1'!H79 -> 0 | J12: ='17.1'!H107 -> 0 | K12: ='17.1'!H135 -> 0 | L12: ='17.1'!H163 -> 0 | O12: 0 | P12: =IF('4'!#REF!=0,0,N12*'4'!#REF!) -> 
B13: СН2 | C13: 22483.43111 | E13: 34886.22921 | F13: =G13/G10*F10 -> 7737.784214 | G13: 35143.81 | H13: ='17.1'!H52 -> 35277.143 | I13: ='17.1'!H80 -> 0 | J13: ='17.1'!H108 -> 0 | K13: ='17.1'!H136 -> 0 | L13: ='17.1'!H164 -> 0 | O13: 0 | P13: =IF('4'!#REF!=0,0,N13*'4'!#REF!) -> 
B14: НН | C14: 31.527013 | E14: 47.919426 | F14: =G14/G10*F10 -> 10.48472787 | G14: 47.62 | H14: ='17.1'!H53 -> 47.62 | I14: ='17.1'!H81 -> 0 | J14: ='17.1'!H109 -> 0 | K14: ='17.1'!H137 -> 0 | L14: ='17.1'!H165 -> 0 | O14: 0 | P14: =IF('4'!#REF!=0,0,N14*'4'!#REF!) -> 
A15: 3.2. | B15: ремонт производственного оборудования | C15: =C16+C17 -> 5696.33594 | D15: 6270.872 | E15: 4552.18644 | F15: 459.445 | G15: 7001 | H15: 8051 | I15: 0 | J15: 0 | K15: 0 | L15: 0 | M15: 10906.6 | N15: 0 | O15: 0 | P15: =N15*'2.3'!$F$39 -> 
B16: в т.ч. услуги подрядных организаций | C16: 5696.33594 | D16: 6270.872 | E16: 4552.18644 | F16: 459.445 | G16: 7001 | H16: 8051 | M16: 10906.6 | P16: =N16*'2.3'!$F$39 -> 
B17: хозспособ | C17: 0 | P17: =N17*'2.3'!$F$39 -> 
A18: 3.3. | B18: услуги подрядных организаций по техобслуживанию и эксплуатации оборудования | C18: 0 | D18: 17552.919 | E18: 15080 | F18: 1255.944 | G18: 18728 | H18: 21538 | O18: =IF(ISERROR(N18/E18),0,N18/E18) -> 0 | P18: =N18*'2.3'!$F$39 -> 
A19: 3.4. | B19: другие расходы по содержанию и эксплуатации оборудования | C19: =SUM(C20:C21) -> 876.760833 | D19: 2709.38 | E19: 1031.295 | F19: 102.05 | G19: 2706 | H19: 3112.75 | I19: 0 | J19: 0 | K19: 0 | L19: 0 | M19: 1079.77 | N19: 0 | P19: =N19*'2.3'!$F$39 -> 
B20: в т.ч. вспомогательные материалы | C20: 876.760833 | D20: 348.81 | E20: 1031.295 | F20: 2.05 | G20: 390 | H20: 450 | M20: 1079.77 | P20: =N20*'2.3'!$F$39 -> 
B21: услуги | C21: 0 | D21: 2360.57 | F21: 100 | G21: 2316 | H21: 2662.75 | P21: =N21*'2.3'!$F$39 -> 
A22: 3.5. | B22: расходы на содержание бесхозяйных сетей
A23: 4. | B23: Расходы по подготовке и освоению производства (пусковые работы) | C23: 0 | O23: =IF(ISERROR(N23/E23),0,N23/E23) -> 0 | P23: =N23*'2.3'!$F$39 -> 
A24: 5. | B24: Прочие прямые расходы, в том числе | C24: 6884.194411 | D24: =D25+D28 -> 7278.38 | E24: 15113.09539 | F24: 261.6 | G24: 799.64 | H24: 919.5 | I24: 0 | J24: 0 | K24: 0 | L24: 0 | N24: 0 | P24: =N24*'2.3'!$F$39 -> 
B25: аренда производственного оборудования | C25: 6264.271 | D25: 6266.91 | E25: 6148.168604 | M25: 6992.55 | P25: =N25*'2.3'!$F$39 -> 
B26: в том числе амортизация у арендодателя | C26: 5277.398 | E26: 5277.398 | P26: =N26*'2.3'!$F$39 -> 
B27: налог на имущество у арендодателя | C27: 986.873338 | E27: 870.770604 | P27: =N27*'2.3'!$F$39 -> 
B28: энергия | D28: 1011.47 | E28: 721.87 | F28: 261.6 | G28: 799.64 | H28: 919.5 | M28: 830.93 | P28: =N28*'2.3'!$F$39 -> 
A29: 6. | B29: Цеховые (общепроизводственные) расходы | C29: 9500.959247 | O29: =IF(ISERROR(N29/#REF!),0,N29/#REF!) -> 0 | P29: =N29*'2.3'!$F$39 -> 
A30: 7. | B30: Другие расходы | C30: =C32+C33+C34+C35+C36+C44 -> 19563.85 | D30: 7838.22 | F30: 2178.28 | G30: 8516.41 | H30: 8468.5 | I30: 0 | J30: 0 | K30: 0 | L30: 0 | M30: 8398.79 | N30: 0 | O30: =IF(ISERROR(N30/#REF!),0,N30/#REF!) -> 0 | P30: =N30*'2.3'!$F$39 -> 
B31: всего в том числе: | P31: =N31*'2.3'!$F$39 -> 
A32: 7.1. | B32: Целевые средства на НИОКР | O32: =IF(ISERROR(N32/E32),0,N32/E32) -> 0 | P32: =N32*'2.3'!$F$39 -> 
A33: 7.2. | B33: Средства на страхование | D33: 1098.85 | E33: 1618.77 | F33: 290.1 | G33: 1191.69 | H33: 1370.5 | M33: 1774.51 | O33: =IF(ISERROR(N33/E33),0,N33/E33) -> 0 | P33: =N33*'2.3'!$F$39 -> 
A34: 7.3. | B34: Плата за предельно допустимые выбросы (сбросы) загрязняющих вещетв | O34: 0 | P34: =N34*'2.3'!$F$39 -> 
A35: 7.4. | B35: Отчисления в ремонтный фонд в случае его формирования | O35: 0 | P35: =N35*'2.3'!$F$39 -> 
A36: 7.5. | B36: Непроизводственные расходы (налоги и другие обязательные платежи и сборы) всего | C36: =SUM(C37:C43) -> 0 | D36: 6739.37 | E36: 6624.28 | F36: 1888.18 | G36: 7324.72 | H36: 7098 | I36: 0 | J36: 0 | K36: 0 | L36: 0 | M36: 6624.28 | N36: 0 | O36: 0 | P36: =N36*'2.3'!$F$39 -> 
B37: в том числе:
B38: налог на имущество | D38: 6739.37 | E38: 6624.28 | F38: 1888.18 | G38: 7324.72 | H38: 7098 | M38: 6624.28 | O38: 0 | P38: =N38*'2.3'!$F$39 -> 
O39: 0 | P39: =N39*'2.3'!$F$39 -> 
O40: 0 | P40: =N40*'2.3'!$F$39 -> 
O41: 0 | P41: =N41*'2.3'!$F$39 -> 
O42: 0 | P42: =N42*'2.3'!$F$39 -> 
O43: 0 | P43: =N43*'2.3'!$F$39 -> 
A44: 7.6. | B44: Другие затраты, относимые на себестоимость продукции всего | C44: =SUM(C45:C49) -> 19563.85 | D44: 0 | E44: 0 | F44: 0 | G44: 0 | H44: 0 | I44: 0 | J44: 0 | K44: 0 | L44: 0 | M44: 0 | N44: 0 | O44: 0 | P44: =N44*'2.3'!$F$39 -> 
B45: в том числе: | C45: 19563.85
O46: 0 | P46: =N46*'2.3'!$F$39 -> 
O47: 0 | P47: =N47*'2.3'!$F$39 -> 
O48: 0 | P48: =N48*'2.3'!$F$39 -> 
O49: 0 | P49: =N49*'2.3'!$F$39 -> 
A50: 8. | B50: Недополученный по независящим причинам доход | E50: 6773.292631 | O50: 0 | P50: =N50*'2.3'!$F$39 -> 
A51: 9. | B51: Избыток средств, полученный в предыдущем периоде регулирования | O51: 0 | P51: =N51*'2.3'!$F$39 -> 
A52: 10. | B52: Итого производственные расходы | C52: =C6+C7+C8+C23+C24+C29+C30+C50-C51 -> 78226.27305 | D52: 78037.681 | E52: 81405.06946 | F52: 12863.539 | G52: 76839.16 | H52: 81311.193 | I52: 0 | J52: 0 | K52: 0 | L52: 0 | M52: 20385.16 | N52: =N6+N7+N8+N23+N24+N29+N30+N50-N51+N44 -> 0 | O52: 0 | P52: =P54+P55+P56+P57 -> 
B53: в том числе: | P53: =IF(P52=0,0,P52/N52) -> 
B54: ВН | C54: =IF(C$61=0,0,C11 + (C$52 - C$11- C$12- C$13- C$14)*C63 / C$61 ) -> 2562.088761 | D54: 0 | E54: =IF(E$61=0,0,E11 + (E$52 - E$11- E$12- E$13- E$14)*E63 / E$61 ) -> 2616.538975 | F54: 0 | G54: 2446.450498 | H54: 2584.588622 | I54: 0 | J54: 0 | K54: 0 | L54: 0 | M54: 650.0468605 | N54: =IF(N$61=0,0,N11 + (N$52 - N$11- N$12- N$13- N$14)*N63 / N$61 ) -> 0 | O54: =IF(ISERROR(N54/E54),0,N54/E54) -> 0 | P54: =IF('4'!#REF!=0,0,(N54-N11)*'4'!#REF!+P11) -> 
B55: СН1 | C55: 5460.052253 | D55: 0 | E55: 5576.090783 | F55: 0 | G55: 5213.618308 | H55: 5508.00365 | I55: 0 | J55: 0 | K55: 0 | L55: 0 | M55: 1385.311032 | N55: =IF(N$61=0,0,N12 + (N$52 - N$11- N$12- N$13- N$14)*N64 / N$61 ) -> 0 | O55: =IF(ISERROR(N55/E55),0,N55/E55) -> 0 | P55: =IF('4'!#REF!=0,0,(N55-N12)*'4'!#REF!+P12) -> 
B56: СН2 | C56: =IF(C$61=0,0,C13 + (C$52 - C$11- C$12- C$13- C$14)*C65 / C$61 ) -> 70106.09293 | D56: 0 | E56: 73112.31703 | F56: 0 | G56: 69085.47857 | H56: 73119.70221 | I56: 0 | J56: 0 | K56: 0 | L56: 0 | M56: 18324.92787 | N56: =IF(N$61=0,0,N13 + (N$52 - N$11- N$12- N$13- N$14)*N65 / N$61 ) -> 0 | O56: =IF(ISERROR(N56/E56),0,N56/E56) -> 0 | P56: =IF('4'!#REF!=0,0,(N56-N13)*'4'!#REF!+P13) -> 
B57: НН | C57: =IF(C$61=0,0,C14 + (C$52 - C$11- C$12- C$13- C$14)*C66 / C$61 ) -> 98.03911051 | D57: 0 | E57: 100.1226653 | F57: 0 | G57: 93.61262108 | H57: 98.89851869 | I57: 0 | J57: 0 | K57: 0 | L57: 0 | M57: 24.87424211 | N57: =IF(N$61=0,0,N14 + (N$52 - N$11- N$12- N$13- N$14)*N66 / N$61 ) -> 0 | O57: =IF(ISERROR(N57/E57),0,N57/E57) -> 0 | P57: =IF('4'!#REF!=0,0,(N57-N14)*'4'!#REF!+P14) -> 
A59: 11. | B59: расходы на 1 у. е. (тыс. руб.) | C59: =IF(C61=0,0,C52/C61) -> 18.1345477 | D59: 0 | E59: 18.49510971 | F59: 0 | G59: 17.33596309 | H59: 18.34491476 | I59: 0 | J59: 0 | K59: 0 | L59: 0 | M59: 4.606341132 | N59: =IF(N61=0,0,N52/N61) -> 0 | O59: =IF(ISERROR(N59/E59),0,N59/E59) -> 0 | P59: =N59 -> 0
B60: Справочно
A61: 12. | B61: Всего условных единиц оборудования | C61: =C63+C64+C65+C66 -> 4313.66 | D61: =D63+D64+D65+D66 -> 0 | E61: =E63+E64+E65+E66 -> 4401.4375 | F61: =F63+F64+F65+F66 -> 0 | G61: 4432.356 | H61: 4432.356 | I61: 4434.356 | J61: 0 | K61: 0 | L61: 0 | M61: 4425.456 | N61: 0 | O61: =IF(ISERROR(N61/E61),0,N61/E61) -> 0 | P61: =P63+P64+P65+P66 -> 0
B62: в том числе:
B63: ВН | C63: 141.12 | E63: 141.12 | G63: ='2.3'!B27 -> 141.12 | H63: ='2.3'!$B$28 -> 141.12 | I63: ='2.3'!$B$29 -> 141.12 | J63: ='2.3'!$B$30 -> 0 | K63: ='2.3'!$B$31 -> 0 | L63: ='2.3'!$B$32 -> 0 | M63: 141.12 | O63: =IF(ISERROR(N63/E63),0,N63/E63) -> 0 | P63: =IF(N$59=0,0,P54/N$59) -> 0
B64: СН1 | C64: 300.74 | E64: 300.74 | G64: ='2.3'!C27 -> 300.74 | H64: ='2.3'!$C$28 -> 300.74 | I64: ='2.3'!$C$29 -> 300.74 | J64: ='2.3'!$C$30 -> 0 | K64: ='2.3'!$C$31 -> 0 | L64: ='2.3'!$C$32 -> 0 | M64: 300.74 | O64: =IF(ISERROR(N64/E64),0,N64/E64) -> 0 | P64: =IF(N$59=0,0,P55/N$59) -> 0
B65: СН2 | C65: 3866.4 | E65: 3954.1775 | G65: ='2.3'!D27 -> 3985.096 | H65: ='2.3'!$D$28 -> 3985.096 | I65: ='2.3'!$D$29 -> 3987.096 | J65: ='2.3'!$D$30 -> 0 | K65: ='2.3'!$D$31 -> 0 | L65: ='2.3'!$D$32 -> 0 | M65: 3978.196 | O65: =IF(ISERROR(N65/E65),0,N65/E65) -> 0 | P65: =IF(N$59=0,0,P56/N$59) -> 0
B66: НН | C66: 5.4 | E66: 5.4 | G66: ='2.3'!E27 -> 5.4 | H66: ='2.3'!$E$28 -> 5.4 | I66: ='2.3'!$E$29 -> 5.4 | J66: ='2.3'!$E$30 -> 0 | K66: ='2.3'!$E$31 -> 0 | L66: ='2.3'!$E$32 -> 0 | M66: 5.4 | O66: =IF(ISERROR(N66/E66),0,N66/E66) -> 0 | P66: =IF(N$59=0,0,P57/N$59) -> 0
B68: Руководитель организации | H68: (подпись) (Ф.И.О.) | M68: К. Ю. Вергазов
B70: Должностное лицо, ответственное за составление формы | H70: (подпись) (Ф.И.О.) | M70: О. В. Костюкова

Sheet ОПР -25 счет
B1: =Анкета!B3 -> АО "Чепецкий механический завод" | D1: Приложение Цеховые расходы (25 счет)
A3: Расчет цеховых расходов, относимых на услуги по передаче электрической энергии
K4: тыс.руб.
A5: № п/п | B5: Статья затрат | C5: Факт 2014 года | D5: Факт I квартала 2015 года | E5: Ожидаемое 2015 года | F5: План предприятия на 2016 год | G5: План предприятия на 2017 год | H5: План предприятия на 2018 год | I5: План предприятия на 2019 год | J5: План предприятия на 2020 год | K5: Признано обоснованным регулирующим органом на 2016 год | L5: в том числе доля на услуги по передаче электрической энергии | M5: в том числе доля на сторонних потребителей услуг по передаче электрической энергии
A6: Расчет общей суммы цеховых расходов по организации
A7: 1. | B7: Оплата труда цехового персонала | L7: =K7*K$37 -> 0 | M7: =K7*K$37*'2.3'!$F$39 -> 
B8: среднемесячная оплата труда цехового персонала, (руб.) | C8: =IF(C9=0,0,C7/12/C9*1000) -> 0 | D8: =IF(D9=0,0,D7/3/D9*1000) -> 0 | E8: 0 | F8: 0 | G8: 0 | H8: 0 | I8: 0 | J8: 0 | K8: 0 | M8: =K8*K$37*'2.3'!$F$39 -> 
B9: численность цехового персонала, ед. | L9: =K9*K$37 -> 0 | M9: =K9*K$37*'2.3'!$F$39 -> 
A10: 2. | B10: Страховые взносы социального характера | L10: 0 | M10: =K10*K$37*'2.3'!$F$39 -> 
A11: 3. | B11: Амортизация | L11: 0 | M11: =K11*K$37*'2.3'!$F$39 -> 
A12: 4. | B12: Услуги коммунального характера | C12: =C13+C14+C17+C16 -> 0 | D12: 0 | E12: 0 | F12: 0 | G12: 0 | H12: 0 | I12: 0 | J12: 0 | K12: 0 | L12: 0 | M12: =K12*K$37*'2.3'!$F$39 -> 
B13: электрическая энергия | L13: 0 | M13: =K13*K$37*'2.3'!$F$39 -> 
B14: отопление | L14: 0 | M14: =K14*K$37*'2.3'!$F$39 -> 
B15: газ
B16: ГВС | L16: 0 | M16: =K16*K$37*'2.3'!$F$39 -> 
B17: водоснабжение | L17: 0 | M17: =K17*K$37*'2.3'!$F$39 -> 
B18: водоотведение
A19: 5. | B19: Обучение работников, повышение квалификации | L19: 0 | M19: =K19*K$37*'2.3'!$F$39 -> 
A20: 6. | B20: Расходы по охране труда | L20: 0 | M20: =K20*K$37*'2.3'!$F$39 -> 
A21: 7. | B21: Услуги связи | L21: 0 | M21: =K21*K$37*'2.3'!$F$39 -> 
A22: 8. | B22: Арендная плата | L22: 0 | M22: =K22*K$37*'2.3'!$F$39 -> 
A23: 9. | B23: Прочие расходы (с расшифровкой) | C23: =SUM(C24:C29) -> 0 | D23: =SUM(D24:D29) -> 0 | E23: 0 | F23: =SUM(F24:F29) -> 0 | G23: =SUM(G24:G29) -> 0 | H23: =SUM(H24:H29) -> 0 | I23: =SUM(I24:I29) -> 0 | J23: =SUM(J24:J29) -> 0 | K23: 0 | L23: 0
B24: Вспомогательные материалы | L24: 0 | M24: =K24*K$37*'2.3'!$F$39 -> 
B25: Услуги по ремонту и техническому обслуживанию | L25: 0 | M25: =K25*K$37*'2.3'!$F$39 -> 
L26: 0 | M26: =K26*K$37*'2.3'!$F$39 -> 
L27: 0 | M27: =K27*K$37*'2.3'!$F$39 -> 
L28: 0 | M28: =K28*K$37*'2.3'!$F$39 -> 
L29: 0 | M29: =K29*K$37*'2.3'!$F$39 -> 
A30: 10. | B30: Итого: | C30: =C7+C10+C11+C12+C19+C20+C21+C22+C23 -> 0 | D30: 0 | E30: 0 | F30: 0 | G30: 0 | H30: 0 | I30: =I7+I10+I11+I12+I19+I20+I21+I22+I23 -> 0 | J30: =J7+J10+J11+J12+J19+J20+J21+J22+J23 -> 0 | K30: =K7+K10+K11+K12+K19+K20+K21+K22+K23 -> 0 | L30: =L7+L10+L11+L12+L19+L20+L21+L22+L23 -> 0 | M30: =M7+M10+M11+M12+M19+M20+M21+M22+M23 -> 
A32: 11. | B32: База распределения цеховых расходов согласно учетной политике организации
A33: 11.1. | B33: наименование
A34: 11.2. | B34: всего по организации (по цеху), тыс.руб.
A35: 11.3. | B35: в том числе база, относимая на услуги по передаче электрической энергии, тыс. руб.
A36: 12. | B36: % цеховых расходов | C36: =IF(C34=0,0,C30/C34) -> 0 | D36: =IF(D34=0,0,D30/D34) -> 0 | E36: 0.74402 | F36: 0 | G36: 0 | H36: 0 | I36: =IF(I34=0,0,I30/I34) -> 0 | J36: =IF(J34=0,0,J30/J34) -> 0 | K36: 0
A37: 13. | B37: Доля цеховых расходов, относимая на услуги по передаче электрической энергии | C37: =IF(C34=0,0,C35/C34) -> 0 | D37: 0 | E37: 0 | F37: 0 | G37: 0 | H37: 0 | I37: 0 | J37: 0 | K37: =C37 -> 0
A38: Расчет цеховых расходов, относимых на услуги по передаче электрической энергии
A40: 14. | B40: Сумма цеховых расходов, относимых на услуги по передаче электрической энергии, тыс.руб. | C40: =C36*C35 -> 0 | D40: =D36*D35 -> 0 | E40: =E36*E35 -> 0 | F40: 0 | G40: 0 | H40: 0 | I40: 0 | J40: 0 | K40: =K37*K30 -> 0
A41: 15. | B41: Сумма цеховых расходов согласно калькуляции (табл.18), тыс.руб. | C41: ='18'!#REF! ->  | D41: ='18'!F29 -> 0 | E41: ='18'!G29 -> 0 | F41: ='18'!H29 -> 0 | G41: ='18'!I29 -> 0 | H41: ='18'!J29 -> 0 | I41: ='18'!K29 -> 0 | J41: ='18'!L29 -> 0 | K41: ='18'!N29 -> 0
A43: Руководитель организации | F43: К. Ю. Вергазов | H43: (подпись) (Ф.И.О.)
A45: Должностное лицо, ответственное за составление формы | F45: О. В. Костюкова | H45: (подпись) (Ф.И.О.)
C333: прямые расходы
C334: оплата труда производственного персонала
C335: выручка от реализации услуг

Sheet ОХР -26 счет
B1: =Анкета!B3 -> АО "Чепецкий механический завод" | E1: Приложение Общехозяйственные расходы (26 счет)
A3: Расчет общехозяйственных расходов, относимых на услуги по передаче электрической энергии
K4: тыс.руб.
A5: № п/п | B5: Статья затрат | C5: Факт 2014 года | D5: Факт I квартала 2015 года | E5: Ожидаемое 2015 года | F5: План предприятия на 2016 год | G5: План предприятия на 2017 год | H5: План предприятия на 2018 год | I5: План предприятия на 2019 год | J5: План предприятия на 2020 год | K5: Признано обоснованным регулирующим органом на 2016 год | L5: в том числе доля на услуги по передаче электрической энергии | M5: в том числе доля на сторонних потребителей услуг по передаче электрической энергии
A6: Расчет общей суммы общехозяйственных расходов по организации
A7: 1. | B7: Оплата труда | L7: =K7*K$39 -> 0 | M7: =K7*K$39*'2.3'!$F$39 -> 
B8: среднемесячная оплата труда, (руб.) | C8: =IF(C9=0,0,C7/12/C9*1000) -> 0 | D8: =IF(D9=0,0,D7/12/D9*1000) -> 0 | E8: 0 | F8: 0 | G8: 0 | H8: 0 | I8: 0 | J8: 0 | K8: 0 | M8: =K8*K$39*'2.3'!$F$39 -> 
B9: численность, ед. | L9: =K9*K$39 -> 0 | M9: =K9*K$39*'2.3'!$F$39 -> 
A10: 2. | B10: Страховые взносы социального характера | L10: 0 | M10: =K10*K$39*'2.3'!$F$39 -> 
A11: 3. | B11: Амортизация | L11: 0 | M11: =K11*K$39*'2.3'!$F$39 -> 
A12: 4. | B12: Услуги коммунального характера | C12: =C13+C14+C18+C16 -> 0 | D12: =D13+D14+D18+D16 -> 0 | E12: 0 | F12: 0 | G12: 0 | H12: 0 | I12: 0 | J12: 0 | K12: 0 | L12: 0 | M12: =K12*K$39*'2.3'!$F$39 -> 
B13: электрическая энергия | L13: 0 | M13: =K13*K$39*'2.3'!$F$39 -> 
B14: отопление | L14: 0 | M14: =K14*K$39*'2.3'!$F$39 -> 
B15: газ | L15: 0
B16: ГВС | L16: 0 | M16: =K16*K$39*'2.3'!$F$39 -> 
B17: водоснабжение | L17: 0
B18: водоотведение | L18: 0 | M18: =K18*K$39*'2.3'!$F$39 -> 
A19: 5. | B19: Обучение работников, повышение квалификации | L19: 0 | M19: =K19*K$39*'2.3'!$F$39 -> 
A20: 6. | B20: Расходы по охране труда | L20: 0 | M20: =K20*K$39*'2.3'!$F$39 -> 
A21: 7. | B21: Услуги связи | L21: 0 | M21: =K21*K$39*'2.3'!$F$39 -> 
A22: 8. | B22: Арендная плата | L22: 0 | M22: =K22*K$39*'2.3'!$F$39 -> 
A23: 9. | B23: Средства на страхование | L23: 0 | M23: =K23*K$39*'2.3'!$F$39 -> 
A24: 10. | B24: Информационные и консультационные услуги | L24: 0 | M24: =K24*K$39*'2.3'!$F$39 -> 
A25: 11. | B25: Налоги и другие обязательные платежи, в том числе | L25: 0 | M25: =K25*K$39*'2.3'!$F$39 -> 
B26: плата за землю | L26: 0 | M26: =K26*K$39*'2.3'!$F$39 -> 
B27: налог на имущество | L27: 0 | M27: =K27*K$39*'2.3'!$F$39 -> 
A28: 12. | B28: Прочие расходы | C28: =SUM(C29:C31) -> 0 | D28: =SUM(D29:D31) -> 0 | E28: 0 | F28: 0 | G28: 0 | H28: 0 | I28: 0 | J28: 0 | K28: 0 | L28: 0 | M28: =K28*K$39*'2.3'!$F$39 -> 
L29: 0 | M29: =K29*K$39*'2.3'!$F$39 -> 
L30: 0 | M30: =K30*K$39*'2.3'!$F$39 -> 
L31: 0 | M31: =K31*K$39*'2.3'!$F$39 -> 
A32: 13. | B32: Итого: | C32: =C7+C10+C11+C12+C19+C20+C21+C22+C23+C24+C25+C28 -> 0 | D32: =D7+D10+D11+D12+D19+D20+D21+D22+D23+D24+D25+D28 -> 0 | E32: 0 | F32: 0 | G32: 0 | H32: 0 | I32: 0 | J32: 0 | K32: 0 | L32: 0
A34: 14. | B34: База распределения общехозяйственных расходов согласно учетной политике организации
A35: 14.1. | B35: наименование
A36: 14.2. | B36: всего по организации, тыс.руб.
A37: 14.3. | B37: в том числе база, относимая на услуги по передаче электрической энергии, тыс. руб.
A38: 15. | B38: % общехозяйственных расходов | C38: =IF(C36=0,0,C32/C36) -> 0 | D38: 0 | E38: 0 | F38: 0 | G38: 0 | H38: 0 | I38: 0 | J38: 0 | K38: =IF(K36=0,0,K32/K36) -> 0
A39: 16. | B39: Доля общехозяйственных расходов, относимая на услуги по передаче электрической энергии | C39: =IF(C36=0,0,C37/C36) -> 0 | D39: 0 | E39: 0 | F39: 0 | G39: 0 | H39: 0 | I39: 0 | J39: 0 | K39: =C39 -> 0
A41: Расчет цеховых расходов, относимых на услуги по передаче электрической энергии
A43: 17. | B43: Сумма общехозяйственных расходов, относимая на услуги по передаче электрической энергии, тыс.руб. | C43: =C38*C37 -> 0 | D43: =D38*D37 -> 0 | E43: 0 | F43: 0 | G43: =G38*G37 -> 0 | H43: 0 | I43: 0 | J43: 0 | K43: =K39*K32 -> 0
A44: 18. | B44: Сумма общехозяйственных расходов согласно калькуляции (табл.18), тыс.руб. | C44: ='18'!#REF! ->  | D44: ='18'!F30 -> 2178.28 | E44: ='18'!G30 -> 8516.41 | F44: ='18'!H30 -> 8468.5 | G44: ='18'!I30 -> 0 | H44: ='18'!J30 -> 0 | I44: ='18'!K30 -> 0 | J44: ='18'!L30 -> 0 | K44: ='18'!N30 -> 0
A46: Руководитель организации | F46: К. Ю. Вергазов | H46: (подпись) (Ф.И.О.)
A48: Должностное лицо, ответственное за составление формы | F48: О. В. Костюкова | H48: (подпись) (Ф.И.О.)
C336: прямые расходы
C337: оплата труда производственного персонала
C338: выручка от реализации услуг

Sheet Закупки
P1: Приложение Информация о закупках
A2: Информация о закупках
A3: =Анкета!B3 -> АО "Чепецкий механический завод"
A4: N п/п | B4: Статьи затрат | C4: Ед. изм. | D4: Факт 2014 года, в том числе | E4: по результатам проведения конкурса | F4: по результатам проведения аукциона | G4: по результатам запроса котировок | H4: иные процедуры | I4: Ожидаемое 2015 года, в том числе | J4: по результатам проведения конкурса | K4: по результатам проведения аукциона | L4: по результатам запроса котировок | M4: иные процедуры | N4: План предприятия на 2016 год, в том числе | O4: по результатам проведения конкурса | P4: по результатам проведения аукциона | Q4: по результатам запроса котировок | R4: иные процедуры
A5: 1 | B5: 2 | C5: 3 | D5: =C5+1 -> 4 | E5: 5 | F5: 6 | G5: 7 | H5: 8 | I5: 9 | J5: 10 | K5: 11 | L5: 12 | M5: 13 | N5: 14 | O5: 15 | P5: 16 | Q5: 17 | R5: 18
A6: 1. Прямые затраты, относимые на услуги по передаче электрической энергии
A7: 1 | B7: Расходы на содержание и эксплуатацию оборудования, в том числе: | C7: тыс.руб. | D7: =E7+F7+G7+H7 -> 0 | I7: 36576.295 | N7: =O7+P7+Q7+R7 -> 0
A8: 1.1. | B8: услуги подрядных организаций по ремонту производственного оборудования | C8: тыс.руб. | D8: =E8+F8+G8+H8 -> 0 | I8: 10417 | N8: =O8+P8+Q8+R8 -> 0
A9: 1.2. | B9: услуги подрядных организаций по техобслуживанию и эксплуатации оборудования | C9: тыс.руб. | D9: 0 | I9: 25128 | N9: 0
A10: 1.3. | B10: материалы и оборудование на ремонт | C10: тыс.руб. | D10: 0 | I10: =J10+K10+L10+M10 -> 0 | N10: 0
A11: 1.4. | B11: вспомогательные материалы | C11: тыс.руб. | D11: 0 | I11: 1031.295 | N11: 0
A12: 1.5. | B12: транспортные услуги | C12: тыс.руб. | D12: 0 | I12: 0 | N12: 0
A13: 1.6. | B13: энергоаудит, экспертиза | D13: 0 | I13: 0 | N13: 0
A14: 2 | B14: Аренда производственного оборудования | C14: тыс.руб. | D14: 0 | I14: 7256.422 | N14: 0
A15: 2. Цеховые расходы
A16: 1. | B16: Сырье и материалы | C16: тыс.руб. | D16: =E16+F16+G16+H16 -> 0 | I16: =J16+K16+L16+M16 -> 0 | N16: =O16+P16+Q16+R16 -> 0
A17: 2. | B17: Услуги подрядных организаций | C17: тыс.руб. | D17: 0 | I17: 0 | N17: 0
A18: 2.1. | B18: в том числе: техническое обслуживание | C18: тыс.руб. | D18: 0 | I18: 0 | N18: 0
A19: 2.2. | B19: ремонт | C19: тыс.руб. | D19: 0 | I19: 0 | N19: 0
A20: 2.3. | B20: расходы по охране труда | C20: тыс.руб. | D20: 0 | I20: 0 | N20: 0
A21: 2.4. | B21: услуги связи | C21: тыс.руб. | D21: 0 | I21: 0 | N21: 0
A22: 2.5. | B22: страхование | C22: тыс.руб. | D22: 0 | I22: 0 | N22: 0
A23: 2.6. | B23: транспортные услуги | C23: тыс.руб. | D23: 0 | I23: 0 | N23: 0
A24: 2.7. | B24: энергоаудит, экспертиза | C24: тыс.руб. | D24: 0 | I24: 0 | N24: 0
A25: 2.8. | B25: повышение квалификации | C25: тыс.руб. | D25: 0 | I25: 0 | N25: 0
A26: 2.9. | B26: прочие расходы (с расшифровкой) | C26: тыс.руб. | D26: 0 | I26: 0 | N26: 0
A27: 3. | B27: Аренда | C27: тыс.руб. | D27: 0 | I27: 0 | N27: 0
A28: 3. Общехозяйственные расходы
A29: 1 | B29: Сырье и материалы | C29: тыс.руб. | D29: 0 | I29: =J29+K29+L29+M29 -> 0 | N29: =O29+P29+Q29+R29 -> 0
A30: 2. | B30: Услуги подрядных организаций | C30: тыс.руб. | D30: 0 | I30: 0 | N30: 0
A31: 2.1. | B31: в том числе: техническое обслуживание | C31: тыс.руб. | D31: 0 | I31: 0 | N31: 0
A32: 2.2. | B32: ремонт | C32: тыс.руб. | D32: 0 | I32: 0 | N32: 0
A33: 2.3. | B33: расходы по охране труда | C33: тыс.руб. | D33: 0 | I33: 0 | N33: 0
A34: 2.4. | B34: услуги связи | C34: тыс.руб. | D34: 0 | I34: 0 | N34: 0
A35: 2.5. | B35: страхование | C35: тыс.руб. | D35: 0 | I35: 0 | N35: 0
A36: 2.6. | B36: информационные и консультационные услуги | C36: тыс.руб. | D36: 0 | I36: 0 | N36: 0
A37: 2.7. | B37: транспортные услуги | C37: тыс.руб. | D37: 0 | I37: 0 | N37: 0
A38: 2.8. | B38: энергоаудит, экспертиза | C38: тыс.руб. | D38: 0 | I38: 0 | N38: 0
A39: 2.9. | B39: повышение квалификации | C39: тыс.руб. | D39: 0 | I39: 0 | N39: 0
A40: 2.10. | B40: охрана | C40: тыс.руб. | D40: 0 | I40: 0 | N40: 0
A41: 2.11. | B41: услуги управления | C41: тыс.руб. | D41: 0 | I41: 0 | N41: 0
A42: 2.12. | B42: прочие расходы (с расшифровкой) | C42: тыс.руб. | D42: 0 | I42: 0 | N42: 0
A43: 3. | B43: Аренда | C43: тыс.руб. | D43: 0 | I43: 0 | N43: 0
A44: Руководитель организации: | H44: К. Ю. Вергазов
A45: Должностное лицо, ответственное за составление формы: | H45: О. В. Костюкова
F46: Подпись | G46: ФИО

Sheet 20 (hidden)
B1: =Анкета!B3 -> АО "Чепецкий механический завод" | K1: Таблица № П1.20.
A2: Расчет источников финансирования капитальных вложений
K3: тыс. руб.
A4: № п.п. | B4: Наименование показателей | C4: Передача электроэнергии
C5: 2014 год утверждено | D5: 2014 год факт | E5: 2015 год утверждено | F5: 2015 год ожидаемое | G5: 2016 год план | H5: 2017 год план | I5: 2018 год план | J5: 2019 год план | K5: 2020 год план
A6: 1 | B6: 2 | C6: =B6+1 -> 3 | D6: =C6+1 -> 4 | E6: 5 | F6: 6 | G6: 7 | H6: 8 | I6: 9 | J6: =I6+1 -> 10 | K6: =J6+1 -> 11
A7: 1. | B7: Объем капитальных вложений - всего | C7: ='20.1'!B13 -> 0 | D7: ='20.1'!C13 -> 0 | E7: ='20.1'!F13 -> 0 | F7: ='20.1'!G13 -> 0 | G7: ='20.1'!H13 -> 0 | H7: ='20.1'!I13 -> 0 | I7: ='20.1'!J13 -> 0 | J7: ='20.1'!K13 -> 0 | K7: ='20.1'!L13 -> 0
B8: в том числе:
A9: 1.1. | B9: - на производственное и научно-техническое развитие
A10: 1.2. | B10: - на непроизводственное развитие
A11: 2. | B11: Финансирование капитальных вложений из средств - всего | C11: =SUM(C13:C20) -> 0 | D11: 0 | E11: 0 | F11: 0 | G11: 0 | H11: 0 | I11: 0 | J11: =SUM(J13:J20) -> 0 | K11: =SUM(K13:K20) -> 0
B12: в том числе:
A13: 2.1. | B13: Амортизационных отчислений на полное восстановление основных фондов
A14: 2.2. | B14: Неиспользованных средств амортизации и прибыли предыдущих лет на начало года, указанного в графе
A15: 2.3. | B15: Федерального бюджета
A16: 2.4. | B16: Республиканского бюджета
A17: 2.5. | B17: Местного бюждета
A18: 2.6. | B18: Прочих источников
A19: 2.7. | B19: Средства, полученные от реализации ценных бумаг
A20: 2.8. | B20: Кредитные средства
A21: 2.9. | B21: Итого по пп. 2.1. - 2.8. | C21: =SUM(C13:C20) -> 0 | D21: 0 | E21: 0 | F21: 0 | G21: 0 | H21: 0 | I21: 0 | J21: =SUM(J13:J20) -> 0 | K21: =SUM(K13:K20) -> 0
A22: 2.10. | B22: Прибыль (п. 1 - п. 2.9.): | C22: =IF(C7>C21, C7-C21, 0) -> 0 | D22: 0 | E22: 0 | F22: 0 | G22: 0 | H22: 0 | I22: 0 | J22: =IF(J7>J21, J7-J21, 0) -> 0 | K22: =IF(K7>K21, K7-K21, 0) -> 0
A24: Руководитель организации | H24: (подпись) (Ф.И.О.)
A26: Должностное лицо, ответственное за составление формы | H26: (подпись) (Ф.И.О.)

Sheet 20.1
B1: =Анкета!B3 -> АО "Чепецкий механический завод" | K1: Таблица № П1.20.1-4
A2: Справка о финансировании и освоении капитальных вложений
K3: тыс.руб.
A4: Наименование строек | B4: Утверждено на 2014 год | C4: В течение 2014 года | E4: Остаток финансиро-вания | F4: Утверждено на 2015 год | G4: В течение 2015 года | I4: Остаток финансиро-вания | J4: План на 2016 год | K4: Источник финанси-рования
C5: Освоено фактически (ввод) | D5: Профинан-сировано | G5: Ожидаемое освоение | H5: Ожидаемое финансирование
A6: 1 | B6: 2 | C6: 3 | D6: 4 | E6: 5 | F6: 6 | G6: 7 | H6: 8 | I6: 9 | J6: 10 | K6: 11
A8: Объект 1
A9: Объект 2
A10: Объект 3
A11: Объект 4
A12: Добавить строки
A13: Всего | B13: =SUM(B7:B12) -> 0 | C13: 0 | D13: 0 | E13: 0 | F13: 0 | G13: 0 | H13: 0 | I13: 0 | J13: 0
A15: Руководитель организации | H15: (подпись) (Ф.И.О.) | I15: К. Ю. Вергазов
A17: Должностное лицо, ответственное за составление формы | H17: (подпись) (Ф.И.О.) | I17: О. В. Костюкова

Sheet 21
B1: =Анкета!B3 -> АО "Чепецкий механический завод" | O1: Таблица № П1.21.
A2: Анализ балансовой прибыли, принимаемой при установлении тарифов на передачу электрической энергии
O3: тыс. руб.
A4: № п.п. | B4: Наименование показателя | C4: 2014 год утверждено | D4: 2014 год факт | E4: 2015 год утверждено | F4: 2015 год факт 1 квартал | G4: 2015 год ожидаемое | H4: 2016 год предложение организации | I4: 2017 год предложение организации | J4: 2018 год предложение организации | K4: 2019 год предложение организации | L4: 2020 год предложение организации | M4: 2016 год признано обоснованным регулирующим органом | N4: Рост, % | O4: доля прибыли 2015 года, относимая на сторонних потребителей услуг
A5: 1 | B5: =A5+1 -> 2 | C5: =B5+1 -> 3 | D5: 4 | E5: 5 | F5: 6 | G5: 7 | H5: 8 | I5: =H5+1 -> 9 | J5: =I5+1 -> 10 | K5: 11 | L5: 12 | M5: 13 | N5: 14 | O5: 15
A6: 1. | B6: Прибыль на развитие производства | N6: =IF(ISERROR(M6/E6),0,M6/E6) -> 0 | O6: =M6*O$49 -> 
B7: в том числе:
A8: 1.1. | B8: - капитальные вложения | C8: =SUM(C9:C12) -> 0 | D8: 0 | E8: 0 | F8: 0 | G8: 0 | H8: 0 | I8: =SUM(I9:I12) -> 0 | J8: =SUM(J9:J12) -> 0 | K8: =SUM(K9:K12) -> 0 | L8: =SUM(L9:L12) -> 0 | M8: 0 | N8: =IF(ISERROR(M8/E8),0,M8/E8) -> 0 | O8: =(M8-M9-M10-M11-M12)*'2.3'!$F$39+'21'!O9+'21'!O10+'21'!O11+'21'!O12 -> 
B9: ВН | N9: 0 | O9: =M9*'4'!#REF! -> 
B10: СН1 | N10: 0 | O10: =M10*'4'!#REF! -> 
B11: СН2 | N11: 0 | O11: ='4'!#REF! -> 
B12: НН | N12: 0 | O12: ='4'!#REF! -> 
A13: 2. | B13: Прибыль на социальное развитие | N13: 0 | O13: =M13*O$49 -> 
B14: в том числе:
A15: 2.1. | B15: - капитальные вложения | N15: =IF(ISERROR(M15/E15),0,M15/E15) -> 0 | O15: =M15*O$49 -> 
A16: 3. | B16: Льготы, компенсации и проч.выплаты по Колдоговору | N16: =IF(ISERROR(M16/E16),0,M16/E16) -> 0 | O16: =M16*O$49 -> 
A17: 4. | B17: Дивиденды по акциям | N17: =IF(ISERROR(M17/E17),0,M17/E17) -> 0 | O17: =M17*O$49 -> 
A18: 5. | B18: Прибыль на прочие цели | N18: =IF(ISERROR(M18/E18),0,M18/E18) -> 0 | O18: =M18*O$49 -> 
B19: в том числе:
A20: 5.1. | B20: - % за пользование кредитом | N20: =IF(ISERROR(M20/E20),0,M20/E20) -> 0 | O20: =M20*O$49 -> 
A21: 5.2. | B21: - услуги банка | N21: =IF(ISERROR(M21/E21),0,M21/E21) -> 0 | O21: =M21*O$49 -> 
A22: 5.3. | B22: - другие (с расшифровкой) | C22: =SUM(C23:C26) -> 0 | D22: 0 | E22: 0 | F22: 0 | G22: 0 | H22: =SUM(H23:H26) -> 0 | I22: =SUM(I23:I26) -> 0 | J22: =SUM(J23:J26) -> 0 | K22: =SUM(K23:K26) -> 0 | L22: =SUM(L23:L26) -> 0 | M22: 0 | N22: =IF(ISERROR(M22/E22),0,M22/E22) -> 0 | O22: =M22*O$49 -> 
B23: в том числе:
B24: Другие прочие платежи из прибыли | N24: =IF(ISERROR(M24/E24),0,M24/E24) -> 0 | O24: =M24*O$49 -> 
B25: Резерв по сомнительным долгам | N25: =IF(ISERROR(M25/E25),0,M25/E25) -> 0 | O25: =M25*O$49 -> 
N26: =IF(ISERROR(M26/E26),0,M26/E26) -> 0 | O26: =M26*O$49 -> 
B27: Добавить строки
A28: 6. | B28: Прибыль, облагаемая налогом | C28: =(C6+C13+C16+C17+C18-C20-C21)/0.8 -> 0 | D28: =(D6+D13+D16+D17+D18-D20-D21)/0.8 -> 0 | E28: =(E6+E13+E16+E17+E18-E20-E21)/0.8 -> 0 | F28: 0 | G28: 0 | H28: 0 | I28: 0 | J28: 0 | K28: 0 | L28: 0 | M28: 0 | N28: =IF(ISERROR(M28/E28),0,M28/E28) -> 0 | O28: =M28*O$49 -> 
A29: 7. | B29: Налоги, сборы, платежи - всего | C29: =C31+C36+C41+C42 -> 0 | D29: 0 | E29: 0 | F29: 0 | G29: 0 | H29: =H31+H36+H41+H42 -> 0 | I29: =I31+I36+I41+I42 -> 0 | J29: =J31+J36+J41+J42 -> 0 | K29: =K31+K36+K41+K42 -> 0 | L29: =L31+L36+L41+L42 -> 0 | M29: 0 | N29: =IF(ISERROR(M29/E29),0,M29/E29) -> 0 | O29: =O31+O36+O41+O42 -> 
B30: в том числе: | O30: =M30*O73 -> 0
A31: 7.1. | B31: Налог на прибыль | C31: =C28*0.2 -> 0 | D31: =D28*0.2 -> 0 | E31: 0 | F31: 0 | G31: 0 | H31: 0 | I31: 0 | J31: 0 | K31: 0 | L31: 0 | N31: =IF(ISERROR(M31/E31),0,M31/E31) -> 0 | O31: =(M31-M32-M33-M34-M35)*'2.3'!$F$39+'21'!O32+'21'!O33+'21'!O34+'21'!O35 -> 
B32: ВН | C32: =C9/0.8*0.2 -> 0 | D32: 0 | E32: 0 | F32: 0 | G32: 0 | H32: 0 | I32: =I9/0.8*0.2 -> 0 | J32: 0 | K32: 0 | L32: 0 | N32: 0 | O32: =M32*'4'!#REF! -> 
B33: СН1 | C33: =C10/0.8*0.2 -> 0 | D33: 0 | E33: 0 | F33: 0 | G33: 0 | H33: 0 | I33: 0 | J33: 0 | K33: 0 | L33: 0 | N33: 0 | O33: =M33*'4'!#REF! -> 
B34: СН2 | C34: 0 | D34: 0 | E34: 0 | F34: 0 | G34: 0 | H34: 0 | I34: 0 | J34: 0 | K34: 0 | L34: 0 | N34: 0 | O34: =M34*'4'!#REF! -> 
B35: НН | C35: 0 | D35: 0 | E35: 0 | F35: 0 | G35: 0 | H35: 0 | I35: 0 | J35: 0 | K35: 0 | L35: 0 | N35: 0 | O35: =M35*'4'!#REF! -> 
A36: 7.2. | B36: Налог на имущество | N36: 0 | O36: =(M36-M37-M38-M39-M40)*'2.3'!$F$39+'21'!O37+'21'!O38+'21'!O39+'21'!O40 -> 
B37: ВН | N37: 0 | O37: =M37*'4'!#REF! -> 
B38: СН1 | N38: 0 | O38: =M38*'4'!#REF! -> 
B39: СН2 | N39: 0 | O39: =M39*'4'!#REF! -> 
B40: НН | N40: 0 | O40: =M40*'4'!#REF! -> 
A41: 7.3. | B41: Плата за выбросы загрязняющих веществ | N41: 0 | O41: =M41*O84 -> 0
A42: 7.4. | B42: другие налоги и обязательные сборы и платежи (с расшифровкой) | C42: =SUM(C43:C47) -> 0 | D42: 0 | E42: 0 | F42: 0 | G42: 0 | H42: =SUM(H43:H47) -> 0 | I42: =SUM(I43:I47) -> 0 | J42: =SUM(J43:J47) -> 0 | K42: =SUM(K43:K47) -> 0 | L42: =SUM(L43:L47) -> 0 | M42: 0 | N42: 0 | O42: =M42*O85 -> 0
B43: в том числе:
N44: =IF(ISERROR(M44/E44),0,M44/E44) -> 0 | O44: =M44*O87 -> 0
N45: =IF(ISERROR(M45/E45),0,M45/E45) -> 0 | O45: =M45*O88 -> 0
N46: =IF(ISERROR(M46/E46),0,M46/E46) -> 0 | O46: =M46*O89 -> 0
B47: Добавить строки
A48: 8. | B48: Прибыль от реализации услуг по передаче электрической энергии | C48: =C6+C13+C16+C17+C18+C29 -> 0 | D48: 0 | E48: 0 | F48: 0 | G48: 0 | H48: =H6+H13+H16+H17+H18+H29 -> 0 | I48: =I6+I13+I16+I17+I18+I29 -> 0 | J48: =J6+J13+J16+J17+J18+J29 -> 0 | K48: =K6+K13+K16+K17+K18+K29 -> 0 | L48: =L6+L13+L16+L17+L18+L29 -> 0 | M48: 0 | N48: =IF(ISERROR(M48/E48),0,M48/E48) -> 0 | O48: =O50+O51+O52+O53 -> 
B49: в том числе: | O49: =IF(O48=0,0,O48/M48) -> 
B50: ВН | C50: =IF('18'!#REF!=0,0,C37+C32+C9+(C$48-C$37-C$38-C$39-C$40-C$32-C$33-C$34-C$35-C$9-C$10-C$11-C$12)/'18'!#REF!*'18'!#REF!) ->  | D50: =IF('18'!N$61=0,0,D37+D32+D9+(D$48-D$37-D$38-D$39-D$40-D$32-D$33-D$34-D$35-D$9-D$10-D$11-D$12)/'18'!N$61*'18'!N63) -> 0 | E50: =IF('18'!E$61=0,0,E37+E32+E9+(E$48-E$37-E$38-E$39-E$40-E$32-E$33-E$34-E$35-E$9-E$10-E$11-E$12)/'18'!E$61*'18'!E63) -> 0 | F50: =IF('18'!F$61=0,0,F37+F32+F9+(F$48-F$37-F$38-F$39-F$40-F$32-F$33-F$34-F$35-F$9-F$10-F$11-F$12)/'18'!F$61*'18'!F63) -> 0 | G50: =IF('18'!G$61=0,0,G37+G32+G9+(G$48-G$37-G$38-G$39-G$40-G$32-G$33-G$34-G$35-G$9-G$10-G$11-G$12)/'18'!G$61*'18'!G63) -> 0 | H50: =IF('18'!H$61=0,0,H37+H32+H9+(H$48-H$37-H$38-H$39-H$40-H$32-H$33-H$34-H$35-H$9-H$10-H$11-H$12)/'18'!H$61*'18'!H63) -> 0 | I50: =IF('18'!I$61=0,0,I37+I32+I9+(I$48-I$37-I$38-I$39-I$40-I$32-I$33-I$34-I$35-I$9-I$10-I$11-I$12)/'18'!I$61*'18'!I63) -> 0 | J50: =IF('18'!J$61=0,0,J37+J32+J9+(J$48-J$37-J$38-J$39-J$40-J$32-J$33-J$34-J$35-J$9-J$10-J$11-J$12)/'18'!J$61*'18'!J63) -> 0 | K50: =IF('18'!K$61=0,0,K37+K32+K9+(K$48-K$37-K$38-K$39-K$40-K$32-K$33-K$34-K$35-K$9-K$10-K$11-K$12)/'18'!K$61*'18'!K63) -> 0 | L50: =IF('18'!L$61=0,0,L37+L32+L9+(L$48-L$37-L$38-L$39-L$40-L$32-L$33-L$34-L$35-L$9-L$10-L$11-L$12)/'18'!L$61*'18'!L63) -> 0 | M50: =IF('18'!N$61=0,0,M37+M32+M9+(M$48-M$37-M$38-M$39-M$40-M$32-M$33-M$34-M$35-M$9-M$10-M$11-M$12)/'18'!N$61*'18'!N63) -> 0 | N50: =IF(ISERROR(M50/E50),0,M50/E50) -> 0 | O50: =(M50-M9-M32-M37)*'4'!#REF!+'21'!O9+'21'!O32+'21'!O37 -> 
B51: СН1 | C51: =IF('18'!#REF!=0,0,C38+C33+C10+(C$48-C$37-C$38-C$39-C$40-C$32-C$33-C$34-C$35-C$9-C$10-C$11-C$12)/'18'!#REF!*'18'!#REF!) ->  | D51: =IF('18'!#REF!=0,0,D38+D33+D10+(D$48-D$37-D$38-D$39-D$40-D$32-D$33-D$34-D$35-D$9-D$10-D$11-D$12)/'18'!#REF!*'18'!#REF!) ->  | E51: =IF('18'!E$61=0,0,E38+E33+E10+(E$48-E$37-E$38-E$39-E$40-E$32-E$33-E$34-E$35-E$9-E$10-E$11-E$12)/'18'!E$61*'18'!E64) -> 0 | F51: =IF('18'!F$61=0,0,F38+F33+F10+(F$48-F$37-F$38-F$39-F$40-F$32-F$33-F$34-F$35-F$9-F$10-F$11-F$12)/'18'!F$61*'18'!F64) -> 0 | G51: =IF('18'!G$61=0,0,G38+G33+G10+(G$48-G$37-G$38-G$39-G$40-G$32-G$33-G$34-G$35-G$9-G$10-G$11-G$12)/'18'!G$61*'18'!G64) -> 0 | H51: =IF('18'!H$61=0,0,H38+H33+H10+(H$48-H$37-H$38-H$39-H$40-H$32-H$33-H$34-H$35-H$9-H$10-H$11-H$12)/'18'!H$61*'18'!H64) -> 0 | I51: =IF('18'!I$61=0,0,I38+I33+I10+(I$48-I$37-I$38-I$39-I$40-I$32-I$33-I$34-I$35-I$9-I$10-I$11-I$12)/'18'!I$61*'18'!I64) -> 0 | J51: =IF('18'!J$61=0,0,J38+J33+J10+(J$48-J$37-J$38-J$39-J$40-J$32-J$33-J$34-J$35-J$9-J$10-J$11-J$12)/'18'!J$61*'18'!J64) -> 0 | K51: =IF('18'!K$61=0,0,K38+K33+K10+(K$48-K$37-K$38-K$39-K$40-K$32-K$33-K$34-K$35-K$9-K$10-K$11-K$12)/'18'!K$61*'18'!K64) -> 0 | L51: =IF('18'!L$61=0,0,L38+L33+L10+(L$48-L$37-L$38-L$39-L$40-L$32-L$33-L$34-L$35-L$9-L$10-L$11-L$12)/'18'!L$61*'18'!L64) -> 0 | M51: =IF('18'!N$61=0,0,M38+M33+M10+(M$48-M$37-M$38-M$39-M$40-M$32-M$33-M$34-M$35-M$9-M$10-M$11-M$12)/'18'!N$61*'18'!N64) -> 0 | N51: =IF(ISERROR(M51/E51),0,M51/E51) -> 0 | O51: =(M51-M10-M33-M38)*'4'!#REF!+'21'!O10+'21'!O33+'21'!O38 -> 
B52: СН2 | C52: =IF('18'!#REF!=0,0,C39+C34+C11+(C$48-C$37-C$38-C$39-C$40-C$32-C$33-C$34-C$35-C$9-C$10-C$11-C$12)/'18'!#REF!*'18'!#REF!) ->  | D52: =IF('18'!#REF!=0,0,D39+D34+D11+(D$48-D$37-D$38-D$39-D$40-D$32-D$33-D$34-D$35-D$9-D$10-D$11-D$12)/'18'!#REF!*'18'!#REF!) ->  | E52: =IF('18'!E$61=0,0,E39+E34+E11+(E$48-E$37-E$38-E$39-E$40-E$32-E$33-E$34-E$35-E$9-E$10-E$11-E$12)/'18'!E$61*'18'!E65) -> 0 | F52: =IF('18'!F$61=0,0,F39+F34+F11+(F$48-F$37-F$38-F$39-F$40-F$32-F$33-F$34-F$35-F$9-F$10-F$11-F$12)/'18'!F$61*'18'!F65) -> 0 | G52: =IF('18'!G$61=0,0,G39+G34+G11+(G$48-G$37-G$38-G$39-G$40-G$32-G$33-G$34-G$35-G$9-G$10-G$11-G$12)/'18'!G$61*'18'!G65) -> 0 | H52: =IF('18'!H$61=0,0,H39+H34+H11+(H$48-H$37-H$38-H$39-H$40-H$32-H$33-H$34-H$35-H$9-H$10-H$11-H$12)/'18'!H$61*'18'!H65) -> 0 | I52: =IF('18'!I$61=0,0,I39+I34+I11+(I$48-I$37-I$38-I$39-I$40-I$32-I$33-I$34-I$35-I$9-I$10-I$11-I$12)/'18'!I$61*'18'!I65) -> 0 | J52: =IF('18'!J$61=0,0,J39+J34+J11+(J$48-J$37-J$38-J$39-J$40-J$32-J$33-J$34-J$35-J$9-J$10-J$11-J$12)/'18'!J$61*'18'!J65) -> 0 | K52: =IF('18'!K$61=0,0,K39+K34+K11+(K$48-K$37-K$38-K$39-K$40-K$32-K$33-K$34-K$35-K$9-K$10-K$11-K$12)/'18'!K$61*'18'!K65) -> 0 | L52: =IF('18'!L$61=0,0,L39+L34+L11+(L$48-L$37-L$38-L$39-L$40-L$32-L$33-L$34-L$35-L$9-L$10-L$11-L$12)/'18'!L$61*'18'!L65) -> 0 | M52: =IF('18'!N$61=0,0,M39+M34+M11+(M$48-M$37-M$38-M$39-M$40-M$32-M$33-M$34-M$35-M$9-M$10-M$11-M$12)/'18'!N$61*'18'!N65) -> 0 | N52: =IF(ISERROR(M52/E52),0,M52/E52) -> 0 | O52: =(M52-M11-M34-M39)*'4'!#REF!+'21'!O11+'21'!O34+'21'!O39 -> 
B53: НН | C53: =IF('18'!#REF!=0,0,C40+C35+C12+(C$48-C$37-C$38-C$39-C$40-C$32-C$33-C$34-C$35-C$9-C$10-C$11-C$12)/'18'!#REF!*'18'!#REF!) ->  | D53: =IF('18'!#REF!=0,0,D40+D35+D12+(D$48-D$37-D$38-D$39-D$40-D$32-D$33-D$34-D$35-D$9-D$10-D$11-D$12)/'18'!#REF!*'18'!#REF!) ->  | E53: =IF('18'!E$61=0,0,E40+E35+E12+(E$48-E$37-E$38-E$39-E$40-E$32-E$33-E$34-E$35-E$9-E$10-E$11-E$12)/'18'!E$61*'18'!E66) -> 0 | F53: =IF('18'!F$61=0,0,F40+F35+F12+(F$48-F$37-F$38-F$39-F$40-F$32-F$33-F$34-F$35-F$9-F$10-F$11-F$12)/'18'!F$61*'18'!F66) -> 0 | G53: =IF('18'!G$61=0,0,G40+G35+G12+(G$48-G$37-G$38-G$39-G$40-G$32-G$33-G$34-G$35-G$9-G$10-G$11-G$12)/'18'!G$61*'18'!G66) -> 0 | H53: =IF('18'!H$61=0,0,H40+H35+H12+(H$48-H$37-H$38-H$39-H$40-H$32-H$33-H$34-H$35-H$9-H$10-H$11-H$12)/'18'!H$61*'18'!H66) -> 0 | I53: =IF('18'!I$61=0,0,I40+I35+I12+(I$48-I$37-I$38-I$39-I$40-I$32-I$33-I$34-I$35-I$9-I$10-I$11-I$12)/'18'!I$61*'18'!I66) -> 0 | J53: =IF('18'!J$61=0,0,J40+J35+J12+(J$48-J$37-J$38-J$39-J$40-J$32-J$33-J$34-J$35-J$9-J$10-J$11-J$12)/'18'!J$61*'18'!J66) -> 0 | K53: =IF('18'!K$61=0,0,K40+K35+K12+(K$48-K$37-K$38-K$39-K$40-K$32-K$33-K$34-K$35-K$9-K$10-K$11-K$12)/'18'!K$61*'18'!K66) -> 0 | L53: =IF('18'!L$61=0,0,L40+L35+L12+(L$48-L$37-L$38-L$39-L$40-L$32-L$33-L$34-L$35-L$9-L$10-L$11-L$12)/'18'!L$61*'18'!L66) -> 0 | M53: =IF('18'!N$61=0,0,M40+M35+M12+(M$48-M$37-M$38-M$39-M$40-M$32-M$33-M$34-M$35-M$9-M$10-M$11-M$12)/'18'!N$61*'18'!N66) -> 0 | N53: =IF(ISERROR(M53/E53),0,M53/E53) -> 0 | O53: =(M53-M12-M35-M40)*'4'!#REF!+'21'!O12+'21'!O35+'21'!O40 -> 
A55: Руководитель организации | H55: (подпись) (Ф.И.О.) | I55: К. Ю. Вергазов
A57: Должностное лицо, ответственное за составление формы | H57: (подпись) (Ф.И.О.) | I57: О. В. Костюкова

Sheet 25
B1: =Анкета!B3 -> АО "Чепецкий механический завод" | N1: Таблица № П1.25
A2: Анализ расходов по оплате технологического расхода (потерь) электрической энергии на ее передачу
A3: № п.п. | B3: Наименование показателя | C3: Единицы измерения | D3: 2013 год факт | E3: 2014 год утверждено | F3: 2014 год факт | G3: 2015 год утверждено | H3: 2015 год ожидаемое | I3: 2016 год предложение организации | J3: 2017 год предложение организации | K3: 2018 год предложение организации | L3: 2019 год предложение организации | M3: 2020 год предложение организации | N3: 2016 год утверждено (до корректировки) | O3: 2016 год признано обоснованным регулирующим органом с учетом корректировки | P3: Прирост 2015г. к 2014г., % | Q3: Признано обоснованным на 2017 год | R3: Признано обоснованным на 2018 год | S3: Признано обоснованным на 2019 год | T3: Признано обоснованным на 2020 год
A4: 1 | B4: 2 | C4: =B4+1 -> 3 | D4: =C4+1 -> 4 | E4: 5 | F4: 6 | G4: 7 | H4: 8 | I4: 9 | J4: 10 | K4: 11 | L4: 12 | M4: 13 | N4: 10 | O4: 11 | P4: 12 | Q4: =P4+1 -> 13 | R4: =Q4+1 -> 14 | S4: =R4+1 -> 15 | T4: =S4+1 -> 16
A5: 1. | B5: Цена на электроэнергию (покупка потерь) | C5: руб/МВтч | D5: 1.715611 | E5: 1.886402 | F5: =+'Цена потерь'!E6 -> 1.823491863 | G5: 1.961545 | H5: 1.97 | I5: 1.97 | N5: 2.16 | P5: =IF(ISERROR(O5/E5),0,O5/E5) -> 0 | Q5: =O5*1.093 -> 0 | R5: =Q5*1.093 -> 0 | S5: =R5*1.093 -> 0 | T5: =S5*1.093 -> 0
A6: 2. | B6: Отпуск электрической энергии в сеть | C6: тыс.кВтч.
A7: 2.1. | B7: ВН | C7: тыс.кВтч. | D7: ='4'!D8 -> 21510.379 | E7: ='4'!I8 -> 36132.805 | F7: ='4'!N8 -> 29854.374 | G7: ='4'!S8 -> 4867.152 | H7: ='4'!X8 -> 29854.374 | I7: ='4'!AC8 -> 8717.63 | J7: ='4'!AC8 -> 8717.63 | K7: ='4'!AH8 -> 0 | L7: ='4'!AM8 -> 0 | M7: ='4'!AR8 -> 0 | N7: 4867.15 | O7: ='4'!#REF! ->  | P7: =IF(ISERROR(O7/E7),0,O7/E7) -> 0 | Q7: ='4'!#REF! ->  | R7: ='4'!#REF! ->  | S7: ='4'!#REF! ->  | T7: ='4'!#REF! -> 
A8: 2.2. | B8: СН | C8: тыс.кВтч. | D8: =D10+D11 -> 357826.4289 | E8: 367601.5798 | F8: 411461.8277 | G8: =G10+G11 -> 388624.4443 | H8: =H10+H11 -> 391407.442 | I8: 384639.5358 | J8: 384639.5358 | K8: 0 | L8: 0 | M8: 0 | N8: 384011.52 | P8: =IF(ISERROR(O8/E8),0,O8/E8) -> 0 | Q8: =Q10+Q11 ->  | R8: =R10+R11 ->  | S8: =S10+S11 ->  | T8: =T10+T11 -> 
B9: в том числе
B10: СН1 | C10: тыс.кВтч. | D10: ='4'!E8 -> 40219.788 | E10: ='4'!J8 -> 39987.983 | F10: ='4'!O8 -> 86531.637 | G10: ='4'!T8 -> 46995.08095 | H10: ='4'!Y8 -> 70650.457 | I10: ='4'!AD8 -> 50241.07 | J10: ='4'!AD8 -> 50241.07 | K10: ='4'!AI8 -> 0 | L10: ='4'!AN8 -> 0 | M10: ='4'!AS8 -> 0 | N10: 42228.68 | O10: ='4'!#REF! ->  | P10: =IF(ISERROR(O10/E10),0,O10/E10) -> 0 | Q10: ='4'!#REF! ->  | R10: ='4'!#REF! ->  | S10: ='4'!#REF! ->  | T10: ='4'!#REF! -> 
B11: СН2 | C11: тыс.кВтч. | D11: ='4'!F8 -> 317606.6409 | E11: ='4'!K8 -> 327613.5968 | F11: ='4'!P8 -> 324930.1907 | G11: ='4'!U8 -> 341629.3633 | H11: ='4'!Z8 -> 320756.985 | I11: ='4'!AE8 -> 334398.4658 | J11: ='4'!AE8 -> 334398.4658 | K11: ='4'!AJ8 -> 0 | L11: ='4'!AO8 -> 0 | M11: ='4'!AT8 -> 0 | N11: 341782.84 | O11: ='4'!#REF! ->  | P11: =IF(ISERROR(O11/E11),0,O11/E11) -> 0 | Q11: ='4'!#REF! ->  | R11: ='4'!#REF! ->  | S11: ='4'!#REF! ->  | T11: ='4'!#REF! -> 
A12: 2.3. | B12: НН | C12: тыс.кВтч. | D12: ='4'!G8 -> 828.457 | E12: ='4'!L8 -> 1151.082477 | F12: ='4'!Q8 -> 752.302 | G12: ='4'!V8 -> 1001.002912 | H12: ='4'!AA8 -> 868.5 | I12: ='4'!AF8 -> 757 | J12: ='4'!AF8 -> 757 | K12: ='4'!AK8 -> 0 | L12: ='4'!AP8 -> 0 | M12: ='4'!AU8 -> 0 | N12: 1000.99 | O12: ='4'!#REF! ->  | P12: =IF(ISERROR(O12/E12),0,O12/E12) -> 0 | Q12: ='4'!#REF! ->  | R12: ='4'!#REF! ->  | S12: ='4'!#REF! ->  | T12: ='4'!#REF! -> 
A13: 3. | B13: Потери электрической энергии
A14: 3.1. | B14: ВН | C14: % | D14: ='4'!D19 -> 4.155698512 | E14: ='4'!I19 -> 2.978522064 | F14: ='4'!N19 -> 3.392396705 | G14: ='4'!S19 -> 2.07 | H14: ='4'!X19 -> 5.103707752 | I14: ='4'!AC19 -> 2.07 | J14: ='4'!AC19 -> 2.07 | K14: ='4'!AH19 -> 0 | L14: ='4'!AM19 -> 0 | M14: ='4'!AR19 -> 0 | N14: 2.07 | O14: ='4'!#REF! ->  | P14: =IF(ISERROR(O14/E14),0,O14/E14) -> 0 | Q14: ='4'!#REF! ->  | R14: ='4'!#REF! ->  | S14: ='4'!#REF! ->  | T14: ='4'!#REF! -> 
A15: 3.2. | B15: СН | C15: %
B16: в том числе
B17: СН1 | C17: % | D17: ='4'!E19 -> 5.842406728 | E17: ='4'!J19 -> 1.490126782 | F17: ='4'!O19 -> 2.444491487 | G17: ='4'!T19 -> 3.22 | H17: ='4'!Y19 -> 2.073542143 | I17: ='4'!AD19 -> 3.229935774 | J17: ='4'!AD19 -> 3.229935774 | K17: ='4'!AI19 -> 0 | L17: ='4'!AN19 -> 0 | M17: ='4'!AS19 -> 0 | N17: 3.22 | O17: ='4'!#REF! ->  | P17: =IF(ISERROR(O17/E17),0,O17/E17) -> 0 | Q17: ='4'!#REF! ->  | R17: ='4'!#REF! ->  | S17: ='4'!#REF! ->  | T17: ='4'!#REF! -> 
B18: СН2 | C18: % | D18: ='4'!F19 -> 3.768889991 | E18: ='4'!K19 -> 3.120821205 | F18: ='4'!P19 -> 2.712721364 | G18: ='4'!U19 -> 3.77 | H18: ='4'!Z19 -> 3.306686525 | I18: ='4'!AE19 -> 3.286315138 | J18: ='4'!AE19 -> 3.286315138 | K18: ='4'!AJ19 -> 0 | L18: ='4'!AO19 -> 0 | M18: ='4'!AT19 -> 0 | N18: 3.77 | O18: ='4'!#REF! ->  | P18: =IF(ISERROR(O18/E18),0,O18/E18) -> 0 | Q18: ='4'!#REF! ->  | R18: ='4'!#REF! ->  | S18: ='4'!#REF! ->  | T18: ='4'!#REF! -> 
A19: 3.3. | B19: НН | C19: % | D19: ='4'!G19 -> 0 | E19: ='4'!L19 -> 4.009994854 | F19: ='4'!Q19 -> 0 | G19: ='4'!V19 -> 7.27 | H19: ='4'!AA19 -> 6.284398388 | I19: ='4'!AF19 -> 7.278731836 | J19: ='4'!AF19 -> 7.278731836 | K19: ='4'!AK19 -> 0 | L19: ='4'!AP19 -> 0 | M19: ='4'!AU19 -> 0 | N19: 7.27 | O19: ='4'!#REF! ->  | P19: =IF(ISERROR(O19/E19),0,O19/E19) -> 0 | Q19: ='4'!#REF! ->  | R19: ='4'!#REF! ->  | S19: ='4'!#REF! ->  | T19: ='4'!#REF! -> 
A20: 4. | B20: Полезный отпуск электрической энергии
A21: 4.1. | B21: ВН | C21: тыс.кВтч. | D21: ='4'!D22+'4'!D23 -> 0 | E21: ='4'!I22+'4'!I23 -> 0 | F21: ='4'!N22+'4'!N23 -> 0 | G21: ='4'!S22+'4'!S23 -> 0 | H21: ='4'!X22+'4'!X23 -> 0 | I21: ='4'!AC22+'4'!AC23 -> 0 | J21: ='4'!AC22+'4'!AC23 -> 0 | K21: ='4'!AH22+'4'!AH23 -> 0 | L21: ='4'!AM22+'4'!AM23 -> 0 | M21: ='4'!AR22+'4'!AR23 -> 0 | N21: 0 | O21: ='4'!#REF!+'4'!#REF! ->  | P21: =IF(ISERROR(O21/E21),0,O21/E21) -> 0 | Q21: ='4'!#REF!+'4'!#REF! ->  | R21: ='4'!#REF!+'4'!#REF! ->  | S21: ='4'!#REF!+'4'!#REF! ->  | T21: ='4'!#REF!+'4'!#REF! -> 
A22: 4.2. | B22: СН | C22: тыс.кВтч. | D22: =D24+D25 -> 305210.059 | E22: 316534.1517 | F22: 315900.39 | G22: =G24+G25 -> 327748.9334 | H22: =H24+H25 -> 310076.39 | I22: 323446.4064 | J22: 323446.4064 | K22: 0 | L22: 0 | M22: 0 | N22: 327896.63 | P22: =IF(ISERROR(O22/E22),0,O22/E22) -> 0 | Q22: =Q24+Q25 ->  | R22: =R24+R25 ->  | S22: =S24+S25 ->  | T22: =T24+T25 -> 
B23: в том числе
B24: СН1 | C24: тыс.кВтч. | D24: ='4'!E22+'4'!E23 -> 402.12 | E24: ='4'!J22+'4'!J23 -> 295.872 | F24: ='4'!O22+'4'!O23 -> 536.952 | G24: ='4'!T22+'4'!T23 -> 0 | H24: ='4'!Y22+'4'!Y23 -> 794.368 | I24: ='4'!AD22+'4'!AD23 -> 794.368 | J24: ='4'!AD22+'4'!AD23 -> 794.368 | K24: ='4'!AI22+'4'!AI23 -> 0 | L24: ='4'!AN22+'4'!AN23 -> 0 | M24: ='4'!AS22+'4'!AS23 -> 0 | N24: 0 | O24: ='4'!#REF!+'4'!#REF! ->  | P24: =IF(ISERROR(O24/E24),0,O24/E24) -> 0 | Q24: ='4'!#REF!+'4'!#REF! ->  | R24: ='4'!#REF!+'4'!#REF! ->  | S24: ='4'!#REF!+'4'!#REF! ->  | T24: ='4'!#REF!+'4'!#REF! -> 
B25: СН2 | C25: тыс.кВтч. | D25: ='4'!F22+'4'!F23 -> 304807.939 | E25: ='4'!K22+'4'!K23 -> 316238.2797 | F25: ='4'!P22+'4'!P23 -> 315363.438 | G25: ='4'!U22+'4'!U23 -> 327748.9334 | H25: ='4'!Z22+'4'!Z23 -> 309282.022 | I25: ='4'!AE22+'4'!AE23 -> 322652.0384 | J25: ='4'!AE22+'4'!AE23 -> 322652.0384 | K25: ='4'!AJ22+'4'!AJ23 -> 0 | L25: ='4'!AO22+'4'!AO23 -> 0 | M25: ='4'!AT22+'4'!AT23 -> 0 | N25: 327896.63 | O25: ='4'!#REF!+'4'!#REF! ->  | P25: =IF(ISERROR(O25/E25),0,O25/E25) -> 0 | Q25: ='4'!#REF!+'4'!#REF! ->  | R25: ='4'!#REF!+'4'!#REF! ->  | S25: ='4'!#REF!+'4'!#REF! ->  | T25: ='4'!#REF!+'4'!#REF! -> 
A26: 4.3. | B26: НН | C26: тыс.кВтч. | D26: ='4'!G22+'4'!G23 -> 828.457 | E26: ='4'!L22+'4'!L23 -> 1104.924 | F26: ='4'!Q22+'4'!Q23 -> 752.302 | G26: ='4'!V22+'4'!V23 -> 928.23 | H26: ='4'!AA22+'4'!AA23 -> 813.955 | I26: ='4'!AF22+'4'!AF23 -> 701.94 | J26: ='4'!AF22+'4'!AF23 -> 701.94 | K26: ='4'!AK22+'4'!AK23 -> 0 | L26: ='4'!AP22+'4'!AP23 -> 0 | M26: ='4'!AU22+'4'!AU23 -> 0 | N26: 928.23 | O26: ='4'!#REF!+'4'!#REF! ->  | P26: =IF(ISERROR(O26/E26),0,O26/E26) -> 0 | Q26: ='4'!#REF!+'4'!#REF! ->  | R26: ='4'!#REF!+'4'!#REF! ->  | S26: ='4'!#REF!+'4'!#REF! ->  | T26: ='4'!#REF!+'4'!#REF! -> 
A27: 5. | B27: Расходы на компенсацию потерь | C27: тыс.руб. | D27: =D28+D31+D32+D33 -> 26101.22855 | E27: =E28+E31+E32+E33 -> 22528.33355 | F27: =F28+F31+F32+F33 -> 21777.02969 | G27: =G28+G31+G32+G33 -> 28282.54734 | H27: =H28+H31+H32+H33 -> 26889.82035 | I27: =I28+I31+I32+I33 -> 25309.96237 | J27: 0 | K27: 0 | L27: 0 | M27: 0 | N27: =N28+N31+N32+N33 -> 31110.79 | O27: =O5*1000/1000 -> 0 | P27: =IF(ISERROR(O27/E27),0,O27/E27) -> 0 | Q27: =Q28+Q31+Q32+Q33 ->  | R27: =R28+R31+R32+R33 ->  | S27: =S28+S31+S32+S33 ->  | T27: =T28+T31+T32+T33 -> 
A28: 5.1. | B28: ВН | C28: тыс.руб. | D28: =D5*D7*D14/100 -> 1533.595824 | E28: =E5*E7*E14/100 -> 2030.190294 | F28: =F5*F7*F14/100 -> 1846.793901 | G28: 197.63 | H28: =H5*H7*H14/100 -> 3001.6496 | I28: =I5*I7*I14/100 -> 355.4962338 | J28: =J5*J7*J14/100/1000 -> 0 | K28: 0 | L28: 0 | M28: 0 | N28: 217.39 | P28: =IF(ISERROR(O28/E28),0,O28/E28) -> 0 | Q28: =Q5*Q7*Q14/100/1000 ->  | R28: =R5*R7*R14/100/1000 ->  | S28: =S5*S7*S14/100/1000 ->  | T28: =T5*T7*T14/100/1000 -> 
A29: 5.2. | B29: СН | C29: тыс.руб.
B30: в том числе
B31: СН1 | C31: тыс.руб. | D31: =D5*D10*D17/100 -> 4031.348904 | E31: =E5*E10*E17/100 -> 1124.053461 | F31: =F5*F10*F17/100 -> 3857.156662 | G31: 2667.24 | H31: =H5*H10*H17/100 -> 2885.98499 | I31: =I5*I10*I17/100 -> 3196.825958 | J31: =J5*J10*J17/100/1000 -> 0 | K31: 0 | L31: 0 | M31: 0 | N31: 2933.96 | P31: =IF(ISERROR(O31/E31),0,O31/E31) -> 0 | Q31: =Q5*Q10*Q17/100/1000 ->  | R31: =R5*R10*R17/100/1000 ->  | S31: =S5*S10*S17/100/1000 ->  | T31: =T5*T10*T17/100/1000 -> 
B32: СН2 | C32: тыс.руб. | D32: =D5*D11*D18/100 -> 20536.28382 | E32: =E5*E11*E18/100 -> 19287.0166 | F32: =F5*F11*F18/100 -> 16073.07913 | G32: 25274.93 | H32: =H5*H11*H18/100 -> 20894.66316 | I32: =I5*I11*I18/100 -> 21649.09318 | J32: =J5*J11*J18/100/1000 -> 0 | K32: 0 | L32: 0 | M32: 0 | N32: 27802.42 | P32: =IF(ISERROR(O32/E32),0,O32/E32) -> 0 | Q32: =Q5*Q11*Q18/100/1000 ->  | R32: =R5*R11*R18/100/1000 ->  | S32: =S5*S11*S18/100/1000 ->  | T32: =T5*T11*T18/100/1000 -> 
A33: 5.3. | B33: НН | C33: тыс.руб. | D33: =D5*D12*D19/100 -> 0 | E33: 87.07320017 | F33: 0 | G33: 142.747341 | H33: 107.5226 | I33: 108.547 | J33: =J5*J12*J19/100/1000 -> 0 | K33: 0 | L33: 0 | M33: 0 | N33: 157.02 | P33: =IF(ISERROR(O33/E33),0,O33/E33) -> 0 | Q33: =Q5*Q12*Q19/100/1000 ->  | R33: =R5*R12*R19/100/1000 ->  | S33: =S5*S12*S19/100/1000 ->  | T33: =T5*T12*T19/100/1000 -> 
A34: 6. | B34: Ставка на оплату технологического расхода (потерь ) электрической энергии на ее передачу по сетям
A35: 6.1. | B35: ВН | C35: руб./МВт.ч | D35: 0.0744 | E35: 0.0579 | F35: =IF((F7*(1-F14/100)=0),0,F28/(F7*(1-F14/100))) -> 0.06403230778 | G35: 0.04 | H35: =IF((H7*(1-H14/100)=0),0,H28/(H7*(1-H14/100))) -> 0.1059504437 | I35: =IF((I7*(1-I14/100)=0),0,I28/(I7*(1-I14/100))) -> 0.04164096804 | J35: =IF((J7*(1-J14/100)=0),0,J28/(J7*(1-J14/100)))*1000 -> 0 | K35: 0 | L35: 0 | M35: 0 | N35: 0.05 | P35: =IF(ISERROR(O35/E35),0,O35/E35) -> 0 | Q35: =IF((Q7*(1-Q14/100)=0),0,Q28/(Q7*(1-Q14/100)))*1000 ->  | R35: =IF((R7*(1-R14/100)=0),0,R28/(R7*(1-R14/100)))*1000 ->  | S35: =IF((S7*(1-S14/100)=0),0,S28/(S7*(1-S14/100)))*1000 ->  | T35: =IF((T7*(1-T14/100)=0),0,T28/(T7*(1-T14/100)))*1000 -> 
A36: 6.2. | B36: СН | C36: руб./МВт.ч
B37: в том числе
B38: СН1 | C38: руб./МВт.ч | D38: 0.1469 | E38: 0.0801 | F38: =IF(( F10 * (1 - F17/100))=0,0,(F31+F43) / ( F10 * (1 - F17/100))) -> 0.06756924029 | G38: 0.07 | H38: =IF(( H10 * (1 - H17/100))=0,0,(H31+H43) / ( H10 * (1 - H17/100))) -> 0.0850992685 | I38: =IF(( I10 * (1 - I17/100))=0,0,(I31+I43) / ( I10 * (1 - I17/100))) -> 0.07306551327 | J38: =IF(( J10 * (1 - J17/100))=0,0,(J31+J43) / ( J10 * (1 - J17/100)))*1000 -> 0 | K38: 0 | L38: 0 | M38: 0 | N38: 0.08 | P38: =IF(ISERROR(O38/E38),0,O38/E38) -> 0 | Q38: =IF(( Q10 * (1 - Q17/100))=0,0,(Q31+Q43) / ( Q10 * (1 - Q17/100)))*1000 ->  | R38: =IF(( R10 * (1 - R17/100))=0,0,(R31+R43) / ( R10 * (1 - R17/100)))*1000 ->  | S38: =IF(( S10 * (1 - S17/100))=0,0,(S31+S43) / ( S10 * (1 - S17/100)))*1000 ->  | T38: =IF(( T10 * (1 - T17/100))=0,0,(T31+T43) / ( T10 * (1 - T17/100)))*1000 -> 
B39: СН2 | C39: руб./МВт.ч | D39: 0.0852 | E39: 0.0706 | F39: =IF(( F11 * (1 - F18/100))=0,0,(F32+F43+F46) / ( F11 * (1 - F18/100))) -> 0.06877464643 | G39: 0.09 | H39: =IF(( H11 * (1 - H18/100))=0,0,(H32+H43+H46) / ( H11 * (1 - H18/100))) -> 0.08613461111 | I39: =IF(( I11 * (1 - I18/100))=0,0,(I32+I43+I46) / ( I11 * (1 - I18/100))) -> 0.07774480109 | J39: =IF(( J11 * (1 - J18/100))=0,0,(J32+J43+J46) / ( J11 * (1 - J18/100)))*1000 -> 0 | K39: 0 | L39: 0 | M39: 0 | N39: 0.09 | P39: =IF(ISERROR(O39/E39),0,O39/E39) -> 0 | Q39: =IF(( Q11 * (1 - Q18/100))=0,0,(Q32+Q43+Q46) / ( Q11 * (1 - Q18/100)))*1000 ->  | R39: =IF(( R11 * (1 - R18/100))=0,0,(R32+R43+R46) / ( R11 * (1 - R18/100)))*1000 ->  | S39: =IF(( S11 * (1 - S18/100))=0,0,(S32+S43+S46) / ( S11 * (1 - S18/100)))*1000 ->  | T39: =IF(( T11 * (1 - T18/100))=0,0,(T32+T43+T46) / ( T11 * (1 - T18/100)))*1000 -> 
A40: 6.3. | B40: НН | C40: руб./МВт.ч | D40: 0.0852 | E40: 0.1524 | F40: =IF(( F12 * (1 - F19/100))=0,0,(F33 +F43+F46+F49)/ ( F12 * (1 - F19/100))) -> 28.87013359 | G40: 0.25 | H40: =IF(( H12 * (1 - H19/100))=0,0,(H33 +H43+H46+H49)/ ( H12 * (1 - H19/100))) -> 0.2240189754 | I40: =IF(( I12 * (1 - I19/100))=0,0,(I33 +I43+I46+I49)/ ( I12 * (1 - I19/100))) -> 0.2384996783 | J40: =IF(( J12 * (1 - J19/100))=0,0,(J33 +J43+J46+J49)/ ( J12 * (1 - J19/100)))*1000 -> 0 | K40: 0 | L40: 0 | M40: 0 | N40: 0.27 | P40: =IF(ISERROR(O40/E40),0,O40/E40) -> 0 | Q40: =IF(( Q12 * (1 - Q19/100))=0,0,(Q33 +Q43+Q46+Q49)/ ( Q12 * (1 - Q19/100)))*1000 ->  | R40: =IF(( R12 * (1 - R19/100))=0,0,(R33 +R43+R46+R49)/ ( R12 * (1 - R19/100)))*1000 ->  | S40: =IF(( S12 * (1 - S19/100))=0,0,(S33 +S43+S46+S49)/ ( S12 * (1 - S19/100)))*1000 ->  | T40: =IF(( T12 * (1 - T19/100))=0,0,(T33 +T43+T46+T49)/ ( T12 * (1 - T19/100)))*1000 -> 
B42: Дельта НВВ ВН - СН | D42: =D35*('4'!D22+'4'!D23) -> 0 | E42: =E35*('4'!I22+'4'!I23) -> 0 | F42: =F35*('4'!N22+'4'!N23) -> 0 | G42: =G35*('4'!S22+'4'!S23) -> 0 | H42: =H35*('4'!X22+'4'!X23) -> 0 | I42: =I35*('4'!AC22+'4'!AC23) -> 0 | J42: =J35*('4'!AC22+'4'!AC23) -> 0 | K42: =K35*('4'!AH22+'4'!AH23) -> 0 | L42: =L35*('4'!AM22+'4'!AM23) -> 0 | M42: =M35*('4'!AR22+'4'!AR23) -> 0 | N42: 0 | O42: =O35*('4'!#REF!+'4'!#REF!) ->  | P42: =IF(ISERROR(O42/E42),0,O42/E42) -> 0 | Q42: =Q35*('4'!#REF!+'4'!#REF!) ->  | R42: =R35*('4'!#REF!+'4'!#REF!) ->  | S42: =S35*('4'!#REF!+'4'!#REF!) ->  | T42: =T35*('4'!#REF!+'4'!#REF!) -> 
D43: =D28-D42 -> 1533.595824 | E43: =E28-E42 -> 2030.190294 | F43: 1846.793901 | G43: 197.63 | H43: =H28-H42 -> 3001.6496 | I43: =I28-I42 -> 355.4962338 | J43: 0 | K43: 0 | L43: 0 | M43: 0 | N43: 217.39 | P43: =IF(ISERROR(O43/E43),0,O43/E43) -> 0 | Q43: =Q28-Q42 ->  | R43: =R28-R42 ->  | S43: =S28-S42 ->  | T43: =T28-T42 -> 
B45: Дельта НВВ СН1 - СН2 | D45: =D38*('4'!E22+'4'!E23) -> 59.071428 | E45: 23.69 | F45: =F38*('4'!O22+'4'!O23) -> 36.28143871 | G45: =G38*('4'!T22+'4'!T23) -> 0 | H45: =H38*('4'!Y22+'4'!Y23) -> 67.60013572 | I45: =I38*('4'!AD22+'4'!AD23) -> 58.04090565 | J45: =J38*('4'!AD22+'4'!AD23) -> 0 | K45: =K38*('4'!AI22+'4'!AI23) -> 0 | L45: =L38*('4'!AN22+'4'!AN23) -> 0 | M45: =M38*('4'!AS22+'4'!AS23) -> 0 | N45: 0 | O45: =O38*('4'!#REF!+'4'!#REF!) ->  | P45: =IF(ISERROR(O45/E45),0,O45/E45) -> 0 | Q45: =Q38*('4'!#REF!+'4'!#REF!) ->  | R45: =R38*('4'!#REF!+'4'!#REF!) ->  | S45: =S38*('4'!#REF!+'4'!#REF!) ->  | T45: =T38*('4'!#REF!+'4'!#REF!) -> 
D46: =D31-D45 -> 3972.277476 | E46: 1100.36 | F46: =F31-F45 -> 3820.875224 | G46: 2667.24 | H46: =H31-H45 -> 2818.384854 | I46: =I31-I45 -> 3138.785052 | J46: =J31-J45 -> 0 | K46: 0 | L46: 0 | M46: 0 | N46: 2933.96 | P46: =IF(ISERROR(O46/E46),0,O46/E46) -> 0 | Q46: =Q31-Q45 ->  | R46: =R31-R45 ->  | S46: =S31-S45 ->  | T46: =T31-T45 -> 
B48: Дельта НВВ СН2 - НН | D48: 25971.55 | E48: 22336.27 | F48: =F39*('4'!P22+'4'!P23)/1000 -> 21.68900895 | G48: 28054.15 | H48: =H39*('4'!Z22+'4'!Z23) -> 26639.88669 | I48: =I39*('4'!AE22+'4'!AE23) -> 25084.51854 | J48: =J39*('4'!AE22+'4'!AE23) -> 0 | K48: =K39*('4'!AJ22+'4'!AJ23) -> 0 | L48: =L39*('4'!AO22+'4'!AO23) -> 0 | M48: =M39*('4'!AT22+'4'!AT23) -> 0 | N48: 30859.56 | O48: =O39*('4'!#REF!+'4'!#REF!) ->  | P48: =IF(ISERROR(O48/E48),0,O48/E48) -> 0 | Q48: =Q39*('4'!#REF!+'4'!#REF!) ->  | R48: =R39*('4'!#REF!+'4'!#REF!) ->  | S48: =S39*('4'!#REF!+'4'!#REF!) ->  | T48: =T39*('4'!#REF!+'4'!#REF!) -> 
D49: =D32-D48 -> -5435.266177 | E49: -3049.25 | F49: =F32-F48 -> 16051.39012 | G49: -2779.22 | H49: =H32-H48 -> -5745.22353 | I49: -3435.425362 | J49: 0 | K49: 0 | L49: 0 | M49: 0 | N49: -3057.14 | P49: =IF(ISERROR(O49/E49),0,O49/E49) -> 0 | Q49: =Q32-Q48 ->  | R49: =R32-R48 ->  | S49: =S32-S48 ->  | T49: =T32-T48 -> 
B51: Проверка | D51: 0 | E51: 0 | F51: =(F40*('4'!Q22+'4'!Q23)+'25'!F42+'25'!F45+'25'!F48)-'25'!F27 -> 0 | G51: 0 | H51: =(H40*('4'!AA22+'4'!AA23)+'25'!H42+'25'!H45+'25'!H48)-'25'!H27 -> 0.007840664141 | I51: =(I40*('4'!AF22+'4'!AF23)+'25'!I42+'25'!I45+'25'!I48)-'25'!I27 -> 0.009539987135 | J51: =(J40*('4'!AF22+'4'!AF23)+'25'!J42+'25'!J45+'25'!J48)-'25'!J27 -> 0 | K51: =(K40*('4'!AK22+'4'!AK23)+'25'!K42+'25'!K45+'25'!K48)-'25'!K27 -> 0 | L51: =(L40*('4'!AP22+'4'!AP23)+'25'!L42+'25'!L45+'25'!L48)-'25'!L27 -> 0 | M51: =(M40*('4'!AU22+'4'!AU23)+'25'!M42+'25'!M45+'25'!M48)-'25'!M27 -> 0 | N51: 0 | O51: =(O40*('4'!#REF!+'4'!#REF!)+'25'!O42+'25'!O45+'25'!O48)-'25'!O27 ->  | Q51: =(Q40*('4'!#REF!+'4'!#REF!)+'25'!Q42+'25'!Q45+'25'!Q48)-'25'!Q27 ->  | R51: =(R40*('4'!#REF!+'4'!#REF!)+'25'!R42+'25'!R45+'25'!R48)-'25'!R27 ->  | S51: =(S40*('4'!#REF!+'4'!#REF!)+'25'!S42+'25'!S45+'25'!S48)-'25'!S27 ->  | T51: =(T40*('4'!#REF!+'4'!#REF!)+'25'!T42+'25'!T45+'25'!T48)-'25'!T27 -> 
A53: Руководитель организации | I53: (подпись) (Ф.И.О.) | N53: К. Ю. Вергазов
A55: Должностное лицо, ответственное за составление формы | I55: (подпись) (Ф.И.О.) | N55: О. В. Костюкова

Sheet Цена потерь
B1: =Анкета!B3 -> АО "Чепецкий механический завод" | F1: Приложение к табл. № П1.25
A2: Расчет цены на электрическую энергию, покупаемую в целях компенсации технологического расхода (потерь) электрической энергии на ее передачу
A3: № п.п. | B3: Месяц, год | C3: № договора на покупку потерь | D3: Счет-фактура № и дата | E3: Цена на электро-энергию (покупка потерь) , руб./МВт.ч | F3: Объем потерь, тыс. кВт.ч
A4: 1 | B4: =A4+1 -> 2 | C4: =B4+1 -> 3 | D4: =C4+1 -> 4 | E4: =D4+1 -> 5 | F4: =E4+1 -> 6
B5: Сбытовая → компания | C5: ОАО "Удмуртская энергосбытовая компания"
A6: 1 | B6: 2014 год | E6: =G6/F6 -> 1.823491863 | F6: =SUM(F7:F18) -> 210.392 | G6: =SUM(G7:G18) -> 383.6481
A7: =A6+1 -> 2 | B7: Январь | C7: Ц0013 от 18.01.12 | D7: 0000053/0501 от 31.01.2014 | E7: 1.773571791 | F7: 23.624 | G7: =E7*F7 -> 41.89886
A8: =A7+1 -> 3 | B8: Февраль | C8: Ц0013 от 18.01.12 | D8: 0000091/0501 от 28.02.2014 | E8: 1.739440072 | F8: 23.378 | G8: =E8*F8 -> 40.66463
A9: 4 | B9: Март | C9: Ц0013 от 18.01.12 | D9: 0000171/0501 от 31.03.2014 | E9: 1.796820306 | F9: 15.838 | G9: 28.45804
A10: 5 | B10: Апрель | C10: Ц0013 от 18.01.12 | D10: 0000247/0501 от 30.04.2014 | E10: 1.860379896 | F10: 16.136 | G10: 30.01909
A11: 6 | B11: Май | C11: Ц0013 от 18.01.12 | D11: 0000298/051 от 31.05.2014 | E11: 1.863149988 | F11: 12.981 | G11: 24.18555
A12: 7 | B12: Июнь | C12: Ц0013 от 18.01.12 | D12: 0000366/0501 от 30.06.2014 | E12: 1.912380312 | F12: 15.624 | G12: 29.87903
A13: 8 | B13: Июль | C13: Ц0013 от 18.01.12 | D13: 0000427/0501 от 31.07.2014 | E13: 1.955449878 | F13: 15.582 | G13: 30.46982
A14: 9 | B14: Август | C14: Ц0013 от 18.01.12 | D14: 0000488/0501 от 31,08,2014 | E14: 1.888020121 | F14: 17.693 | G14: 33.40474
A15: 10 | B15: Сентябрь | C15: Ц0013 от 18.01.12 | D15: 0000559/0501 от 30,09,2014 | E15: 1.84291013 | F15: 15.745 | G15: 29.01662
A16: 11 | B16: Октябрь | C16: Ц0013 от 18.01.12 | D16: 0000070/0501 от 31.10.2014 | E16: 1.847630243 | F16: 17.141 | G16: 31.67023
A17: 12 | B17: Ноябрь | C17: Ц0013 от 18.01.12 | D17: 0000137/0501 от 30.11.2014 | E17: 1.767120162 | F17: 17.31 | G17: 30.58885
A18: 13 | B18: Декабрь | C18: Ц0013 от 18.01.12 | D18: 0000190/0501 от 31.12.2014 | E18: 1.726610134 | F18: 19.34 | G18: 33.39264
B19: Сбытовая → компания | C19: ОАО "ЭнергосбыТ Плюс"
A20: =A18+1 -> 14 | B20: 2015 год | E20: =(E21*F21+E22*F22+E23*F23)/F20 -> 2.091815751 | F20: =SUM(F21:F23) -> 56.109
A21: 15 | B21: Январь | C21: Ц0013 от 18.01.12 | D21: 0000050/0501 от 31.01.2015 | E21: 2.008336297 | F21: 19.12
A22: 16 | B22: Февраль | C22: Ц0013 от 18.01.12 | D22: 0000100/0501 от 28.02.2015 | E22: 2.1410156 | F22: 19.102
A23: 17 | B23: Март | C23: Ц0013 от 18.01.12 | D23: 0000170/0501 от 31.03.2015 | E23: 2.128507855 | F23: 17.887
B25: Руководитель организации | F25: К.Ю. Вергазов
B27: Должностное лицо, ответственное за составление формы | F27: О.В. Костюкова

Sheet Расчет долгосрочных параметров (hidden)
H1: Приложение к заключению
A2: ПРЕДЛОЖЕНИЕ ПО ТАРИФАМ И ДОЛГОСРОЧНЫМ ПАРАМЕТРАМ РЕГУЛИРОВАНИЯ НА 2015-2019 гг.
A3: =Анкета!B3 -> АО "Чепецкий механический завод"
A5: ДОЛГОСРОЧНЫЕ ПАРАМЕТРЫ РЕГУЛИРОВАНИЯ НА 2016-2020 гг.
A6: Наименование параметра | C6: 2014 утверждено | D6: 2015 | E6: 2016 | F6: 2017 | G6: 2018 | H6: 2019
A7: Базовый уровень подконтрольных расходов, тыс.руб. | B7: %
A8: Индекс эффективности подконтрольных расходов, % | B8: % | J8: =C8 -> 0 | L8: =D10 -> 0
A9: Коэффициент эластичности подконтрольных расходов по количеству активов | B9: % | C9: 0.75 | D9: 0.75 | E9: 0.75 | F9: 0.75 | G9: 0.75 | H9: 0.75 | J9: =C9 -> 0.75 | L9: =E10 -> 0
A10: Уровень надежности реализуемых товаров (услуг) | L10: =F10 -> 0
A11: Показатель уровня качества осуществляемого технологического присоединения к сети | D11: 1 | E11: 1 | F11: 1 | G11: 1 | H11: 1 | L11: =G10 -> 0
A12: Показатель уровня качества обслуживания потребителей услуг | D12: 0.8975 | E12: 0.8975 | F12: 0.8975 | G12: 0.8975 | H12: 0.8975 | L12: =H10 -> 0
A13: Уровень потерь электрической энергии при ее передаче по электрическим сетям, % ВН
A14: СН1
A15: СН2
A16: НН
A18: 1. Расчет подконтрольных расходов
A19: № п.п. | B19: Показатели | C19: 2014 утверждено | D19: 2015 | E19: 2016 | F19: 2017 | G19: 2018 | H19: 2019 | I19: 2013 план | J19: 2013 факт
B20: Индекс потребительских цен (прогноз СЭР) | D20: 0.067 | E20: 0.044 | F20: 0.043 | G20: 0.043 | H20: 0.043 | I20: 0.052 | J20: 0.068
B21: Размер активов (количество у.е.) | I21: 7564.56708 | J21: ='2.3'!F26 -> 4370.4375
B22: Коэффициент индексации подконтрольных расходов | C22: 1 | D22: =IF(C37=0,1,D37/C37) -> 1 | E22: =IF(D21=0,0,(1+E20)*(1-E8)*(1+E9*(E21-D21)/D21)) -> 0 | F22: =IF(E21=0,0,(1+F20)*(1-F8)*(1+F9*(F21-E21)/E21)) -> 0 | G22: =IF(F21=0,0,(1+G20)*(1-G8)*(1+G9*(G21-F21)/F21)) -> 0 | H22: =IF(G21=0,0,(1+H20)*(1-H8)*(1+H9*(H21-G21)/G21)) -> 0 | I22: 1.04148 | J22: =IF(I21=0,0,(1+J20)*(1-J8)*(1+J9*(J21-I21)/I21)) -> 0.7297786892
A23: 1.1. | B23: Сырье, основные материалы
A24: 1.2. | B24: Вспомогательные материалы
B25: из них на ремонт
A26: 1.3. | B26: Работы и услуги производ. характера
B27: из них на ремонт
A28: 1.4. | B28: Затраты на оплату труда
B29: в том числе оплата труда производственного персонала
B30: из них на ремонт
A31: 1.5. | B31: Прочие затраты
A32: 1.6. | B32: Прибыль на социальное развитие
A33: 1.7. | B33: Льготы, компенсации и проч.выплаты по Колдоговору
A34: 1.8. | B34: Дивиденды по акциям
A35: 1.9. | B35: Прибыль на прочие цели
B36: в том числе расходы на обслуживание заемных средств
A37: 1.10. | B37: Подконтрольные расходы методом индексации | C37: =C23+C24+C26+C28+C31+C32+C33+C34+C35 -> 0 | D37: 0 | E37: 0 | F37: 0 | G37: 0 | H37: 0
A38: 1.11. | B38: Подконтрольные расходы методом аналогов | E38: =(D39-D37)*E$22 -> 0 | F38: =E38*F$22 -> 0 | G38: =F38*G$22 -> 0 | H38: =G38*H$22 -> 0
A39: 1.12. | B39: ИТОГО подконтрольные расходы | D39: =D37*0.8+D38*0.2 -> 0 | E39: =E37+E38 -> 0 | F39: =F37+F38 -> 0 | G39: =G37+G38 -> 0 | H39: =H37+H38 -> 0
A40: 1.13. | B40: Рост подконтрольных расходов, % | D40: =IF(C37=0,1,D39/C37) -> 1 | E40: =IF(D37=0,1,E39/D39) -> 1 | F40: =IF(E37=0,1,F39/E39) -> 1 | G40: =IF(F37=0,1,G39/F39) -> 1 | H40: =IF(G37=0,1,H39/G39) -> 1 | I40: 223637.5079 | J40: =I40/I22*J22 -> 156705.7335
J41: =J40-I40 -> -66931.77436
A42: 2. Расчет неподконтрольных расходов | C42: Плановые показатели
A43: № п.п. | B43: Показатели | C43: 2014 утверждено | D43: 2015 | E43: 2016 | F43: 2017 | G43: 2018 | H43: 2019 | I43: 2013 план | J43: 2013 факт
A44: 2.1. | B44: Финансирование капитальных вложений из прибыли
B45: ВН
B46: СН1
B47: СН2
B48: НН
A49: 2.2. | B49: Амортизация | I49: 24636.20824 | J49: ='15'!D20 -> 34018.08206
B50: ВН | I50: 8219.81148
B51: СН1 | I51: 2591.79824
B52: СН2 | I52: 10953.3706
B53: НН | I53: 2511.70032
A54: 2.3. | B54: Коммунальные услуги (ресурсы) по регулируемым ценам, в том числе | I54: 1323.075046 | J54: ='ОПР -25 счет'!C12*'ОПР -25 счет'!C37 -> 0
B55: электрическая энергия | I55: 904.7552052
B56: отопление | I56: 409.1101414
B57: газ | I57: 0
B58: ГВС | I58: 9.209698905
B59: водоснабжение
B60: водоотведение
A61: 2.4. | B61: Страховые взносы социального характера | I61: 10424.87468 | J61: ='15'!D18 -> 0
A62: 2.5. | B62: Плата за аренду имущества и лизинг | I62: 3656.897573 | J62: ='15'!D34 -> 7784.161
A63: 2.6. | B63: Налог на имущество | I63: 712.411603 | J63: ='ОХР -26 счет'!C27*'ОХР -26 счет'!C39 -> 0
B64: ВН
B65: СН1
B66: СН2
B67: НН
A68: 2.7. | B68: Налог на прибыль | I68: 69.96931078 | J68: ='21'!D31 -> 0
A69: 2.8. | B69: Прочие налоги и сборы, в том числе | I69: 2.600081264
B70: плата за землю | I70: 2.600081264
B71: налог при упрощенной системе налогообложения
A72: 2.9. | B72: Расходы на возврат и обслуживание заемных средств | I72: 40826.03654 | J72: =SUM(J49:J71) -> 41802.24306
B73: в том числе расходы на обслуживание заемных средств | J73: =J72-I72 -> 976.2065226
A74: 2.10. | B74: Прочие неподконтрольные расходы (услуги ОАО "ФСК ЕЭС")
A75: 2.11. | B75: Компенсация выпадающих доходов по технологическому присоединению (пункт 87 Основ ценообразования)
A76: 2.12. | B76: ИТОГО неподконтрольных расходов | C76: =C44+C49+C54+C61+C62+C63+C68+C69+C72+C75 -> 0 | D76: 0 | E76: 0 | F76: 0 | G76: 0 | H76: 0
A77: 2.13 | B77: Рост неподконтрольных расходов, % | D77: =IF(C76=0,1,D76/C76) -> 1 | E77: =IF(D76=0,1,E76/D76) -> 1 | F77: =IF(E76=0,1,F76/E76) -> 1 | G77: =IF(F76=0,1,G76/F76) -> 1 | H77: =IF(G76=0,1,H76/G76) -> 1
A79: 3. Расчет необходимой валовой выручки на содержание сетей
A80: № п.п. | B80: Показатели | C80: 2014 утверждено | D80: 2015 | E80: 2016 | F80: 2017 | G80: 2018 | H80: 2019
A81: 3.1. | B81: Плановые подконтрольные расходы | C81: =C37 -> 0 | D81: 0 | E81: 0 | F81: 0 | G81: 0 | H81: 0
A82: 3.2. | B82: Плановые неподконтрольные расходы | C82: =C76 -> 0 | D82: 0 | E82: 0 | F82: 0 | G82: 0 | H82: 0
A83: 3.3. | B83: Корректировка по факту, в том числе | C83: =C84+C85 -> 0 | E83: 0 | F83: 0 | G83: 0 | H83: 0
A84: 3.3.1. | B84: результаты деятельности до перехода к регулированию тарифов на основе долгосрочных параметров регулирования (пункт 11 Методических указаний )
A85: 3.3.2. | B85: корректировка по итогам истекшего года долгосрочного периода (пункт 9 Методических указаний ), в т.ч.
A86: 3.3.2.1. | B86: корректировка подконтрольных расходов
A87: 3.3.2.2. | B87: корректировка неподконтрольных расходов
A88: 3.3.2.3. | B88: корректировка НВВ с учетом изменения полезного отпуска и цен на электрическую энергию (покупка потерь)
A89: 3.3.2.4. | B89: изменение (неисполнение) инвестиционной программы
A90: 3.4. | B90: Корректировка НВВ с учетом достижения установленного уровня надежности и качества услуг
A91: 3.5. | B91: ИТОГО НВВ | C91: =C81+C82+C83 -> 0 | D91: 0 | E91: 0 | F91: 0 | G91: 0 | H91: 0 | K91: для вставки в постановление
B92: % роста | D92: =IF(C91=0,1,D91/C91) -> 1 | E92: =IF(D91=0,1,E91/D91) -> 1 | F92: =IF(E91=0,1,F91/E91) -> 1 | G92: =IF(F91=0,1,G91/F91) -> 1 | H92: =IF(G91=0,1,H91/G91) -> 1 | K92: =D91 -> 0
A93: 3.6. | B93: Доля капитальных вложений за счет прибыли не более 12 % от НВВ (п. 11 Методических указаний) | C93: =IF(C91=0,0,C44/(C91-C44-C62-IF(C68=0,0,C44/0.8*0.2))) -> 0 | D93: 0 | E93: 0 | F93: 0 | G93: 0 | H93: 0 | K93: =E91 -> 0
A94: 3.7. | B94: Распределение НВВ по уровням напряжения | C94: =C95+C96+C97+C98 -> 0 | D94: 0 | E94: 0 | F94: 0 | G94: 0 | H94: 0 | K94: =F91 -> 0
B95: ВН | K95: =G91 -> 0
B96: СН1 | K96: =H91 -> 0
B97: СН2
B98: НН
B100: в том числе доля, относимая на сторонних потребителей | C100: =IF(C94=0,0,C105/C94) -> 0 | D100: 0 | E100: 0 | F100: 0 | G100: 0 | H100: 0
B101: ВН
B102: СН1
B103: СН2
B104: НН
B105: всего
B106: % роста | D106: =IF(C105=0,1,D105/C105) -> 1 | E106: =IF(D105=0,1,E105/D105) -> 1 | F106: =IF(E105=0,1,F105/E105) -> 1 | G106: =IF(F105=0,1,G105/F105) -> 1 | H106: =IF(G105=0,1,H105/G105) -> 1
A107: ПРЕДЛОЖЕНИЕ ПО ТАРИФАМ | R107: проверка НВВ
A108: Наименование | C108: 2014 утверждено | D108: 2015 | E108: 2016 | F108: 2017 | G108: 2018 | H108: 2019 | J108: для вставки в постановление | R108: =(D110+D111)*(заключение!$D$32+заключение!$D$35)/2 ->  | S108: =(E110+E111)*(заключение!$D$32+заключение!$D$35)/2 ->  | T108: =(F110+F111)*(заключение!$D$32+заключение!$D$35)/2 ->  | U108: =(G110+G111)*(заключение!$D$32+заключение!$D$35)/2 ->  | V108: =(H110+H111)*(заключение!$D$32+заключение!$D$35)/2 -> 
A109: Одноставочный тариф на услуги по передаче электрической энергии, руб./кВт.ч | B109: % | J109: =D113 -> 0 | K109: =D116 -> 0 | L109: =D110 -> 0 | M109: =D114 -> 0 | N109: =D117 -> 0 | O109: =D111 -> 0 | R109: =R111+R115 ->  | S109: =S111+S115 ->  | T109: =T111+T115 ->  | U109: =U111+U115 ->  | V109: =V111+V115 -> 
A110: в т.ч. 1 полугодие | J110: =E113 -> 0 | K110: =E116 -> 0 | L110: =E110 -> 0 | M110: =E114 -> 0 | N110: =E117 -> 0 | O110: =E111 -> 0
A111: 2 полугодие | J111: =F113 -> 0 | K111: =F116 -> 0 | L111: =F110 -> 0 | M111: =F114 -> 0 | N111: =F117 -> 0 | O111: =F111 -> 0 | R111: =(D113+'Расчет долгосрочных параметров'!D114)*6*'5'!$BF$23 -> 0 | S111: =(E113+'Расчет долгосрочных параметров'!E114)*6*'5'!$BF$23 -> 0 | T111: =(F113+'Расчет долгосрочных параметров'!F114)*6*'5'!$BF$23 -> 0 | U111: =(G113+'Расчет долгосрочных параметров'!G114)*6*'5'!$BF$23 -> 0 | V111: =(H113+'Расчет долгосрочных параметров'!H114)*6*'5'!$BF$23 -> 0
A112: Двухставочный тариф на услуги по передаче электрической энергии: - ставка за содержание электрических сетей, руб./МВт | B112: % | J112: =G113 -> 0 | K112: =G116 -> 0 | L112: =G110 -> 0 | M112: =G114 -> 0 | N112: =G117 -> 0 | O112: =G111 -> 0
A113: в т.ч. 1 полугодие | J113: =H113 -> 0 | K113: =H116 -> 0 | L113: =H110 -> 0 | M113: =H114 -> 0 | N113: =H117 -> 0 | O113: =H111 -> 0
A114: 2 полугодие
A115: - ставка по оплате технологического расхода электрической энегии на ее передачу, руб./МВт.ч. | R115: =(D116+'Расчет долгосрочных параметров'!D117)*(заключение!$D$32+заключение!$D$35)/2 ->  | S115: =(E116+'Расчет долгосрочных параметров'!E117)*(заключение!$D$32+заключение!$D$35)/2 ->  | T115: =(F116+'Расчет долгосрочных параметров'!F117)*(заключение!$D$32+заключение!$D$35)/2 ->  | U115: =(G116+'Расчет долгосрочных параметров'!G117)*(заключение!$D$32+заключение!$D$35)/2 ->  | V115: =(H116+'Расчет долгосрочных параметров'!H117)*(заключение!$D$32+заключение!$D$35)/2 -> 
A116: в т.ч. 1 полугодие
A117: 2 полугодие
A118: Рост одноставочного тарифа (год к году), % | D118: =IF(C109=0,0,D109/C109) -> 0 | E118: =IF(D109=0,0,E109/D109) -> 0 | F118: =IF(E109=0,0,F109/E109) -> 0 | G118: =IF(F109=0,0,G109/F109) -> 0 | H118: =IF(G109=0,0,H109/G109) -> 0
A119: Рост одноставочного тарифа (2 полугодие к 1 полугодию), % | D119: =IF(D110=0,0,D111/D110) -> 0 | E119: =IF(E110=0,0,E111/E110) -> 0 | F119: =IF(F110=0,0,F111/F110) -> 0 | G119: =IF(G110=0,0,G111/G110) -> 0 | H119: =IF(H110=0,0,H111/H110) -> 0
A121: =заключение!B131 -> 0 | H121: =заключение!H131 -> 0

Sheet корректировка 2016 (hidden)
B1: =Анкета!B3 -> АО "Чепецкий механический завод"
A3: АНАЛИЗ НЕОБХОДИМОЙ ВЫРУЧКИ НА СОДЕРЖАНИЕ СЕТЕЙ НА 2016г.
B5: Расчет коэффициента индексации | E5: Плановые показатели
D6: 2015 утв. | E6: 2016 (утв.) | F6: 2016 с учетом корректировки | H6: 2014 факт | I6: 2014 план
B7: индекс потребительских цен | C7: % | D7: ='Расчет долгосрочных параметров'!D20 -> 0.067 | E7: ='Расчет долгосрочных параметров'!E20 -> 0.044
B8: индекс эффективности подконтрольных расходов | C8: % | D8: ='Расчет долгосрочных параметров'!D8 -> 0 | E8: ='Расчет долгосрочных параметров'!E8 -> 0 | H8: 0.01 | I8: 0.01
B9: количество активов | C9: у.е. | E9: ='2.3'!F29 -> 4434.356 | F9: ='2.3'!F30 -> 0
B10: индекс изменения количества активов | C10: % | F10: =IF(D9=0,0,(F9-'корректировка 2016 '!D9)/'корректировка 2016 '!D9) -> 0
B11: коэффициент эластичности подконтрольных расходов по количеству активов | C11: % | D11: 0.75 | E11: 0.75 | F11: 0.75 | H11: 0.75 | I11: 0.75
B12: показатели надежности и качества услуг
B13: максимальная возможная корректировка необходимой валовой выручки, осуществляемая с учетом достижения установленного уровня надежности и качества услуг | C13: % | D13: 0.02 | E13: 0.02 | F13: 0.02
B14: итого коэффициент индексации | E14: ='Расчет долгосрочных параметров'!E22 -> 0 | F14: =(1+F7)*(1-F8)*(1+F10*F11) -> 1 | H14: =(1+H7)*(1-H8)*(1+H10*H11) -> 0.99 | I14: =(1+I7)*(1-I8)*(1+I10*I11) -> 0.99
A16: 1. Расчет подконтрольных расходов
A17: № п.п. | B17: Показатели | C17: Единица измерения | D17: 2015 утв. | E17: 2016 (утв.) | F17: 2016 с учетом корректировки | G17: Размер корректировки
A18: 1.1. | B18: Сырье, основные материалы | C18: тыс.руб. | D18: ='Расчет долгосрочных параметров'!C23 -> 0 | F18: =D18*F$14 -> 0 | G18: =F18-E18 -> 0
A19: 1.2. | B19: Вспомогательные материалы | C19: тыс.руб. | D19: ='Расчет долгосрочных параметров'!C24 -> 0 | F19: 0 | G19: 0
B20: из них на ремонт | C20: тыс.руб. | D20: ='Расчет долгосрочных параметров'!C25 -> 0 | F20: 0 | G20: 0
A21: 1.3. | B21: Работы и услуги производ. характера | C21: тыс.руб. | D21: ='Расчет долгосрочных параметров'!C26 -> 0 | F21: 0 | G21: 0
B22: из них на ремонт | C22: тыс.руб. | D22: ='Расчет долгосрочных параметров'!C27 -> 0 | F22: 0 | G22: 0
A23: 1.4. | B23: Затраты на оплату труда | C23: тыс.руб. | D23: ='Расчет долгосрочных параметров'!C28 -> 0 | F23: 0 | G23: 0
B24: в том числе оплата труда производственного персонала | C24: тыс.руб. | D24: ='Расчет долгосрочных параметров'!C29 -> 0 | F24: 0 | G24: 0
B25: из них на ремонт | C25: тыс.руб. | D25: ='Расчет долгосрочных параметров'!C30 -> 0 | F25: 0 | G25: 0
A26: 1.5. | B26: Прочие затраты | C26: тыс.руб. | D26: ='Расчет долгосрочных параметров'!C31 -> 0 | F26: 0 | G26: 0
A27: 1.6. | B27: Прибыль на социальное развитие | C27: тыс.руб. | D27: ='Расчет долгосрочных параметров'!C32 -> 0 | F27: 0 | G27: 0
A28: 1.7. | B28: Льготы, компенсации и проч.выплаты по Колдоговору | C28: тыс.руб. | D28: ='Расчет долгосрочных параметров'!C33 -> 0 | F28: 0 | G28: 0
A29: 1.8. | B29: Дивиденды по акциям | C29: тыс.руб. | D29: ='Расчет долгосрочных параметров'!C34 -> 0 | F29: 0 | G29: 0
A30: 1.9. | B30: Прибыль на прочие цели | C30: тыс.руб. | D30: ='Расчет долгосрочных параметров'!C35 -> 0 | F30: 0 | G30: 0
B31: в том числе расходы на обслуживание заемных средств | C31: тыс.руб. | D31: ='Расчет долгосрочных параметров'!C36 -> 0 | F31: 0 | G31: 0
A32: 1.10 | B32: Подконтрольные расходы методом аналогов | F32: 0
A33: 1.11. | B33: ИТОГО подконтрольные расходы | C33: тыс.руб. | D33: =D18+D19+D21+D23+D26+D27+D28+D29+D30 -> 0 | E33: =E18+E19+E21+E23+E26+E27+E28+E29+E30 -> 0 | F33: =F18+F19+F21+F23+F26+F27+F28+F29+F30+F32 -> 0 | G33: =G18+G19+G21+G23+G26+G27+G28+G29+G30 -> 0
A36: 2. Расчет неподконтрольных расходов | E36: Плановые показатели
A37: № п.п. | B37: Показатели | C37: Единица измерения | D37: 2015 утв. | E37: 2016 (утв.) | F37: 2016 с учетом корректировки | G37: Размер корректировки | H37: 2014 факт | I37: 2014 план | J37: корректировка по факту
A38: 2.1. | B38: Финансирование капитальных вложений из прибыли | C38: тыс.руб. | D38: ='Расчет долгосрочных параметров'!C44 -> 0 | G38: =F38-E38 -> 0 | J38: =H38-I38 -> 0
B39: ВН | C39: тыс.руб. | D39: ='Расчет долгосрочных параметров'!C45 -> 0 | G39: 0 | J39: =H39-I39 -> 0
B40: СН1 | C40: тыс.руб. | D40: ='Расчет долгосрочных параметров'!C46 -> 0 | G40: 0 | J40: 0
B41: СН2 | C41: тыс.руб. | D41: ='Расчет долгосрочных параметров'!C47 -> 0 | G41: 0 | J41: 0
B42: НН | C42: тыс.руб. | D42: ='Расчет долгосрочных параметров'!C48 -> 0 | G42: 0 | J42: 0
A43: 2.2. | B43: Амортизация | C43: тыс.руб. | D43: ='Расчет долгосрочных параметров'!C49 -> 0 | G43: 0 | J43: 0
B44: ВН | C44: тыс.руб. | D44: ='Расчет долгосрочных параметров'!C50 -> 0 | G44: 0 | J44: 0
B45: СН1 | C45: тыс.руб. | D45: ='Расчет долгосрочных параметров'!C51 -> 0 | G45: 0 | J45: 0
B46: СН2 | C46: тыс.руб. | D46: ='Расчет долгосрочных параметров'!C52 -> 0 | G46: 0 | J46: 0
B47: НН | C47: тыс.руб. | D47: ='Расчет долгосрочных параметров'!C53 -> 0 | G47: 0 | J47: 0
A48: 2.3. | B48: Коммунальные услуги, в том числе | C48: тыс.руб. | D48: ='Расчет долгосрочных параметров'!C54 -> 0 | G48: 0 | H48: =H49+H50+H51+H52 -> 0 | I48: =I49+I50+I51+I52 -> 0 | J48: 0
B49: электрическая энергия | C49: тыс.руб. | D49: ='Расчет долгосрочных параметров'!C55 -> 0 | G49: 0 | J49: 0
B50: отопление | C50: тыс.руб. | D50: ='Расчет долгосрочных параметров'!C56 -> 0 | G50: 0 | J50: 0
B51: ГВС | C51: тыс.руб. | D51: ='Расчет долгосрочных параметров'!C59 -> 0 | G51: 0 | J51: 0
B52: водоснабжение и водоотведение | C52: тыс.руб. | D52: ='Расчет долгосрочных параметров'!C60 -> 0 | G52: 0 | J52: 0
A53: 2.4. | B53: Страховые взносы социального характера | C53: тыс.руб. | D53: ='Расчет долгосрочных параметров'!C61 -> 0 | G53: 0 | J53: 0
A54: 2.5. | B54: Плата за аренду имущества и лизинг | C54: тыс.руб. | D54: ='Расчет долгосрочных параметров'!C62 -> 0 | G54: 0 | J54: 0
A55: 2.6. | B55: Налог на имущество | C55: тыс.руб. | D55: ='Расчет долгосрочных параметров'!C63 -> 0 | G55: 0 | J55: 0
B56: ВН | C56: тыс.руб. | D56: ='Расчет долгосрочных параметров'!C64 -> 0 | G56: 0 | J56: 0
B57: СН1 | C57: тыс.руб. | D57: ='Расчет долгосрочных параметров'!C65 -> 0 | G57: 0 | J57: 0
B58: СН2 | C58: тыс.руб. | D58: ='Расчет долгосрочных параметров'!C66 -> 0 | G58: 0 | J58: 0
B59: НН | C59: тыс.руб. | D59: ='Расчет долгосрочных параметров'!C67 -> 0 | G59: 0 | J59: 0
A60: 2.7. | B60: Налог на прибыль | C60: тыс.руб. | D60: ='Расчет долгосрочных параметров'!C68 -> 0 | G60: 0 | J60: 0
A61: 2.8. | B61: Прочие налоги и сборы, в том числе | C61: тыс.руб. | D61: ='Расчет долгосрочных параметров'!C69 -> 0 | G61: =F62-E61 -> 0 | J61: 0
B62: плата за землю | C62: тыс.руб. | D62: ='Расчет долгосрочных параметров'!C70 -> 0 | G62: =F63-E62 -> 0 | J62: 0
B63: налог при упрощенной системе налогообложения | C63: тыс.руб. | D63: ='Расчет долгосрочных параметров'!C71 -> 0 | G63: =F66-E63 -> 0 | J63: 0
A64: 2.9. | B64: Расходы на возврат и обслуживание заемных средств | C64: тыс.руб. | D64: ='Расчет долгосрочных параметров'!C72 -> 0
B65: в том числе на обслуживание заемных средств | C65: тыс.руб. | D65: ='Расчет долгосрочных параметров'!C73 -> 0
A66: 2.10. | B66: Прочие неподконтрольные расходы (услуги ОАО "ФСК ЕЭС") | C66: тыс.руб. | D66: ='Расчет долгосрочных параметров'!C74 -> 0 | G66: =F67-E66 -> 0 | J66: 0
A67: 2.11. | B67: Компенсация выпадающих доходов по технологическому присоединению (пункт 87 Основ ценообразования) | C67: тыс.руб. | D67: ='Расчет долгосрочных параметров'!C75 -> 0 | G67: =F68-E67 -> 0 | J67: 0
A68: 2.12. | B68: ИТОГО неподконтрольных расходов | C68: тыс.руб. | D68: =D38+D43+D48+D53+D54+D55+D60+D61+D66+D67+D64 -> 0 | E68: =E38+E43+E48+E53+E54+E55+E60+E61+E66+E67+E64 -> 0 | F68: 0 | G68: 0 | H68: 0 | I68: 0 | J68: 0
A71: 3. Расчет необходимой валовой выручки на содержание сетей
A72: № п.п. | B72: Показатели | C72: Единица измерения | D72: 2015 утв. | E72: 2016 (утв.) | F72: 2016 с учетом корректировки | G72: Размер корректировки
A73: 3.1. | B73: Плановые подконтрольные расходы | C73: тыс.руб. | D73: =D33 -> 0 | E73: =E33 -> 0 | F73: =F33 -> 0 | G73: =F73-E73 -> 0
A74: 3.2. | B74: Плановые неподконтрольные расходы | C74: тыс.руб. | D74: =D68 -> 0 | E74: =E68 -> 0 | F74: =F68 -> 0 | G74: =F74-E74 -> 0
A75: 3.3. | B75: Корректировка по факту, в том числе | C75: тыс.руб. | D75: =D76+D77 -> 0 | E75: =E76+E77 -> 0 | F75: =F76+F77 -> 0
A76: 3.3.1. | B76: результаты деятельности до перехода к регулированию тарифов на основе долгосрочных параметров регулирования (пункт 11 Методических указаний ) | C76: тыс.руб.
A77: 3.3.2. | B77: корректировка по итогам истекшего года долгосрочного периода (пункт 9 Методических указаний ), в т.ч. | C77: тыс.руб.
A78: 3.3.2.1. | B78: корректировка подконтрольных расходов | C78: тыс.руб.
A79: 3.3.2.2. | B79: корректировка неподконтрольных расходов | C79: тыс.руб.
A80: 3.3.2.3. | B80: корректировка НВВ с учетом изменения полезного отпуска и цен на электрическую энергию (покупка потерь) | C80: тыс.руб.
A81: 3.3.2.4. | B81: изменение (неисполнение) инвестиционной программы | C81: тыс.руб.
A82: 3.4. | B82: Корректировка НВВ с учетом достижения установленного уровня надежности и качества услуг | C82: тыс.руб.
A83: 3.5. | B83: ИТОГО НВВ | C83: тыс.руб. | D83: =D73+D74+D75 -> 0 | E83: =E73+E74+E75 -> 0 | F83: =F73+F74+F75 -> 0 | G83: =G73+G74+G75 -> 0
A84: 3.6. | B84: Доля капитальных вложений за счет прибыли не более 12 % от НВВ (п. 11 Методических указаний) | C84: % | D84: =IF(D83=0,0,D38/(D83-D38/0.8-D54)) -> 0 | E84: =IF(E83=0,0,E38/(E83-E38/0.8-E54)) -> 0 | F84: =IF(F83=0,0,F38/(F83-F38/0.8-F54)) -> 0 | G84: =IF(G83=0,0,G38/(G83-G38/0.8-G54)) -> 0
A85: 3.7. | B85: Распределение НВВ по уровням напряжения | D85: =D86+D87+D88+D89 -> 0 | E85: =E86+E87+E88+E89 -> 0 | F85: =F86+F87+F88+F89 -> 0 | G85: =F85-E85 -> 0
B86: ВН | C86: тыс.руб. | D86: ='Расчет долгосрочных параметров'!D95 -> 0 | E86: ='Расчет долгосрочных параметров'!E95 -> 0 | F86: =IF('2.3'!$F$30=0,0,(F$83-F$39/0.8-F$40/0.8-F$41/0.8-F$42/0.8-F$44-F$45-F$46-F$47-F$56-F$57-F$58-F$59)/'2.3'!$F$30*'2.3'!$B$30+F39/0.8+F44+F56) -> 0 | G86: =F86-E86 -> 0
B87: СН1 | C87: тыс.руб. | D87: ='Расчет долгосрочных параметров'!D96 -> 0 | E87: ='Расчет долгосрочных параметров'!E96 -> 0 | F87: =IF('2.3'!$F$30=0,0,(F$83-F$39/0.8-F$40/0.8-F$41/0.8-F$42/0.8-F$44-F$45-F$46-F$47-F$56-F$57-F$58-F$59)/'2.3'!$F$30*'2.3'!C30+F40/0.8+F45+F57) -> 0 | G87: =F87-E87 -> 0
B88: СН2 | C88: тыс.руб. | D88: ='Расчет долгосрочных параметров'!D97 -> 0 | E88: ='Расчет долгосрочных параметров'!E97 -> 0 | F88: =IF('2.3'!$F$30=0,0,(F$83-F$39/0.8-F$40/0.8-F$41/0.8-F$42/0.8-F$44-F$45-F$46-F$47-F$56-F$57-F$58-F$59)/'2.3'!$F$30*'2.3'!D30+F41/0.8+F46+F58) -> 0 | G88: =F88-E88 -> 0
B89: НН | C89: тыс.руб. | D89: ='Расчет долгосрочных параметров'!D98 -> 0 | E89: ='Расчет долгосрочных параметров'!E98 -> 0 | F89: =IF('2.3'!$F$30=0,0,(F$83-F$39/0.8-F$40/0.8-F$41/0.8-F$42/0.8-F$44-F$45-F$46-F$47-F$56-F$57-F$58-F$59)/'2.3'!$F$30*'2.3'!E30+F42/0.8+F47+F59) -> 0 | G89: =F89-E89 -> 0
B91: в том числе доля, относимая на сторонних потребителей | D91: =D96/D83 ->  | E91: =E96/E83 ->  | F91: =F96/F83 ->  | G91: =F91-E91 -> 
B92: ВН | D92: ='Расчет долгосрочных параметров'!D101 -> 0 | E92: ='Расчет долгосрочных параметров'!E101 -> 0 | F92: =F86*'4'!#REF! ->  | G92: =F92-E92 -> 
B93: СН1 | D93: ='Расчет долгосрочных параметров'!D102 -> 0 | E93: ='Расчет долгосрочных параметров'!E102 -> 0 | F93: =F87*'4'!#REF! ->  | G93: =F93-E93 -> 
B94: СН2 | D94: ='Расчет долгосрочных параметров'!D103 -> 0 | E94: ='Расчет долгосрочных параметров'!E103 -> 0 | F94: =F88*'4'!#REF! ->  | G94: =F94-E94 -> 
B95: НН | D95: ='Расчет долгосрочных параметров'!D104 -> 0 | E95: ='Расчет долгосрочных параметров'!E104 -> 0 | F95: =F89*'4'!#REF! ->  | G95: =F95-E95 -> 
B96: всего | D96: =SUM(D92:D95) -> 0 | E96: =SUM(E92:E95) -> 0 | F96: =SUM(F92:F95) ->  | G96: =SUM(G92:G95) -> 
B97: % роста | E97: =E96/D96 ->  | F97: =F96/D96 ->  | G97: =F97-E97 -> 

Sheet P2.1
N1: Таблица № П2.1
A2: Объем воздушных линий электропередач (ВЛЭП) и кабельных линий электропередач (КЛЭП) в условных единицах в зависимост от протяженности, напряжения, конструктивного использования и материала опор.
A3: =Анкета!B3 -> АО "Чепецкий механический завод"
A4: ЛЭП | B4: Напряжение, кВ | C4: Количество цепей на опоре | D4: Материал опор | F4: Количество условных единиц (у) на 100 км трассы ЛЭП | G4: Протяженность (на 1.01.2014) | H4: Объем условных единиц | I4: Протяженность (на 1.01.2015) | J4: Объем условных единиц | K4: Протяженность (на 1.04.2015 = 2016 год) | L4: Объем условных единиц | M4: Протяженность (на 2016 год учтено до корректировки) | N4: Объем условных единиц | O4: Протяженность (на 2016 год после корректировки) | P4: Объем условных единиц | Q4: Протяженность (на 1.01.2019) | R4: Объем условных единиц | S4: Протяженность (на 1.01.2020) | T4: Объем условных единиц
F5: у/100км | G5: км | H5: у | I5: км | J5: у | K5: км | L5: у | M5: км | N5: у | O5: км | P5: у | Q5: км | R5: у | S5: км | T5: у
A6: 1 | B6: =+A6+1 -> 2 | C6: =+B6+1 -> 3 | D6: =+C6+1 -> 4 | F6: =+D6+1 -> 5 | G6: =+D6+1 -> 5 | H6: 7 = 5 * 6 /100 | I6: =+F6+1 -> 6 | J6: 7 = 5 * 6 /100 | K6: 8 | L6: 9 = 5 * 8 /100 | M6: 10 | N6: 11 = 5 * 10 /100 | O6: 12 | P6: 13 = 5 * 12 /100 | Q6: 12 | R6: 13 = 5 * 12 /100 | S6: 12 | T6: 13 = 5 * 12 /100
A7: ВЛЭП | B7: 1150 | C7: - | D7: металл | E7: ВЛЭП-1150кВ-металл | F7: 800 | H7: =D7*G7/100 ->  | J7: =F7*I7/100 -> 0 | L7: =F7*K7/100 -> 0 | N7: =F7*M7/100 -> 0 | P7: =N7*O7/100 -> 0 | R7: =P7*Q7/100 -> 0 | T7: =R7*S7/100 -> 0
B8: 750 | C8: 1 | D8: металл | E8: ВЛЭП-750кВ-цепей:1-металл | F8: 600 | J8: 0 | L8: =F8*K8/100 -> 0 | N8: =F8*M8/100 -> 0 | P8: 0 | R8: 0 | T8: 0
B9: 400-500 | C9: 1 | D9: металл | E9: ВЛЭП-400-500кВ-цепей:1-металл | F9: 400 | J9: 0 | L9: 0 | N9: 0 | P9: 0 | R9: 0 | T9: 0
D10: ж/бетон | E10: ВЛЭП-400-500кВ-ж/бетон | F10: 300 | J10: 0 | L10: 0 | N10: 0 | P10: 0 | R10: 0 | T10: 0
B11: 330 | C11: 1 | D11: металл | E11: ВЛЭП-330кВ-цепей:1-металл | F11: 230 | J11: 0 | L11: 0 | N11: 0 | P11: 0 | R11: 0 | T11: 0
D12: ж/бетон | E12: ВЛЭП-330кВ-ж/бетон | F12: 170 | J12: 0 | L12: 0 | N12: 0 | P12: 0 | R12: 0 | T12: 0
C13: 2 | D13: металл | E13: ВЛЭП-330кВ-цепей:2-металл | F13: 290 | J13: 0 | L13: 0 | N13: 0 | P13: 0 | R13: 0 | T13: 0
D14: ж/бетон | E14: ВЛЭП-330кВ-ж/бетон | F14: 210 | J14: 0 | L14: 0 | N14: 0 | P14: 0 | R14: 0 | T14: 0
B15: 220 | C15: 1 | D15: дерево | E15: ВЛЭП-220кВ-цепей:1-дерево | F15: 260 | H15: =F15*G15/100 -> 0 | J15: 0 | L15: 0 | N15: 0 | P15: =F15*O15/100 -> 0 | R15: =F15*Q15/100 -> 0 | T15: =F15*S15/100 -> 0
D16: металл | E16: ВЛЭП-220кВ-металл | F16: 210 | H16: =F16*G16/100 -> 0 | J16: 0 | L16: 0 | N16: 0 | P16: =F16*O16/100 -> 0 | R16: =F16*Q16/100 -> 0 | T16: =F16*S16/100 -> 0
D17: ж/бетон | E17: ВЛЭП-220кВ-ж/бетон | F17: 140 | H17: 0 | J17: 0 | L17: 0 | N17: 0 | P17: 0 | R17: 0 | T17: 0
C18: 2 | D18: металл | E18: ВЛЭП-220кВ-цепей:2-металл | F18: 270 | H18: 0 | J18: 0 | L18: 0 | N18: 0 | P18: 0 | R18: 0 | T18: 0
D19: ж/бетон | E19: ВЛЭП-220кВ-ж/бетон | F19: 180 | H19: 0 | J19: 0 | L19: 0 | N19: 0 | P19: 0 | R19: 0 | T19: 0
B20: 110-150 | C20: 1 | D20: дерево | E20: ВЛЭП-110-150кВ-цепей:1-дерево | F20: 180 | H20: 0 | J20: 0 | L20: 0 | N20: 0 | P20: 0 | R20: 0 | T20: 0
D21: металл | E21: ВЛЭП-110-150кВ-металл | F21: 160 | H21: 0 | J21: 0 | L21: 0 | N21: 0 | P21: 0 | R21: 0 | T21: 0
D22: ж/бетон | E22: ВЛЭП-110-150кВ-ж/бетон | F22: 130 | H22: 0 | J22: 0 | L22: 0 | N22: 0 | P22: 0 | R22: 0 | T22: 0
C23: 2 | D23: металл | E23: ВЛЭП-110-150кВ-цепей:2-металл | F23: 190 | G23: 0.8 | H23: 1.52 | I23: 0.8 | J23: 1.52 | K23: 0.8 | L23: 1.52 | M23: 0.8 | N23: 1.52 | P23: 0 | R23: 0 | T23: 0
D24: ж/бетон | E24: ВЛЭП-110-150кВ-ж/бетон | F24: 160 | H24: 0 | J24: 0 | L24: 0 | N24: 0 | P24: 0 | R24: 0 | T24: 0
A25: КЛЭП | B25: 220 | C25: - | D25: - | E25: КЛЭП-220кВ | F25: 3000 | H25: 0 | J25: 0 | L25: 0 | N25: 0 | P25: 0 | R25: 0 | T25: 0
B26: 110 | C26: - | D26: - | E26: КЛЭП-110кВ | F26: 2300 | H26: 0 | J26: 0 | L26: 0 | N26: 0 | P26: 0 | R26: 0 | T26: 0
A27: ВН, всего | E27: Всего | G27: =SUM(G15:G24) -> 0.8 | H27: =SUM(H15:H24) -> 1.52 | I27: =SUM(I15:I24) -> 0.8 | J27: =SUM(J15:J24) -> 1.52 | K27: =SUM(K15:K24)+K24+K23+K18+K19 -> 1.6 | L27: =SUM(L15:L24) -> 1.52 | M27: =SUM(M15:M24)+M24+M23+M18+M19 -> 1.6 | N27: =SUM(N15:N24) -> 1.52 | O27: =SUM(O15:O24)+O24+O23+O18+O19 -> 0 | P27: =SUM(P15:P24) -> 0 | R27: =SUM(R15:R24) -> 0 | T27: =SUM(T15:T24) -> 0
A28: ВЛЭП | B28: 35 | C28: 1 | D28: дерево | E28: ВЛЭП-35кВ-цепей:1-дерево | F28: 170 | H28: 0 | J28: =F28*I28/100 -> 0 | L28: 0 | N28: 0 | P28: 0 | R28: 0 | T28: 0
D29: металл | E29: ВЛЭП-35кВ-металл | F29: 140 | H29: 0 | J29: 0 | L29: 0 | N29: 0 | P29: 0 | R29: 0 | T29: 0
D30: ж/бетон | E30: ВЛЭП-35кВ-ж/бетон | F30: 120 | H30: 0 | J30: 0 | L30: 0 | N30: 0 | P30: 0 | R30: 0 | T30: 0
C31: 2 | D31: металл | E31: ВЛЭП-35кВ-цепей:2-металл | F31: 180 | G31: 2.3 | H31: 4.14 | I31: 2.3 | J31: 4.14 | K31: 2.3 | L31: 4.14 | M31: 2.3 | N31: 4.14 | P31: 0 | R31: 0 | T31: 0
D32: ж/бетон | E32: ВЛЭП-35кВ-ж/бетон | F32: 150 | H32: 0 | J32: 0 | L32: 0 | N32: 0 | P32: 0 | R32: 0 | T32: 0
B33: 1 - 20 | C33: - | D33: дерево | E33: ВЛЭП-1-20кВ-дерево | F33: 160 | H33: 0 | J33: 0 | L33: 0 | N33: 0 | P33: 0 | R33: 0 | T33: 0
D34: дерево на ж/б пасынках | E34: ВЛЭП-1-20кВ-дерево на ж/б пасынках | F34: 140 | H34: 0 | J34: 0 | L34: 0 | N34: 0 | P34: 0 | R34: 0 | T34: 0
D35: ж/бетон, металл | E35: ВЛЭП-1-20кВ-ж/бетон,металл | F35: 110 | H35: 0 | J35: 0 | L35: 0 | N35: 0 | P35: 0 | R35: 0 | T35: 0
A36: КЛЭП | B36: 20 -35 | C36: - | D36: - | E36: КЛЭП-20-35кВ | F36: 470 | G36: 10 | H36: 47 | I36: 10 | J36: 47 | K36: 10 | L36: 47 | M36: 10 | N36: 47 | P36: 0 | R36: 0 | T36: 0
B37: 3 - 10 | C37: - | D37: - | E37: КЛЭП-3-10кВ | F37: 350 | G37: 203.965 | H37: 713.8775 | I37: 210.256 | J37: 735.896 | K37: 210.256 | L37: 735.896 | M37: 210.256 | N37: 735.896 | P37: 0 | R37: 0 | T37: 0
A38: СН-1, всего | E38: Всего | G38: =SUM(G28:G32)+G36 -> 12.3 | H38: =SUM(H28:H32)+H36 -> 51.14 | I38: =SUM(I28:I32)+I36 -> 12.3 | J38: =SUM(J28:J32)+J36 -> 51.14 | K38: =SUM(K28:K32)+K36+K31+K32 -> 14.6 | L38: =SUM(L28:L32)+L36 -> 51.14 | M38: =SUM(M28:M32)+M36+M31+M32 -> 14.6 | N38: =SUM(N28:N32)+N36 -> 51.14 | O38: =SUM(O28:O32)+O36+O31+O32 -> 0 | P38: =SUM(P28:P32)+P36 -> 0 | R38: =SUM(R28:R32)+R36 -> 0 | T38: =SUM(T28:T32)+T36 -> 0
A39: СН-2, всего | E39: Всего | G39: =SUM(G33:G35)+G37 -> 203.965 | H39: 713.8775 | I39: 210.256 | J39: 735.896 | K39: 210.256 | L39: 735.896 | M39: =SUM(M33:M35)+M37 -> 210.256 | N39: =SUM(N33:N35)+N37 -> 735.896 | O39: =SUM(O33:O35)+O37 -> 0 | P39: =SUM(P33:P35)+P37 -> 0 | R39: =SUM(R33:R35)+R37 -> 0 | T39: =SUM(T33:T35)+T37 -> 0
A40: ВЛЭП | B40: 0,4 кВ | C40: - | D40: дерево | E40: ВЛЭП-0,4кВ-дерево | F40: 260 | H40: 0 | J40: =F40*I40/100 -> 0 | L40: =F40*K40/100 -> 0 | N40: =F40*M40/100 -> 0 | P40: 0 | R40: 0 | T40: 0
D41: дерево на ж/б пасынках | E41: ВЛЭП-0,4кВ-дерево на ж/б пасынках | F41: 220 | H41: 0 | J41: =F41*I41/100 -> 0 | L41: =F41*K41/100 -> 0 | N41: =F41*M41/100 -> 0 | P41: 0 | R41: 0 | T41: 0
D42: ж/бетон, металл | E42: ВЛЭП-0,4кВ-ж/бетон,металл | F42: 150 | H42: 0 | J42: =F42*I42/100 -> 0 | L42: =F42*K42/100 -> 0 | N42: =F42*M42/100 -> 0 | P42: 0 | R42: 0 | T42: 0
A43: КЛЭП | B43: до 1 кВ | C43: - | D43: - | E43: КЛЭП-до1кВ | F43: 270 | G43: 2 | H43: 5.4 | I43: 2 | J43: =F43*I43/100 -> 5.4 | K43: 2 | L43: =F43*K43/100 -> 5.4 | M43: 2 | N43: =F43*M43/100 -> 5.4 | P43: 0 | R43: 0 | T43: 0
A44: НН, всего | E44: Всего | G44: =SUM(G40:G43) -> 2 | H44: 5.4 | I44: 2 | J44: 5.4 | K44: 2 | L44: 5.4 | M44: =SUM(M40:M43) -> 2 | N44: =SUM(N40:N43) -> 5.4 | O44: =SUM(O40:O43) -> 0 | P44: =SUM(P40:P43) -> 0 | R44: =SUM(R40:R43) -> 0 | T44: =SUM(T40:T43) -> 0
B47: Руководитель организации | K47: К.Ю. Вергазов
B49: Должностное лицо, ответственное за составление формы | K49: О.В. Костюкова

Sheet P2.1 (корректировка) (hidden)
N1: Таблица № П2.1
A2: Объем воздушных линий электропередач (ВЛЭП) и кабельных линий электропередач (КЛЭП) в условных единицах в зависимост от протяженности, напряжения, конструктивного использования и материала опор (корректировка условных единиц).
A4: ЛЭП | B4: Напряжение, кВ | C4: Количество цепей на опоре | D4: Материал опор | F4: Количество условных единиц (у) на 100 км трассы ЛЭП | G4: Протяженность (2012 год) принято при утверждении тарифов | H4: Объем условных единиц | I4: Протяженность (на 1 января 2012 года по факту) | J4: Объем условных единиц | K4: Разница | L4: Пояснения | M4: Протяженность (2013 год) принято при утверждении тарифов | N4: Объем условных единиц | O4: Протяженность (на 1 января 2013 года по факту) | P4: Объем условных единиц | Q4: Разница | R4: Пояснения
F5: у/100км | G5: км | H5: у | I5: км | J5: у | K5: у | M5: км | N5: у | O5: км | P5: у | Q5: у
A6: 1 | B6: =+A6+1 -> 2 | C6: =+B6+1 -> 3 | D6: =+C6+1 -> 4 | F6: =+D6+1 -> 5 | G6: =+F6+1 -> 6 | H6: 7 = 5 * 6 /100 | I6: 8 | J6: 9 = 5 * 8 /100 | K6: 10=9-7 | L6: 11 | M6: 12 | N6: 13 = 5*12 /100 | O6: 14 | P6: 15 = 5 * 14 /100 | Q6: 16=15-13 | R6: 17
A7: ВЛЭП | B7: 1150 | C7: - | D7: металл | E7: ВЛЭП-1150кВ-металл | F7: 800 | H7: =$F7*G7/100 -> 0 | J7: =$F7*I7/100 -> 0 | K7: =J7-H7 -> 0 | N7: =$F7*M7/100 -> 0 | P7: 0 | Q7: =P7-N7 -> 0
B8: 750 | C8: 1 | D8: металл | E8: ВЛЭП-750кВ-цепей:1-металл | F8: 600 | H8: =F8*G8/100 -> 0 | J8: 0 | K8: =J8-H8 -> 0 | N8: 0 | P8: 0 | Q8: =P8-N8 -> 0
B9: 400-500 | C9: 1 | D9: металл | E9: ВЛЭП-400-500кВ-цепей:1-металл | F9: 400 | H9: 0 | J9: 0 | K9: 0 | N9: 0 | P9: 0 | Q9: 0
D10: ж/бетон | E10: ВЛЭП-400-500кВ-ж/бетон | F10: 300 | H10: 0 | J10: 0 | K10: 0 | N10: 0 | P10: 0 | Q10: 0
B11: 330 | C11: 1 | D11: металл | E11: ВЛЭП-330кВ-цепей:1-металл | F11: 230 | H11: 0 | J11: 0 | K11: 0 | N11: 0 | P11: 0 | Q11: 0
D12: ж/бетон | E12: ВЛЭП-330кВ-ж/бетон | F12: 170 | H12: 0 | J12: 0 | K12: 0 | N12: 0 | P12: 0 | Q12: 0
C13: 2 | D13: металл | E13: ВЛЭП-330кВ-цепей:2-металл | F13: 290 | H13: 0 | J13: 0 | K13: 0 | N13: 0 | P13: 0 | Q13: 0
D14: ж/бетон | E14: ВЛЭП-330кВ-ж/бетон | F14: 210 | H14: 0 | J14: 0 | K14: 0 | N14: 0 | P14: 0 | Q14: 0
B15: 220 | C15: 1 | D15: дерево | E15: ВЛЭП-220кВ-цепей:1-дерево | F15: 260 | H15: 0 | J15: 0 | K15: 0 | N15: 0 | P15: 0 | Q15: 0
D16: металл | E16: ВЛЭП-220кВ-металл | F16: 210 | H16: 0 | J16: 0 | K16: 0 | N16: 0 | P16: 0 | Q16: 0
D17: ж/бетон | E17: ВЛЭП-220кВ-ж/бетон | F17: 140 | H17: 0 | J17: 0 | K17: 0 | N17: 0 | P17: 0 | Q17: 0
C18: 2 | D18: металл | E18: ВЛЭП-220кВ-цепей:2-металл | F18: 270 | H18: 0 | J18: 0 | K18: 0 | N18: 0 | P18: 0 | Q18: 0
D19: ж/бетон | E19: ВЛЭП-220кВ-ж/бетон | F19: 180 | H19: 0 | J19: 0 | K19: 0 | N19: 0 | P19: 0 | Q19: 0
B20: 110-150 | C20: 1 | D20: дерево | E20: ВЛЭП-110-150кВ-цепей:1-дерево | F20: 180 | H20: 0 | J20: 0 | K20: 0 | N20: 0 | P20: 0 | Q20: 0
D21: металл | E21: ВЛЭП-110-150кВ-металл | F21: 160 | H21: 0 | J21: 0 | K21: 0 | N21: 0 | P21: 0 | Q21: 0
D22: ж/бетон | E22: ВЛЭП-110-150кВ-ж/бетон | F22: 130 | H22: 0 | J22: 0 | K22: 0 | N22: 0 | P22: 0 | Q22: 0
C23: 2 | D23: металл | E23: ВЛЭП-110-150кВ-цепей:2-металл | F23: 190 | H23: 0 | J23: 0 | K23: 0 | N23: 0 | P23: 0 | Q23: 0
D24: ж/бетон | E24: ВЛЭП-110-150кВ-ж/бетон | F24: 160 | H24: 0 | J24: 0 | K24: 0 | N24: 0 | P24: 0 | Q24: 0
A25: КЛЭП | B25: 220 | C25: - | D25: - | E25: КЛЭП-220кВ | F25: 3000 | H25: 0 | J25: 0 | K25: 0 | N25: 0 | P25: 0 | Q25: 0
B26: 110 | C26: - | D26: - | E26: КЛЭП-110кВ | F26: 2300 | H26: 0 | J26: 0 | K26: 0 | N26: 0 | P26: 0 | Q26: 0
A27: ВН, всего | E27: Всего | H27: =SUM(H15:H24) -> 0 | J27: =SUM(J15:J24) -> 0 | K27: 0 | N27: =SUM(N15:N24) -> 0 | P27: =SUM(P15:P24) -> 0 | Q27: 0
A28: ВЛЭП | B28: 35 | C28: 1 | D28: дерево | E28: ВЛЭП-35кВ-цепей:1-дерево | F28: 170 | H28: =F28*G28/100 -> 0 | J28: 0 | K28: 0 | N28: 0 | P28: 0 | Q28: 0
D29: металл | E29: ВЛЭП-35кВ-металл | F29: 140 | H29: 0 | J29: 0 | K29: 0 | N29: 0 | P29: 0 | Q29: 0
D30: ж/бетон | E30: ВЛЭП-35кВ-ж/бетон | F30: 120 | H30: 0 | J30: 0 | K30: 0 | N30: 0 | P30: 0 | Q30: 0
C31: 2 | D31: металл | E31: ВЛЭП-35кВ-цепей:2-металл | F31: 180 | H31: 0 | J31: 0 | K31: 0 | N31: 0 | P31: 0 | Q31: 0
D32: ж/бетон | E32: ВЛЭП-35кВ-ж/бетон | F32: 150 | H32: 0 | J32: 0 | K32: 0 | N32: 0 | P32: 0 | Q32: 0
B33: 1 - 20 | C33: - | D33: дерево | E33: ВЛЭП-1-20кВ-дерево | F33: 160 | H33: 0 | J33: 0 | K33: 0 | N33: 0 | P33: 0 | Q33: 0
D34: дерево на ж/б пасынках | E34: ВЛЭП-1-20кВ-дерево на ж/б пасынках | F34: 140 | H34: 0 | J34: 0 | K34: 0 | N34: 0 | P34: 0 | Q34: 0
D35: ж/бетон, металл | E35: ВЛЭП-1-20кВ-ж/бетон,металл | F35: 110 | H35: 0 | J35: 0 | K35: 0 | N35: 0 | P35: 0 | Q35: 0
A36: КЛЭП | B36: 20 -35 | C36: - | D36: - | E36: КЛЭП-20-35кВ | F36: 470 | H36: 0 | J36: 0 | K36: 0 | N36: 0 | P36: 0 | Q36: 0
B37: 3 - 10 | C37: - | D37: - | E37: КЛЭП-3-10кВ | F37: 350 | H37: 0 | J37: 0 | K37: 0 | N37: 0 | P37: 0 | Q37: 0
A38: СН-1, всего | E38: Всего | H38: =SUM(H28:H32)+H36 -> 0 | J38: =SUM(J28:J32)+J36 -> 0 | K38: 0 | N38: =SUM(N28:N32)+N36 -> 0 | P38: =SUM(P28:P32)+P36 -> 0 | Q38: 0
A39: СН-2, всего | E39: Всего | H39: =SUM(H33:H35)+H37 -> 0 | J39: =SUM(J33:J35)+J37 -> 0 | K39: 0 | N39: =SUM(N33:N35)+N37 -> 0 | P39: =SUM(P33:P35)+P37 -> 0 | Q39: 0
A40: ВЛЭП | B40: 0,4 кВ | C40: - | D40: дерево | E40: ВЛЭП-0,4кВ-дерево | F40: 260 | H40: =F40*G40/100 -> 0 | J40: 0 | K40: 0 | N40: 0 | P40: 0 | Q40: 0
D41: дерево на ж/б пасынках | E41: ВЛЭП-0,4кВ-дерево на ж/б пасынках | F41: 220 | H41: =F41*G41/100 -> 0 | J41: 0 | K41: 0 | N41: 0 | P41: 0 | Q41: 0
D42: ж/бетон, металл | E42: ВЛЭП-0,4кВ-ж/бетон,металл | F42: 150 | H42: =F42*G42/100 -> 0 | J42: 0 | K42: 0 | N42: 0 | P42: 0 | Q42: 0
A43: КЛЭП | B43: до 1 кВ | C43: - | D43: - | E43: КЛЭП-до1кВ | F43: 270 | H43: =F43*G43/100 -> 0 | J43: 0 | K43: 0 | N43: 0 | P43: 0 | Q43: 0
A44: НН, всего | E44: Всего | H44: =SUM(H40:H43) -> 0 | J44: =SUM(J40:J43) -> 0 | K44: 0 | N44: =SUM(N40:N43) -> 0 | P44: =SUM(P40:P43) -> 0 | Q44: 0
B47: Руководитель организации
B49: Должностное лицо, ответственное за составление формы

Sheet P2.2
N1: Таблица № П2.2
A2: Объем подстанций 35-1150 кВ, трансформаторных подстанций (ТП), комплексных трансформаторных подстанций (КТП) и распределительных пунктов(РП) 0,4-20 кВ в условных единицах.
A4: № п.п. | B4: Наименование | D4: Единица измерения | E4: Напряжение, кВ | F4: Количество условных единиц (у) на единицу измерения | G4: Количество единиц измерения (на 01.01.2014) | H4: Объем условных единиц | I4: Количество единиц измерения (на 01.01.2015) | J4: Объем условных единиц | K4: Количество единиц измерения (на 01.04.2015 = 2016 год) | L4: Объем условных единиц | M4: Количество единиц измерения (на 2016 год до корректировки) | N4: Объем условных единиц | O4: Количество единиц измерения (на 2016 год после корректировки) | P4: Объем условных единиц | Q4: Количество единиц измерения (на 01.01.2019) | R4: Объем условных единиц | S4: Количество единиц измерения (на 01.01.2020) | T4: Объем условных единиц
F5: у/ед.изм. | G5: ед.изм. | H5: у | I5: ед.изм. | J5: у | K5: ед.изм. | L5: у | M5: ед.изм. | N5: у | O5: ед.изм. | P5: у | Q5: ед.изм. | R5: у | S5: ед.изм. | T5: у
A6: 1 | B6: =+A6+1 -> 2 | D6: =+B6+1 -> 3 | E6: =+D6+1 -> 4 | F6: =+E6+1 -> 5 | G6: =F6+1 -> 6 | H6: 7=5*6 | I6: 8 | J6: 9=5*8 | K6: 10 | L6: 11=5*10 | M6: 12 | N6: 13=5*12 | O6: 14 | P6: 15=5*14 | Q6: 16 | R6: 17=5*16 | S6: 18 | T6: 19=5*18
A7: 1 | B7: Подстанция | C7: =B7 -> Подстанция | D7: П/ст | E7: 1150 | F7: 1000 | H7: =F7*G7 -> 0 | J7: =F7*I7 -> 0 | L7: =F7*K7 -> 0 | N7: =M7*F7 -> 0 | P7: =O7*J7 -> 0 | R7: =Q7*L7 -> 0 | T7: =S7*N7 -> 0
C8: =B7 -> Подстанция | E8: 750 | F8: 600 | H8: 0 | J8: =F8*I8 -> 0 | L8: =F8*K8 -> 0 | N8: =M8*F8 -> 0 | P8: =O8*J8 -> 0 | R8: =Q8*L8 -> 0 | T8: =S8*N8 -> 0
C9: =B7 -> Подстанция | E9: 400-500 | F9: 500 | H9: 0 | J9: =F9*I9 -> 0 | L9: 0 | N9: 0 | P9: =O9*J9 -> 0 | R9: =Q9*L9 -> 0 | T9: =S9*N9 -> 0
C10: =B7 -> Подстанция | E10: 330 | F10: 250 | H10: 0 | J10: =F10*I10 -> 0 | L10: 0 | N10: 0 | P10: =O10*J10 -> 0 | R10: =Q10*L10 -> 0 | T10: =S10*N10 -> 0
C11: =B7 -> Подстанция | E11: 220 | F11: 210 | H11: 0 | J11: =F11*I11 -> 0 | L11: 0 | N11: 0 | P11: =O11*F11 -> 0 | R11: =Q11*F11 -> 0 | T11: =S11*F11 -> 0
C12: =B7 -> Подстанция | E12: 110-150 | F12: 105 | G12: 1 | H12: 105 | I12: 1 | J12: 105 | K12: 1 | L12: 105 | M12: 1 | N12: 105 | P12: =O12*F12 -> 0 | R12: =Q12*F12 -> 0 | T12: =S12*F12 -> 0
C13: =B7 -> Подстанция | E13: 35 | F13: 75 | G13: 3 | H13: 225 | I13: 3 | J13: =F13*I13 -> 225 | K13: 3 | L13: 225 | M13: 3 | N13: 225 | P13: 0 | R13: 0 | T13: 0
A14: 2 | B14: Силовой трансформатор или реактор (одно- или трехфазный), или вольтодобавочный трансформатор | C14: =B14 -> Силовой трансформатор или реактор (одно- или трехфазный), или вольтодобавочный трансформатор | D14: Единица оборудования | E14: 1150 | F14: 60 | H14: 0 | J14: 0 | L14: 0 | N14: 0 | P14: 0 | R14: 0 | T14: 0
C15: =B14 -> Силовой трансформатор или реактор (одно- или трехфазный), или вольтодобавочный трансформатор | E15: 750 | F15: 43 | H15: 0 | J15: 0 | L15: 0 | N15: 0 | P15: 0 | R15: 0 | T15: 0
C16: =B14 -> Силовой трансформатор или реактор (одно- или трехфазный), или вольтодобавочный трансформатор | E16: 400-500 | F16: 28 | H16: 0 | J16: 0 | L16: 0 | N16: 0 | P16: 0 | R16: 0 | T16: 0
C17: =B14 -> Силовой трансформатор или реактор (одно- или трехфазный), или вольтодобавочный трансформатор | E17: 330 | F17: 18 | H17: 0 | J17: 0 | L17: 0 | N17: 0 | P17: 0 | R17: 0 | T17: 0
C18: =B14 -> Силовой трансформатор или реактор (одно- или трехфазный), или вольтодобавочный трансформатор | E18: 220 | F18: 14 | H18: 0 | J18: 0 | L18: 0 | N18: 0 | P18: 0 | R18: 0 | T18: 0
C19: =B14 -> Силовой трансформатор или реактор (одно- или трехфазный), или вольтодобавочный трансформатор | E19: 110-150 | F19: 7.8 | G19: 2 | H19: 15.6 | I19: 2 | J19: 15.6 | K19: 2 | L19: 15.6 | M19: 2 | N19: 15.6 | P19: 0 | R19: 0 | T19: 0
C20: =B14 -> Силовой трансформатор или реактор (одно- или трехфазный), или вольтодобавочный трансформатор | E20: 35 | F20: 2.1 | G20: 5 | H20: 10.5 | I20: 5 | J20: 10.5 | K20: 5 | L20: 10.5 | M20: 5 | N20: 10.5 | P20: 0 | R20: 0 | T20: 0
C21: =B14 -> Силовой трансформатор или реактор (одно- или трехфазный), или вольтодобавочный трансформатор | E21: 1-20 | F21: 1 | G21: 280 | H21: 280 | I21: 292 | J21: 292 | K21: 292 | L21: 292 | M21: 294 | N21: 294 | P21: 0 | R21: 0 | T21: 0
A22: 3 | B22: Воздушный выключатель | C22: =B22 -> Воздушный выключатель | D22: 3 фазы | E22: 1150 | F22: 180 | H22: 0 | J22: 0 | L22: 0 | N22: 0 | P22: 0 | R22: 0 | T22: 0
C23: =B22 -> Воздушный выключатель | E23: 750 | F23: 130 | H23: 0 | J23: 0 | L23: 0 | N23: 0 | P23: 0 | R23: 0 | T23: 0
C24: =B22 -> Воздушный выключатель | E24: 400-500 | F24: 88 | H24: 0 | J24: 0 | L24: 0 | N24: 0 | P24: 0 | R24: 0 | T24: 0
C25: =B22 -> Воздушный выключатель | E25: 330 | F25: 66 | H25: 0 | J25: 0 | L25: 0 | N25: 0 | P25: 0 | R25: 0 | T25: 0
C26: =B22 -> Воздушный выключатель | E26: 220 | F26: 43 | H26: 0 | J26: 0 | L26: 0 | N26: 0 | P26: 0 | R26: 0 | T26: 0
C27: =B22 -> Воздушный выключатель | E27: 110-150 | F27: 26 | H27: 0 | J27: 0 | L27: 0 | N27: 0 | P27: 0 | R27: 0 | T27: 0
C28: =B22 -> Воздушный выключатель | E28: 35 | F28: 11 | H28: 0 | J28: 0 | L28: 0 | N28: 0 | P28: 0 | R28: 0 | T28: 0
C29: =B22 -> Воздушный выключатель | E29: 1-20 | F29: 5.5 | H29: 0 | J29: 0 | L29: 0 | N29: 0 | P29: 0 | R29: 0 | T29: 0
A30: 4 | B30: Масляный (вакуумный) выключатель | C30: =B30 -> Масляный (вакуумный) выключатель | D30: - " - | E30: 220 | F30: 23 | H30: 0 | J30: 0 | L30: 0 | N30: 0 | P30: 0 | R30: 0 | T30: 0
C31: =B30 -> Масляный (вакуумный) выключатель | E31: 110-150 | F31: 14 | H31: 0 | J31: 0 | L31: 0 | N31: 0 | P31: 0 | R31: 0 | T31: 0
C32: =B30 -> Масляный (вакуумный) выключатель | E32: 35 | F32: 6.4 | H32: 0 | J32: 0 | L32: 0 | N32: 0 | P32: 0 | R32: 0 | T32: 0
C33: =B30 -> Масляный (вакуумный) выключатель | E33: 1-20 | F33: 3.1 | G33: 697 | H33: 2160.7 | I33: 706 | J33: 2188.6 | K33: 706 | L33: 2188.6 | M33: 706 | N33: 2188.6 | P33: 0 | R33: 0 | T33: 0
A34: 5 | B34: Отделитель с короткозамыкателем | C34: =B34 -> Отделитель с короткозамыкателем | D34: Единица оборудования | E34: 400-500 | F34: 35 | H34: 0 | J34: 0 | L34: 0 | N34: 0 | P34: 0 | R34: 0 | T34: 0
C35: =B34 -> Отделитель с короткозамыкателем | E35: 330 | F35: 24 | H35: 0 | J35: 0 | L35: 0 | N35: 0 | P35: 0 | R35: 0 | T35: 0
C36: =B34 -> Отделитель с короткозамыкателем | E36: 220 | F36: 19 | H36: 0 | J36: 0 | L36: 0 | N36: 0 | P36: 0 | R36: 0 | T36: 0
C37: =B34 -> Отделитель с короткозамыкателем | E37: 110-150 | F37: 9.5 | G37: 2 | H37: 19 | I37: 2 | J37: 19 | K37: 2 | L37: 19 | M37: 2 | N37: 19 | P37: 0 | R37: 0 | T37: 0
C38: =B34 -> Отделитель с короткозамыкателем | E38: 35 | F38: 4.7 | G38: 3 | H38: 14.1 | I38: 3 | J38: 14.1 | K38: 3 | L38: 14.1 | M38: 3 | N38: 14.1 | P38: 0 | R38: 0 | T38: 0
A39: 6 | B39: Выключатель нагрузки | C39: =B39 -> Выключатель нагрузки | D39: - " - | E39: 1-20 | F39: 2.3 | G39: 150 | H39: 345 | I39: 150 | J39: 345 | K39: 150 | L39: 345 | M39: 150 | N39: 345 | P39: 0 | R39: 0 | T39: 0
A40: 7 | B40: Синхронный компенсатор мощн. до 50 Мвар | C40: =B40 -> Синхронный компенсатор мощн. до 50 Мвар | D40: - " - | E40: 1-20 | F40: 26 | H40: 0 | J40: 0 | L40: 0 | N40: 0 | P40: 0 | R40: 0 | T40: 0
A41: 8 | B41: То же, 50 Мвар и более | C41: Синхронный компенсатор мощн. 50 Мвар и выше | D41: - " - | E41: 1-20 | F41: 48 | H41: 0 | J41: 0 | L41: 0 | N41: 0 | P41: 0 | R41: 0 | T41: 0
A42: 9 | B42: Статические конденсаторы | C42: =B42 -> Статические конденсаторы | D42: 100 конд. | E42: 35 | F42: 2.4 | H42: =F42*G42/100 -> 0 | J42: =F42*I42/100 -> 0 | L42: =F42*K42/100 -> 0 | N42: =M42*F42/100 -> 0 | P42: =O42*F42/100 -> 0 | R42: =Q42*F42/100 -> 0 | T42: =S42*F42/100 -> 0
C43: =B42 -> Статические конденсаторы | E43: 1-20 | F43: 2.4 | H43: =F43*G43/100 -> 0 | J43: =F43*I43/100 -> 0 | L43: =F43*K43/100 -> 0 | N43: =M43*F43/100 -> 0 | P43: =O43*F43/100 -> 0 | R43: =Q43*F43/100 -> 0 | T43: =S43*F43/100 -> 0
A44: 10 | B44: Мачтовая (столбовая) ТП | C44: =B44 -> Мачтовая (столбовая) ТП | D44: ТП | E44: 1-20 | F44: 2.5 | H44: 0 | J44: 0 | L44: 0 | N44: 0 | P44: 0 | R44: 0 | T44: 0
A45: 11 | B45: Однотрансфор-маторная ТП, КТП | C45: =B45 -> Однотрансфор-маторная ТП, КТП | D45: ТП, КТП | E45: 1-20 | F45: 2.3 | G45: 12 | H45: 27.6 | I45: 12 | J45: 27.6 | K45: 12 | L45: 27.6 | M45: 12 | N45: 27.6 | P45: 0 | R45: 0 | T45: 0
A46: 12 | B46: Двухтрансформаторная ТП, КТП | C46: =B46 -> Двухтрансформаторная ТП, КТП | D46: ТП, КТП | E46: 1-20 | F46: 3 | G46: 132 | H46: 396 | I46: 132 | J46: 396 | K46: 132 | L46: 396 | M46: 132 | N46: 396 | P46: 0 | R46: 0 | T46: 0
A47: 13 | B47: Однотрансфор-маторная подстанция 34/0,4 кВ | C47: =B47 -> Однотрансфор-маторная подстанция 34/0,4 кВ | D47: п/ст | E47: 35 | F47: 3.5 | H47: 0 | J47: 0 | L47: 0 | N47: 0 | P47: 0 | R47: 0 | T47: 0
A48: 14. | B48: Итого | E48: ВН | H48: =H37+H36+H31+H30+H27+H26+H19+H18+H12+H11 -> 139.6 | J48: =J37+J36+J31+J30+J27+J26+J19+J18+J12+J11 -> 139.6 | L48: =L37+L36+L31+L30+L27+L26+L19+L18+L12+L11 -> 139.6 | N48: =N37+N36+N31+N30+N27+N26+N19+N18+N12+N11 -> 139.6 | P48: =P37+P36+P31+P30+P27+P26+P19+P18+P12+P11 -> 0 | R48: =R37+R36+R31+R30+R27+R26+R19+R18+R12+R11 -> 0 | T48: =T37+T36+T31+T30+T27+T26+T19+T18+T12+T11 -> 0
E49: СН1 | H49: =H13+H20+H28+H32+H38+H42+H47 -> 249.6 | J49: =J13+J20+J28+J32+J38+J42+J47 -> 249.6 | L49: =L13+L20+L28+L32+L38+L42+L47 -> 249.6 | N49: =N13+N20+N28+N32+N38+N42+N47 -> 249.6 | P49: =P13+P20+P28+P32+P38+P42+P47 -> 0 | R49: =R13+R20+R28+R32+R38+R42+R47 -> 0 | T49: =T13+T20+T28+T32+T38+T42+T47 -> 0
E50: СН2 | H50: =H21+H29+H33+H39+H40+H41+H43+H44+H45+H46 -> 3209.3 | J50: =J21+J29+J33+J39+J40+J41+J43+J44+J45+J46 -> 3249.2 | L50: =L21+L29+L33+L39+L40+L41+L43+L44+L45+L46 -> 3249.2 | N50: =N21+N29+N33+N39+N40+N41+N43+N44+N45+N46 -> 3251.2 | P50: =P21+P29+P33+P39+P40+P41+P43+P44+P45+P46 -> 0 | R50: =R21+R29+R33+R39+R40+R41+R43+R44+R45+R46 -> 0 | T50: =T21+T29+T33+T39+T40+T41+T43+T44+T45+T46 -> 0
E51: НН | H51: =SUM(H7:H47) - H48-H49-H50 -> 0 | J51: =SUM(J7:J47) - J48-J49-J50 -> 0 | L51: =SUM(L7:L47) - L48-L49-L50 -> 0 | N51: =SUM(N7:N47) - N48-N49-N50 -> 0 | P51: =SUM(P7:P47) - P48-P49-P50 -> 0 | R51: =SUM(R7:R47) - R48-R49-R50 -> 0 | T51: =SUM(T7:T47) - T48-T49-T50 -> 0
B54: Руководитель организации | K54: К.Ю. Вергазов
B55: Должностное лицо, ответственное за составление формы | K55: О.В. Костюкова

Sheet P2.2 (корректировка) (hidden)
N1: Таблица № П2.2
A2: Объем подстанций 35-1150 кВ, трансформаторных подстанций (ТП), комплексных трансформаторных подстанций (КТП) и распределительных пунктов(РП) 0,4-20 кВ в условных единицах (корректировка условных единиц).
A4: № п.п. | B4: Наименование | D4: Единица измерения | E4: Напряжение, кВ | F4: Количество условных единиц (у) на единицу измерения | G4: Количество единиц измерения (2012 год) принято при утверждении тарифов | H4: Объем условных единиц | I4: Количество единиц измерения (на 1 января 2012 года по факту) | J4: Объем условных единиц | K4: Разница | L4: Пояснения | M4: Количество единиц измерения (2013 год) принято при утверждении тарифов | N4: Объем условных единиц | O4: Количество единиц измерения (на 1 января 2013 года по факту) | P4: Объем условных единиц | Q4: Разница | R4: Пояснения
F5: у/ед.изм. | G5: ед.изм. | H5: у | I5: ед.изм. | J5: у | K5: у | M5: ед.изм. | N5: у | O5: ед.изм. | P5: у | Q5: у
A6: 1 | B6: =+A6+1 -> 2 | D6: =+B6+1 -> 3 | E6: =+D6+1 -> 4 | F6: =+E6+1 -> 5 | G6: =+F6+1 -> 6 | H6: 7=5*6 | I6: 8 | J6: 9=5*8 | K6: 10=9-7 | L6: 11 | M6: 12 | N6: 13 = 5*12 | O6: 14 | P6: 15 = 5 * 14 | Q6: 16=15-13 | R6: 17
A7: 1 | B7: Подстанция | C7: =B7 -> Подстанция | D7: П/ст | E7: 1150 | F7: 1000 | H7: =$F7*G7 -> 0 | J7: =$F7*I7 -> 0 | K7: =J7-H7 -> 0 | N7: =$F7*M7 -> 0 | P7: =$F7*O7 -> 0 | Q7: =P7-N7 -> 0
C8: =B7 -> Подстанция | E8: 750 | F8: 600 | H8: =F8*G8 -> 0 | J8: =$F8*I8 -> 0 | K8: =J8-H8 -> 0 | N8: =$F8*M8 -> 0 | P8: 0 | Q8: =P8-N8 -> 0
C9: =B7 -> Подстанция | E9: 400-500 | F9: 500 | H9: =F9*G9 -> 0 | J9: 0 | K9: 0 | N9: 0 | P9: 0 | Q9: 0
C10: =B7 -> Подстанция | E10: 330 | F10: 250 | H10: =F10*G10 -> 0 | J10: 0 | K10: 0 | N10: 0 | P10: 0 | Q10: 0
C11: =B7 -> Подстанция | E11: 220 | F11: 210 | H11: =F11*G11 -> 0 | J11: 0 | K11: 0 | N11: 0 | P11: 0 | Q11: 0
C12: =B7 -> Подстанция | E12: 110-150 | F12: 105 | H12: 0 | J12: 0 | K12: 0 | N12: 0 | P12: 0 | Q12: 0
C13: =B7 -> Подстанция | E13: 35 | F13: 75 | H13: 0 | J13: 0 | K13: 0 | N13: 0 | P13: 0 | Q13: 0
A14: 2 | B14: Силовой трансформатор или реактор (одно- или трехфазный), или вольтодобавочный трансформатор | C14: =B14 -> Силовой трансформатор или реактор (одно- или трехфазный), или вольтодобавочный трансформатор | D14: Единица оборудования | E14: 1150 | F14: 60 | H14: 0 | J14: 0 | K14: 0 | N14: 0 | P14: 0 | Q14: 0
C15: =B14 -> Силовой трансформатор или реактор (одно- или трехфазный), или вольтодобавочный трансформатор | E15: 750 | F15: 43 | H15: 0 | J15: 0 | K15: 0 | N15: 0 | P15: 0 | Q15: 0
C16: =B14 -> Силовой трансформатор или реактор (одно- или трехфазный), или вольтодобавочный трансформатор | E16: 400-500 | F16: 28 | H16: 0 | J16: 0 | K16: 0 | N16: 0 | P16: 0 | Q16: 0
C17: =B14 -> Силовой трансформатор или реактор (одно- или трехфазный), или вольтодобавочный трансформатор | E17: 330 | F17: 18 | H17: 0 | J17: 0 | K17: 0 | N17: 0 | P17: 0 | Q17: 0
C18: =B14 -> Силовой трансформатор или реактор (одно- или трехфазный), или вольтодобавочный трансформатор | E18: 220 | F18: 14 | H18: 0 | J18: 0 | K18: 0 | N18: 0 | P18: 0 | Q18: 0
C19: =B14 -> Силовой трансформатор или реактор (одно- или трехфазный), или вольтодобавочный трансформатор | E19: 110-150 | F19: 7.8 | H19: 0 | J19: 0 | K19: 0 | N19: 0 | P19: 0 | Q19: 0
C20: =B14 -> Силовой трансформатор или реактор (одно- или трехфазный), или вольтодобавочный трансформатор | E20: 35 | F20: 2.1 | H20: 0 | J20: 0 | K20: 0 | N20: 0 | P20: 0 | Q20: 0
C21: =B14 -> Силовой трансформатор или реактор (одно- или трехфазный), или вольтодобавочный трансформатор | E21: 1-20 | F21: 1 | H21: 0 | J21: 0 | K21: 0 | N21: 0 | P21: 0 | Q21: 0
A22: 3 | B22: Воздушный выключатель | C22: =B22 -> Воздушный выключатель | D22: 3 фазы | E22: 1150 | F22: 180 | H22: 0 | J22: 0 | K22: 0 | N22: 0 | P22: 0 | Q22: 0
C23: =B22 -> Воздушный выключатель | E23: 750 | F23: 130 | H23: 0 | J23: 0 | K23: 0 | N23: 0 | P23: 0 | Q23: 0
C24: =B22 -> Воздушный выключатель | E24: 400-500 | F24: 88 | H24: 0 | J24: 0 | K24: 0 | N24: 0 | P24: 0 | Q24: 0
C25: =B22 -> Воздушный выключатель | E25: 330 | F25: 66 | H25: 0 | J25: 0 | K25: 0 | N25: 0 | P25: 0 | Q25: 0
C26: =B22 -> Воздушный выключатель | E26: 220 | F26: 43 | H26: 0 | J26: 0 | K26: 0 | N26: 0 | P26: 0 | Q26: 0
C27: =B22 -> Воздушный выключатель | E27: 110-150 | F27: 26 | H27: 0 | J27: 0 | K27: 0 | N27: 0 | P27: 0 | Q27: 0
C28: =B22 -> Воздушный выключатель | E28: 35 | F28: 11 | H28: 0 | J28: 0 | K28: 0 | N28: 0 | P28: 0 | Q28: 0
C29: =B22 -> Воздушный выключатель | E29: 1-20 | F29: 5.5 | H29: 0 | J29: 0 | K29: 0 | N29: 0 | P29: 0 | Q29: 0
A30: 4 | B30: Масляный (вакуумный) выключатель | C30: =B30 -> Масляный (вакуумный) выключатель | D30: - " - | E30: 220 | F30: 23 | H30: 0 | J30: 0 | K30: 0 | N30: 0 | P30: 0 | Q30: 0
C31: =B30 -> Масляный (вакуумный) выключатель | E31: 110-150 | F31: 14 | H31: 0 | J31: 0 | K31: 0 | N31: 0 | P31: 0 | Q31: 0
C32: =B30 -> Масляный (вакуумный) выключатель | E32: 35 | F32: 6.4 | H32: 0 | J32: 0 | K32: 0 | N32: 0 | P32: 0 | Q32: 0
C33: =B30 -> Масляный (вакуумный) выключатель | E33: 1-20 | F33: 3.1 | H33: 0 | J33: 0 | K33: 0 | N33: 0 | P33: 0 | Q33: 0
A34: 5 | B34: Отделитель с короткозамыкателем | C34: =B34 -> Отделитель с короткозамыкателем | D34: Единица оборудования | E34: 400-500 | F34: 35 | H34: 0 | J34: 0 | K34: 0 | N34: 0 | P34: 0 | Q34: 0
C35: =B34 -> Отделитель с короткозамыкателем | E35: 330 | F35: 24 | H35: 0 | J35: 0 | K35: 0 | N35: 0 | P35: 0 | Q35: 0
C36: =B34 -> Отделитель с короткозамыкателем | E36: 220 | F36: 19 | H36: 0 | J36: 0 | K36: 0 | N36: 0 | P36: 0 | Q36: 0
C37: =B34 -> Отделитель с короткозамыкателем | E37: 110-150 | F37: 9.5 | H37: 0 | J37: 0 | K37: 0 | N37: 0 | P37: 0 | Q37: 0
C38: =B34 -> Отделитель с короткозамыкателем | E38: 35 | F38: 4.7 | H38: 0 | J38: 0 | K38: 0 | N38: 0 | P38: 0 | Q38: 0
A39: 6 | B39: Выключатель нагрузки | C39: =B39 -> Выключатель нагрузки | D39: - " - | E39: 1-20 | F39: 2.3 | H39: 0 | J39: 0 | K39: 0 | N39: 0 | P39: 0 | Q39: 0
A40: 7 | B40: Синхронный компенсатор мощн. до 50 Мвар | C40: =B40 -> Синхронный компенсатор мощн. до 50 Мвар | D40: - " - | E40: 1-20 | F40: 26 | H40: 0 | J40: 0 | K40: 0 | N40: 0 | P40: 0 | Q40: 0
A41: 8 | B41: То же, 50 Мвар и более | C41: Синхронный компенсатор мощн. 50 Мвар и выше | D41: - " - | E41: 1-20 | F41: 48 | H41: 0 | J41: 0 | K41: 0 | N41: 0 | P41: 0 | Q41: 0
A42: 9 | B42: Статические конденсаторы | C42: =B42 -> Статические конденсаторы | D42: 100 конд. | E42: 35 | F42: 2.4 | H42: =F42*G42/100 -> 0 | J42: =$F42*I42/100 -> 0 | K42: 0 | N42: =$F42*M42/100 -> 0 | P42: =$F42*O42/100 -> 0 | Q42: 0
C43: =B42 -> Статические конденсаторы | E43: 1-20 | F43: 2.4 | H43: =F43*G43/100 -> 0 | J43: =$F43*I43/100 -> 0 | K43: 0 | N43: =$F43*M43/100 -> 0 | P43: =$F43*O43/100 -> 0 | Q43: 0
A44: 10 | B44: Мачтовая (столбовая) ТП | C44: =B44 -> Мачтовая (столбовая) ТП | D44: ТП | E44: 1-20 | F44: 2.5 | H44: 0 | J44: 0 | K44: 0 | N44: 0 | P44: 0 | Q44: 0
A45: 11 | B45: Однотрансфор-маторная ТП, КТП | C45: =B45 -> Однотрансфор-маторная ТП, КТП | D45: ТП, КТП | E45: 1-20 | F45: 2.3 | H45: 0 | J45: 0 | K45: 0 | N45: 0 | P45: 0 | Q45: 0
A46: 12 | B46: Двухтрансформаторная ТП, КТП | C46: =B46 -> Двухтрансформаторная ТП, КТП | D46: ТП, КТП | E46: 1-20 | F46: 3 | H46: 0 | J46: 0 | K46: 0 | N46: 0 | P46: 0 | Q46: 0
A47: 13 | B47: Однотрансфор-маторная подстанция 34/0,4 кВ | C47: =B47 -> Однотрансфор-маторная подстанция 34/0,4 кВ | D47: п/ст | E47: 35 | F47: 3.5 | H47: 0 | J47: 0 | K47: 0 | N47: 0 | P47: 0 | Q47: 0
A48: 14. | B48: Итого | E48: ВН | H48: =H37+H36+H31+H30+H27+H26+H19+H18+H12+H11 -> 0 | J48: =J37+J36+J31+J30+J27+J26+J19+J18+J12+J11 -> 0 | K48: 0 | N48: =N37+N36+N31+N30+N27+N26+N19+N18+N12+N11 -> 0 | P48: =P37+P36+P31+P30+P27+P26+P19+P18+P12+P11 -> 0 | Q48: 0
E49: СН1 | H49: =H13+H20+H28+H32+H38+H42+H47 -> 0 | J49: =J13+J20+J28+J32+J38+J42+J47 -> 0 | K49: 0 | N49: =N13+N20+N28+N32+N38+N42+N47 -> 0 | P49: =P13+P20+P28+P32+P38+P42+P47 -> 0 | Q49: 0
E50: СН2 | H50: =H21+H29+H33+H39+H40+H41+H43+H44+H45+H46 -> 0 | J50: =J21+J29+J33+J39+J40+J41+J43+J44+J45+J46 -> 0 | K50: 0 | N50: =N21+N29+N33+N39+N40+N41+N43+N44+N45+N46 -> 0 | P50: =P21+P29+P33+P39+P40+P41+P43+P44+P45+P46 -> 0 | Q50: 0
E51: НН | H51: =SUM(H7:H47) - H48-H49-H50 -> 0 | J51: =SUM(J7:J47) - J48-J49-J50 -> 0 | K51: 0 | N51: =SUM(N7:N47) - N48-N49-N50 -> 0 | P51: =SUM(P7:P47) - P48-P49-P50 -> 0 | Q51: 0
B54: Руководитель организации
B55: Должностное лицо, ответственное за составление формы

Sheet 2.3
M1: Таблица № П2.3
A2: Объем воздушных линий электропередач (ВЛЭП) и кабельных линий электропередач (КЛЭП) в условных единицах в зависимост от протяженности, напряжения, конструктивного использования и материала опор.
B4: ВН | C4: СН-1 | D4: СН-2 | E4: НН | F4: Всего
A5: 2014 год факт (на 1.01.2014) | B5: =P2.1!H27 -> 1.52 | C5: =P2.1!H38 -> 51.14 | D5: =P2.1!H39 -> 713.8775 | E5: =P2.1!H44 -> 5.4 | F5: =SUM(B5:E5) -> 771.9375
A6: 2015 год факт (на 1.01.2015) | B6: =P2.1!J27 -> 1.52 | C6: =P2.1!J38 -> 51.14 | D6: =P2.1!J39 -> 735.896 | E6: =P2.1!J44 -> 5.4 | F6: 793.956
A7: на 1.04.2015 = 2016 год | B7: =P2.1!L27 -> 1.52 | C7: =P2.1!L38 -> 51.14 | D7: =P2.1!L39 -> 735.896 | E7: =P2.1!L44 -> 5.4 | F7: 793.956
A8: 2016 год утверждено (до корректировки) | B8: =P2.1!N27 -> 1.52 | C8: =P2.1!N38 -> 51.14 | D8: =P2.1!N39 -> 735.896 | E8: =P2.1!N44 -> 5.4 | F8: 793.956
A9: 2016 год утверждено (после корректировки) | B9: =P2.1!P27 -> 0 | C9: =P2.1!P38 -> 0 | D9: =P2.1!P39 -> 0 | E9: =P2.1!P44 -> 0 | F9: 0
A13: Объем подстанций 35-1150 кВ, трансформаторных подстанций (ТП), комплексных трансформаторных подстанций (КТП) и распределительных пунктов (РП) 0,4-20 кВ в условных единицах.
B15: ВН | C15: СН-1 | D15: СН-2 | E15: НН | F15: Всего
A16: 2014 год факт (на 1.01.2014) | B16: =P2.2!H48 -> 139.6 | C16: =P2.2!H49 -> 249.6 | D16: =P2.2!H50 -> 3209.3 | E16: =P2.2!H51 -> 0 | F16: =SUM(B16:E16) -> 3598.5
A17: 2015 год факт (на 1.01.2015) | B17: =P2.2!J48 -> 139.6 | C17: =P2.2!J49 -> 249.6 | D17: =P2.2!J50 -> 3249.2 | E17: =P2.2!J51 -> 0 | F17: 3638.4
A18: на 1.04.2015 = 2016 год | B18: =P2.2!L48 -> 139.6 | C18: =P2.2!L49 -> 249.6 | D18: =P2.2!L50 -> 3249.2 | E18: =P2.2!L51 -> 0 | F18: 3638.4
A19: 2016 год утверждено (до корректировки) | B19: =P2.2!N48 -> 139.6 | C19: =P2.2!N49 -> 249.6 | D19: =P2.2!N50 -> 3251.2 | E19: =P2.2!N51 -> 0 | F19: 3640.4
A20: 2016 год утверждено (после корректировки) | B20: =P2.2!P48 -> 0 | C20: =P2.2!P49 -> 0 | D20: =P2.2!P50 -> 0 | E20: =P2.2!P51 -> 0 | F20: 0
A23: Всего условных единиц
B25: ВН | C25: СН-1 | D25: СН-2 | E25: НН | F25: Всего | G25: ИКА i - индекс изменения количества активов | N25: п.34 Основ При установлении индекса изменения количества активов количество активов, необходимых для осуществления регулируемой деятельности на соответствующий расчетный год долгосрочного периода регулирования, определяется регулирующими органами с учетом данных за последний отчетный период текущего года о фактически введенных в эксплуатацию в соответствии с долгосрочной инвестиционной программой объектах электросетевого хозяйства с учетом степени их фактической загрузки, определяемой в соответствии с методическими указаниями, утверждаемыми Министерством энергетики Российской Федерации.
A26: 2014 год факт (на 1.01.2014) | B26: =B5+B16 -> 141.12 | C26: 300.74 | D26: 3923.1775 | E26: 5.4 | F26: =SUM(B26:E26) -> 4370.4375
A27: 2015 год факт (на 1.01.2015) | B27: 141.12 | C27: 300.74 | D27: 3985.096 | E27: 5.4 | F27: 4432.356 | G27: =IF(F26=0,0,(F27-F26)/F26) -> 0.01416757476
A28: на 1.04.2015 = 2016 год | B28: 141.12 | C28: 300.74 | D28: 3985.096 | E28: 5.4 | F28: 4432.356 | G28: 0
A29: 2016 год утверждено (до корректировки) | B29: 141.12 | C29: 300.74 | D29: 3987.096 | E29: 5.4 | F29: 4434.356 | G29: 0.0004512272931
A30: 2016 год утверждено (после корректировки) | B30: 0 | C30: 0 | D30: 0 | E30: 0 | F30: 0 | G30: -1
A34: Руководитель организации | G34: К. Ю. Вергазов
A36: Должностное лицо, ответственное за составление формы | G36: О. В. Костюкова
B38: =IF($F30=0,0,B30/$F30) -> 0 | C38: =IF($F30=0,0,C30/$F30) -> 0 | D38: =IF($F30=0,0,D30/$F30) -> 0 | E38: =IF($F30=0,0,E30/$F30) -> 0 | F38: =SUM(B38:E38) -> 0
B39: =B38*'4'!#REF! ->  | C39: =C38*'4'!#REF! ->  | D39: =D38*'4'!#REF! ->  | E39: =E38*'4'!#REF! ->  | F39: =SUM(B39:E39) -> 

Sheet заключение 2016 (hidden)
A1: Заключение
A2: по корректировке тарифа на передачу электрической энергии по сетям | P2: (без НДС) | Q2: отсутствует | R2: имеется
A3: 0 | P3: (с учетом ЕСХН) | Q3: предоставляется нерегулярно | R3: отсутствует
A4: на 2016 год в рамках долгосрочного периода 2015-2019 годы. | P4: (с учетом УСНО) | Q4: предоставляется регулярно
A5: Приказ об открытии дела об установлении тарифов - № от мая 2015 года. Расчет тарифа на услуги по передаче электрической энергии произведен с использованием метода долгосрочной индексации необходимой валовой выручки в соответствии с Методическими указаниями по расчету тарифов (приказ ФСТ от 17 февраля 2012 года № 98-э). Корректировка необходимой валовой выручки на 2016 год производится в соответствии с пунктом 9 Методических указаний. Представленные ообосновывающие материалы, заверенные подписью руководителя организации или уполномоченного лица, можно считать достоверными. Ответственность за предоставление недостоверной информации несет организация.
A6: 1. | B6: Краткая характеристика организации | P6: (с НДС)
A7: 1. 1. | B7: Основной вид деятельности организации– | C7: =Анкета!B10 -> Производство ядерных материалов
A8: 1.2. | B8: Право владения электросетевыми объектами | C8: =Анкета!B11 -> Собственность
A9: 1.4. | B9: Протяженность сетей, км | C9: ВН- | D9: =Анкета!B14 -> 0,8 | E9: СН1- | F9: =Анкета!B15 -> 12,3 | G9: СН2- | H9: =Анкета!B16 -> 210.256 | I9: НН- | J9: =Анкета!B17 -> 2
A10: 1.5. | B10: Установленная (присоединенная мощность), кВ*А | C10: =Анкета!#REF! -> 
A11: 1.6. | B11: Заявленная мощность сторонних потребителей, МВт | C11: =Анкета!B21 -> 1,02
A12: 1.7. | B12: Количество сторонних потребителей | C12: =Анкета!B27 -> 39
A13: 1.8. | B13: Действующий тариф на услуги по передаче электрической энергии (2 полугодие 2015 г.) | C13: ставка на содержание сетей, руб./кВт в месяц | G13: ставка на компенсацию потерь, руб./кВт.ч
A14: 1.9. | B14: Реквизиты решения органа регулирования
A15: 1.10. | B15: Предлагаемые организацией к утверждению тарифы на 2016 год | C15: ставка на содержание сетей, руб./МВт в месяц | E15: ='Долгосрочные параметры'!D102 -> 207278.4138 | G15: ставка на компенсацию потерь, руб./МВт.ч | H15: ='Долгосрочные параметры'!D102 -> 207278.4138 | I15: ='Долгосрочные параметры'!D103 -> 3.223773148 | J15: ='Долгосрочные параметры'!E102 -> 0
A16: 1.11. | B16: Отчетность по форме 46-ЭЭ за 2014 год и 1 полугодие 2015 года
A17: 1.12. | B17: Наличие утвержденной программы энергосбережения на период регулирования
A18: 1.13. | B18: Реквизиты решения органа регулирования, где отражены выпадающие доходов от ТП заявителей мощностью до 150 кВт
A19: 1.14. | B19: Реквизиты решения органа регулирования по инвест. программе
A20: 1.14. | B20: Отчетность по форме 46-ЭЭ | C20: предоставляется регулярно
A21: 2. | B21: Анализ финансово-хозяйственной деятельности организации за прошедший период
A22: 2.1. | B22: Прибыль от продаж по итогам 2014 года в целом по предприятию | D22: тыс.руб.
A23: 2.2. | B23: в том числе от реализации услуг по передаче электрической энергии | D23: тыс.руб.
A24: 2.3. | B24: Причина избытка или недостатка средств по регулируемой деятельности
A25: 2.4. | B25: Изменение объемов полезного отпуска по сравнению с планом за прошедший период | E25: тыс.кВт.ч | F25: в том числе сторонним потребителям
A26: 2.5. | B26: Выполнение ремонтной и инвестиционной программ за 2014 год, тыс.руб. (план/факт) | C26: план | E26: тыс.руб. | F26: факт | H26: тыс.руб. | I26: расхож-дение | J26: =G26-D26 -> 0
A27: 2.6. | B27: Обоснованные расходы по регулируемой деятельности по факту 2014 года, не учтенные в тарифах
A28: 3. | B28: Анализ объемов услуг по передаче электрической энергии
C29: 2016 год (утв.) | D29: 2016 год (предложение организации) | E29: 2016 год (с учетом корректировки) | F29: пояснение к предложению регулирующего органа
A30: 3.1. | B30: Планируемый объем отпуска в сеть на 2016 год, тыс.кВт.ч | C30: ='4'!BA8 -> 343243.355 | D30: ='4'!AB8 -> 336996.043 | E30: ='4'!#REF! ->  | F30: Объем услуг по передаче электрической энергии (расчет на сальдированный переток) учтен в соответствии с договором с филиалом "Удмуртэнерго" на 2016 год (приложение 3 к договору), потери определены в соответствии с установленным уровнем потерь на базовый период (2015 год).
A31: 3.2. | B31: полезный объем услуг сторонним потребителям, тыс.кВт.ч | C31: ='4'!BA23 -> 7107 | D31: ='4'!AB23 -> 5502 | E31: ='4'!#REF! -> 
A32: 3.3. | B32: заявленная мощность сторонних потребителей, МВт | C32: ='5'!BA23 -> 1.14536664 | D32: ='5'!AB23 -> 0.8867042707 | E32: ='5'!BF23 -> 0
A33: 3.4. | B33: потери в сетях всего, тыс.кВт.ч | C33: ='4'!BA18 -> 13209.66 | D33: ='4'!AB18 -> 12847.69664 | E33: ='4'!#REF! -> 
A34: 3.5. | B34: в том числе потери на сторонних потребителей | C34: ='4'!BA28 -> -1056.926296 | D34: ='Долгосрочные параметры'!D103*'4'!AB23/'25'!I5 -> 9003.654752 | E34: ='4'!#REF! -> 
A35: 3.6. | B35: % потерь | C35: =C34/(C31+C34) -> -0.174696433 | D35: =D34/(D31+D34) -> 0.6206996448 | E35: =E34/(E31+E34) -> 
A36: 4. | B36: Анализ необходимой валовой выручки по регулируемой деятельности на 2016 год
B37: Наименование статьи | C37: 2016 год (утв.) | D37: 2016 год (предложение организации) | E37: 2016 год (к утверждению с учетом корректировки) | F37: пояснение к предложению регулирующего органа
A38: 4.1. | B38: индекс потребительских цен | C38: ='корректировка 2016 '!E7 -> 0.044 | D38: ='Долгосрочные параметры'!D16 -> 0.15 | E38: ='корректировка 2016 '!F7 -> 0
A39: 4.2. | B39: индекс изменения количества активов | C39: ='корректировка 2016 '!E10 -> 0 | D39: =('Долгосрочные параметры'!D17-'Долгосрочные параметры'!C17)/'Долгосрочные параметры'!C17 ->  | E39: ='корректировка 2016 '!F10 -> 0
A40: 4.3. | B40: итого коэффициент индексации | C40: ='корректировка 2016 '!E14 -> 0 | D40: ='Долгосрочные параметры'!D18 -> 1.521107993 | E40: ='корректировка 2016 '!F14 -> 1
A41: 4.4. | B41: Сырье, основные материалы | F41: Корректировка подконтрольных расходов произведена в связи с изменением прогнозного уровня инфляции и измением количества активов организации, связанным с дополнительной арендой сетей
A42: 4.5. | B42: Вспомогательные материалы
B43: из них на ремонт
A44: 4.6. | B44: Работы и услуги производ. характера
B45: из них на ремонт
A46: 4.7. | B46: Затраты на оплату труда
A47: 4.6. | B47: в том числе оплата труда производственного персонала
A48: 4.6. | B48: численность производственного персонала
A49: 4.6. | B49: среднемесячная заработная плата, руб.
A50: 4.8. | B50: Прочие затраты
A51: 4.9. | B51: Прибыль на социальное развитие
A52: 4.10. | B52: Льготы, компенсации и проч.выплаты по Колдоговору
A53: 4.11. | B53: Дивиденды по акциям
A54: 4.12. | B54: Прибыль на прочие цели
B55: в том числе расходы на обслуживание заемных средств | D55: 0
A56: 4.13. | B56: ИТОГО подконтрольные расходы | C56: ='корректировка 2016 '!E33 -> 0 | D56: ='Долгосрочные параметры'!D32 -> 34991.753 | E56: ='корректировка 2016 '!F33 -> 0
A57: 4.14. | B57: Финансирование капитальных вложений из прибыли | C57: ='корректировка 2016 '!E38 -> 0 | D57: ='Долгосрочные параметры'!D37 -> 0 | E57: ='корректировка 2016 '!F38 -> 0 | F57: капвложения из прибыли признаны обоснованными в соответствии с утвержденной инвестпрограммой на 2016 год
A58: 4.15. | B58: Амортизация | C58: ='корректировка 2016 '!E43 -> 0 | D58: ='Долгосрочные параметры'!D42 -> 39221.44 | E58: ='корректировка 2016 '!F43 -> 0 | F58: амортизация скорректирована на основании факта за 9 месяцев 2015 года
A59: 4.16. | B59: Коммунальные услуги, в том числе | C59: ='корректировка 2016 '!E48 -> 0 | D59: ='Долгосрочные параметры'!D47 -> 0 | E59: ='корректировка 2016 '!F48 -> 0
B60: электрическая энергия | C60: ='корректировка 2016 '!E49 -> 0 | D60: ='Долгосрочные параметры'!D48 -> 0 | E60: ='корректировка 2016 '!F49 -> 0
B61: отопление | C61: ='корректировка 2016 '!E50 -> 0 | D61: ='Долгосрочные параметры'!D49 -> 0 | E61: ='корректировка 2016 '!F50 -> 0
B62: ГВС | C62: ='корректировка 2016 '!E51 -> 0 | D62: ='Долгосрочные параметры'!D51 -> 0 | E62: ='корректировка 2016 '!F51 -> 0
B63: водоснабжение и водоотведение | C63: ='корректировка 2016 '!E52 -> 0 | D63: ='Долгосрочные параметры'!D52+'Долгосрочные параметры'!D53 -> 0 | E63: ='корректировка 2016 '!F52 -> 0
A64: 4.17. | B64: Страховые взносы социального характера | C64: ='корректировка 2016 '!E53 -> 0 | D64: ='Долгосрочные параметры'!D54 -> 0 | E64: ='корректировка 2016 '!F53 -> 0 | F64: страховые взносы пересчитаны с учетом индексации фонда оплаты труда
A65: 4.18. | B65: Плата за аренду имущества и лизинг | C65: ='корректировка 2016 '!E54 -> 0 | D65: ='Долгосрочные параметры'!D55 -> 0 | E65: ='корректировка 2016 '!F54 -> 0 | F65: учтено увеличение арендной платы в связи с заключением дополнительных договоров аренды электросетевого имущества
A66: 4.19. | B66: Налог на имущество | C66: ='корректировка 2016 '!E55 -> 0 | D66: ='Долгосрочные параметры'!D56 -> 0 | E66: ='корректировка 2016 '!F55 -> 0
A67: 4.20. | B67: Налог на прибыль | C67: ='корректировка 2016 '!E60 -> 0 | D67: ='Долгосрочные параметры'!D61 -> 0 | E67: ='корректировка 2016 '!F60 -> 0 | F67: Налог на прибыль определен согласно п. 20 Основ ценообразования по факту 2014 года на основании данных бухгалтерского учета, включая налог на прибыль от техприсоединения | K67: При установлении тарифов на услуги по передаче электрической энергии учитывается величина налога на прибыль организаций, которая относится по данным раздельного учета к деятельности по оказанию услуг по передаче электрической энергии и осуществлению технологического присоединения к электрическим сетям. Для организаций, осуществляющих регулируемые виды деятельности, которые не являются основным видом их деятельности, распределение величины суммы налога на прибыль организаций между регулируемыми и нерегулируемыми видами деятельности производится согласно учетной политике, принятой в организации. При установлении тарифов на услуги по передаче электрической энергии учитывается величина налога на прибыль организаций, которая относится по данным раздельного учета к деятельности по оказанию услуг по передаче электрической энергии и осуществлению технологического присоединения к электрическим сетям. Для организаций, осуществляющих регулируемые виды деятельности, которые не являются основным видом их деятельности, распределение величины суммы налога на прибыль организаций между регулируемыми и нерегулируемыми видами деятельности производится согласно учетной политике, принятой в организации.
A68: 4.21. | B68: Прочие налоги и сборы, в том числе | C68: ='корректировка 2016 '!E61 -> 0 | D68: ='Долгосрочные параметры'!D62 -> 7098 | E68: ='корректировка 2016 '!F61 -> 0
B69: плата за землю | C69: ='корректировка 2016 '!E62 -> 0 | D69: ='Долгосрочные параметры'!D63 -> 0 | E69: ='корректировка 2016 '!F62 -> 0
B70: налог при упрощенной системе налогообложения | C70: ='корректировка 2016 '!E63 -> 0 | D70: ='Долгосрочные параметры'!D64 -> 0 | E70: ='корректировка 2016 '!F63 -> 0
A71: 4.22. | B71: Расходы на возврат и обслуживание заемных средств | C71: ='корректировка 2016 '!E64 -> 0 | D71: ='Долгосрочные параметры'!D65 -> 0 | E71: ='корректировка 2016 '!F64 -> 0
A72: 4.23. | B72: Прочие неподконтрольные расходы | C72: ='корректировка 2016 '!E66 -> 0 | E72: ='корректировка 2016 '!F66 -> 0
A73: 4.24. | B73: Компенсация выпадающих доходов по технологическому присоединению | C73: ='корректировка 2016 '!E67 -> 0 | D73: ='Долгосрочные параметры'!D67 -> 0 | E73: ='корректировка 2016 '!F67 -> 0
A74: 4.25. | B74: ИТОГО неподконтрольные расходы | C74: ='корректировка 2016 '!E68 -> 0 | D74: ='Долгосрочные параметры'!D68 -> 46319.44 | E74: ='корректировка 2016 '!F68 -> 0
A75: 4.26. | B75: Корректировка по факту, в том числе | C75: =C76+C77+C78+C79+C80+C81 -> 0 | D75: =D76+D77+D78+D79+D80+D81 -> 0 | E75: =E76+E77+E78+E79+E80+E81 -> 0
B76: результаты деятельности до перехода к регулированию тарифов на основе долгосрочных параметров регулирования (пункт 10 Методических указаний ) | C76: ='корректировка 2016 '!E76 -> 0 | D76: ='Долгосрочные параметры'!D76 -> 0 | E76: ='корректировка 2016 '!F76 -> 0 | K76: 0 | L76: =E76+K76 -> 0
B77: корректировка по итогам истекшего года долгосрочного периода (пункт 9 Методических указаний ), в т.ч. | C77: ='корректировка 2016 '!E77 -> 0 | D77: ='Долгосрочные параметры'!D77 -> 0 | E77: ='корректировка 2016 '!F77 -> 0
B78: корректировка подконтрольных расходов | C78: ='корректировка 2016 '!E78 -> 0 | D78: ='Долгосрочные параметры'!D78 -> 0 | E78: ='корректировка 2016 '!F78 -> 0
B79: корректировка неподконтрольных расходов | C79: ='корректировка 2016 '!E79 -> 0 | D79: ='Долгосрочные параметры'!D79 -> 0 | E79: ='корректировка 2016 '!F79 -> 0
B80: корректировка НВВ с учетом изменения полезного отпуска и цен на электрическую энергию (покупка потерь) | C80: ='корректировка 2016 '!E80 -> 0 | D80: ='Долгосрочные параметры'!D80 -> 0 | E80: ='корректировка 2016 '!F80 -> 0
B81: изменение (неисполнение) инвестиционной программы | C81: ='корректировка 2016 '!E81 -> 0 | D81: ='Долгосрочные параметры'!D81 -> 0 | E81: ='корректировка 2016 '!F81 -> 0
A82: 4.27. | B82: Корректировка НВВ с учетом достижения установленного уровня надежности и качества услуг | C82: ='корректировка 2016 '!E82 -> 0 | D82: ='Долгосрочные параметры'!D82 -> 0 | E82: ='корректировка 2016 '!F82 -> 0
A83: 4.28. | B83: ИТОГО НВВ на содержание сетей | C83: =C56+C74+C75+C82 -> 0 | D83: =D56+D74+D75+D82 -> 81311.193 | E83: =E56+E74+E75+E82 -> 0
A84: 4.29. | B84: Доля НВВ на сторонних потребителей пропорционально полезному отпуску по уровням напряжения, % | C84: ='корректировка 2016 '!E91 ->  | D84: =D85/D83 -> 0.02712462793 | E84: ='корректировка 2016 '!F91 -> 
A85: 4.30. | B85: НВВ на содержание сетей, относимая на сторонних потребителей услуг, тыс.руб. | C85: ='корректировка 2016 '!E96 -> 0 | D85: ='Долгосрочные параметры'!D102*12*'5'!AB23/1000 -> 2205.535857 | E85: ='корректировка 2016 '!F96 -> 
A86: 4.31. | B86: Расходы на покупку потерь всего, тыс. руб. | C86: ='25'!N27 -> 31110.79 | D86: ='25'!I27 -> 25309.96237 | E86: ='25'!O27 -> 0 | F86: Расходы на покупку потерь скорректированы в связи с изменением прогнозной цены покупки потерь и с учетом изменения величины потерь при сохранении уровня потерь на уровне 2015 года
A87: 4.32. | B87: Расходы на покупку потерь, относимые на сторонних потребителей, тыс. руб. | C87: =C88*C34/1000 -> -2.282960799 | D87: ='Долгосрочные параметры'!D103*'4'!AB23/1000 -> 17.73719986 | E87: =E88*E34/1000 ->  | F87: п.4.31. = п.4.32. * п.3.5. / 1000
A88: 4.33. | B88: цена покупки потерь, руб. МВт.ч | C88: ='25'!N5 -> 2.16 | D88: ='25'!I5 -> 1.97 | E88: ='25'!O5 -> 0 | F88: цена покупки потерь рассчитана с учетом прогноза на 2015 год НП Совет рынка от 28 ноября 2015 года и с учетом увеличения сбытовой надбавки ГП с 1 июля 2016 года
B90: Индивидуальные тарифы на услуги по передаче электрической энергии для взаиморасчета между
B91: 0
B92: и филиалом "Удмуртэнерго" ОАО "МРСК Центра и Приволжья" без дифференциации по уровням напряжения (в расчете на сальдированный переток = полезный отпуск сторонним потребителям +потери в доле на сторонних потребителей) указаны в таблице:
B93: Тарифы на услуги по передаче электрической энергии | C93: Утверждено на 2015 год | D93: Утверждено на 2016 год | E93: 2016 год с учетом коррек-тировки | F93: Рост тарифов в 2016 2 полугодие к 1 полугодию., % | H93: Рост тарифов в 2016 г. к уровню 2015 г., %
B94: Одноставочный тариф на услуги по передаче электрической энергии, руб./кВт.ч | C94: ='Расчет долгосрочных параметров'!D109 -> 0 | D94: ='Расчет долгосрочных параметров'!E109 -> 0 | E94: =IF('4'!#REF!=0,0,(E87+E85)/'4'!#REF!) ->  | H94: =E94/C94 -> 
B95: 1 полугодие | C95: ='Расчет долгосрочных параметров'!D110 -> 0 | D95: ='Расчет долгосрочных параметров'!E110 -> 0 | E95: =D96 -> 0 | H95: =E95/C95 -> 
B96: 2 полугодие | C96: ='Расчет долгосрочных параметров'!D111 -> 0 | D96: ='Расчет долгосрочных параметров'!E111 -> 0 | E96: =IF(E99=0,0,E102/1000+E99*6*'5'!BF23/(E31+E34)*2/1000) -> 0 | F96: =E96/E95 ->  | H96: =E96/C96 -> 
B97: Двухставочный тариф на услуги по передаче электрической энергии
B98: -плата за содержание электрических сетей на заявленную мощность, руб./МВт в месяц | C98: ='Расчет долгосрочных параметров'!D112 -> 0 | D98: ='Расчет долгосрочных параметров'!E112 -> 0 | E98: =IF(E32=0,0,E85/12/'5'!BF23*1000) -> 0 | H98: =E98/C98 -> 
B99: 1 полугодие | C99: ='Расчет долгосрочных параметров'!D113 -> 0 | D99: ='Расчет долгосрочных параметров'!E113 -> 0 | E99: =D100 -> 0
B100: 2 полугодие | C100: ='Расчет долгосрочных параметров'!D114 -> 0 | D100: ='Расчет долгосрочных параметров'!E114 -> 0 | E100: =IF(E32=0,0,(E85-E99*6*'5'!BF23/1000)/'5'!BF23/6)*1000 -> 0 | F100: =E100/E99 -> 
B101: - ставка по оплате технологического расхода электрической энегии на ее передачу, руб./МВт.ч | C101: ='Расчет долгосрочных параметров'!D115 -> 0 | D101: ='Расчет долгосрочных параметров'!E115 -> 0 | E101: =IF('4'!#REF!=0,0,E87*1000/'4'!#REF!) -> 
B102: 1 полугодие | C102: ='Расчет долгосрочных параметров'!D116 -> 0 | D102: ='Расчет долгосрочных параметров'!E116 -> 0 | E102: =D103 -> 0
B103: 2 полугодие | C103: ='Расчет долгосрочных параметров'!D117 -> 0 | D103: ='Расчет долгосрочных параметров'!E117 -> 0 | E103: =IF('4'!#REF!=0,0,(E87*1000-E102*'4'!#REF!/2)/('4'!#REF!/2)) ->  | F103: =E103/E102 -> 
B104: Организации необходимо обеспечить ежемесячное предоставление отчетности по форме 46-ээ (передача) в РЭК и в ФСТ в электронном виде через систему ЕИАС "ФСТ-РЭК - органы регулирования".
B105: В установленные сроки раскрыть информацию в соответствии со стандартами раскрытия информации
B106: Приложения к заключению на ___ л.
B107: Экспертная группа:
B109: Специалист - эксперт отдела регулирования тарифов на электрическую энергию
B111: Начальник отдела регулирования тарифов на электрическую энергию | H111: О.Ю. Ильина
B113: Заместитель министра | H113: А.А. Бобырь

Sheet РЭК корректировка (hidden)
A1: Заключение
A2: по корректировке тарифа на передачу электрической энергии по сетям | P2: (без НДС) | Q2: отсутствует | R2: имеется
A3: =Анкета!B3 -> АО "Чепецкий механический завод" | P3: (с учетом ЕСХН) | Q3: предоставляется нерегулярно | R3: отсутствует
A4: на 2014 год в рамках долгосрочного периода 2012-2014 годы. | P4: (с учетом УСНО) | Q4: предоставляется регулярно
A5: 1. | B5: Краткая характеристика организации | P5: (с НДС)
A6: 1. 1. | B6: Основной вид деятельности организации– | C6: =Анкета!B10 -> Производство ядерных материалов
A7: 1.2. | B7: Право владения теплоэнергетическими объектами | C7: =Анкета!B11 -> Собственность
A8: 1.3. | B8: Протяженность сетей, км | C8: ВН- | D8: =Анкета!B14 -> 0,8 | E8: СН1- | F8: =Анкета!B15 -> 12,3 | G8: СН2- | H8: =Анкета!B16 -> 210.256 | I8: НН- | J8: =Анкета!B17 -> 2
A9: 1.4. | B9: Присоединенная мощность, кВ*А | C9: =Анкета!#REF! -> 
A10: 1.5. | B10: Заявленная мощность сторонних потребителей, МВт | C10: ='5'!W23 -> 0.9047566479
A11: 1.6. | B11: Количество сторонних потребителей | C11: =Анкета!B27 -> 39
A12: 1.7. | B12: Действующий тариф на услуги по передаче электрической энергии | C12: ставка на содержание сетей, руб./МВт в месяц | E12: =#REF! ->  | G12: ставка на компенсацию потерь, руб./МВт.ч | I12: =#REF! -> 
A13: 1.8. | B13: Дата ввода в действие тарифов
A14: 1.9. | B14: Реквизиты решения РЭК
A15: 1.10. | B15: Утвержденная НВВ на 2012 г. | C15: =#REF! ->  | D15: тыс.руб. | E15: в том числе доля на сторонних потребителей | I15: =#REF! ->  | J15: 0.4231566878
A16: 1.11. | B16: Утвержденная НВВ на 2013 г. | C16: ='корректировка 2016 '!D83 -> 0 | D16: тыс.руб. | E16: в том числе доля на сторонних потребителей | I16: ='корректировка 2016 '!D91 ->  | J16: 0.4231894626
A17: 1.12. | B17: Утвержденная НВВ на 2014 г. | C17: ='корректировка 2016 '!E83 -> 0 | D17: тыс.руб. | E17: в том числе доля на сторонних потребителей | I17: ='корректировка 2016 '!E91 -> 
A18: 1.13. | B18: Предлагаемая организацией НВВ на 2014 год | C18: ='15'!J42+'21'!H48 -> 81311.19 | D18: тыс.руб. | E18: в том числе доля на сторонних потребителей | I18: =C88 -> 
A19: 1.14. | B19: Предлагаемые предприятием к утверждению тарифы на 2014 год | C19: ставка на содержание сетей, руб./МВт в месяц | D19: =#REF! ->  | E19: =#REF! ->  | F19: ставка на компенсацию потерь, руб./МВт.ч | I19: =#REF! ->  | J19: =#REF! -> 
A20: 1.15. | B20: Отчетность по форме 46-ЭЭ
A21: 1.16. | B21: Наличие утвержденных нормативов или экспертизы потерь (реквизиты решения, на какой год)
A22: 1.17. | B22: Наличие утвержденной программы энергосбережения
A23: 1.18. | B23: Реквизиты решения по инвест. программе
A24: 1.19. | B24: Раскрытие информации | C24: =Анкета!B33 -> На официальном сайте ОАО "ЧМЗ" (WWW.CHMZ.NET) 05 февраля 2015 года
A25: 2. | B25: Анализ финансово-хозяйственной деятельности организации за прошедший период
A26: 2.1. | B26: Прибыль от продаж по итогам 2012 года в целом по предприятию | C26: =Анкета!B25 -> 1951922 | D26: тыс.руб.
A27: 2.2. | B27: в том числе от реализации услуг по передаче электрической энергии | C27: =Анкета!B26 -> 541 | D27: тыс.руб.
A28: 2.3. | B28: Причина избытка или недостатка средств по регулируемой деятельности
A29: 2.4. | B29: Изменение объемов полезного отпуска по сравнению с планом за прошедший период | E29: тыс.кВт.ч | F29: в том числе сторонним потребителям
A30: 2.5. | B30: Выполнение ремонтной и инвестиционной программ за 2012 год, тыс.руб. (план/факт) | C30: план | E30: тыс.руб. | F30: факт | H30: тыс.руб. | I30: расхож-дение | J30: =G30-D30 -> 0
A31: 2.6. | B31: Уровень фактической средней заработной платы производственного персонала по сравнению с плановым уровнем по итогам 2012 года, руб. (план/факт) | C31: план | E31: тыс.руб. | F31: факт | H31: тыс.руб.
A32: 2.7. | B32: Обоснованные расходы по регулируемой деятельности по факту 2012 года, не учтенные в тарифах
A33: 3. | B33: Анализ объемов услуг по передаче электрической энергии
C34: 2014 год (утв.) | D34: 2014 год (предло-жение организации) | E34: 2014 год (к утверждению с учетом корректировки) | F34: пояснение к предложению РЭК
A35: 3.1. | B35: Планируемый объем отпуска в сеть на 2014 год, тыс.кВт.ч | C35: ='4'!M8 -> 328595.18 | D35: ='4'!H8 -> 329581.564 | E35: ='4'!#REF! ->  | F35: поступление в сеть и объем услуг сторонним потребителям учтены в соответствии с договором с филиалом "Удмуртэнерго" на 2014 год, на основании приказа Минэнерго на 2014 год признан обоснованным процент потерь при передаче электроэнергии сторонним потребителям - %
A36: 3.2. | B36: полезный объем услуг сторонним потребителям, тыс.кВт.ч | C36: ='4'!M23 -> 5685.653 | D36: ='4'!H23 -> 6682.896 | E36: ='4'!#REF! -> 
A37: 3.3. | B37: заявленная мощность сторонних потребителей, МВт | C37: ='5'!M23 -> 0.9163018533 | D37: ='5'!H23 -> 1.077017889 | E37: ='5'!W23 -> 0.9047566479
A38: 3.4. | B38: потери в сетях всего, тыс.кВт.ч | C38: ='4'!M18 -> 11942.488 | D38: ='4'!H18 -> 11942.48816 | E38: ='4'!#REF! -> 
A39: 3.5. | B39: в том числе потери на сторонних потребителей | C39: =C36/(1-'4'!M19/100)*'4'!M19/100 -> 214.4331769 | D39: =D36/(1-'4'!H19/100)*'4'!H19/100 -> 251.2612976 | E39: =E36/(1-'4'!#REF!/100)*'4'!#REF!/100 -> 
A40: 3.6. | B40: % потерь | C40: =C39/(C36+C39) -> 0.03634407541 | D40: =D39/(D36+D39) -> 0.03623530399 | E40: =E39/(E36+E39) -> 
A41: 4. | B41: Анализ необходимой валовой выручки по регулируемой деятельности на 2014 год
B42: Наименование статьи | C42: 2014 год (утв.) | D42: 2014 год (предло-жение организации) | E42: 2014 год (к утверждению с учетом корректировки) | F42: пояснение к предложению РЭК
A43: 4.1. | B43: индекс потребительских цен | C43: ='корректировка 2016 '!E7 -> 0.044 | E43: ='корректировка 2016 '!F7 -> 0
A44: 4.2. | B44: индекс изменения количества активов | C44: ='корректировка 2016 '!E10 -> 0 | D44: ='2.3'!G30 -> -1 | E44: ='корректировка 2016 '!F10 -> 0
A45: 4.3. | B45: итого коэффициент индексации | C45: ='корректировка 2016 '!E14 -> 0 | D45: ='15'!J16/'15'!I16 ->  | E45: ='корректировка 2016 '!F14 -> 1
A46: 4.4. | B46: Сырье, основные материалы | D46: ='15'!J7 -> 0 | F46: Корректировка подконтрольных расходов не произведена в связи с тем, что планируемые параметры расчета тарифов не изменились (согласно п.11 Методических указаний ФСТ от 17 февраля 2012 года).
A47: 4.5. | B47: Вспомогательные материалы | D47: ='15'!J8 -> 450
B48: из них на ремонт | D48: ='15'!J9 -> 0
A49: 4.6. | B49: Работы и услуги производ. характера | D49: ='15'!J10 -> 32251.75
B50: из них на ремонт | D50: ='15'!J11 -> 8051
A51: 4.7. | B51: Затраты на оплату труда | D51: ='15'!J16 -> 0
A52: 4.6. | B52: в том числе оплата труда производственного персонала | D52: ='18'!H6 -> 0
A53: 4.6. | B53: численность производственного персонала | D53: 21
A54: 4.6. | B54: среднемесячная заработная плата, руб. | D54: 30815.38848
A55: 4.8. | B55: Прочие затраты | D55: ='15'!J38+'21'!H48-D78-D46-D47-D49-D51-D56-D57-D58-D59 -> 2290
A56: 4.9. | B56: Прибыль на социальное развитие | D56: ='21'!H13 -> 0
A57: 4.10. | B57: Льготы, компенсации и проч.выплаты по Колдоговору | D57: ='21'!H16 -> 0
A58: 4.11. | B58: Дивиденды по акциям | D58: ='21'!H17 -> 0
A59: 4.12. | B59: Прибыль на прочие цели | D59: ='21'!H18 -> 0
B60: в том числе расходы на обслуживание заемных средств | D60: ='21'!H20 -> 0
A61: 4.13. | B61: ИТОГО подконтрольные расходы | C61: ='корректировка 2016 '!E33 -> 0 | D61: =SUM(D46:D60)-D52-D53-D54-D48-D60 -> 43042.75 | E61: ='корректировка 2016 '!F33 -> 0 | F61: =E61-C61 -> 0
A62: 4.14. | B62: Финансирование капитальных вложений из прибыли | C62: ='корректировка 2016 '!E38 -> 0 | D62: ='21'!H8 -> 0 | E62: ='корректировка 2016 '!F38 -> 0
A63: 4.15. | B63: Амортизация | C63: ='корректировка 2016 '!E43 -> 0 | D63: ='15'!J20 -> 39221.44 | E63: ='корректировка 2016 '!F43 -> 0
A64: 4.16. | B64: Коммунальные услуги, в том числе | C64: ='корректировка 2016 '!E48 -> 0 | D64: ='ОПР -25 счет'!F12*'ОПР -25 счет'!F$37+'ОХР -26 счет'!F12*'ОХР -26 счет'!F$39 -> 0 | E64: ='корректировка 2016 '!F48 -> 0
B65: электрическая энергия | C65: ='корректировка 2016 '!E49 -> 0 | D65: ='ОПР -25 счет'!F13*'ОПР -25 счет'!F$37+'ОХР -26 счет'!F13*'ОХР -26 счет'!F$39 -> 0 | E65: ='корректировка 2016 '!F49 -> 0
B66: отопление | C66: ='корректировка 2016 '!E50 -> 0 | D66: ='ОПР -25 счет'!F14*'ОПР -25 счет'!F$37+'ОХР -26 счет'!F14*'ОХР -26 счет'!F$39 -> 0 | E66: ='корректировка 2016 '!F50 -> 0
B67: ГВС | C67: ='корректировка 2016 '!E51 -> 0 | D67: ='ОПР -25 счет'!F16*'ОПР -25 счет'!F$37+'ОХР -26 счет'!F16*'ОХР -26 счет'!F$39 -> 0 | E67: ='корректировка 2016 '!F51 -> 0
B68: водоснабжение и водоотведение | C68: ='корректировка 2016 '!E52 -> 0 | D68: ='ОПР -25 счет'!F17*'ОПР -25 счет'!F$37+'ОХР -26 счет'!F18*'ОХР -26 счет'!F$39 -> 0 | E68: ='корректировка 2016 '!F52 -> 0
A69: 4.17. | B69: Страховые взносы социального характера | C69: ='корректировка 2016 '!E53 -> 0 | D69: ='15'!J18 -> 0 | E69: ='корректировка 2016 '!F53 -> 0
A70: 4.18. | B70: Плата за аренду имущества и лизинг | C70: ='корректировка 2016 '!E54 -> 0 | D70: ='15'!J34 -> 0 | E70: ='корректировка 2016 '!F54 -> 0
A71: 4.19. | B71: Налог на имущество | C71: ='корректировка 2016 '!E55 -> 0 | D71: ='21'!H36 -> 0 | E71: ='корректировка 2016 '!F55 -> 0
A72: 4.20. | B72: Налог на прибыль | C72: ='корректировка 2016 '!E60 -> 0 | D72: ='21'!H31 -> 0 | E72: ='корректировка 2016 '!F60 -> 0
A73: 4.21. | B73: Прочие налоги и сборы, в том числе | C73: ='корректировка 2016 '!E61 -> 0 | D73: ='15'!J29 -> 7098 | E73: ='корректировка 2016 '!F62 -> 0
B74: плата за землю | D74: ='15'!J30 -> 0
B75: налог при упрощенной системе налогообложения
A76: 4.22. | B76: Прочие неподконтрольные расходы
A77: 4.23. | B77: Компенсация выпадающих доходов по технологическому присоединению (пункт 71 Основ ценообразования)
A78: 4.24. | B78: ИТОГО неподконтрольные расходы | C78: =C62+C63+C64+C69+C70+C71+C72+C73+C76+C77 -> 0 | D78: =D62+D63+D64+D69+D70+D71+D72+D73+D76+D77 -> 46319.44 | E78: =E62+E63+E64+E69+E70+E71+E72+E73+E76+E77 -> 0 | F78: =E78-C78 -> 0
A79: 4.25. | B79: Корректировка по факту, в том числе | C79: =C80+C81+C82+C83+C84+C85 -> 0 | D79: =D80+D81+D82+D83+D84+D85 -> 0 | E79: =E80+E81+E82+E83+E84+E85 -> 0
B80: результаты деятельности до перехода к регулированию тарифов на основе долгосрочных параметров регулирования (пункт 10 Методических указаний ) | C80: ='корректировка 2016 '!E75 -> 0 | D80: ='15'!J40-'15'!J41 -> 0 | E80: ='корректировка 2016 '!F76 -> 0
B81: корректировка по итогам истекшего года долгосрочного периода (пункт 9 Методических указаний ), в т.ч. | E81: ='корректировка 2016 '!F77 -> 0
B82: корректировка подконтрольных расходов | E82: ='корректировка 2016 '!F78 -> 0
B83: корректировка неподконтрольных расходов | E83: ='корректировка 2016 '!F79 -> 0
B84: корректировка НВВ с учетом изменения полезного отпуска и цен на электрическую энергию (покупка потерь) | E84: ='корректировка 2016 '!F80 -> 0
B85: изменение (неисполнение) инвестиционной программы | E85: ='корректировка 2016 '!F81 -> 0
A86: 4.26. | B86: Корректировка НВВ с учетом достижения установленного уровня надежности и качества услуг | E86: ='корректировка 2016 '!F82 -> 0
A87: 4.27. | B87: ИТОГО НВВ на содержание сетей | C87: =C61+C78+C79+C86 -> 0 | D87: =D61+D78+D79+D86 -> 89362.19 | E87: =E61+E78+E79+E86 -> 0 | F87: =E87-C87 -> 0
A88: 4.28. | B88: Доля НВВ на сторонних потребителей пропорционально полезному отпуску по уровням напряжения, % | C88: ='корректировка 2016 '!E91 ->  | D88: =D89/D87 ->  | E88: ='корректировка 2016 '!F91 ->  | F88: доля НВВ на содержание сетей , относимая на сторонних потребителей, изменилась в связи с
A89: 4.29. | B89: НВВ на содержание сетей, относимая на сторонних потребителей услуг, тыс.руб. | C89: ='корректировка 2016 '!E96 -> 0 | D89: =(#REF!*6*'5'!H23+#REF!*6*'5'!H23)/1000 ->  | E89: ='корректировка 2016 '!F96 ->  | F89: =E89-C89 -> 
A90: 4.30. | B90: Расходы на покупку потерь всего, тыс. руб. | C90: ='25'!#REF!/1000 ->  | D90: ='25'!I27/1000 -> 25.30996237 | E90: ='25'!O27/1000 -> 0
A91: 4.31. | B91: Расходы на покупку потерь, относимые на сторонних потребителей, тыс. руб. | C91: =C92*C39/1000 ->  | D91: =D92*D39/1000 -> 0.4949847563 | E91: =E92*E39/1000 ->  | F91: п.4.31. = п.4.32. * п.3.5. / 1000
A92: 4.32. | B92: цена покупки потерь, руб. МВт.ч | C92: ='25'!#REF! ->  | D92: ='25'!I5 -> 1.97 | E92: ='25'!O5 -> 0
B94: Индивидуальные тарифы на услуги по передаче электрической энергии для взаиморасчета между
B95: =Анкета!B3 -> АО "Чепецкий механический завод"
B96: и филиалом "Удмуртэнерго" ОАО "МРСК Центра и Приволжья" без дифференциации по уровням напряжения указаны в таблице:
B97: Тарифы на услуги по передаче электрической энергии | C97: Утверждено на 2013 год | D97: 2014 год до коррек-тировки | E97: 2014 год с учетом коррек-тировки | F97: в том числе 2014 год 1 полугодие | G97: 2014 год 2 полугодие | H97: Рост тарифов в 2014 г. к уровню 2013 г., %
